Workbook

Sheet Change log (hidden)
C1: =Model_Name -> JGN GasNetworks 2050 - Long-term Future of Gas model | J1: Key: | K1: Hardcode | L1: External Link | M1: Internal Link | N1: Drop down | O1: Calculation | P1: Unique calc | Q1: Empty cell
C2: =MID(CELL("filename",A1),FIND("]",CELL("filename",A1))+1,255) -> Change log | E2: Overall Check: | F2: =Overall_Check -> Ok
B5: Copyright Jemena Limited. All rights reserved. Jemena is not liable for any loss caused by reliance on this document.
B7: Model change log
C9: Starting model name ----> | D9: JGN - Future of Gas - Revenue Model - 2022.08.22
C11: Model changes to above model
C13: Model sheet | D13: Reference | E13: Cell reference | F13: Type | G13: Legend | H13: Comments
C15: Red "to be deleted" sheets | D15: =+MAX($D$14:D14)+1 -> 1 | E15: Sheet | F15: deletion | H15: Deleted
C16: Change tracker | D16: =+MAX($D$14:D15)+1 -> 2 | E16: D11:J43 | F16: deletion | H16: Change log from previous model cleared in preparation for new items for static model
C17: Import|Capex | D17: =+MAX($D$14:D16)+1 -> 3 | E17: Sheet | F17: formula | H17: All references to external models converted to values
C18: Import|Demand | D18: =+MAX($D$14:D17)+1 -> 4 | E18: Sheet | F18: formula | H18: All references to external models converted to values
C19: Import|Pricing | D19: =+MAX($D$14:D18)+1 -> 5 | E19: Sheet | F19: formula | H19: All references to external models converted to values
C20: Import|Dashboard | D20: =+MAX($D$14:D19)+1 -> 6 | E20: Sheet | F20: formula | H20: All references to external models converted to values
C21: Input|Assumptions | D21: =+MAX($D$14:D20)+1 -> 7 | E21: Sheet | F21: structure | H21: Base year 2021 moved to column O to faciliate standard timing across all sheets
C22: Input|Allowances | D22: =+MAX($D$14:D21)+1 -> 8 | E22: Sheet | F22: structure | H22: Base year 2021 moved to column O to faciliate standard timing across all sheets
C23: Input|Actual&Fcst Data | D23: =+MAX($D$14:D22)+1 -> 9 | E23: Sheet | F23: structure | H23: Base year 2021 moved to column O to faciliate standard timing across all sheets
C24: Input|Scenarios | D24: =+MAX($D$14:D23)+1 -> 10 | E24: Sheet | F24: structure | H24: Base year 2021 moved to column O to faciliate standard timing across all sheets
C25: Calc|WACC | D25: =+MAX($D$14:D24)+1 -> 11 | E25: Sheet | F25: structure | H25: Base year 2021 moved to column O to faciliate standard timing across all sheets
C26: Calc|Adjusted Data | D26: =+MAX($D$14:D25)+1 -> 12 | E26: Sheet | F26: structure | H26: Base year 2021 moved to column O to faciliate standard timing across all sheets
C27: Calc|RAB_RFM | D27: =+MAX($D$14:D26)+1 -> 13 | E27: Sheet | F27: structure | H27: Base year 2021 moved to column O to faciliate standard timing across all sheets
C28: Calc|RAB_PTRM | D28: =+MAX($D$14:D27)+1 -> 14 | E28: Sheet | F28: structure | H28: Base year 2021 moved to column O to faciliate standard timing across all sheets
C29: Calc|RAB_Depn | D29: =+MAX($D$14:D28)+1 -> 15 | E29: Sheet | F29: structure | H29: Base year 2021 moved to column O to faciliate standard timing across all sheets
C30: Calc|TAB_RFM | D30: =+MAX($D$14:D29)+1 -> 16 | E30: Sheet | F30: structure | H30: Base year 2021 moved to column O to faciliate standard timing across all sheets
C31: Calc|TAB_PTRM | D31: =+MAX($D$14:D30)+1 -> 17 | E31: Sheet | F31: structure | H31: Base year 2021 moved to column O to faciliate standard timing across all sheets
C32: Calc|TAB_Depn | D32: =+MAX($D$14:D31)+1 -> 18 | E32: Sheet | F32: structure | H32: Base year 2021 moved to column O to faciliate standard timing across all sheets
C33: Calc|Opex | D33: =+MAX($D$14:D32)+1 -> 19 | E33: Sheet | F33: structure | H33: Base year 2021 moved to column O to faciliate standard timing across all sheets
C34: Calc|Incentives | D34: =+MAX($D$14:D33)+1 -> 20 | E34: Sheet | F34: structure | H34: Base year 2021 moved to column O to faciliate standard timing across all sheets
C35: Calc|Other BB Revenue | D35: =+MAX($D$14:D34)+1 -> 21 | E35: Sheet | F35: structure | H35: Base year 2021 moved to column O to faciliate standard timing across all sheets
C36: Calc|X-Factor | D36: =+MAX($D$14:D35)+1 -> 22 | E36: Sheet | F36: structure | H36: Base year 2021 moved to column O to faciliate standard timing across all sheets
C37: Calc|Fin Metrics | D37: =+MAX($D$14:D36)+1 -> 23 | E37: Sheet | F37: structure | H37: Base year 2021 moved to column O to faciliate standard timing across all sheets
C38: Export|Dashboard | D38: =+MAX($D$14:D37)+1 -> 24 | E38: Sheet | F38: structure | H38: Base year 2021 moved to column O to faciliate standard timing across all sheets
C39: Export|CCM | D39: =+MAX($D$14:D38)+1 -> 25 | E39: Sheet | F39: structure | H39: Base year 2021 moved to column O to faciliate standard timing across all sheets
C40: Import|Capex | D40: =+MAX($D$14:D39)+1 -> 26 | E40: Sheet | F40: structure | H40: Base year 2021 moved to column O to faciliate standard timing across all sheets
C41: Import|Demand | D41: =+MAX($D$14:D40)+1 -> 27 | E41: Sheet | F41: structure | H41: Base year 2021 moved to column O to faciliate standard timing across all sheets
C42: Import|Pricing | D42: =+MAX($D$14:D41)+1 -> 28 | E42: Sheet | F42: structure | H42: Base year 2021 moved to column O to faciliate standard timing across all sheets
C43: Import|Dashboard | D43: =+MAX($D$14:D42)+1 -> 29 | E43: Sheet | F43: structure | H43: Base year 2021 moved to column O to faciliate standard timing across all sheets
C46: Model sheet | D46: Reference | E46: Cell reference | F46: Type | G46: Legend | H46: Comments
C48: Workbook | D48: =+MAX($D$14:D47)+1 -> 30 | E48: Cell styles | F48: deletion | H48: Clean up of cell styles
C49: Workbook | D49: =+MAX($D$14:D48)+1 -> 31 | E49: various | F49: replacement | H49: n.m. replaced with Not_Applicable named range
C52: Model sheet | D52: Reference | E52: Cell reference | F52: Type | G52: Legend | H52: Comments
C53: Input|Actual&Fcst Data | D53: =+MAX($D$14:D52)+1 -> 32 | E53: C57 | F53: text | H53: Spare named range updated with placeholder for decommissiong (opex), per original capex model
C54: Input|Actual&Fcst Data | D54: =+MAX($D$14:D53)+1 -> 33 | E54: H27:H57 | F54: inputs | H54: Asset Class (internal) column added, with inputs as per origina capex model
C55: Input|Actual&Fcst Data | D55: =+MAX($D$14:D54)+1 -> 34 | E55: H27:H57 | F55: inputs | H55: Asset Class (internal) column added, with inputs as per origina capex model
C56: Input|Scenarios | D56: =+MAX($D$14:D55)+1 -> 35 | E56: Rows 23:40 | F56: inputs | H56: Added section for future scenarios and capex levers
C57: Calc|Indicators | D57: =+MAX($D$14:D56)+1 -> 36 | E57: Sheet | F57: structure | H57: Added sheet with calculated series and initial flags. All year series at top of each sheet replaced with link to this sheet
C58: Input|Assumptions | D58: =+MAX($D$14:D57)+1 -> 37 | E58: Row 14 | F58: inputs | H58: Added input for Start Year (the first year that the year series should use, rather than the first year of prospective modelling years). Used for consistent timing across all sheets
C59: Workbook | D59: =+MAX($D$14:D58)+1 -> 38 | E59: =+Not_applicable -> n/a | F59: formula | H59: All time series (years and counters) at top of sheets connected to Indicators sheet
C60: Calc|Capex | D60: =+MAX($D$14:D59)+1 -> 39 | E60: =+Not_applicable -> n/a | F60: structure | H60: Added sheet with calculations as per original capex model
C61: Input|Actual&Fcst Data | D61: =+MAX($D$14:D60)+1 -> 40 | F61: inputs | H61: Added inputs as per original capex model
B67: End

Sheet Home Page (hidden)
D2: JGN GasNetworks 2050 - Long-term Future of Gas model | J2: Section check: | K2: =IF(COUNTA($A$16:$A$2957)=COUNTIF($A$16:$A$2957,"Ok"),"Ok","Check") -> Ok
D4: =RIGHT(CELL("filename",D3),LEN(CELL("filename",D3))-FIND("]",CELL("filename",D3))) -> Home Page | E4: =RIGHT(CELL("filename",E3),LEN(CELL("filename",E3))-FIND("]",CELL("filename",E3))) -> Home Page | F4: =RIGHT(CELL("filename",F3),LEN(CELL("filename",F3))-FIND("]",CELL("filename",F3))) -> Home Page | G4: =RIGHT(CELL("filename",G3),LEN(CELL("filename",G3))-FIND("]",CELL("filename",G3))) -> Home Page | H4: =RIGHT(CELL("filename",H3),LEN(CELL("filename",H3))-FIND("]",CELL("filename",H3))) -> Home Page | J4: Overall check: | K4: =Overall_Check -> Ok
E6: Copyright Jemena Limited. Jemena is not liable for any loss caused by reliance on this document.
B8: Model description
C10: Model description: | F10: ="This model develops "&This_Asset&"'s long-term revenue and pricing forecasts - for Gas Networks 2050 Future of Gas Analysis." -> This model develops JGN's long-term revenue and pricing forecasts - for Gas Networks 2050 Future of Gas Analysis.
B12: Table Of Contents
C14: Worksheet | E14: Ref | F14: Description
C16: Home Page | E16: 1 | F16: Provides a table of contents, model key legend and version control
C17: Output|Stored scenarios | E17: =E16+1 -> 2 | F17: Provides a summary of the scenario analysis, the decision tree and relevant charts for JGN's proposed acc. depreciation
C18: Dashboard | E18: =E17+1 -> 3 | F18: Provides a list of checks within the model, including lookup tables (name ranges)
C19: Calc|Charts | E19: =E18+1 -> 4 | F19: Links in relevant data for charts presented in the dashboard on active scenario
C20: Calc|Charts_Shadow | E20: =E19+1 -> 5 | F20: Links in relevant data for charts presented in the dashboard on stored scenario (populated by macro)
C21: Calc|Charts_Comparison | E21: =E20+1 -> 6 | F21: Links in relevant data for charts presented in the dashboard on scenario comparison
C22: Model Set Up -> | E22: 7 | F22: Section divider for sheets related to model set up
C23: Input|Assumptions | E23: 8 | F23: Inputs scenario assumptions applicable throughout the model
C24: Calc|Indicators | E24: 9 | F24: Provides a list of indicators used in subsequent sections
C25: Validation & Checks | E25: 10 | F25: Provides a list of checks within the model, including lookup tables (name ranges)
C26: Demand-> | E26: 11 | F26: Section divider for sheets related to demand forecast
C27: Input|Demand | E27: 12 | F27: Inputs demand assumptions from ENEA (Blunomy) and CORE
C28: Calc|Demand | E28: 13 | F28: Calculates demand outputs for the chosen (active) scenario
C29: Assets-> | E29: 14 | F29: Section divider for sheets related to asset investments
C30: Input|Assets | E30: 15 | F30: Inputs network asset assumptions from Jemena's engineering team
C31: Calc|Assets | E31: 16 | F31: Calculates opex and capex outputs for the chosen (active) scenario
C32: Revenue-> | E32: 17 | F32: Section divider for sheets related to revenue
C33: Input|Economics | E33: =E32+1 -> 18 | F33: Inputs for CPI, WACC and opex rate of change forecasts
C34: Input|Actual&Fcst Data | E34: 19 | F34: Inputs the business forecast data for revenue calculation
C35: Input|Scenarios | E35: 20 | F35: Scenario tool for revenue calculation
C36: Calc|WACC | E36: 21 | F36: Calculates WACC assumptions for revenue calculation
C37: Calc|Adjusted Data | E37: 22 | F37: Calculates the business forecast data (post scenarios)
C38: Calc|RAB | E38: 23 | F38: Roll-forward RAB using actual/forecast capex
C39: Calc|RAB_Depn | E39: 24 | F39: Calculates the depreciation for RAB
C40: Calc|TAB | E40: 25 | F40: Roll-forward TAB using actual/forecast capex
C41: Calc|TAB_Depn | E41: 26 | F41: Calculates the depreciation for TAB
C42: Calc|Opex | E42: 27 | F42: Calculates the opex forecasts (either base-step-trend or zero-based forecasts)
C43: Calc|Incentives | E43: 28 | F43: Calculates revenue from incentives schemes CESS and EBSS
C44: Calc|Other BB Revenue | E44: 29 | F44: Calculates the return on capital, tax allowance and revenue adjustments of the building block revenue
C45: Calc|BB Summary | E45: 30 | F45: Calculates building block revenue
C46: Pricing & WTP-> | E46: 31 | F46: Section divider for sheets related to pricing and customers' willingness to pay (WtP)
C47: Input|Pricing | E47: 32 | F47: Inputs pricing assumptions for estimating network bills
C48: Calc|Pricing | E48: 33 | F48: Calculates tariffs and network bills for the chosen (active) scenario
C49: Input|WTP | E49: 34 | F49: Inputs WtP assumptions from ENEA (Blunomy)
C50: Calc|WTP | E50: 35 | F50: Calculates WtP outputs for the chosen (active) scenario
B52: Model Key Legend
C54: Model key | F54: Description
C56: Input | E56: ---------> | F56: Input assumption (hardcode)
C57: External link | E57: ---------> | F57: External link (outside the model)
C58: Internal link | E58: ---------> | F58: Internal link (different sheet within the model)
C59: Drop-down | E59: ---------> | F59: Choice from a drop-down list
C60: Calculation | E60: ---------> | F60: Calculation (general formula driven)
C61: Unique calculation | E61: ---------> | F61: Unique calculation that differs from other cells in the same block
C62: Empty cell | E62: ---------> | F62: Cells that should not have any values/entries
B64: End

Sheet Output|Stranding risk and AD
C1: =Model_Name -> JGN GasNetworks 2050 - Long-term Future of Gas model | E1: Section Check: | F1: =IF(COUNTA($A$7:$A$628)=COUNTIF($A$7:$A$628,"Ok"),"Ok","Check") -> Ok | O1: Legend: | P1: Input (hard code) | Q1: External Link | R1: Internal Link | S1: Drop down Selection | T1: Calculation | U1: Unique calculation | V1: Empty cell
C2: =RIGHT(CELL("filename",C1),LEN(CELL("filename",C1))-FIND("]",CELL("filename",C1))) -> Output|Stranding risk and AD | E2: Overall Check: | F2: =Overall_Check -> Ok
A3: RU | I3: Year | N3: ='Calc|Indicators'!S$3 -> 2025 | O3: ='Calc|Indicators'!T$3 -> 2026 | P3: ='Calc|Indicators'!U$3 -> 2027 | Q3: ='Calc|Indicators'!V$3 -> 2028 | R3: ='Calc|Indicators'!W$3 -> 2029 | S3: ='Calc|Indicators'!X$3 -> 2030 | T3: ='Calc|Indicators'!Y$3 -> 2031 | U3: ='Calc|Indicators'!Z$3 -> 2032 | V3: ='Calc|Indicators'!AA$3 -> 2033 | W3: ='Calc|Indicators'!AB$3 -> 2034 | X3: ='Calc|Indicators'!AC$3 -> 2035 | Y3: ='Calc|Indicators'!AD$3 -> 2036 | Z3: ='Calc|Indicators'!AE$3 -> 2037 | AA3: ='Calc|Indicators'!AF$3 -> 2038 | AB3: ='Calc|Indicators'!AG$3 -> 2039 | AC3: ='Calc|Indicators'!AH$3 -> 2040 | AD3: ='Calc|Indicators'!AI$3 -> 2041 | AE3: ='Calc|Indicators'!AJ$3 -> 2042 | AF3: ='Calc|Indicators'!AK$3 -> 2043 | AG3: ='Calc|Indicators'!AL$3 -> 2044 | AH3: ='Calc|Indicators'!AM$3 -> 2045 | AI3: ='Calc|Indicators'!AN$3 -> 2046 | AJ3: ='Calc|Indicators'!AO$3 -> 2047 | AK3: ='Calc|Indicators'!AP$3 -> 2048 | AL3: ='Calc|Indicators'!AQ$3 -> 2049 | AM3: ='Calc|Indicators'!AR$3 -> 2050
B5: Copyright Jemena Limited. All rights reserved. Jemena is not liable for any loss caused by reliance on this document.
B7: Decision Tree | Stranding risk and accelerated depreciation
B57: Output | Charts (Static)
C59: Section 0: Overview of scenarios
C82: Section 1: End-customer gas vs electrification price (without accelerated depreciation)
C106: Section 2: End-customer gas vs electrification price (with accelerated depreciation for JGN to remain competitive in future - i.e. having end customer gas price below electrification price)
C129: Note: JGN's network price is calculated based on the building block revenue rather than smoothed revenue to provide a directional long-term view
C131: Section 3: End-customer gas price with and without accelerated depreciation
C152: Section 4.1: Accelerated depreciation required and proposed in RY26-30
S155: $millions, Real 2025 | T155: ='Input|Assumptions'!C31 -> Electric Hare | U155: ='Input|Assumptions'!C33 -> Electric Tortoise | V155: ='Input|Assumptions'!C34 -> Market Hydrogen | W155: ='Input|Assumptions'!C32 -> Big Hydrogen
S157: Scenario based accelerated depreciation (AD) required | T157: =SUM(O434:S434)-SUM(O236:S236) -> 1549.621801 | U157: =SUM(O532:S532)-SUM(O334:S334) -> 2380.548546 | V157: =SUM(O581:S581)-SUM(O383:S383) -> 2289.076852 | W157: =SUM(O483:S483)-SUM(O285:S285) -> 0
S158: Range of AD tested in customer engagement | T158: 500 | U158: 500 | V158: 500 | W158: 500
S159: Range of AD tested in customer engagement (lower bound) | T159: 300 | U159: 300 | V159: 300 | W159: 300
S160: Proposed AD after customer consultation | T160: 400 | U160: 400 | V160: 400 | W160: 400
C173: Section 4.2: RY26-30 Network bill impact for accelerated depreciation (for typical residential customer with 18GJ annual consumption)
U176: RY26-30 Average annual network bill
S177: $dollars, Real 2025 | T177: RY25 | U177: no AD | V177: =V616&" AD" -> 300 AD | W177: =Y616&" AD" -> 500 AD | X177: =AB616&" AD" -> 700 AD | Y177: =AE616&" AD" -> 900 AD | Z177: =AH616&" AD" -> 1100 AD | AA177: =AK616&" AD" -> 1500 AD | AB177: =AN616&" AD" -> 2200 AD | AC177: =AQ616&" AD" -> 2400 AD
S179: Network bill | T179: =O626 -> 0 | U179: =T626 -> 274.6228397 | V179: =W626 -> 309.9652828 | W179: =Z626 -> 333.5274514 | X179: =AC626 -> 357.0896199 | Y179: =AF626 -> 380.6517885 | Z179: =AI626 -> 404.2139571 | AA179: =AL626 -> 451.3382942 | AB179: =AO626 -> 531.9690857 | AC179: =AR626 -> 555.0890171
S180: Incremental bill compared to no AD | V180: =V179-$U179 -> 35.34244308 | W180: 58.90461166 | X180: 82.46678023 | Y180: 106.0289488 | Z180: 129.5911174 | AA180: 176.7154545 | AB180: 257.346246 | AC180: 280.4661774
B197: Calc | Charts
B199: Base case | no accelerated depreciation (pasted-value scenario results)
C201: ='Input|Assumptions'!$C$31 -> Electric Hare
C203: Scenario setting | D203: Scenario Selection
C205: Future scenario | D205: Electric Hare
C206: Asset replacement | D206: Current replacement pace
C207: Transition to renewable gas | D207: Current pace of hydrogen readiness
C208: Connection approach | D208: Maintain current capital contributions
C209: Pace of capital recovery | D209: No accelerate recovery
C210: Shorten asset lives cap | D210: FALSE
C211: Profiled depreciation on long-life assets | D211: n/a | E211: n/a | F211: n/a | G211: n/a
C213: Customer numbers | D213: Source | E213: Unit | F213: Basis | G213: Timing | O213: RY26 | P213: RY27 | Q213: RY28 | R213: RY29 | S213: RY30 | T213: RY31 | U213: RY32 | V213: RY33 | W213: RY34 | X213: RY35 | Y213: RY36 | Z213: RY37 | AA213: RY38 | AB213: RY39 | AC213: RY40 | AD213: RY41 | AE213: RY42 | AF213: RY43 | AG213: RY44 | AH213: RY45 | AI213: RY46 | AJ213: RY47 | AK213: RY48 | AL213: RY49 | AM213: RY50
A215: =IF(AND(ISNUMBER(O215:AM215)),"Ok","Check") -> Ok | C215: Residential - highrise | D215: Stored Input | E215: number | F215: n/a | G215: Mid-year | O215: 367175.1179 | P215: 369685.576 | Q215: 370562.8502 | R215: 369424.8573 | S215: 365487.1639 | T215: 351981.882 | U215: 330502.6358 | V215: 309026.1504 | W215: 287552.4112 | X215: 266081.4038 | Y215: 240959.9556 | Z215: 212186.7106 | AA215: 183413.4786 | AB215: 154640.2595 | AC215: 125867.0532 | AD215: 104929.1309 | AE215: 91826.48596 | AF215: 78723.84108 | AG215: 65621.19619 | AH215: 52518.5513 | AI215: 41370.50597 | AJ215: 32177.0602 | AK215: 22983.61443 | AL215: 13790.16866 | AM215: 4596.722886
A216: =IF(AND(ISNUMBER(O216:AM216)),"Ok","Check") -> Ok | C216: Residential - non-highrise | D216: Stored Input | E216: number | F216: n/a | G216: Mid-year | O216: 1151103.019 | P216: 1157982.345 | Q216: 1159386.575 | R216: 1153872.973 | S216: 1138669.397 | T216: 1094893.618 | U216: 1028079.129 | V216: 961273.2279 | W216: 894475.8693 | X216: 827687.0085 | Y216: 749542.8915 | Z216: 660039.3008 | AA216: 570535.7504 | AB216: 481032.2402 | AC216: 391528.77 | AD216: 326398.1517 | AE216: 285640.3656 | AF216: 244882.5795 | AG216: 204124.7933 | AH216: 163367.0072 | AI216: 128689.3027 | AJ216: 100091.6799 | AK216: 71494.05707 | AL216: 42896.43424 | AM216: 14298.81141
A217: =IF(AND(ISNUMBER(O217:AM217)),"Ok","Check") -> Ok | C217: Commercial | D217: Stored Input | E217: number | F217: n/a | G217: Mid-year | O217: 35190.23071 | P217: 35290.08376 | Q217: 35286.70052 | R217: 35184.44288 | S217: 34988.48936 | T217: 33619.71946 | U217: 31124.94302 | V217: 28630.53969 | W217: 26136.449 | X217: 23642.57529 | Y217: 21059.86557 | Z217: 18387.85527 | AA217: 15714.82644 | AB217: 13040.12768 | AC217: 10362.70093 | AD217: 8602.911163 | AE217: 7758.065372 | AF217: 6901.951433 | AG217: 6028.484272 | AH217: 5129.456743 | AI217: 4248.378992 | AJ217: 3378.154658 | AK217: 2468.095478 | AL217: 1537.668243 | AM217: 623.1945176
A218: =IF(AND(ISNUMBER(O218:AM218)),"Ok","Check") -> Ok | C218: Industrial | D218: Stored Input | E218: number | F218: n/a | G218: Mid-year | O218: 377 | P218: 377 | Q218: 377 | R218: 377 | S218: 377 | T218: 366.0111791 | U218: 344.0335372 | V218: 322.0558953 | W218: 300.0782534 | X218: 278.1006115 | Y218: 256.1229697 | Z218: 234.1453278 | AA218: 212.1676859 | AB218: 190.190044 | AC218: 168.2124021 | AD218: 154.476376 | AE218: 148.9819655 | AF218: 143.487555 | AG218: 137.9931446 | AH218: 132.4987341 | AI218: 127.0043236 | AJ218: 121.5099132 | AK218: 116.0155027 | AL218: 110.5210922 | AM218: 105.0266817
C220: Throughput | D220: Source | E220: Unit | F220: Basis | G220: Timing | O220: RY26 | P220: RY27 | Q220: RY28 | R220: RY29 | S220: RY30 | T220: RY31 | U220: RY32 | V220: RY33 | W220: RY34 | X220: RY35 | Y220: RY36 | Z220: RY37 | AA220: RY38 | AB220: RY39 | AC220: RY40 | AD220: RY41 | AE220: RY42 | AF220: RY43 | AG220: RY44 | AH220: RY45 | AI220: RY46 | AJ220: RY47 | AK220: RY48 | AL220: RY49 | AM220: RY50
A222: =IF(AND(ISNUMBER(O222:AM222)),"Ok","Check") -> Ok | C222: Residential - highrise | D222: Stored Input | E222: PJ | F222: n/a | G222: End-year | O222: 5.637618055 | P222: 5.578365048 | Q222: 5.466176071 | R222: 5.308848509 | S222: 5.095571715 | T222: 5.664598032 | U222: 5.318021237 | V222: 4.971493494 | W222: 4.625014546 | X222: 4.278584137 | Y222: 3.801902473 | Z222: 3.325220988 | AA222: 2.848539684 | AB222: 2.371858557 | AC222: 1.895177609 | AD222: 1.670801871 | AE222: 1.446426133 | AF222: 1.222050396 | AG222: 0.9976746579 | AH222: 0.7732989202 | AI222: 0.6186391361 | AJ222: 0.4639793521 | AK222: 0.3093195681 | AL222: 0.154659784 | AM222: 0
A223: =IF(AND(ISNUMBER(O223:AM223)),"Ok","Check") -> Ok | C223: Residential - non-highrise | D223: Stored Input | E223: PJ | F223: n/a | G223: End-year | O223: 22.20934117 | P223: 21.88578315 | Q223: 21.33247547 | R223: 20.59502745 | S223: 19.61448688 | T223: 17.62060081 | U223: 16.54252054 | V223: 15.46459286 | W223: 14.38681696 | X223: 13.30919205 | Y223: 11.82640064 | Z223: 10.34360979 | AA223: 8.860819491 | AB223: 7.378029752 | AC223: 5.895240566 | AD223: 5.197285427 | AE223: 4.499330288 | AF223: 3.801375149 | AG223: 3.10342001 | AH223: 2.405464872 | AI223: 1.924371897 | AJ223: 1.443278923 | AK223: 0.9621859486 | AL223: 0.4810929743 | AM223: 0
A224: =IF(AND(ISNUMBER(O224:AM224)),"Ok","Check") -> Ok | C224: Commercial | D224: Stored Input | E224: PJ | F224: n/a | G224: End-year | O224: 12.84676495 | P224: 12.57494975 | Q224: 12.17864419 | R224: 11.67229605 | S224: 10.98309306 | T224: 10.18618847 | U224: 9.389251034 | V224: 8.592250594 | W224: 7.795137561 | X224: 6.997830412 | Y224: 6.195002841 | Z224: 5.391614629 | AA224: 4.587305751 | AB224: 3.781488891 | AC224: 2.973212587 | AD224: 2.757788938 | AE224: 2.535989302 | AF224: 2.304177901 | AG224: 2.057140728 | AH224: 1.788155784 | AI224: 1.493383293 | AJ224: 1.166342488 | AK224: 0.8136364657 | AL224: 0.456973524 | AM224: 0.1274693758
A225: =IF(AND(ISNUMBER(O225:AM225)),"Ok","Check") -> Ok | C225: Industrial | D225: Stored Input | E225: PJ | F225: n/a | G225: End-year | O225: 46.45101651 | P225: 45.51372082 | Q225: 43.72168104 | R225: 42.10678863 | S225: 40.67365687 | T225: 39.41612623 | U225: 38.16549516 | V225: 36.92166018 | W225: 35.68451933 | X225: 34.45397222 | Y225: 33.22991992 | Z225: 32.01226503 | AA225: 30.80091158 | AB225: 29.59576504 | AC225: 28.39673232 | AD225: 27.80189092 | AE225: 27.21298129 | AF225: 26.62991446 | AG225: 26.05260279 | AH225: 25.48095994 | AI225: 24.91490089 | AJ225: 24.35434189 | AK225: 23.79920042 | AL225: 23.24939522 | AM225: 22.70484626
C227: Expenditure | D227: Source | E227: Unit | F227: Basis | G227: Timing | O227: RY26 | P227: RY27 | Q227: RY28 | R227: RY29 | S227: RY30 | T227: RY31 | U227: RY32 | V227: RY33 | W227: RY34 | X227: RY35 | Y227: RY36 | Z227: RY37 | AA227: RY38 | AB227: RY39 | AC227: RY40 | AD227: RY41 | AE227: RY42 | AF227: RY43 | AG227: RY44 | AH227: RY45 | AI227: RY46 | AJ227: RY47 | AK227: RY48 | AL227: RY49 | AM227: RY50
A229: =IF(AND(ISNUMBER(O229:AM229)),"Ok","Check") -> Ok | C229: Capex - BAU | D229: Stored Input | E229: $millions | F229: Real 2025 | G229: End-year | O229: 225.893547 | P229: 198.8461885 | Q229: 183.0611474 | R229: 162.9503788 | S229: 149.1919778 | T229: 121.860631 | U229: 121.860631 | V229: 121.860631 | W229: 117.8202309 | X229: 112.8975415 | Y229: 107.9748521 | Z229: 103.0521628 | AA229: 95.24347333 | AB229: 88.31707318 | AC229: 81.39067302 | AD229: 74.7920038 | AE229: 68.08141664 | AF229: 61.27656703 | AG229: 54.37838644 | AH229: 45.3229778 | AI229: 36.18205508 | AJ229: 27.04113236 | AK229: 21.55657873 | AL229: 16.0720251 | AM229: 10.58747147
A230: =IF(AND(ISNUMBER(O230:AM230)),"Ok","Check") -> Ok | C230: Capex - Hydrogen readiness | D230: Stored Input | E230: $millions | F230: Real 2025 | G230: End-year | O230: 0 | P230: 0 | Q230: 0 | R230: 0 | S230: 0 | T230: 0 | U230: 0 | V230: 0 | W230: 0 | X230: 0 | Y230: 0 | Z230: 0 | AA230: 0 | AB230: 0 | AC230: 0 | AD230: 0 | AE230: 0 | AF230: 0 | AG230: 0 | AH230: 0 | AI230: 0 | AJ230: 0 | AK230: 0 | AL230: 0 | AM230: 0
A231: =IF(AND(ISNUMBER(O231:AM231)),"Ok","Check") -> Ok | C231: Opex - BAU | D231: Stored Input | E231: $millions | F231: Real 2025 | G231: End-year | O231: 259.0096058 | P231: 253.2640074 | Q231: 248.7544665 | R231: 244.3322013 | S231: 239.1915943 | T231: 230.9265 | U231: 225.4208343 | V231: 219.7311048 | W231: 208.9213998 | X231: 197.5074804 | Y231: 185.0405969 | Z231: 171.4891564 | AA231: 154.4014749 | AB231: 137.8083185 | AC231: 120.9581689 | AD231: 106.2115271 | AE231: 94.5676567 | AF231: 83.01543374 | AG231: 76.07001682 | AH231: 73.1953948 | AI231: 70.56269215 | AJ231: 68.01125674 | AK231: 66.7836235 | AL231: 65.59688674 | AM231: 64.45044431
A232: =IF(AND(ISNUMBER(O232:AM232)),"Ok","Check") -> Ok | C232: Opex - Decommissioning | D232: Stored Input | E232: $millions | F232: Real 2025 | G232: End-year | O232: 0 | P232: 0 | Q232: 0 | R232: 0 | S232: 0 | T232: 0 | U232: 0 | V232: 0 | W232: 27.94992383 | X232: 30.07406413 | Y232: 30.07406413 | Z232: 30.07406413 | AA232: 50.03829544 | AB232: 47.91415513 | AC232: 47.91415513 | AD232: 47.91415513 | AE232: 47.91415513 | AF232: 47.91415513 | AG232: 47.91415513 | AH232: 62.11094183 | AI232: 62.11094183 | AJ232: 62.11094183 | AK232: 37.2665651 | AL232: 37.2665651 | AM232: 37.2665651
C234: RAB and depreciation | D234: Source | E234: Unit | F234: Basis | G234: Timing | O234: RY26 | P234: RY27 | Q234: RY28 | R234: RY29 | S234: RY30 | T234: RY31 | U234: RY32 | V234: RY33 | W234: RY34 | X234: RY35 | Y234: RY36 | Z234: RY37 | AA234: RY38 | AB234: RY39 | AC234: RY40 | AD234: RY41 | AE234: RY42 | AF234: RY43 | AG234: RY44 | AH234: RY45 | AI234: RY46 | AJ234: RY47 | AK234: RY48 | AL234: RY49 | AM234: RY50
A236: =IF(AND(ISNUMBER(O236:AM236)),"Ok","Check") -> Ok | C236: Straight-line depreciation | D236: Stored Input | E236: $millions | F236: Real 2025 | G236: End-year | O236: 177.6848631 | P236: 173.2486001 | Q236: 181.4957234 | R236: 188.9721314 | S236: 195.8735472 | T236: 207.1988351 | U236: 212.403858 | V236: 216.8847119 | W236: 220.6707675 | X236: 224.7769309 | Y236: 225.2841949 | Z236: 223.3538129 | AA236: 221.322267 | AB236: 218.2783391 | AC236: 214.8616217 | AD236: 211.9858531 | AE236: 167.9985368 | AF236: 152.3219423 | AG236: 149.5218558 | AH236: 146.5593738 | AI236: 143.2195094 | AJ236: 139.3242366 | AK236: 135.2103217 | AL236: 131.1382746 | AM236: 127.0276396
A237: =IF(AND(ISNUMBER(O237:AM237)),"Ok","Check") -> Ok | C237: Closing RAB | D237: Stored Input | E237: $millions | F237: Real 2025 | G237: End-year | O237: 3964.730804 | P237: 3989.096241 | Q237: 3989.514092 | R237: 3962.523127 | S237: 3915.039167 | T237: 3830.440956 | U237: 3740.717024 | V237: 3646.534543 | W237: 3544.442877 | X237: 3433.287026 | Y237: 3316.667051 | Z237: 3197.0206 | AA237: 3071.547244 | AB237: 2942.153999 | AC237: 2809.213654 | AD237: 2672.517577 | AE237: 2573.063831 | AF237: 2482.446113 | AG237: 2387.693278 | AH237: 2286.79794 | AI237: 2180.05077 | AJ237: 2068.007176 | AK237: 1954.56248 | AL237: 1839.674813 | AM237: 1723.382763
A238: =IF(AND(ISNUMBER(O238:AM238)),"Ok","Check") -> Ok | C238: RAB per customer | D238: Stored Input | E238: $dollars | F238: Real 2025 | G238: End-year | O238: 2551.56072 | P238: 2551.65798 | Q238: 2548.211959 | R238: 2541.937681 | S238: 2543.02247 | T238: 2586.630588 | U238: 2691.06509 | V238: 2806.641527 | W238: 2933.012906 | X238: 3071.772877 | Y238: 3277.925785 | Z238: 3588.738546 | AA238: 3989.66373 | AB238: 4534.044113 | AC238: 5321.21876 | AD238: 6072.734995 | AE238: 6676.798398 | AF238: 7507.733712 | AG238: 8653.807148 | AH238: 10340.59981 | AI238: 12497.7692 | AJ238: 15231.87358 | AK238: 20137.30255 | AL238: 31536.49379 | AM238: 87821.25128
C240: Revenue and prices | D240: Source | E240: Unit | F240: Basis | G240: Timing | O240: RY26 | P240: RY27 | Q240: RY28 | R240: RY29 | S240: RY30 | T240: RY31 | U240: RY32 | V240: RY33 | W240: RY34 | X240: RY35 | Y240: RY36 | Z240: RY37 | AA240: RY38 | AB240: RY39 | AC240: RY40 | AD240: RY41 | AE240: RY42 | AF240: RY43 | AG240: RY44 | AH240: RY45 | AI240: RY46 | AJ240: RY47 | AK240: RY48 | AL240: RY49 | AM240: RY50
A242: =IF(AND(ISNUMBER(O242:AM242)),"Ok","Check") -> Ok | C242: Building block revenue | D242: Stored Input | E242: $millions | F242: Real 2025 | G242: End-year | O242: 503.5794811 | P242: 463.5879662 | Q242: 451.173464 | R242: 476.2224423 | S242: 474.908048 | T242: 545.8386338 | U242: 554.0585293 | V242: 558.8039362 | W242: 574.4118691 | X242: 567.5055911 | Y242: 552.7473686 | Z242: 534.5049011 | AA242: 532.3349407 | AB242: 507.3139513 | AC242: 483.6388062 | AD242: 462.6590955 | AE242: 397.5202396 | AF242: 366.0399642 | AG242: 354.20568 | AH242: 360.3265954 | AI242: 351.9573932 | AJ242: 342.8648725 | AK242: 309.881889 | AL242: 301.7456409 | AM242: 293.517956
A244: =IF(AND(ISNUMBER(O244:AL244)),"Ok","Check") -> Ok | C244: End-customer gas price - Residential | D244: Stored Input | E244: $/GJ | F244: Real 2025 | G244: End-year | O244: 52.05045636 | P244: 51.55565167 | Q244: 51.9940122 | R244: 53.57756253 | S244: 54.64366582 | T244: 57.44030608 | U244: 58.5417254 | V244: 59.64441537 | W244: 61.21051163 | X244: 62.22072844 | Y244: 63.79172152 | Z244: 65.6297716 | AA244: 68.66903791 | AB244: 71.63932686 | AC244: 75.9748623 | AD244: 77.55903442 | AE244: 76.03730079 | AF244: 76.87372643 | AG244: 79.98228672 | AH244: 86.74014713 | AI244: 92.26189467 | AJ244: 101.5686203 | AK244: 115.4066073 | AL244: 167.0015187 | AM244: =NA() -> 
A245: =IF(AND(ISNUMBER(O245:AL245)),"Ok","Check") -> Ok | C245: Gas price - distribution | D245: Stored Input | E245: $/GJ | F245: Real 2025 | G245: End-year | O245: 13.47496799 | P245: 12.36230006 | Q245: 12.17702319 | R245: 13.13166217 | S245: 13.56445927 | T245: 15.89107767 | U245: 16.48354547 | V245: 17.03242761 | W245: 17.99266178 | X245: 18.33613157 | Y245: 19.06563159 | Z245: 19.93902585 | AA245: 21.85856036 | AB245: 23.51000569 | AC245: 26.26502791 | AD245: 27.19632259 | AE245: 25.67458896 | AF245: 26.5110146 | AG245: 29.61957489 | AH245: 36.3774353 | AI245: 41.89918284 | AJ245: 51.20590844 | AK245: 65.04389548 | AL245: 116.6388068 | AM245: =NA() -> 
A246: =IF(AND(ISNUMBER(O246:AL246)),"Ok","Check") -> Ok | C246: Gas price - wholesale | D246: Stored Input | E246: $/GJ | F246: Real 2025 | G246: End-year | O246: 17.89669401 | P246: 18.51455725 | Q246: 19.13819465 | R246: 19.767106 | S246: 20.40041218 | T246: 20.87043404 | U246: 21.37938556 | V246: 21.9331934 | W246: 22.53905549 | X246: 23.20580251 | Y246: 24.04729557 | Z246: 25.01195138 | AA246: 26.13168319 | AB246: 27.45052681 | AC246: 29.03104002 | AD246: 29.68391747 | AE246: 29.68391747 | AF246: 29.68391747 | AG246: 29.68391747 | AH246: 29.68391747 | AI246: 29.68391747 | AJ246: 29.68391747 | AK246: 29.68391747 | AL246: 29.68391747 | AM246: =NA() -> 
A247: =IF(AND(ISNUMBER(O247:AL247)),"Ok","Check") -> Ok | C247: Gas price - other | D247: Stored Input | E247: $/GJ | F247: Real 2025 | G247: End-year | O247: 20.67879436 | P247: 20.67879436 | Q247: 20.67879436 | R247: 20.67879436 | S247: 20.67879436 | T247: 20.67879436 | U247: 20.67879436 | V247: 20.67879436 | W247: 20.67879436 | X247: 20.67879436 | Y247: 20.67879436 | Z247: 20.67879436 | AA247: 20.67879436 | AB247: 20.67879436 | AC247: 20.67879436 | AD247: 20.67879436 | AE247: 20.67879436 | AF247: 20.67879436 | AG247: 20.67879436 | AH247: 20.67879436 | AI247: 20.67879436 | AJ247: 20.67879436 | AK247: 20.67879436 | AL247: 20.67879436 | AM247: =NA() -> 
A248: =IF(AND(ISNUMBER(O248:AM248)),"Ok","Check") -> Ok | C248: End-customer electrification price - at end of appliance life | D248: Stored Input | E248: $/GJ | F248: Real 2025 | G248: End-year | O248: 60.85152517 | P248: 59.58482663 | Q248: 58.26896119 | R248: 56.89410592 | S248: 55.45135529 | T248: 36.51915437 | U248: 34.26496234 | V248: 32.25104964 | W248: 30.45410575 | X248: 28.85383565 | Y248: 27.42987767 | Z248: 26.0225153 | AA248: 24.63231833 | AB248: 23.64190964 | AC248: 22.65399435 | AD248: 21.66495055 | AE248: 20.69103728 | AF248: 19.73221662 | AG248: 18.7880691 | AH248: 17.85746988 | AI248: 16.94162214 | AJ248: 16.03974223 | AK248: 15.15007557 | AL248: 14.27507026 | AM248: 13.41468484
C250: ='Input|Assumptions'!$C$32 -> Big Hydrogen
C252: Scenario setting | D252: Scenario Selection
C254: Future scenario | D254: Big Hydrogen
C255: Asset replacement | D255: Current replacement pace
C256: Transition to renewable gas | D256: Current pace of hydrogen readiness
C257: Connection approach | D257: Maintain current capital contributions
C258: Pace of capital recovery | D258: No accelerate recovery
C259: Shorten asset lives cap | D259: FALSE
C260: Profiled depreciation on long-life assets | D260: n/a | E260: n/a | F260: n/a | G260: n/a
C262: Customer numbers | D262: Source | E262: Unit | F262: Basis | G262: Timing | O262: RY26 | P262: RY27 | Q262: RY28 | R262: RY29 | S262: RY30 | T262: RY31 | U262: RY32 | V262: RY33 | W262: RY34 | X262: RY35 | Y262: RY36 | Z262: RY37 | AA262: RY38 | AB262: RY39 | AC262: RY40 | AD262: RY41 | AE262: RY42 | AF262: RY43 | AG262: RY44 | AH262: RY45 | AI262: RY46 | AJ262: RY47 | AK262: RY48 | AL262: RY49 | AM262: RY50
A264: =IF(AND(ISNUMBER(O264:AM264)),"Ok","Check") -> Ok | C264: Residential - highrise | D264: Stored Input | E264: number | F264: n/a | G264: Mid-year | O264: 367175.1179 | P264: 369685.576 | Q264: 370562.8502 | R264: 369424.8573 | S264: 365487.1639 | T264: 363445.1182 | U264: 364867.3566 | V264: 366254.0797 | W264: 367603.8057 | X264: 368905.5573 | Y264: 370163.8798 | Z264: 371350.5507 | AA264: 372444.8752 | AB264: 373470.2425 | AC264: 374433.5304 | AD264: 375353.7565 | AE264: 376266.4178 | AF264: 377181.3605 | AG264: 378098.5901 | AH264: 379018.1127 | AI264: 379939.9339 | AJ264: 380864.0595 | AK264: 381790.4954 | AL264: 382719.2474 | AM264: 383650.3213
A265: =IF(AND(ISNUMBER(O265:AM265)),"Ok","Check") -> Ok | C265: Residential - non-highrise | D265: Stored Input | E265: number | F265: n/a | G265: Mid-year | O265: 1151103.019 | P265: 1157982.345 | Q265: 1159386.575 | R265: 1153872.973 | S265: 1138669.397 | T265: 1130551.772 | U265: 1134975.863 | V265: 1139289.478 | W265: 1143488.007 | X265: 1147537.305 | Y265: 1151451.51 | Z265: 1155142.832 | AA265: 1158546.896 | AB265: 1161736.459 | AC265: 1164732.913 | AD265: 1167595.418 | AE265: 1170434.391 | AF265: 1173280.46 | AG265: 1176133.644 | AH265: 1178993.959 | AI265: 1181861.426 | AJ265: 1184736.06 | AK265: 1187617.881 | AL265: 1190506.906 | AM265: 1193403.155
A266: =IF(AND(ISNUMBER(O266:AM266)),"Ok","Check") -> Ok | C266: Commercial | D266: Stored Input | E266: number | F266: n/a | G266: Mid-year | O266: 35190.23071 | P266: 35290.08376 | Q266: 35286.70052 | R266: 35184.44288 | S266: 34988.48936 | T266: 34767.83452 | U266: 34568.55255 | V266: 34368.6499 | W266: 34167.66752 | X266: 33965.11957 | Y266: 33761.51866 | Z266: 33555.25989 | AA266: 33345.29617 | AB266: 33132.91294 | AC266: 32918.4628 | AD266: 32702.99416 | AE266: 32488.44477 | AF266: 32275.4086 | AG266: 32063.8744 | AH266: 31853.83102 | AI266: 31645.2671 | AJ266: 31438.17157 | AK266: 31232.53341 | AL266: 31028.34166 | AM266: 30825.58545
A267: =IF(AND(ISNUMBER(O267:AM267)),"Ok","Check") -> Ok | C267: Industrial | D267: Stored Input | E267: number | F267: n/a | G267: Mid-year | O267: 377 | P267: 377 | Q267: 377 | R267: 377 | S267: 377 | T267: 376.7155129 | U267: 376.1469679 | V267: 375.5792811 | W267: 375.0124509 | X267: 374.4464763 | Y267: 373.8813558 | Z267: 373.3170883 | AA267: 372.7536723 | AB267: 372.1911066 | AC267: 371.62939 | AD267: 371.0685211 | AE267: 370.5084987 | AF267: 369.9493215 | AG267: 369.3909882 | AH267: 368.8334976 | AI267: 368.2768483 | AJ267: 367.7210392 | AK267: 367.1660688 | AL267: 366.6119361 | AM267: 366.0586396
C269: Throughput | D269: Source | E269: Unit | F269: Basis | G269: Timing | O269: RY26 | P269: RY27 | Q269: RY28 | R269: RY29 | S269: RY30 | T269: RY31 | U269: RY32 | V269: RY33 | W269: RY34 | X269: RY35 | Y269: RY36 | Z269: RY37 | AA269: RY38 | AB269: RY39 | AC269: RY40 | AD269: RY41 | AE269: RY42 | AF269: RY43 | AG269: RY44 | AH269: RY45 | AI269: RY46 | AJ269: RY47 | AK269: RY48 | AL269: RY49 | AM269: RY50
A271: =IF(AND(ISNUMBER(O271:AM271)),"Ok","Check") -> Ok | C271: Residential - highrise | D271: Stored Input | E271: PJ | F271: n/a | G271: End-year | O271: 5.637618055 | P271: 5.578365048 | Q271: 5.466176071 | R271: 5.308848509 | S271: 5.095571715 | T271: 6.034491432 | U271: 6.057083416 | V271: 6.079293675 | W271: 6.100651303 | X271: 6.121311917 | Y271: 6.141329082 | Z271: 6.15969754 | AA271: 6.176753376 | AB271: 6.192888328 | AC271: 6.207899902 | AD271: 6.22259923 | AE271: 6.237334933 | AF271: 6.252107102 | AG271: 6.266915829 | AH271: 6.281761206 | AI271: 6.296643326 | AJ271: 6.311562281 | AK271: 6.326518163 | AL271: 6.341511066 | AM271: 6.356541083
A272: =IF(AND(ISNUMBER(O272:AM272)),"Ok","Check") -> Ok | C272: Residential - non-highrise | D272: Stored Input | E272: PJ | F272: n/a | G272: End-year | O272: 22.20934117 | P272: 21.88578315 | Q272: 21.33247547 | R272: 20.59502745 | S272: 19.61448688 | T272: 18.77121095 | U272: 18.84148678 | V272: 18.9105752 | W272: 18.97701137 | X272: 19.04127938 | Y272: 19.10354584 | Z272: 19.16068375 | AA272: 19.21373854 | AB272: 19.26392878 | AC272: 19.31062459 | AD272: 19.3563491 | AE272: 19.40218676 | AF272: 19.44813786 | AG272: 19.49420268 | AH272: 19.5403815 | AI272: 19.58667462 | AJ272: 19.63308231 | AK272: 19.67960488 | AL272: 19.7262426 | AM272: 19.77299577
A273: =IF(AND(ISNUMBER(O273:AM273)),"Ok","Check") -> Ok | C273: Commercial | D273: Stored Input | E273: PJ | F273: n/a | G273: End-year | O273: 12.84676495 | P273: 12.57494975 | Q273: 12.17864419 | R273: 11.67229605 | S273: 10.98309306 | T273: 10.73798702 | U273: 10.49856669 | V273: 10.26475754 | W273: 10.03626732 | X273: 9.813047814 | Y273: 9.594974906 | Z273: 9.381792073 | AA273: 9.173434854 | AB273: 8.969832262 | AC273: 8.770846432 | AD273: 8.576464141 | AE273: 8.386615975 | AF273: 8.201194765 | AG273: 8.020096393 | AH273: 7.843218676 | AI273: 7.670462028 | AJ273: 7.50172927 | AK273: 7.336925434 | AL273: 7.175957839 | AM273: 7.018735999
A274: =IF(AND(ISNUMBER(O274:AM274)),"Ok","Check") -> Ok | C274: Industrial | D274: Stored Input | E274: PJ | F274: n/a | G274: End-year | O274: 46.45101651 | P274: 45.51372082 | Q274: 43.72168104 | R274: 42.10678863 | S274: 40.67365687 | T274: 39.47592667 | U274: 38.30846208 | V274: 37.15367047 | W274: 36.01265951 | X274: 34.88711805 | Y274: 33.77854747 | Z274: 32.68862794 | AA274: 31.61920495 | AB274: 30.57216305 | AC274: 29.54948335 | AD274: 28.5532145 | AE274: 27.5854382 | AF274: 26.64826104 | AG274: 25.74378849 | AH274: 24.87410015 | AI274: 24.04122852 | AJ274: 23.24713513 | AK274: 22.49368836 | AL274: 21.78264308 | AM274: 21.11562186
C276: Expenditure | D276: Source | E276: Unit | F276: Basis | G276: Timing | O276: RY26 | P276: RY27 | Q276: RY28 | R276: RY29 | S276: RY30 | T276: RY31 | U276: RY32 | V276: RY33 | W276: RY34 | X276: RY35 | Y276: RY36 | Z276: RY37 | AA276: RY38 | AB276: RY39 | AC276: RY40 | AD276: RY41 | AE276: RY42 | AF276: RY43 | AG276: RY44 | AH276: RY45 | AI276: RY46 | AJ276: RY47 | AK276: RY48 | AL276: RY49 | AM276: RY50
A278: =IF(AND(ISNUMBER(O278:AM278)),"Ok","Check") -> Ok | C278: Capex - BAU | D278: Stored Input | E278: $millions | F278: Real 2025 | G278: End-year | O278: 225.893547 | P278: 198.8461885 | Q278: 183.0611474 | R278: 162.9503788 | S278: 149.1919778 | T278: 176.2564618 | U278: 177.2548458 | V278: 178.5819967 | W278: 179.5302504 | X278: 180.5394965 | Y278: 180.0360434 | Z278: 178.6572754 | AA278: 177.5532387 | AB278: 176.8278392 | AC278: 175.9094831 | AD278: 177.8461514 | AE278: 179.9855188 | AF278: 182.0538302 | AG278: 184.0190203 | AH278: 185.8975088 | AI278: 186.4240065 | AJ278: 186.9461109 | AK278: 187.4664779 | AL278: 187.9820473 | AM278: 188.4933122
A279: =IF(AND(ISNUMBER(O279:AM279)),"Ok","Check") -> Ok | C279: Capex - Hydrogen readiness | D279: Stored Input | E279: $millions | F279: Real 2025 | G279: End-year | O279: 0 | P279: 0 | Q279: 0 | R279: 0 | S279: 0 | T279: 69.34745405 | U279: 69.34745405 | V279: 69.34745405 | W279: 69.34745405 | X279: 69.34745405 | Y279: 69.34745405 | Z279: 69.34745405 | AA279: 69.34745405 | AB279: 69.34745405 | AC279: 69.34745405 | AD279: 0 | AE279: 0 | AF279: 0 | AG279: 0 | AH279: 0 | AI279: 0 | AJ279: 0 | AK279: 0 | AL279: 0 | AM279: 0
A280: =IF(AND(ISNUMBER(O280:AM280)),"Ok","Check") -> Ok | C280: Opex - BAU | D280: Stored Input | E280: $millions | F280: Real 2025 | G280: End-year | O280: 260.5268645 | P280: 254.3555604 | Q280: 249.4525019 | R280: 244.6669905 | S280: 239.1915943 | T280: 234.961932 | U280: 236.634814 | V280: 238.2881132 | W280: 240.0319804 | X280: 241.7897815 | Y280: 243.9584267 | Z280: 246.2318144 | AA280: 248.4373867 | AB280: 250.6949178 | AC280: 252.9322026 | AD280: 256.2431791 | AE280: 259.5810075 | AF280: 262.8368088 | AG280: 266.1141005 | AH280: 269.3324588 | AI280: 270.5246561 | AJ280: 271.880442 | AK280: 273.22504 | AL280: 274.6754094 | AM280: 276.1530916
A281: =IF(AND(ISNUMBER(O281:AM281)),"Ok","Check") -> Ok | C281: Opex - Decommissioning | D281: Stored Input | E281: $millions | F281: Real 2025 | G281: End-year | O281: 0 | P281: 0 | Q281: 0 | R281: 0 | S281: 0 | T281: 0 | U281: 0 | V281: 0 | W281: 0 | X281: 0 | Y281: 0 | Z281: 0 | AA281: 0 | AB281: 0 | AC281: 0 | AD281: 0 | AE281: 0 | AF281: 0 | AG281: 0 | AH281: 0 | AI281: 0 | AJ281: 0 | AK281: 0 | AL281: 0 | AM281: 0
C283: RAB and depreciation | D283: Source | E283: Unit | F283: Basis | G283: Timing | O283: RY26 | P283: RY27 | Q283: RY28 | R283: RY29 | S283: RY30 | T283: RY31 | U283: RY32 | V283: RY33 | W283: RY34 | X283: RY35 | Y283: RY36 | Z283: RY37 | AA283: RY38 | AB283: RY39 | AC283: RY40 | AD283: RY41 | AE283: RY42 | AF283: RY43 | AG283: RY44 | AH283: RY45 | AI283: RY46 | AJ283: RY47 | AK283: RY48 | AL283: RY49 | AM283: RY50
A285: =IF(AND(ISNUMBER(O285:AM285)),"Ok","Check") -> Ok | C285: Straight-line depreciation | D285: Stored Input | E285: $millions | F285: Real 2025 | G285: End-year | O285: 177.6848631 | P285: 173.2486001 | Q285: 181.4957234 | R285: 188.9721314 | S285: 195.8735472 | T285: 207.1988351 | U285: 215.4313232 | V285: 222.9580779 | W285: 229.8168779 | X285: 237.3698469 | Y285: 241.7324562 | Z285: 245.2180585 | AA285: 248.9533815 | AB285: 252.2997382 | AC285: 255.7113292 | AD285: 260.0560369 | AE285: 222.9776777 | AF285: 214.7542719 | AG285: 219.8355254 | AH285: 225.1237522 | AI285: 230.5964956 | AJ285: 235.4097094 | AK285: 240.5424046 | AL285: 245.8791474 | AM285: 251.2557915
A286: =IF(AND(ISNUMBER(O286:AM286)),"Ok","Check") -> Ok | C286: Closing RAB | D286: Stored Input | E286: $millions | F286: Real 2025 | G286: End-year | O286: 3964.730804 | P286: 3989.096241 | Q286: 3989.514092 | R286: 3962.523127 | S286: 3915.039167 | T286: 3954.633369 | U286: 3987.180037 | V286: 4013.596967 | W286: 4034.006647 | X286: 4047.896669 | Y286: 4056.924616 | Z286: 4061.098852 | AA286: 4060.442293 | AB286: 4055.719656 | AC286: 4046.674221 | AD286: 3964.934522 | AE286: 3922.440729 | AF286: 3890.265833 | AG286: 3855.000605 | AH286: 3816.350149 | AI286: 3772.759039 | AJ286: 3724.882342 | AK286: 3672.398809 | AL286: 3615.099521 | AM286: 3552.940205
A287: =IF(AND(ISNUMBER(O287:AM287)),"Ok","Check") -> Ok | C287: RAB per customer | D287: Stored Input | E287: $dollars | F287: Real 2025 | G287: End-year | O287: 2551.56072 | P287: 2551.65798 | Q287: 2548.211959 | R287: 2541.937681 | S287: 2543.02247 | T287: 2586.178927 | U287: 2597.870356 | V287: 2605.74485 | W287: 2609.935703 | X287: 2610.228614 | Y287: 2607.695681 | Z287: 2602.564535 | AA287: 2595.012978 | AB287: 2585.38225 | AC287: 2573.472862 | AD287: 2515.784304 | AE287: 2483.249335 | AF287: 2457.360996 | AG287: 2429.624018 | AH287: 2399.86592 | AI287: 2367.12496 | AJ287: 2331.831929 | AK287: 2293.80405 | AL287: 2252.930305 | AM287: 2209.203162
C289: Revenue and prices | D289: Source | E289: Unit | F289: Basis | G289: Timing | O289: RY26 | P289: RY27 | Q289: RY28 | R289: RY29 | S289: RY30 | T289: RY31 | U289: RY32 | V289: RY33 | W289: RY34 | X289: RY35 | Y289: RY36 | Z289: RY37 | AA289: RY38 | AB289: RY39 | AC289: RY40 | AD289: RY41 | AE289: RY42 | AF289: RY43 | AG289: RY44 | AH289: RY45 | AI289: RY46 | AJ289: RY47 | AK289: RY48 | AL289: RY49 | AM289: RY50
A291: =IF(AND(ISNUMBER(O291:AM291)),"Ok","Check") -> Ok | C291: Building block revenue | D291: Stored Input | E291: $millions | F291: Real 2025 | G291: End-year | O291: 505.0967398 | P291: 464.6795192 | Q291: 451.8714995 | R291: 476.5572315 | S291: 474.908048 | T291: 549.8740658 | U291: 570.9189822 | V291: 588.3928733 | W291: 593.9021671 | X291: 604.1312322 | Y291: 610.696767 | Z291: 616.8448131 | AA291: 622.9989948 | AB291: 628.6878128 | AC291: 634.3543432 | AD291: 642.147634 | AE291: 601.3690546 | AF291: 594.6245266 | AG291: 603.3651679 | AH291: 612.0982617 | AI291: 618.787823 | AJ291: 624.740382 | AK291: 630.8789618 | AL291: 637.1858704 | AM291: 643.392794
A293: =IF(AND(ISNUMBER(O293:AM293)),"Ok","Check") -> Ok | C293: End-customer gas price - Residential | D293: Stored Input | E293: $/GJ | F293: Real 2025 | G293: End-year | O293: 52.37931526 | P293: 51.88321624 | Q293: 52.28699611 | R293: 53.80272923 | S293: 54.76959487 | T293: 57.05997203 | U293: 57.79549728 | V293: 58.40966427 | W293: 58.67478159 | X293: 59.05340007 | Y293: 59.31446412 | Z293: 59.54946269 | AA293: 59.76801622 | AB293: 59.95564141 | AC293: 60.12377475 | AD293: 60.37031661 | AE293: 59.36380236 | AF293: 59.2263019 | AG293: 59.11283555 | AH293: 58.89891303 | AI293: 58.67383605 | AJ293: 58.47148944 | AK293: 58.31495916 | AL293: 58.20373924 | AM293: 58.13109868
A294: =IF(AND(ISNUMBER(O294:AM294)),"Ok","Check") -> Ok | C294: Gas price - distribution | D294: Stored Input | E294: $/GJ | F294: Real 2025 | G294: End-year | O294: 13.51560557 | P294: 12.39133994 | Q294: 12.19579666 | R294: 13.14082334 | S294: 13.56438777 | T294: 15.55569589 | U294: 16.00217316 | V294: 16.33837828 | W294: 16.33739331 | X294: 16.46282604 | Y294: 16.48464503 | Z294: 16.49490889 | AA294: 16.50437654 | AB294: 16.49975987 | AC294: 16.4934297 | AD294: 16.53882842 | AE294: 15.34029704 | AF294: 15.02069837 | AG294: 15.09084754 | AH294: 15.15555266 | AI294: 15.16492973 | AJ294: 15.15223181 | AK294: 15.14019208 | AL294: 15.12826895 | AM294: 15.11005265
A295: =IF(AND(ISNUMBER(O295:AM295)),"Ok","Check") -> Ok | C295: Gas price - wholesale | D295: Stored Input | E295: $/GJ | F295: Real 2025 | G295: End-year | O295: 18.18491532 | P295: 18.81308193 | Q295: 19.41240509 | R295: 19.98311153 | S295: 20.52641273 | T295: 20.82548178 | U295: 21.11452975 | V295: 21.39249163 | W295: 21.65859392 | X295: 21.91177966 | Y295: 22.15102473 | Z295: 22.37575943 | AA295: 22.58484531 | AB295: 22.77708717 | AC295: 22.95155069 | AD295: 23.15269382 | AE295: 23.34471095 | AF295: 23.52680917 | AG295: 23.34319365 | AH295: 23.06456601 | AI295: 22.83011196 | AJ295: 22.64046327 | AK295: 22.49597272 | AL295: 22.39667593 | AM295: 22.34225167
A296: =IF(AND(ISNUMBER(O296:AM296)),"Ok","Check") -> Ok | C296: Gas price - other | D296: Stored Input | E296: $/GJ | F296: Real 2025 | G296: End-year | O296: 20.67879436 | P296: 20.67879436 | Q296: 20.67879436 | R296: 20.67879436 | S296: 20.67879436 | T296: 20.67879436 | U296: 20.67879436 | V296: 20.67879436 | W296: 20.67879436 | X296: 20.67879436 | Y296: 20.67879436 | Z296: 20.67879436 | AA296: 20.67879436 | AB296: 20.67879436 | AC296: 20.67879436 | AD296: 20.67879436 | AE296: 20.67879436 | AF296: 20.67879436 | AG296: 20.67879436 | AH296: 20.67879436 | AI296: 20.67879436 | AJ296: 20.67879436 | AK296: 20.67879436 | AL296: 20.67879436 | AM296: 20.67879436
A297: =IF(AND(ISNUMBER(O297:AM297)),"Ok","Check") -> Ok | C297: End-customer electrification price - at end of appliance life | D297: Stored Input | E297: $/GJ | F297: Real 2025 | G297: End-year | O297: 71.67985035 | P297: 71.64877064 | Q297: 71.63589687 | R297: 71.64366582 | S297: 71.67058448 | T297: 71.51756511 | U297: 71.47431321 | V297: 71.44464393 | W297: 71.42941529 | X297: 71.42613071 | Y297: 71.43739405 | Z297: 71.45509476 | AA297: 71.47924598 | AB297: 71.49970127 | AC297: 71.50740145 | AD297: 71.50229737 | AE297: 71.48159429 | AF297: 71.44450919 | AG297: 71.39111599 | AH297: 71.3221875 | AI297: 71.23675413 | AJ297: 71.13471278 | AK297: 71.0159601 | AL297: 70.88039256 | AM297: 70.72790637
C299: ='Input|Assumptions'!$C$33 -> Electric Tortoise
C301: Scenario setting | D301: Scenario Selection
C303: Future scenario | D303: Electric Tortoise
C304: Asset replacement | D304: Current replacement pace
C305: Transition to renewable gas | D305: Current pace of hydrogen readiness
C306: Connection approach | D306: Maintain current capital contributions
C307: Pace of capital recovery | D307: No accelerate recovery
C308: Shorten asset lives cap | D308: FALSE
C309: Profiled depreciation on long-life assets | D309: n/a | E309: n/a | F309: n/a | G309: n/a
C311: Customer numbers | D311: Source | E311: Unit | F311: Basis | G311: Timing | O311: RY26 | P311: RY27 | Q311: RY28 | R311: RY29 | S311: RY30 | T311: RY31 | U311: RY32 | V311: RY33 | W311: RY34 | X311: RY35 | Y311: RY36 | Z311: RY37 | AA311: RY38 | AB311: RY39 | AC311: RY40 | AD311: RY41 | AE311: RY42 | AF311: RY43 | AG311: RY44 | AH311: RY45 | AI311: RY46 | AJ311: RY47 | AK311: RY48 | AL311: RY49 | AM311: RY50
A313: =IF(AND(ISNUMBER(O313:AM313)),"Ok","Check") -> Ok | C313: Residential - highrise | D313: Stored Input | E313: number | F313: n/a | G313: Mid-year | O313: 367175.1179 | P313: 369685.576 | Q313: 370562.8502 | R313: 369424.8573 | S313: 365487.1639 | T313: 362266.6285 | U313: 361226.3508 | V313: 359676.4128 | W313: 357136.7356 | X313: 353031.5146 | Y313: 346066.4971 | Z313: 334979.9902 | AA313: 318557.7071 | AB313: 295360.2092 | AC313: 265149.1217 | AD313: 229825.8381 | AE313: 193353.8484 | AF313: 159470.5842 | AG313: 128864.5325 | AH313: 99579.07292 | AI313: 70768.22174 | AJ313: 45031.33413 | AK313: 26286.07986 | AL313: 15895.64133 | AM313: 11710.69029
A314: =IF(AND(ISNUMBER(O314:AM314)),"Ok","Check") -> Ok | C314: Residential - non-highrise | D314: Stored Input | E314: number | F314: n/a | G314: Mid-year | O314: 1151103.019 | P314: 1157982.345 | Q314: 1159386.575 | R314: 1153872.973 | S314: 1138669.397 | T314: 1126885.899 | U314: 1123649.956 | V314: 1118828.636 | W314: 1110928.581 | X314: 1098158.661 | Y314: 1076492.906 | Z314: 1042006.626 | AA314: 990922.5966 | AB314: 918763.2223 | AC314: 824787.0018 | AD314: 714908.5118 | AE314: 601456.7949 | AF314: 496057.7059 | AG314: 400852.8888 | AH314: 309755.9761 | AI314: 220135.4056 | AJ314: 140076.8701 | AK314: 81766.8822 | AL314: 49445.82983 | AM314: 36427.89791
A315: =IF(AND(ISNUMBER(O315:AM315)),"Ok","Check") -> Ok | C315: Commercial | D315: Stored Input | E315: number | F315: n/a | G315: Mid-year | O315: 35190.23071 | P315: 35290.08376 | Q315: 35286.70052 | R315: 35184.44288 | S315: 34988.48936 | T315: 34670.88072 | U315: 34280.73658 | V315: 33895.5766 | W315: 33467.86891 | X315: 32897.6958 | Y315: 32063.38274 | Z315: 30847.862 | AA315: 29135.22588 | AB315: 26816.97296 | AC315: 23909.75817 | AD315: 20676.28893 | AE315: 17591.39207 | AF315: 15090.63416 | AG315: 13267.70042 | AH315: 11830.21286 | AI315: 10393.81215 | AJ315: 8754.960183 | AK315: 6926.446325 | AL315: 5071.885216 | AM315: 3446.347364
A316: =IF(AND(ISNUMBER(O316:AM316)),"Ok","Check") -> Ok | C316: Industrial | D316: Stored Input | E316: number | F316: n/a | G316: Mid-year | O316: 377 | P316: 377 | Q316: 377 | R316: 377 | S316: 377 | T316: 374.196224 | U316: 368.6459044 | V316: 363.2088812 | W316: 357.8828418 | X316: 352.6655206 | Y316: 347.5546985 | Z316: 342.5482015 | AA316: 337.6439001 | AB316: 332.8397083 | AC316: 328.1335824 | AD316: 323.5235208 | AE316: 319.0075626 | AF316: 313.6293752 | AG316: 305.5489384 | AH316: 293.0898053 | AI316: 274.6439799 | AJ316: 248.9957986 | AK316: 216.523588 | AL316: 180.5621663 | AM316: 147.3337087
C318: Throughput | D318: Source | E318: Unit | F318: Basis | G318: Timing | O318: RY26 | P318: RY27 | Q318: RY28 | R318: RY29 | S318: RY30 | T318: RY31 | U318: RY32 | V318: RY33 | W318: RY34 | X318: RY35 | Y318: RY36 | Z318: RY37 | AA318: RY38 | AB318: RY39 | AC318: RY40 | AD318: RY41 | AE318: RY42 | AF318: RY43 | AG318: RY44 | AH318: RY45 | AI318: RY46 | AJ318: RY47 | AK318: RY48 | AL318: RY49 | AM318: RY50
A320: =IF(AND(ISNUMBER(O320:AM320)),"Ok","Check") -> Ok | C320: Residential - highrise | D320: Stored Input | E320: PJ | F320: n/a | G320: End-year | O320: 5.637618055 | P320: 5.578365048 | Q320: 5.466176071 | R320: 5.308848509 | S320: 5.095571715 | T320: 5.996559954 | U320: 5.977738894 | V320: 5.946669384 | W320: 5.895989855 | X320: 5.814527443 | Y320: 5.670880189 | Z320: 5.455590258 | AA320: 5.139210838 | AB320: 4.70392958 | AC320: 4.158776827 | AD320: 3.554303429 | AE320: 2.965344155 | AF320: 2.434855127 | AG320: 1.940148971 | AH320: 1.441529625 | AI320: 0.9566801628 | AJ320: 0.5613184668 | AK320: 0.3154279358 | AL320: 0.2060440243 | AM320: 0.1726159387
A321: =IF(AND(ISNUMBER(O321:AM321)),"Ok","Check") -> Ok | C321: Residential - non-highrise | D321: Stored Input | E321: PJ | F321: n/a | G321: End-year | O321: 22.20934117 | P321: 21.88578315 | Q321: 21.33247547 | R321: 20.59502745 | S321: 19.61448688 | T321: 18.65321927 | U321: 18.59467348 | V321: 18.498027 | W321: 18.34038056 | X321: 18.08697923 | Y321: 17.64014242 | Z321: 16.97045008 | AA321: 15.98630338 | AB321: 14.63229428 | AC321: 12.93651304 | AD321: 11.05620585 | AE321: 9.224157709 | AF321: 7.573990241 | AG321: 6.035130883 | AH321: 4.484098946 | AI321: 2.975900347 | AJ321: 1.746067166 | AK321: 0.9811869632 | AL321: 0.6409315331 | AM321: 0.5369483468
A322: =IF(AND(ISNUMBER(O322:AM322)),"Ok","Check") -> Ok | C322: Commercial | D322: Stored Input | E322: PJ | F322: n/a | G322: End-year | O322: 12.84676495 | P322: 12.57494975 | Q322: 12.17864419 | R322: 11.67229605 | S322: 10.98309306 | T322: 10.84164321 | U322: 10.70203431 | V322: 10.56424232 | W322: 10.42454464 | X322: 10.27883568 | Y322: 10.12198088 | Z322: 9.949947712 | AA322: 9.757409713 | AB322: 9.541309561 | AC322: 9.306196507 | AD322: 9.068195853 | AE322: 8.809142751 | AF322: 8.498797862 | AG322: 8.089183602 | AH322: 7.508380757 | AI322: 6.686723006 | AJ322: 5.592895709 | AK322: 4.284118667 | AL322: 2.945683475 | AM322: 1.842143699
A323: =IF(AND(ISNUMBER(O323:AM323)),"Ok","Check") -> Ok | C323: Industrial | D323: Stored Input | E323: PJ | F323: n/a | G323: End-year | O323: 46.45101651 | P323: 45.51372082 | Q323: 43.72168104 | R323: 42.10678863 | S323: 40.67365687 | T323: 40.01321411 | U323: 39.36371786 | V323: 38.72498268 | W323: 38.09682636 | X323: 37.47906986 | Y323: 36.87153722 | Z323: 36.27405555 | AA323: 35.68645492 | AB323: 35.10856837 | AC323: 34.54023182 | AD323: 33.98128401 | AE323: 33.4315665 | AF323: 32.82552613 | AG323: 32.10245587 | AH323: 31.20801351 | AI323: 30.08618501 | AJ323: 28.70951384 | AK323: 27.13121064 | AL323: 25.52640371 | AM323: 24.14615131
C325: Expenditure | D325: Source | E325: Unit | F325: Basis | G325: Timing | O325: RY26 | P325: RY27 | Q325: RY28 | R325: RY29 | S325: RY30 | T325: RY31 | U325: RY32 | V325: RY33 | W325: RY34 | X325: RY35 | Y325: RY36 | Z325: RY37 | AA325: RY38 | AB325: RY39 | AC325: RY40 | AD325: RY41 | AE325: RY42 | AF325: RY43 | AG325: RY44 | AH325: RY45 | AI325: RY46 | AJ325: RY47 | AK325: RY48 | AL325: RY49 | AM325: RY50
A327: =IF(AND(ISNUMBER(O327:AM327)),"Ok","Check") -> Ok | C327: Capex - BAU | D327: Stored Input | E327: $millions | F327: Real 2025 | G327: End-year | O327: 225.893547 | P327: 198.8461885 | Q327: 183.0611474 | R327: 162.9503788 | S327: 149.1919778 | T327: 123.0617148 | U327: 123.0440606 | V327: 123.037903 | W327: 123.0236736 | X327: 123.0079159 | Y327: 122.9945879 | Z327: 122.9594003 | AA327: 122.9306426 | AB327: 122.9132449 | AC327: 109.4224523 | AD327: 96.36557207 | AE327: 87.66046272 | AF327: 78.8344891 | AG327: 69.88945251 | AH327: 63.14327898 | AI327: 55.11747251 | AJ327: 47.09041524 | AK327: 39.06215717 | AL327: 30.83849416 | AM327: 22.61341595
A328: =IF(AND(ISNUMBER(O328:AM328)),"Ok","Check") -> Ok | C328: Capex - Hydrogen readiness | D328: Stored Input | E328: $millions | F328: Real 2025 | G328: End-year | O328: 0 | P328: 0 | Q328: 0 | R328: 0 | S328: 0 | T328: 0 | U328: 0 | V328: 0 | W328: 0 | X328: 0 | Y328: 0 | Z328: 0 | AA328: 0 | AB328: 0 | AC328: 0 | AD328: 0 | AE328: 0 | AF328: 0 | AG328: 0 | AH328: 0 | AI328: 0 | AJ328: 0 | AK328: 0 | AL328: 0 | AM328: 0
A329: =IF(AND(ISNUMBER(O329:AM329)),"Ok","Check") -> Ok | C329: Opex - BAU | D329: Stored Input | E329: $millions | F329: Real 2025 | G329: End-year | O329: 258.3774147 | P329: 252.0511707 | Q329: 247.0093777 | R329: 242.1002733 | S329: 236.5154216 | T329: 231.0302977 | U329: 231.0726406 | V329: 231.0178996 | W329: 230.8432401 | X329: 230.3104428 | Y329: 228.8268019 | Z329: 226.379692 | AA329: 222.4042912 | AB329: 216.4657105 | AC329: 192.4744438 | AD329: 166.4894676 | AE329: 145.6683296 | AF329: 125.6259684 | AG329: 106.6344476 | AH329: 90.3875539 | AI329: 75.46416418 | AJ329: 73.49310862 | AK329: 71.60681028 | AL329: 69.59537177 | AM329: 67.67194371
A330: =IF(AND(ISNUMBER(O330:AM330)),"Ok","Check") -> Ok | C330: Opex - Decommissioning | D330: Stored Input | E330: $millions | F330: Real 2025 | G330: End-year | O330: 0 | P330: 0 | Q330: 0 | R330: 0 | S330: 0 | T330: 0 | U330: 0 | V330: 0 | W330: 0 | X330: 0 | Y330: 0 | Z330: 0 | AA330: 0 | AB330: 0 | AC330: 93.16641275 | AD330: 93.16641275 | AE330: 62.11094183 | AF330: 62.11094183 | AG330: 62.11094183 | AH330: 46.58320638 | AI330: 49.41539345 | AJ330: 49.41539345 | AK330: 49.41539345 | AL330: 55.89286104 | AM330: 55.89286104
C332: RAB and depreciation | D332: Source | E332: Unit | F332: Basis | G332: Timing | O332: RY26 | P332: RY27 | Q332: RY28 | R332: RY29 | S332: RY30 | T332: RY31 | U332: RY32 | V332: RY33 | W332: RY34 | X332: RY35 | Y332: RY36 | Z332: RY37 | AA332: RY38 | AB332: RY39 | AC332: RY40 | AD332: RY41 | AE332: RY42 | AF332: RY43 | AG332: RY44 | AH332: RY45 | AI332: RY46 | AJ332: RY47 | AK332: RY48 | AL332: RY49 | AM332: RY50
A334: =IF(AND(ISNUMBER(O334:AM334)),"Ok","Check") -> Ok | C334: Straight-line depreciation | D334: Stored Input | E334: $millions | F334: Real 2025 | G334: End-year | O334: 177.6848631 | P334: 173.2486001 | Q334: 181.4957234 | R334: 188.9721314 | S334: 195.8735472 | T334: 207.1988351 | U334: 212.4434049 | V334: 216.9632495 | W334: 220.7881 | X334: 225.2931786 | Y334: 226.5906124 | Z334: 225.8735864 | AA334: 225.4561016 | AB334: 224.6895197 | AC334: 224.0144195 | AD334: 223.0813785 | AE334: 180.3095364 | AF334: 165.4575511 | AG334: 162.971766 | AH334: 159.7534217 | AI334: 156.5410724 | AJ334: 153.3038567 | AK334: 150.1211251 | AL334: 146.836831 | AM334: 143.2149463
A335: =IF(AND(ISNUMBER(O335:AM335)),"Ok","Check") -> Ok | C335: Closing RAB | D335: Stored Input | E335: $millions | F335: Real 2025 | G335: End-year | O335: 3964.730804 | P335: 3989.096241 | Q335: 3989.514092 | R335: 3962.523127 | S335: 3915.039167 | T335: 3831.632501 | U335: 3743.043813 | V335: 3649.951686 | W335: 3552.959144 | X335: 3451.444671 | Y335: 3348.619539 | Z335: 3246.476513 | AA335: 3144.722434 | AB335: 3043.717671 | AC335: 2929.824634 | AD335: 2803.740829 | AE335: 2711.679024 | AF335: 2625.596807 | AG335: 2533.007248 | AH335: 2436.853256 | AI335: 2335.831299 | AJ335: 2229.964976 | AK335: 2119.198586 | AL335: 2003.447108 | AM335: 1883.046699
A336: =IF(AND(ISNUMBER(O336:AM336)),"Ok","Check") -> Ok | C336: RAB per customer | D336: Stored Input | E336: $dollars | F336: Real 2025 | G336: End-year | O336: 2551.56072 | P336: 2551.65798 | Q336: 2548.211959 | R336: 2541.937681 | S336: 2543.02247 | T336: 2513.868602 | U336: 2463.297489 | V336: 2412.770324 | W336: 2365.657017 | X336: 2325.081123 | Y336: 2301.503643 | Z336: 2305.446298 | AA336: 2348.642578 | AB336: 2452.093191 | AC336: 2629.593397 | AD336: 2903.222168 | AE336: 3336.54339 | AF336: 3913.354319 | AG336: 4662.342619 | AH336: 5781.955075 | AI336: 7745.515673 | AJ336: 11488.02308 | AK336: 18396.47068 | AL336: 28379.88242 | AM336: 36399.84724
C338: Revenue and prices | D338: Source | E338: Unit | F338: Basis | G338: Timing | O338: RY26 | P338: RY27 | Q338: RY28 | R338: RY29 | S338: RY30 | T338: RY31 | U338: RY32 | V338: RY33 | W338: RY34 | X338: RY35 | Y338: RY36 | Z338: RY37 | AA338: RY38 | AB338: RY39 | AC338: RY40 | AD338: RY41 | AE338: RY42 | AF338: RY43 | AG338: RY44 | AH338: RY45 | AI338: RY46 | AJ338: RY47 | AK338: RY48 | AL338: RY49 | AM338: RY50
A340: =IF(AND(ISNUMBER(O340:AM340)),"Ok","Check") -> Ok | C340: Building block revenue | D340: Stored Input | E340: $millions | F340: Real 2025 | G340: End-year | O340: 502.94729 | P340: 462.3751295 | Q340: 449.4283752 | R340: 473.9905143 | S340: 472.2318753 | T340: 545.9424315 | U340: 559.7799392 | V340: 570.2200423 | W340: 568.5729835 | X340: 570.918188 | Y340: 568.1288177 | Z340: 562.5084383 | AA340: 555.5095871 | AB340: 546.1065314 | AC340: 611.8860176 | AD340: 582.1810112 | AE340: 478.4503713 | AF340: 439.6354629 | AG340: 416.3023522 | AH340: 379.2147553 | AI340: 361.7022895 | AJ340: 354.0783438 | AK340: 346.4535978 | AL340: 344.9228028 | AM340: 336.4889139
A342: =IF(AND(ISNUMBER(O342:AM342)),"Ok","Check") -> Ok | C342: End-customer gas price - Residential | D342: Stored Input | E342: $/GJ | F342: Real 2025 | G342: End-year | O342: 51.05026624 | P342: 50.19294867 | Q342: 50.20965496 | R342: 51.30937295 | S342: 51.82618266 | T342: 55.30193556 | U342: 55.81903451 | V342: 56.26465777 | W342: 56.39229985 | X342: 56.73665154 | Y342: 57.11400369 | Z342: 57.64610815 | AA342: 58.52254864 | AB342: 59.88147502 | AC342: 62.95571548 | AD342: 64.50436866 | AE342: 62.92899668 | AF342: 64.06939186 | AG342: 66.36770402 | AH342: 71.57838184 | AI342: 77.37728612 | AJ342: 87.29205353 | AK342: 101.2495422 | AL342: 117.3881447 | AM342: 126.8616378
A343: =IF(AND(ISNUMBER(O343:AM343)),"Ok","Check") -> Ok | C343: Gas price - distribution | D343: Stored Input | E343: $/GJ | F343: Real 2025 | G343: End-year | O343: 13.45803567 | P343: 12.32998622 | Q343: 12.1299514 | R343: 13.07014691 | S343: 13.48805142 | T343: 16.88243904 | U343: 17.31379114 | V343: 17.66770157 | W343: 17.69568049 | X343: 17.92918777 | Y343: 18.17609736 | Z343: 18.55214751 | AA343: 19.23368128 | AB343: 20.34344197 | AC343: 23.10095773 | AD343: 24.37909214 | AE343: 22.4953423 | AF343: 23.29693799 | AG343: 25.19954743 | AH343: 29.89997504 | AI343: 35.04864286 | AJ343: 44.96341026 | AK343: 58.92089897 | AL343: 75.05950148 | AM343: 84.53299449
A344: =IF(AND(ISNUMBER(O344:AM344)),"Ok","Check") -> Ok | C344: Gas price - wholesale | D344: Stored Input | E344: $/GJ | F344: Real 2025 | G344: End-year | O344: 16.91343621 | P344: 17.18416808 | Q344: 17.4009092 | R344: 17.56043167 | S344: 17.65933688 | T344: 17.74070216 | U344: 17.826449 | V344: 17.91816184 | W344: 18.017825 | X344: 18.1286694 | Y344: 18.25911196 | Z344: 18.41516627 | AA344: 18.610073 | AB344: 18.85923868 | AC344: 19.17596339 | AD344: 19.44648216 | AE344: 19.75486002 | AF344: 20.0936595 | AG344: 20.48936223 | AH344: 20.99961244 | AI344: 21.6498489 | AJ344: 21.6498489 | AK344: 21.6498489 | AL344: 21.6498489 | AM344: 21.6498489
A345: =IF(AND(ISNUMBER(O345:AM345)),"Ok","Check") -> Ok | C345: Gas price - other | D345: Stored Input | E345: $/GJ | F345: Real 2025 | G345: End-year | O345: 20.67879436 | P345: 20.67879436 | Q345: 20.67879436 | R345: 20.67879436 | S345: 20.67879436 | T345: 20.67879436 | U345: 20.67879436 | V345: 20.67879436 | W345: 20.67879436 | X345: 20.67879436 | Y345: 20.67879436 | Z345: 20.67879436 | AA345: 20.67879436 | AB345: 20.67879436 | AC345: 20.67879436 | AD345: 20.67879436 | AE345: 20.67879436 | AF345: 20.67879436 | AG345: 20.67879436 | AH345: 20.67879436 | AI345: 20.67879436 | AJ345: 20.67879436 | AK345: 20.67879436 | AL345: 20.67879436 | AM345: 20.67879436
A346: =IF(AND(ISNUMBER(O346:AM346)),"Ok","Check") -> Ok | C346: End-customer electrification price - at end of appliance life | D346: Stored Input | E346: $/GJ | F346: Real 2025 | G346: End-year | O346: 68.4335754 | P346: 67.63132682 | Q346: 66.70088236 | R346: 65.83980137 | S346: 65.03679375 | T346: 63.25509188 | U346: 61.76057942 | V346: 60.47792089 | W346: 59.3714849 | X346: 58.44153225 | Y346: 57.68636665 | Z346: 57.10590401 | AA346: 56.78192157 | AB346: 56.56076689 | AC346: 57.13176189 | AD346: 57.25980648 | AE346: 57.33719297 | AF346: 57.36417079 | AG346: 57.34063752 | AH346: 57.26584518 | AI346: 57.0823715 | AJ346: 56.82488784 | AK346: 56.49197903 | AL346: 56.0867161 | AM346: 55.61140861
C348: ='Input|Assumptions'!$C$34 -> Market Hydrogen
C350: Scenario setting | D350: Scenario Selection
C352: Future scenario | D352: Market Hydrogen
C353: Asset replacement | D353: Current replacement pace
C354: Transition to renewable gas | D354: Current pace of hydrogen readiness
C355: Connection approach | D355: Maintain current capital contributions
C356: Pace of capital recovery | D356: No accelerate recovery
C357: Shorten asset lives cap | D357: FALSE
C358: Profiled depreciation on long-life assets | D358: n/a | E358: n/a | F358: n/a | G358: n/a
C360: Customer numbers | D360: Source | E360: Unit | F360: Basis | G360: Timing | O360: RY26 | P360: RY27 | Q360: RY28 | R360: RY29 | S360: RY30 | T360: RY31 | U360: RY32 | V360: RY33 | W360: RY34 | X360: RY35 | Y360: RY36 | Z360: RY37 | AA360: RY38 | AB360: RY39 | AC360: RY40 | AD360: RY41 | AE360: RY42 | AF360: RY43 | AG360: RY44 | AH360: RY45 | AI360: RY46 | AJ360: RY47 | AK360: RY48 | AL360: RY49 | AM360: RY50
A362: =IF(AND(ISNUMBER(O362:AM362)),"Ok","Check") -> Ok | C362: Residential - highrise | D362: Stored Input | E362: number | F362: n/a | G362: Mid-year | O362: 367175.1179 | P362: 369685.576 | Q362: 370562.8502 | R362: 369424.8573 | S362: 365487.1639 | T362: 363446.3913 | U362: 364870.9797 | V362: 366259.8323 | W362: 367611.7027 | X362: 368915.5244 | Y362: 370175.7354 | Z362: 371364.143 | AA362: 372460.0216 | AB362: 373486.8476 | AC362: 374451.5696 | AD362: 374770.4204 | AE362: 374368.538 | AF362: 373532.6928 | AG362: 371851.9542 | AH362: 368833.8714 | AI362: 363181.3589 | AJ362: 353810.7643 | AK362: 339860.2865 | AL362: 320082.1431 | AM362: 294253.6547
A363: =IF(AND(ISNUMBER(O363:AM363)),"Ok","Check") -> Ok | C363: Residential - non-highrise | D363: Stored Input | E363: number | F363: n/a | G363: Mid-year | O363: 1151103.019 | P363: 1157982.345 | Q363: 1159386.575 | R363: 1153872.973 | S363: 1138669.397 | T363: 1130555.732 | U363: 1134987.133 | V363: 1139307.372 | W363: 1143512.572 | X363: 1147568.309 | Y363: 1151488.389 | Z363: 1155185.113 | AA363: 1158594.012 | AB363: 1161788.111 | AC363: 1164789.027 | AD363: 1165780.861 | AE363: 1164530.744 | AF363: 1161930.72 | AG363: 1156702.525 | AH363: 1147314.315 | AI363: 1129731.308 | AJ363: 1100582.637 | AK363: 1057187.537 | AL363: 995664.5886 | AM363: 915321.1147
A364: =IF(AND(ISNUMBER(O364:AM364)),"Ok","Check") -> Ok | C364: Commercial | D364: Stored Input | E364: number | F364: n/a | G364: Mid-year | O364: 35190.23071 | P364: 35290.08376 | Q364: 35286.70052 | R364: 35184.44288 | S364: 34988.48936 | T364: 34768.78594 | U364: 34571.37263 | V364: 34373.27775 | W364: 34174.03724 | X364: 33973.15843 | Y364: 33771.16157 | Z364: 33566.41477 | AA364: 33357.85311 | AB364: 33146.78469 | AC364: 32933.56889 | AD364: 32642.78545 | AE364: 32277.83454 | AF364: 31917.21543 | AG364: 31523.20374 | AH364: 31016.50115 | AI364: 30306.98159 | AJ364: 29301.70627 | AK364: 27902.21823 | AL364: 26021.59236 | AM364: 23671.32992
A365: =IF(AND(ISNUMBER(O365:AM365)),"Ok","Check") -> Ok | C365: Industrial | D365: Stored Input | E365: number | F365: n/a | G365: Mid-year | O365: 377 | P365: 377 | Q365: 377 | R365: 377 | S365: 377 | T365: 373.9237727 | U365: 367.8353117 | V365: 361.8747238 | W365: 356.0399313 | X365: 350.3294831 | Y365: 344.7434716 | Z365: 339.2809661 | AA365: 333.9414061 | AB365: 328.7245214 | AC365: 323.6299436 | AD365: 319.2537261 | AE365: 315.5917325 | AF365: 312.045227 | AG365: 308.61759 | AH365: 305.3125556 | AI365: 302.1342369 | AJ365: 299.0871581 | AK365: 296.176284 | AL365: 293.4070544 | AM365: 290.7854209
C367: Throughput | D367: Source | E367: Unit | F367: Basis | G367: Timing | O367: RY26 | P367: RY27 | Q367: RY28 | R367: RY29 | S367: RY30 | T367: RY31 | U367: RY32 | V367: RY33 | W367: RY34 | X367: RY35 | Y367: RY36 | Z367: RY37 | AA367: RY38 | AB367: RY39 | AC367: RY40 | AD367: RY41 | AE367: RY42 | AF367: RY43 | AG367: RY44 | AH367: RY45 | AI367: RY46 | AJ367: RY47 | AK367: RY48 | AL367: RY49 | AM367: RY50
A369: =IF(AND(ISNUMBER(O369:AM369)),"Ok","Check") -> Ok | C369: Residential - highrise | D369: Stored Input | E369: PJ | F369: n/a | G369: End-year | O369: 5.637618055 | P369: 5.578365048 | Q369: 5.466176071 | R369: 5.308848509 | S369: 5.095571715 | T369: 6.034556349 | U369: 6.057203237 | V369: 6.079467176 | W369: 6.100880463 | X369: 6.121590972 | Y369: 6.141654537 | Z369: 6.160065149 | AA369: 6.177158077 | AB369: 6.193330312 | AC369: 6.208377727 | AD369: 6.20371094 | AE369: 6.195527354 | AF369: 6.176891349 | AG369: 6.141511203 | AH369: 6.079827255 | AI369: 5.958598125 | AJ369: 5.775919454 | AK369: 5.506221862 | AL369: 5.133921102 | AM369: 4.666248379
A370: =IF(AND(ISNUMBER(O370:AM370)),"Ok","Check") -> Ok | C370: Residential - non-highrise | D370: Stored Input | E370: PJ | F370: n/a | G370: End-year | O370: 22.20934117 | P370: 21.88578315 | Q370: 21.33247547 | R370: 20.59502745 | S370: 19.61448688 | T370: 18.77141288 | U370: 18.8418595 | V370: 18.9111149 | W370: 18.97772421 | X370: 19.04214742 | Y370: 19.10455822 | Z370: 19.16182725 | AA370: 19.21499742 | AB370: 19.26530364 | AC370: 19.31211094 | AD370: 19.29759418 | AE370: 19.27213788 | AF370: 19.21416773 | AG370: 19.10411236 | AH370: 18.91223498 | AI370: 18.53513318 | AJ370: 17.96688316 | AK370: 17.12794744 | AL370: 15.96984884 | AM370: 14.51508112
A371: =IF(AND(ISNUMBER(O371:AM371)),"Ok","Check") -> Ok | C371: Commercial | D371: Stored Input | E371: PJ | F371: n/a | G371: End-year | O371: 12.84676495 | P371: 12.57494975 | Q371: 12.17864419 | R371: 11.67229605 | S371: 10.98309306 | T371: 10.73949367 | U371: 10.50152905 | V371: 10.26912933 | W371: 10.04199835 | X371: 9.820090546 | Y371: 9.603283626 | Z371: 9.391310242 | AA371: 9.184111179 | AB371: 8.98162131 | AC371: 8.783701508 | AD371: 8.652127515 | AE371: 8.522719265 | AF371: 8.395437426 | AG371: 8.267308071 | AH371: 8.135053749 | AI371: 7.994981565 | AJ371: 7.843470576 | AK371: 7.676275923 | AL371: 7.490903342 | AM371: 7.290890431
A372: =IF(AND(ISNUMBER(O372:AM372)),"Ok","Check") -> Ok | C372: Industrial | D372: Stored Input | E372: PJ | F372: n/a | G372: End-year | O372: 46.45101651 | P372: 45.51372082 | Q372: 43.72168104 | R372: 42.10678863 | S372: 40.67365687 | T372: 39.37659343 | U372: 38.121333 | V372: 36.9066222 | W372: 35.73085689 | X372: 34.59298522 | Y372: 33.49178886 | Z372: 32.42606231 | AA372: 31.3947192 | AB372: 30.39666537 | AC372: 29.43084529 | AD372: 28.6352246 | AE372: 27.86567094 | AF372: 27.12171413 | AG372: 26.40295128 | AH372: 25.70905007 | AI372: 25.03975693 | AJ372: 24.39490443 | AK372: 23.77441994 | AL372: 23.17833641 | AM372: 22.60680436
C374: Expenditure | D374: Source | E374: Unit | F374: Basis | G374: Timing | O374: RY26 | P374: RY27 | Q374: RY28 | R374: RY29 | S374: RY30 | T374: RY31 | U374: RY32 | V374: RY33 | W374: RY34 | X374: RY35 | Y374: RY36 | Z374: RY37 | AA374: RY38 | AB374: RY39 | AC374: RY40 | AD374: RY41 | AE374: RY42 | AF374: RY43 | AG374: RY44 | AH374: RY45 | AI374: RY46 | AJ374: RY47 | AK374: RY48 | AL374: RY49 | AM374: RY50
A376: =IF(AND(ISNUMBER(O376:AM376)),"Ok","Check") -> Ok | C376: Capex - BAU | D376: Stored Input | E376: $millions | F376: Real 2025 | G376: End-year | O376: 225.893547 | P376: 198.8461885 | Q376: 183.0611474 | R376: 162.9503788 | S376: 149.1919778 | T376: 172.4843906 | U376: 173.4862699 | V376: 174.8234066 | W376: 175.7824106 | X376: 176.800588 | Y376: 176.3084691 | Z376: 174.9414323 | AA376: 173.850368 | AB376: 173.1423053 | AC376: 172.2418418 | AD376: 156.3187192 | AE376: 158.4667755 | AF376: 160.5472206 | AG376: 162.5282699 | AH376: 164.4266449 | AI376: 148.7191999 | AJ376: 149.1940687 | AK376: 149.6722965 | AL376: 150.1512384 | AM376: 144.6348978
A377: =IF(AND(ISNUMBER(O377:AM377)),"Ok","Check") -> Ok | C377: Capex - Hydrogen readiness | D377: Stored Input | E377: $millions | F377: Real 2025 | G377: End-year | O377: 0 | P377: 0 | Q377: 0 | R377: 0 | S377: 0 | T377: 69.34745405 | U377: 69.34745405 | V377: 69.34745405 | W377: 69.34745405 | X377: 69.34745405 | Y377: 69.34745405 | Z377: 69.34745405 | AA377: 69.34745405 | AB377: 69.34745405 | AC377: 69.34745405 | AD377: 0 | AE377: 0 | AF377: 0 | AG377: 0 | AH377: 0 | AI377: 0 | AJ377: 0 | AK377: 0 | AL377: 0 | AM377: 0
A378: =IF(AND(ISNUMBER(O378:AM378)),"Ok","Check") -> Ok | C378: Opex - BAU | D378: Stored Input | E378: $millions | F378: Real 2025 | G378: End-year | O378: 258.3774147 | P378: 252.0511707 | Q378: 247.0093777 | R378: 242.1002733 | S378: 236.5154216 | T378: 231.8554708 | U378: 233.0974914 | V378: 234.3428433 | W378: 235.7008867 | X378: 237.0941382 | Y378: 238.4610332 | Z378: 239.9746735 | AA378: 241.4612166 | AB378: 243.0389455 | AC378: 244.6342087 | AD378: 245.5601631 | AE378: 246.4269077 | AF378: 247.2064841 | AG378: 247.8856882 | AH378: 248.2408475 | AI378: 248.0975609 | AJ378: 247.0582518 | AK378: 244.6715592 | AL378: 240.6046937 | AM378: 227.8048465
A379: =IF(AND(ISNUMBER(O379:AM379)),"Ok","Check") -> Ok | C379: Opex - Decommissioning | D379: Stored Input | E379: $millions | F379: Real 2025 | G379: End-year | O379: 0 | P379: 0 | Q379: 0 | R379: 0 | S379: 0 | T379: 0 | U379: 0 | V379: 0 | W379: 0 | X379: 0 | Y379: 0 | Z379: 0 | AA379: 0 | AB379: 0 | AC379: 0 | AD379: 0 | AE379: 0 | AF379: 0 | AG379: 0 | AH379: 0 | AI379: 0 | AJ379: 0 | AK379: 0 | AL379: 0 | AM379: 37.2665651
C381: RAB and depreciation | D381: Source | E381: Unit | F381: Basis | G381: Timing | O381: RY26 | P381: RY27 | Q381: RY28 | R381: RY29 | S381: RY30 | T381: RY31 | U381: RY32 | V381: RY33 | W381: RY34 | X381: RY35 | Y381: RY36 | Z381: RY37 | AA381: RY38 | AB381: RY39 | AC381: RY40 | AD381: RY41 | AE381: RY42 | AF381: RY43 | AG381: RY44 | AH381: RY45 | AI381: RY46 | AJ381: RY47 | AK381: RY48 | AL381: RY49 | AM381: RY50
A383: =IF(AND(ISNUMBER(O383:AM383)),"Ok","Check") -> Ok | C383: Straight-line depreciation | D383: Stored Input | E383: $millions | F383: Real 2025 | G383: End-year | O383: 177.6848631 | P383: 173.2486001 | Q383: 181.4957234 | R383: 188.9721314 | S383: 195.8735472 | T383: 207.1988351 | U383: 215.0924255 | V383: 222.2786835 | W383: 228.7953062 | X383: 236.0051586 | Y383: 240.0234127 | Z383: 242.5916128 | AA383: 245.415623 | AB383: 247.855654 | AC383: 250.3644755 | AD383: 253.8107874 | AE383: 214.4593741 | AF383: 203.9344928 | AG383: 206.685977 | AH383: 209.6162788 | AI383: 212.7030911 | AJ383: 215.6072846 | AK383: 218.8278348 | AL383: 222.2494982 | AM383: 225.7083822
A384: =IF(AND(ISNUMBER(O384:AM384)),"Ok","Check") -> Ok | C384: Closing RAB | D384: Stored Input | E384: $millions | F384: Real 2025 | G384: End-year | O384: 3964.730804 | P384: 3989.096241 | Q384: 3989.514092 | R384: 3962.523127 | S384: 3915.039167 | T384: 3950.969941 | U384: 3980.192992 | V384: 4003.635831 | W384: 4021.42588 | X384: 4033.048035 | Y384: 4040.163446 | Z384: 4043.353894 | AA384: 4042.637405 | AB384: 4038.778011 | AC384: 4031.515957 | AD384: 3934.741905 | AE384: 3879.494437 | AF384: 3836.878307 | AG384: 3793.516198 | AH384: 3749.145281 | AI384: 3686.107251 | AJ384: 3620.643506 | AK384: 3552.440874 | AL384: 3481.298726 | AM384: 3401.146692
A385: =IF(AND(ISNUMBER(O385:AM385)),"Ok","Check") -> Ok | C385: RAB per customer | D385: Stored Input | E385: $dollars | F385: Real 2025 | G385: End-year | O385: 2551.56072 | P385: 2551.65798 | Q385: 2548.211959 | R385: 2541.937681 | S385: 2543.02247 | T385: 2583.777452 | U385: 2593.30202 | V385: 2599.253201 | W385: 2601.762726 | X385: 2600.611939 | Y385: 2596.873189 | Z385: 2591.137853 | AA385: 2583.574491 | AB385: 2574.519079 | AC385: 2563.765729 | AD385: 2500.609212 | AE385: 2468.668429 | AF385: 2447.468418 | AG385: 2431.139133 | AH385: 2422.757973 | AI385: 2419.464751 | AJ385: 2439.796274 | AK385: 2492.510298 | AL385: 2593.992993 | AM385: 2757.231449
C387: Revenue and prices | D387: Source | E387: Unit | F387: Basis | G387: Timing | O387: RY26 | P387: RY27 | Q387: RY28 | R387: RY29 | S387: RY30 | T387: RY31 | U387: RY32 | V387: RY33 | W387: RY34 | X387: RY35 | Y387: RY36 | Z387: RY37 | AA387: RY38 | AB387: RY39 | AC387: RY40 | AD387: RY41 | AE387: RY42 | AF387: RY43 | AG387: RY44 | AH387: RY45 | AI387: RY46 | AJ387: RY47 | AK387: RY48 | AL387: RY49 | AM387: RY50
A389: =IF(AND(ISNUMBER(O389:AM389)),"Ok","Check") -> Ok | C389: Building block revenue | D389: Stored Input | E389: $millions | F389: Real 2025 | G389: End-year | O389: 502.94729 | P389: 462.3751295 | Q389: 449.4283752 | R389: 473.9905143 | S389: 472.2318753 | T389: 546.7676046 | U389: 566.8968926 | V389: 583.5444414 | W389: 588.2404129 | X389: 597.6739243 | Y389: 603.0102138 | Z389: 607.3189199 | AA389: 611.7041552 | AB389: 615.6919964 | AC389: 619.7227556 | AD389: 624.1090273 | AE389: 578.1009266 | AF389: 566.1184623 | AG389: 569.5015848 | AH389: 572.6193122 | AI389: 575.1892995 | AJ389: 576.3832347 | AK389: 576.4288841 | AL389: 574.8652348 | AM389: 601.7219132
A391: =IF(AND(ISNUMBER(O391:AM391)),"Ok","Check") -> Ok | C391: End-customer gas price - Residential | D391: Stored Input | E391: $/GJ | F391: Real 2025 | G391: End-year | O391: 52.67172186 | P391: 52.37045864 | Q391: 53.0122066 | R391: 54.8086564 | S391: 56.0962196 | T391: 58.35742441 | U391: 59.03976971 | V391: 59.59267402 | W391: 59.78594969 | X391: 60.08183935 | Y391: 60.23671472 | Z391: 60.33741718 | AA391: 60.41163596 | AB391: 60.44434727 | AC391: 60.44652587 | AD391: 60.32245735 | AE391: 58.89408831 | AF391: 58.35389917 | AG391: 58.22969869 | AH391: 58.14845603 | AI391: 58.19950258 | AJ391: 58.38043529 | AK391: 58.80054174 | AL391: 59.55936106 | AM391: 61.67574995
A392: =IF(AND(ISNUMBER(O392:AM392)),"Ok","Check") -> Ok | C392: Gas price - distribution | D392: Stored Input | E392: $/GJ | F392: Real 2025 | G392: End-year | O392: 13.45803567 | P392: 12.32998622 | Q392: 12.1299514 | R392: 13.07014691 | S392: 13.48805142 | T392: 15.46752366 | U392: 15.88873034 | V392: 16.20262126 | W392: 16.1801235 | X392: 16.2849517 | Y392: 16.27489254 | Z392: 16.23757912 | AA392: 16.2022468 | AB392: 16.15548206 | AC392: 16.10951467 | AD392: 16.10385787 | AE392: 14.81244385 | AF392: 14.42415566 | AG392: 14.46339551 | AH392: 14.55193073 | AI392: 14.75979677 | AJ392: 15.08430672 | AK392: 15.61936262 | AL392: 16.4535314 | AM392: 18.60732039
A393: =IF(AND(ISNUMBER(O393:AM393)),"Ok","Check") -> Ok | C393: Gas price - wholesale | D393: Stored Input | E393: $/GJ | F393: Real 2025 | G393: End-year | O393: 18.53489182 | P393: 19.36167806 | Q393: 20.20346084 | R393: 21.05971513 | S393: 21.92937382 | T393: 22.21110639 | U393: 22.472245 | V393: 22.71125839 | W393: 22.92703182 | X393: 23.11809329 | Y393: 23.28302782 | Z393: 23.4210437 | AA393: 23.5305948 | AB393: 23.61007085 | AC393: 23.65821683 | AD393: 23.53980511 | AE393: 23.4028501 | AF393: 23.25094914 | AG393: 23.08750882 | AH393: 22.91773094 | AI393: 22.76091145 | AJ393: 22.61733421 | AK393: 22.50238476 | AL393: 22.42703529 | AM393: 22.38963519
A394: =IF(AND(ISNUMBER(O394:AM394)),"Ok","Check") -> Ok | C394: Gas price - other | D394: Stored Input | E394: $/GJ | F394: Real 2025 | G394: End-year | O394: 20.67879436 | P394: 20.67879436 | Q394: 20.67879436 | R394: 20.67879436 | S394: 20.67879436 | T394: 20.67879436 | U394: 20.67879436 | V394: 20.67879436 | W394: 20.67879436 | X394: 20.67879436 | Y394: 20.67879436 | Z394: 20.67879436 | AA394: 20.67879436 | AB394: 20.67879436 | AC394: 20.67879436 | AD394: 20.67879436 | AE394: 20.67879436 | AF394: 20.67879436 | AG394: 20.67879436 | AH394: 20.67879436 | AI394: 20.67879436 | AJ394: 20.67879436 | AK394: 20.67879436 | AL394: 20.67879436 | AM394: 20.67879436
A395: =IF(AND(ISNUMBER(O395:AM395)),"Ok","Check") -> Ok | C395: End-customer electrification price - at end of appliance life | D395: Stored Input | E395: $/GJ | F395: Real 2025 | G395: End-year | O395: 68.96010298 | P395: 68.35233799 | Q395: 67.66810362 | R395: 67.07029622 | S395: 66.55733848 | T395: 65.08977556 | U395: 63.99171385 | V395: 63.04456621 | W395: 62.24854357 | X395: 61.60051429 | Y395: 59.73183338 | Z395: 58.05571771 | AA395: 56.65397343 | AB395: 55.36295788 | AC395: 54.1747299 | AD395: 53.86220003 | AE395: 53.4424901 | AF395: 52.91443512 | AG395: 52.27772053 | AH395: 52.19417549 | AI395: 52.0208333 | AJ395: 51.75767718 | AK395: 51.40475639 | AL395: 50.96235294 | AM395: 50.43214858
B397: Scenario | Accelerate depreciation for JGN to remain competitive in future (pasted-value scenario results)
C399: ='Input|Assumptions'!$C$31 -> Electric Hare
C401: Scenario setting | D401: Scenario Selection
C403: Future scenario | D403: Electric Hare
C404: Asset replacement | D404: Current replacement pace
C405: Transition to renewable gas | D405: Current pace of hydrogen readiness
C406: Connection approach | D406: Maintain current capital contributions
C407: Pace of capital recovery | D407: Adjust capital recovery
C408: Shorten asset lives cap | D408: FALSE
C409: Profiled depreciation on long-life assets | D409: 3.5 | E409: 3 | F409: 5 | G409: 5
C411: Customer numbers | D411: Source | E411: Unit | F411: Basis | G411: Timing | O411: RY26 | P411: RY27 | Q411: RY28 | R411: RY29 | S411: RY30 | T411: RY31 | U411: RY32 | V411: RY33 | W411: RY34 | X411: RY35 | Y411: RY36 | Z411: RY37 | AA411: RY38 | AB411: RY39 | AC411: RY40 | AD411: RY41 | AE411: RY42 | AF411: RY43 | AG411: RY44 | AH411: RY45 | AI411: RY46 | AJ411: RY47 | AK411: RY48 | AL411: RY49 | AM411: RY50
A413: =IF(AND(ISNUMBER(O413:AM413)),"Ok","Check") -> Ok | C413: Residential - highrise | D413: Stored Input | E413: number | F413: n/a | G413: Mid-year | O413: 367175.1179 | P413: 369685.576 | Q413: 370562.8502 | R413: 369424.8573 | S413: 365487.1639 | T413: 351981.882 | U413: 330502.6358 | V413: 309026.1504 | W413: 287552.4112 | X413: 266081.4038 | Y413: 240959.9556 | Z413: 212186.7106 | AA413: 183413.4786 | AB413: 154640.2595 | AC413: 125867.0532 | AD413: 104929.1309 | AE413: 91826.48596 | AF413: 78723.84108 | AG413: 65621.19619 | AH413: 52518.5513 | AI413: 41370.50597 | AJ413: 32177.0602 | AK413: 22983.61443 | AL413: 13790.16866 | AM413: 4596.722886
A414: =IF(AND(ISNUMBER(O414:AM414)),"Ok","Check") -> Ok | C414: Residential - non-highrise | D414: Stored Input | E414: number | F414: n/a | G414: Mid-year | O414: 1151103.019 | P414: 1157982.345 | Q414: 1159386.575 | R414: 1153872.973 | S414: 1138669.397 | T414: 1094893.618 | U414: 1028079.129 | V414: 961273.2279 | W414: 894475.8693 | X414: 827687.0085 | Y414: 749542.8915 | Z414: 660039.3008 | AA414: 570535.7504 | AB414: 481032.2402 | AC414: 391528.77 | AD414: 326398.1517 | AE414: 285640.3656 | AF414: 244882.5795 | AG414: 204124.7933 | AH414: 163367.0072 | AI414: 128689.3027 | AJ414: 100091.6799 | AK414: 71494.05707 | AL414: 42896.43424 | AM414: 14298.81141
A415: =IF(AND(ISNUMBER(O415:AM415)),"Ok","Check") -> Ok | C415: Commercial | D415: Stored Input | E415: number | F415: n/a | G415: Mid-year | O415: 35190.23071 | P415: 35290.08376 | Q415: 35286.70052 | R415: 35184.44288 | S415: 34988.48936 | T415: 33619.71946 | U415: 31124.94302 | V415: 28630.53969 | W415: 26136.449 | X415: 23642.57529 | Y415: 21059.86557 | Z415: 18387.85527 | AA415: 15714.82644 | AB415: 13040.12768 | AC415: 10362.70093 | AD415: 8602.911163 | AE415: 7758.065372 | AF415: 6901.951433 | AG415: 6028.484272 | AH415: 5129.456743 | AI415: 4248.378992 | AJ415: 3378.154658 | AK415: 2468.095478 | AL415: 1537.668243 | AM415: 623.1945176
A416: =IF(AND(ISNUMBER(O416:AM416)),"Ok","Check") -> Ok | C416: Industrial | D416: Stored Input | E416: number | F416: n/a | G416: Mid-year | O416: 377 | P416: 377 | Q416: 377 | R416: 377 | S416: 377 | T416: 366.0111791 | U416: 344.0335372 | V416: 322.0558953 | W416: 300.0782534 | X416: 278.1006115 | Y416: 256.1229697 | Z416: 234.1453278 | AA416: 212.1676859 | AB416: 190.190044 | AC416: 168.2124021 | AD416: 154.476376 | AE416: 148.9819655 | AF416: 143.487555 | AG416: 137.9931446 | AH416: 132.4987341 | AI416: 127.0043236 | AJ416: 121.5099132 | AK416: 116.0155027 | AL416: 110.5210922 | AM416: 105.0266817
C418: Throughput | D418: Source | E418: Unit | F418: Basis | G418: Timing | O418: RY26 | P418: RY27 | Q418: RY28 | R418: RY29 | S418: RY30 | T418: RY31 | U418: RY32 | V418: RY33 | W418: RY34 | X418: RY35 | Y418: RY36 | Z418: RY37 | AA418: RY38 | AB418: RY39 | AC418: RY40 | AD418: RY41 | AE418: RY42 | AF418: RY43 | AG418: RY44 | AH418: RY45 | AI418: RY46 | AJ418: RY47 | AK418: RY48 | AL418: RY49 | AM418: RY50
A420: =IF(AND(ISNUMBER(O420:AM420)),"Ok","Check") -> Ok | C420: Residential - highrise | D420: Stored Input | E420: PJ | F420: n/a | G420: End-year | O420: 5.637618055 | P420: 5.578365048 | Q420: 5.466176071 | R420: 5.308848509 | S420: 5.095571715 | T420: 5.664598032 | U420: 5.318021237 | V420: 4.971493494 | W420: 4.625014546 | X420: 4.278584137 | Y420: 3.801902473 | Z420: 3.325220988 | AA420: 2.848539684 | AB420: 2.371858557 | AC420: 1.895177609 | AD420: 1.670801871 | AE420: 1.446426133 | AF420: 1.222050396 | AG420: 0.9976746579 | AH420: 0.7732989202 | AI420: 0.6186391361 | AJ420: 0.4639793521 | AK420: 0.3093195681 | AL420: 0.154659784 | AM420: 0
A421: =IF(AND(ISNUMBER(O421:AM421)),"Ok","Check") -> Ok | C421: Residential - non-highrise | D421: Stored Input | E421: PJ | F421: n/a | G421: End-year | O421: 22.20934117 | P421: 21.88578315 | Q421: 21.33247547 | R421: 20.59502745 | S421: 19.61448688 | T421: 17.62060081 | U421: 16.54252054 | V421: 15.46459286 | W421: 14.38681696 | X421: 13.30919205 | Y421: 11.82640064 | Z421: 10.34360979 | AA421: 8.860819491 | AB421: 7.378029752 | AC421: 5.895240566 | AD421: 5.197285427 | AE421: 4.499330288 | AF421: 3.801375149 | AG421: 3.10342001 | AH421: 2.405464872 | AI421: 1.924371897 | AJ421: 1.443278923 | AK421: 0.9621859486 | AL421: 0.4810929743 | AM421: 0
A422: =IF(AND(ISNUMBER(O422:AM422)),"Ok","Check") -> Ok | C422: Commercial | D422: Stored Input | E422: PJ | F422: n/a | G422: End-year | O422: 12.84676495 | P422: 12.57494975 | Q422: 12.17864419 | R422: 11.67229605 | S422: 10.98309306 | T422: 10.18618847 | U422: 9.389251034 | V422: 8.592250594 | W422: 7.795137561 | X422: 6.997830412 | Y422: 6.195002841 | Z422: 5.391614629 | AA422: 4.587305751 | AB422: 3.781488891 | AC422: 2.973212587 | AD422: 2.757788938 | AE422: 2.535989302 | AF422: 2.304177901 | AG422: 2.057140728 | AH422: 1.788155784 | AI422: 1.493383293 | AJ422: 1.166342488 | AK422: 0.8136364657 | AL422: 0.456973524 | AM422: 0.1274693758
A423: =IF(AND(ISNUMBER(O423:AM423)),"Ok","Check") -> Ok | C423: Industrial | D423: Stored Input | E423: PJ | F423: n/a | G423: End-year | O423: 46.45101651 | P423: 45.51372082 | Q423: 43.72168104 | R423: 42.10678863 | S423: 40.67365687 | T423: 39.41612623 | U423: 38.16549516 | V423: 36.92166018 | W423: 35.68451933 | X423: 34.45397222 | Y423: 33.22991992 | Z423: 32.01226503 | AA423: 30.80091158 | AB423: 29.59576504 | AC423: 28.39673232 | AD423: 27.80189092 | AE423: 27.21298129 | AF423: 26.62991446 | AG423: 26.05260279 | AH423: 25.48095994 | AI423: 24.91490089 | AJ423: 24.35434189 | AK423: 23.79920042 | AL423: 23.24939522 | AM423: 22.70484626
C425: Expenditure | D425: Source | E425: Unit | F425: Basis | G425: Timing | O425: RY26 | P425: RY27 | Q425: RY28 | R425: RY29 | S425: RY30 | T425: RY31 | U425: RY32 | V425: RY33 | W425: RY34 | X425: RY35 | Y425: RY36 | Z425: RY37 | AA425: RY38 | AB425: RY39 | AC425: RY40 | AD425: RY41 | AE425: RY42 | AF425: RY43 | AG425: RY44 | AH425: RY45 | AI425: RY46 | AJ425: RY47 | AK425: RY48 | AL425: RY49 | AM425: RY50
A427: =IF(AND(ISNUMBER(O427:AM427)),"Ok","Check") -> Ok | C427: Capex - BAU | D427: Stored Input | E427: $millions | F427: Real 2025 | G427: End-year | O427: 225.893547 | P427: 198.8461885 | Q427: 183.0611474 | R427: 162.9503788 | S427: 149.1919778 | T427: 121.860631 | U427: 121.860631 | V427: 121.860631 | W427: 117.8202309 | X427: 112.8975415 | Y427: 107.9748521 | Z427: 103.0521628 | AA427: 95.24347333 | AB427: 88.31707318 | AC427: 81.39067302 | AD427: 74.7920038 | AE427: 68.08141664 | AF427: 61.27656703 | AG427: 54.37838644 | AH427: 45.3229778 | AI427: 36.18205508 | AJ427: 27.04113236 | AK427: 21.55657873 | AL427: 16.0720251 | AM427: 10.58747147
A428: =IF(AND(ISNUMBER(O428:AM428)),"Ok","Check") -> Ok | C428: Capex - Hydrogen readiness | D428: Stored Input | E428: $millions | F428: Real 2025 | G428: End-year | O428: 0 | P428: 0 | Q428: 0 | R428: 0 | S428: 0 | T428: 0 | U428: 0 | V428: 0 | W428: 0 | X428: 0 | Y428: 0 | Z428: 0 | AA428: 0 | AB428: 0 | AC428: 0 | AD428: 0 | AE428: 0 | AF428: 0 | AG428: 0 | AH428: 0 | AI428: 0 | AJ428: 0 | AK428: 0 | AL428: 0 | AM428: 0
A429: =IF(AND(ISNUMBER(O429:AM429)),"Ok","Check") -> Ok | C429: Opex - BAU | D429: Stored Input | E429: $millions | F429: Real 2025 | G429: End-year | O429: 259.0096058 | P429: 253.1066898 | Q429: 248.4398312 | R429: 243.8602485 | S429: 238.5623239 | T429: 230.139912 | U429: 224.5308915 | V429: 218.7991407 | W429: 207.9462262 | X429: 196.4885155 | Y429: 183.9786962 | Z429: 170.3140227 | AA429: 153.176036 | AB429: 136.5753275 | AC429: 119.726442 | AD429: 104.9951375 | AE429: 93.36473588 | AF429: 81.84358434 | AG429: 74.92980159 | AH429: 72.0820169 | AI429: 69.48583475 | AJ429: 66.97003216 | AK429: 65.78551678 | AL429: 64.64227322 | AM429: 63.54846679
A430: =IF(AND(ISNUMBER(O430:AM430)),"Ok","Check") -> Ok | C430: Opex - Decommissioning | D430: Stored Input | E430: $millions | F430: Real 2025 | G430: End-year | O430: 0 | P430: 0 | Q430: 0 | R430: 0 | S430: 0 | T430: 0 | U430: 0 | V430: 0 | W430: 27.94992383 | X430: 30.07406413 | Y430: 30.07406413 | Z430: 30.07406413 | AA430: 50.03829544 | AB430: 47.91415513 | AC430: 47.91415513 | AD430: 47.91415513 | AE430: 47.91415513 | AF430: 47.91415513 | AG430: 47.91415513 | AH430: 62.11094183 | AI430: 62.11094183 | AJ430: 62.11094183 | AK430: 37.2665651 | AL430: 37.2665651 | AM430: 37.2665651
C432: RAB and depreciation | D432: Source | E432: Unit | F432: Basis | G432: Timing | O432: RY26 | P432: RY27 | Q432: RY28 | R432: RY29 | S432: RY30 | T432: RY31 | U432: RY32 | V432: RY33 | W432: RY34 | X432: RY35 | Y432: RY36 | Z432: RY37 | AA432: RY38 | AB432: RY39 | AC432: RY40 | AD432: RY41 | AE432: RY42 | AF432: RY43 | AG432: RY44 | AH432: RY45 | AI432: RY46 | AJ432: RY47 | AK432: RY48 | AL432: RY49 | AM432: RY50
A434: =IF(AND(ISNUMBER(O434:AM434)),"Ok","Check") -> Ok | C434: Straight-line depreciation | D434: Stored Input | E434: $millions | F434: Real 2025 | G434: End-year | O434: 487.6092233 | P434: 483.1729603 | Q434: 491.4200836 | R434: 498.8964916 | S434: 505.7979074 | T434: 410.8134255 | U434: 295.1881174 | V434: 302.0097082 | W434: 306.9423085 | X434: 309.3625675 | Y434: 448.3597434 | Z434: 322.4576202 | AA434: 236.2004178 | AB434: 215.7878583 | AC434: 184.6464057 | AD434: 185.4515854 | AE434: 106.7861298 | AF434: 90.00088412 | AG434: 96.65083234 | AH434: 74.61196202 | AI434: 73.02089594 | AJ434: 54.37968109 | AK434: 49.52631353 | AL434: 27.44245523 | AM434: 27.97833244
A435: =IF(AND(ISNUMBER(O435:AM435)),"Ok","Check") -> Ok | C435: Closing RAB | D435: Stored Input | E435: $millions | F435: Real 2025 | G435: End-year | O435: 3654.806444 | P435: 3369.24752 | Q435: 3059.741011 | R435: 2722.825686 | S435: 2365.417366 | T435: 2077.204564 | U435: 1904.696373 | V435: 1725.388896 | W435: 1537.025689 | X435: 1341.284201 | Y435: 1001.588678 | Z435: 782.838419 | AA435: 642.4869126 | AB435: 515.5841485 | AC435: 412.8590198 | AD435: 302.69721 | AE435: 264.4558707 | AF435: 236.1592109 | AG435: 194.2774 | AH435: 165.3294736 | AI435: 128.7809169 | AJ435: 101.6818788 | AK435: 73.92119041 | AL435: 62.72934259 | AM435: 45.48659977
A436: =IF(AND(ISNUMBER(O436:AM436)),"Ok","Check") -> Ok | C436: RAB per customer | D436: Stored Input | E436: $dollars | F436: Real 2025 | G436: End-year | O436: 2352.104348 | P436: 2155.166685 | Q436: 1954.340418 | R436: 1746.678313 | S436: 1536.462154 | T436: 1402.700349 | U436: 1370.23514 | V436: 1327.986357 | W436: 1271.882871 | X436: 1200.051262 | Y436: 989.8893386 | Z436: 878.7564303 | AA436: 834.5327383 | AB436: 794.5475573 | AC436: 782.0384747 | AD436: 687.8158466 | AE436: 686.2319204 | AF436: 714.2231447 | AG436: 704.1269362 | AH436: 747.5981556 | AI436: 738.273713 | AJ436: 748.9362419 | AK436: 761.589047 | AL436: 1075.333265 | AM436: 2317.935513
C438: Revenue and prices | D438: Source | E438: Unit | F438: Basis | G438: Timing | O438: RY26 | P438: RY27 | Q438: RY28 | R438: RY29 | S438: RY30 | T438: RY31 | U438: RY32 | V438: RY33 | W438: RY34 | X438: RY35 | Y438: RY36 | Z438: RY37 | AA438: RY38 | AB438: RY39 | AC438: RY40 | AD438: RY41 | AE438: RY42 | AF438: RY43 | AG438: RY44 | AH438: RY45 | AI438: RY46 | AJ438: RY47 | AK438: RY48 | AL438: RY49 | AM438: RY50
A440: =IF(AND(ISNUMBER(O440:AM440)),"Ok","Check") -> Ok | C440: Building block revenue | D440: Stored Input | E440: $millions | F440: Real 2025 | G440: End-year | O440: 855.5544898 | P440: 811.5932928 | Q440: 797.9527847 | R440: 821.9783971 | S440: 820.0065229 | T440: 745.9733003 | U440: 603.0138096 | V440: 601.4635112 | W440: 617.795479 | X440: 606.4943585 | Y440: 748.2880179 | Z440: 581.2537762 | AA440: 479.5143291 | AB440: 434.1215214 | AC440: 378.6875634 | AD440: 362.8088474 | AE440: 258.6241206 | AF440: 227.643393 | AG440: 228.4632443 | AH440: 214.278805 | AI440: 209.8712697 | AJ440: 187.0891359 | AK440: 155.4433443 | AL440: 131.4340682 | AM440: 130.5608018
A442: =IF(AND(ISNUMBER(O442:AL442)),"Ok","Check") -> Ok | C442: End-customer gas price - Residential | D442: Stored Input | E442: $/GJ | F442: Real 2025 | G442: End-year | O442: 60.72646801 | P442: 60.25010068 | Q442: 60.76027734 | R442: 62.29638556 | S442: 63.64936358 | T442: 62.35197891 | U442: 59.28002994 | V442: 60.21578698 | W442: 61.80295873 | X442: 62.71764195 | Y442: 69.48459667 | Z442: 66.51306744 | AA442: 65.732298 | AB442: 67.4629133 | AC442: 69.47732345 | AD442: 70.81866293 | AE442: 66.37608782 | AF442: 66.12588794 | AG442: 68.53840352 | AH442: 70.81936834 | AI442: 73.91263906 | AJ442: 76.62500074 | AK442: 80.92767262 | AL442: 97.55440595 | AM442: =NA() -> 
A443: =IF(AND(ISNUMBER(O443:AL443)),"Ok","Check") -> Ok | C443: Gas price - distribution | D443: Stored Input | E443: $/GJ | F443: Real 2025 | G443: End-year | O443: 22.15097964 | P443: 21.05674906 | Q443: 20.94328833 | R443: 21.8504852 | S443: 22.57015703 | T443: 20.80275051 | U443: 17.22185001 | V443: 17.60379921 | W443: 18.58510888 | X443: 18.83304508 | Y443: 24.75850674 | Z443: 20.8223217 | AA443: 18.92182045 | AB443: 19.33359213 | AC443: 19.76748906 | AD443: 20.4559511 | AE443: 16.01337599 | AF443: 15.76317611 | AG443: 18.17569169 | AH443: 20.45665651 | AI443: 23.54992722 | AJ443: 26.2622889 | AK443: 30.56496079 | AL443: 47.19169412 | AM443: =NA() -> 
A444: =IF(AND(ISNUMBER(O444:AL444)),"Ok","Check") -> Ok | C444: Gas price - wholesale | D444: Stored Input | E444: $/GJ | F444: Real 2025 | G444: End-year | O444: 17.89669401 | P444: 18.51455725 | Q444: 19.13819465 | R444: 19.767106 | S444: 20.40041218 | T444: 20.87043404 | U444: 21.37938556 | V444: 21.9331934 | W444: 22.53905549 | X444: 23.20580251 | Y444: 24.04729557 | Z444: 25.01195138 | AA444: 26.13168319 | AB444: 27.45052681 | AC444: 29.03104002 | AD444: 29.68391747 | AE444: 29.68391747 | AF444: 29.68391747 | AG444: 29.68391747 | AH444: 29.68391747 | AI444: 29.68391747 | AJ444: 29.68391747 | AK444: 29.68391747 | AL444: 29.68391747 | AM444: =NA() -> 
A445: =IF(AND(ISNUMBER(O445:AL445)),"Ok","Check") -> Ok | C445: Gas price - other | D445: Stored Input | E445: $/GJ | F445: Real 2025 | G445: End-year | O445: 20.67879436 | P445: 20.67879436 | Q445: 20.67879436 | R445: 20.67879436 | S445: 20.67879436 | T445: 20.67879436 | U445: 20.67879436 | V445: 20.67879436 | W445: 20.67879436 | X445: 20.67879436 | Y445: 20.67879436 | Z445: 20.67879436 | AA445: 20.67879436 | AB445: 20.67879436 | AC445: 20.67879436 | AD445: 20.67879436 | AE445: 20.67879436 | AF445: 20.67879436 | AG445: 20.67879436 | AH445: 20.67879436 | AI445: 20.67879436 | AJ445: 20.67879436 | AK445: 20.67879436 | AL445: 20.67879436 | AM445: =NA() -> 
A446: =IF(AND(ISNUMBER(O446:AM446)),"Ok","Check") -> Ok | C446: End-customer electrification price - at end of appliance life | D446: Stored Input | E446: $/GJ | F446: Real 2025 | G446: End-year | O446: 60.85152517 | P446: 59.58482663 | Q446: 58.26896119 | R446: 56.89410592 | S446: 55.45135529 | T446: 36.51915437 | U446: 34.26496234 | V446: 32.25104964 | W446: 30.45410575 | X446: 28.85383565 | Y446: 27.42987767 | Z446: 26.0225153 | AA446: 24.63231833 | AB446: 23.64190964 | AC446: 22.65399435 | AD446: 21.66495055 | AE446: 20.69103728 | AF446: 19.73221662 | AG446: 18.7880691 | AH446: 17.85746988 | AI446: 16.94162214 | AJ446: 16.03974223 | AK446: 15.15007557 | AL446: 14.27507026 | AM446: 13.41468484
... 129 more rows

Sheet Output|Cust. engagement
C1: =Model_Name -> JGN GasNetworks 2050 - Long-term Future of Gas model | E1: Section Check: | F1: =IF(COUNTA($A$7:$A$1102)=COUNTIF($A$7:$A$1102,"Ok"),"Ok","Check") -> Ok | O1: Legend: | P1: Input (hard code) | Q1: External Link | R1: Internal Link | S1: Drop down Selection | T1: Calculation | U1: Unique calculation | V1: Empty cell
C2: =RIGHT(CELL("filename",C1),LEN(CELL("filename",C1))-FIND("]",CELL("filename",C1))) -> Output|Cust. engagement | E2: Overall Check: | F2: =Overall_Check -> Ok
A3: RU | I3: Year | N3: ='Calc|Indicators'!S$3 -> 2025 | O3: ='Calc|Indicators'!T$3 -> 2026 | P3: ='Calc|Indicators'!U$3 -> 2027 | Q3: ='Calc|Indicators'!V$3 -> 2028 | R3: ='Calc|Indicators'!W$3 -> 2029 | S3: ='Calc|Indicators'!X$3 -> 2030 | T3: ='Calc|Indicators'!Y$3 -> 2031 | U3: ='Calc|Indicators'!Z$3 -> 2032 | V3: ='Calc|Indicators'!AA$3 -> 2033 | W3: ='Calc|Indicators'!AB$3 -> 2034 | X3: ='Calc|Indicators'!AC$3 -> 2035 | Y3: ='Calc|Indicators'!AD$3 -> 2036 | Z3: ='Calc|Indicators'!AE$3 -> 2037 | AA3: ='Calc|Indicators'!AF$3 -> 2038 | AB3: ='Calc|Indicators'!AG$3 -> 2039 | AC3: ='Calc|Indicators'!AH$3 -> 2040 | AD3: ='Calc|Indicators'!AI$3 -> 2041 | AE3: ='Calc|Indicators'!AJ$3 -> 2042 | AF3: ='Calc|Indicators'!AK$3 -> 2043 | AG3: ='Calc|Indicators'!AL$3 -> 2044 | AH3: ='Calc|Indicators'!AM$3 -> 2045 | AI3: ='Calc|Indicators'!AN$3 -> 2046 | AJ3: ='Calc|Indicators'!AO$3 -> 2047 | AK3: ='Calc|Indicators'!AP$3 -> 2048 | AL3: ='Calc|Indicators'!AQ$3 -> 2049 | AM3: ='Calc|Indicators'!AR$3 -> 2050
B5: Copyright Jemena Limited. All rights reserved. Jemena is not liable for any loss caused by reliance on this document.
B7: Bill impacts of AD
B9: Summary Charts
C11: Incremental Bill Impact to no AD
C33: 300 AD - Bills comparison
C57: 500 AD - Bills comparison
C81: 700 AD - Bills comparison
C105: Delay 300 AD - Bills comparison
C130: No AD - across scenarios
B159: Summary Table
N161: Electric Tortoise | U161: Electric Hare | AB161: Market Hydrogen | AI161: Big Hydrogen
V162: Average network bill | AC162: Average network bill | AJ162: Average network bill
C163: Residential Network Bill - non-highrise | D163: Source | E163: Unit | F163: Basis | G163: Timing | N163: 2025 | O163: 2025-30 | P163: 2030-35 | Q163: 3035-40 | R163: 2040-45 | S163: 2045-50 | U163: =N163 -> 2025 | V163: 2025-30 | W163: 2030-35 | X163: 3035-40 | Y163: 2040-45 | Z163: 2045-50 | AB163: =N163 -> 2025 | AC163: 2025-30 | AD163: 2030-35 | AE163: 3035-40 | AF163: 2040-45 | AG163: 2045-50 | AI163: =N163 -> 2025 | AJ163: 2025-30 | AK163: 2030-35 | AL163: 3035-40 | AM163: 2040-45 | AN163: 2045-50
C165: No AD | D165: Below | E165: =dollar -> $dollars | F165: Real 2025 | G165: =End_year -> End-year | N165: =U226 -> 305.4470648 | O165: 280.1204708 | P165: 312.9053612 | Q165: 365.6152983 | R165: 489.5294731 | S165: 1157.291794 | U165: =U452 -> 305.4470648 | V165: 280.1204708 | W165: 334.700637 | X165: 431.8075686 | Y165: 568.1197333 | Z165: 8652.892044 | AB165: =U678 -> 305.4470648 | AC165: 280.1204708 | AD165: 312.4703674 | AE165: 316.1095751 | AF165: 313.6534656 | AG165: 333.3685749 | AI165: =U904 -> 305.4470648 | AJ165: 280.1204708 | AK165: 312.1941077 | AL165: 313.7311325 | AM165: 288.1582822 | AN165: 275.3459462
C166: 100 AD | D166: Below | E166: $dollars | F166: Real 2025 | G166: End-year | N166: =U254 -> 305.4470648 | O166: 286.1038424 | P166: 309.0002102 | Q166: 358.3046674 | R166: 470.7367317 | S166: 1074.990875 | U166: =U480 -> 305.4470648 | V166: 287.3240912 | W166: 329.8991298 | X166: 416.3459613 | Y166: 537.3140019 | Z166: 7993.664954 | AB166: =U706 -> 305.4470648 | AC166: 286.4031142 | AD166: 309.2741699 | AE166: 310.4160103 | AF166: 305.657904 | AG166: 321.537092 | AI166: =U932 -> 305.4470648 | AJ166: 287.7141555 | AK166: 309.5760881 | AL166: 309.6296906 | AM166: 282.7312781 | AN166: 268.3353926
C167: 200 AD | D167: Below | E167: $dollars | F167: Real 2025 | G167: End-year | N167: =U282 -> 305.4470648 | O167: 297.8726163 | P167: 305.7164523 | Q167: 352.4241789 | R167: 455.4479978 | S167: 997.5635559 | U167: =U508 -> 305.4470648 | V167: 299.1051755 | W167: 325.1311414 | X167: 401.04985 | Y167: 506.8825996 | Z167: 7347.327932 | AB167: =U734 -> 305.4470648 | AC167: 298.1841985 | AD167: 306.0941365 | AE167: 304.7656309 | AF167: 297.7103438 | AG167: 309.8457247 | AI167: =U960 -> 305.4470648 | AJ167: 299.4952398 | AK167: 306.9677678 | AL167: 305.5541646 | AM167: 277.3263917 | AN167: 261.4048362
C168: 300 AD | D168: Below | E168: $dollars | F168: Real 2025 | G168: End-year | N168: =U310 -> 305.4470648 | O168: 309.9652828 | P168: 301.9148848 | Q168: 344.5779581 | R168: 433.6217011 | S168: 890.1636563 | U168: =U536 -> 305.4470648 | V168: 309.9652828 | W168: 319.974836 | X168: 384.0392279 | Y168: 472.9977834 | Z168: 6470.676115 | AB168: =U762 -> 305.4470648 | AC168: 309.9652828 | AD168: 302.6484446 | AE168: 298.369558 | AF168: 288.5726543 | AG168: 295.272539 | AI168: =U988 -> 305.4470648 | AJ168: 309.9652828 | AK168: 304.6536249 | AL168: 302.3086978 | AM168: 273.2129288 | AN168: 255.5829195
C169: 400 AD | D169: Below | E169: $dollars | F169: Real 2025 | G169: End-year | N169: =U338 -> 305.4470648 | O169: 321.7463671 | P169: 299.2458881 | Q169: 340.1378009 | R169: 417.0976034 | S169: 828.1588809 | U169: =U564 -> 305.4470648 | V169: 322.667344 | W169: 315.1366252 | X169: 368.4639892 | Y169: 435.6108682 | Z169: 5855.160353 | AB169: =U790 -> 305.4470648 | AC169: 321.7463671 | AD169: 299.7825621 | AE169: 293.5944281 | AF169: 279.4787736 | AG169: 283.6041033 | AI169: =U1016 -> 305.4470648 | AJ169: 323.0574084 | AK169: 302.3459484 | AL169: 299.0805084 | AM169: 266.874574 | AN169: 248.7602699
C170: 500 AD | D170: Below | E170: $dollars | F170: Real 2025 | G170: End-year | N170: =U366 -> 305.4470648 | O170: 333.5274514 | P170: 296.6080666 | Q170: 335.74819 | R170: 399.2068902 | S170: 780.7654782 | U170: =U592 -> 305.4470648 | V170: 333.5274514 | W170: 311.0282892 | X170: 356.154492 | Y170: 403.0270714 | Z170: 5383.282167 | AB170: =U818 -> 305.4470648 | AC170: 333.5274514 | AD170: 296.6510211 | AE170: 288.0736047 | AF170: 266.9211359 | AG170: 273.1164194 | AI170: =U1044 -> 305.4470648 | AJ170: 333.5274514 | AK170: 300.044738 | AL170: 295.8695962 | AM170: 258.3236884 | AN170: 244.452054
C171: 700 AD | D171: Below | E171: $dollars | F171: Real 2025 | G171: End-year | N171: =U394 -> 305.4470648 | O171: 357.0896199 | P171: 291.4198238 | Q171: 317.1918569 | R171: 376.4638806 | S171: 686.7528815 | U171: =U620 -> 305.4470648 | V171: 357.0896199 | W171: 301.7939818 | X171: 315.3892071 | Y171: 345.8034419 | Z171: 4260.252474 | AB171: =U846 -> 305.4470648 | AC171: 357.0896199 | AD171: 290.1610746 | AE171: 269.492127 | AF171: 249.0300639 | AG171: 250.2812349 | AI171: =U1072 -> 305.4470648 | AJ171: 357.0896199 | AK171: 294.9056922 | AL171: 280.8278821 | AM171: 246.3489963 | AN171: 232.2284339
C172: Delay - 300 AD | D172: Below | E172: $dollars | F172: Real 2025 | G172: End-year | N172: =U422 -> 305.4470648 | O172: 280.1204708 | P172: 343.3613876 | Q172: 349.4735463 | R172: 447.2931276 | S172: 929.211088 | U172: =U648 -> 305.4470648 | V172: 280.1204708 | W172: 374.8878072 | X172: 392.3362668 | Y172: 480.6692884 | Z172: 6796.175863 | AB172: =U874 -> 304.8024763 | AC172: 280.1204708 | AD172: 341.1674112 | AE172: 298.369558 | AF172: 288.5922969 | AG172: 296.3442577 | AI172: =U1100 -> 304.8024763 | AJ172: 280.1204708 | AK172: 343.1067121 | AL172: 302.3086978 | AM172: 273.2309588 | AN172: 256.3813857
C174: Incremental bill change compared to no AD | D174: Calculated | E174: $dollars | F174: Real 2025 | G174: End-year | N174: 100 AD | O174: =O166-O$165 -> 5.9833716 | P174: -3.905150946 | Q174: -7.310630843 | R174: -18.79274143 | S174: -82.30091976 | U174: =N174 -> 100 AD | V174: =V166-V$165 -> 7.203620375 | W174: -4.801507198 | X174: -15.4616073 | Y174: -30.80573142 | Z174: -659.2270907 | AB174: =N174 -> 100 AD | AC174: =AC166-AC$165 -> 6.282643402 | AD174: -3.196197503 | AE174: -5.693564734 | AF174: -7.995561635 | AG174: -11.83148293 | AI174: =N174 -> 100 AD | AJ174: =AJ166-AJ$165 -> 7.59368471 | AK174: -2.618019656 | AL174: -4.101441943 | AM174: -5.427004046 | AN174: -7.01055357
C175: Incremental bill change compared to no AD | D175: Calculated | E175: $dollars | F175: Real 2025 | G175: End-year | N175: 200 AD | O175: 17.75214545 | P175: -7.188908874 | Q175: -13.19111934 | R175: -34.0814753 | S175: -159.7282384 | U175: 200 AD | V175: 18.98470466 | W175: -9.569495573 | X175: -30.7577186 | Y175: -61.23713366 | Z175: -1305.564112 | AB175: 200 AD | AC175: 18.06372769 | AD175: -6.376230878 | AE175: -11.34394414 | AF175: -15.94312183 | AG175: -23.52285026 | AI175: 200 AD | AJ175: 19.374769 | AK175: -5.226339964 | AL175: -8.176967946 | AM175: -10.83189047 | AN175: -13.94110996
C176: Incremental bill change compared to no AD | D176: Calculated | E176: $dollars | F176: Real 2025 | G176: End-year | N176: $300M | O176: 29.84481197 | P176: -10.99047642 | Q176: -21.03734019 | R176: -55.907772 | S176: -267.128138 | U176: $300M | V176: 29.84481197 | W176: -14.72580093 | X176: -47.76834074 | Y176: -95.12194988 | Z176: -2182.215929 | AB176: $300M | AC176: 29.84481197 | AD176: -9.821922739 | AE176: -17.74001703 | AF176: -25.08081135 | AG176: -38.09603591 | AI176: $300M | AJ176: 29.84481197 | AK176: -7.540482785 | AL176: -11.42243468 | AM176: -14.94535337 | AN176: -19.76302662
C177: Incremental bill change compared to no AD | D177: Calculated | E177: $dollars | F177: Real 2025 | G177: End-year | N177: 400 AD | O177: 41.62589626 | P177: -13.65947303 | Q177: -25.47749735 | R177: -72.43186975 | S177: -329.1329135 | U177: 400 AD | V177: 42.54687323 | W177: -19.56401171 | X177: -63.34357941 | Y177: -132.5088651 | Z177: -2797.731691 | AB177: 400 AD | AC177: 41.62589626 | AD177: -12.68780525 | AE177: -22.51514696 | AF177: -34.17469197 | AG177: -49.76447164 | AI177: 400 AD | AJ177: 42.93693757 | AK177: -9.848159374 | AL177: -14.65062412 | AM177: -21.28370815 | AN177: -26.58567623
C178: Incremental bill change compared to no AD | D178: Calculated | E178: $dollars | F178: Real 2025 | G178: End-year | N178: $500M | O178: 53.40698055 | P178: -16.29729454 | Q178: -29.86710827 | R178: -90.3225829 | S178: -376.5263162 | U178: $500M | V178: 53.40698055 | W178: -23.67234777 | X178: -75.65307659 | Y178: -165.0926618 | Z178: -3269.609877 | AB178: $500M | AC178: 53.40698055 | AD178: -15.81934624 | AE178: -28.03597038 | AF178: -46.73232976 | AG178: -60.25215557 | AI178: $500M | AJ178: 53.40698055 | AK178: -12.14936973 | AL178: -17.86153627 | AM178: -29.83459375 | AN178: -30.89389219
C179: Incremental bill change compared to no AD | D179: Calculated | E179: $dollars | F179: Real 2025 | G179: End-year | N179: $700M | O179: 76.96914912 | P179: -21.48553736 | Q179: -48.4234414 | R179: -113.0655926 | S179: -470.5389129 | U179: $700M | V179: 76.96914912 | W179: -32.90665512 | X179: -116.4183615 | Y179: -222.3162914 | Z179: -4392.63957 | AB179: $700M | AC179: 76.96914912 | AD179: -22.30929281 | AE179: -46.6174481 | AF179: -64.62340176 | AG179: -83.08734007 | AI179: $700M | AJ179: 76.96914912 | AK179: -17.28841557 | AL179: -32.90325042 | AM179: -41.80928593 | AN179: -43.11751228
B181: Output |Scenarios - stored outputs from the model
B183: Scenario | Electric Tortoise
C185: Active Scenario
C187: Typical customer consumption (Residential) | D187: Source | E187: Unit | F187: Basis | G187: Timing | N187: Input
C189: Annual consumption - typical residential customer | D189: Input | E189: =GJ -> GJ | F189: n/a | G189: n/a | N189: 15
C191: Consumption in blocks | D191: Source | E191: Unit | F191: Basis | G191: Timing | N191: Proportion | O191: Consumption
C193: Block 1 | D193: Calc|Pricing | E193: Various | F193: n/a | G193: n/a | O193: 7.56
C194: Block 2 | D194: Calc|Pricing | E194: Various | F194: n/a | G194: n/a | O194: =N189-O193 -> 7.44
C195: Block 3 | D195: Calc|Pricing | E195: Various | F195: n/a | G195: n/a | O195: =N195*$N$189 -> 0
C196: Block 4 | D196: Calc|Pricing | E196: Various | F196: n/a | G196: n/a | O196: =N196*$N$189 -> 0
C197: Block 5 | D197: Calc|Pricing | E197: Various | F197: n/a | G197: n/a | O197: =N197*$N$189 -> 0
C198: Block 6 | D198: Calc|Pricing | E198: Various | F198: n/a | G198: n/a | O198: =N198*$N$189 -> 0
C200: No AD
C202: Accelerated depreciation (Active - Stored) | N202: 0 | O202: 0
C203: Future Scenario | N203: Electric Tortoise
C205: Tariffs - Residential non-highrise | D205: Source | E205: Unit | F205: Basis | G205: Timing | N205: ="RY"&RIGHT(N$3,2) -> RY25 | O205: ='Output|Stranding risk and AD'!O$558 -> RY26 | P205: ='Output|Stranding risk and AD'!P$558 -> RY27 | Q205: ='Output|Stranding risk and AD'!Q$558 -> RY28 | R205: ='Output|Stranding risk and AD'!R$558 -> RY29 | S205: ='Output|Stranding risk and AD'!S$558 -> RY30 | T205: ='Output|Stranding risk and AD'!T$558 -> RY31 | U205: ='Output|Stranding risk and AD'!U$558 -> RY32 | V205: ='Output|Stranding risk and AD'!V$558 -> RY33 | W205: ='Output|Stranding risk and AD'!W$558 -> RY34 | X205: ='Output|Stranding risk and AD'!X$558 -> RY35 | Y205: ='Output|Stranding risk and AD'!Y$558 -> RY36 | Z205: ='Output|Stranding risk and AD'!Z$558 -> RY37 | AA205: ='Output|Stranding risk and AD'!AA$558 -> RY38 | AB205: ='Output|Stranding risk and AD'!AB$558 -> RY39 | AC205: ='Output|Stranding risk and AD'!AC$558 -> RY40 | AD205: ='Output|Stranding risk and AD'!AD$558 -> RY41 | AE205: ='Output|Stranding risk and AD'!AE$558 -> RY42 | AF205: ='Output|Stranding risk and AD'!AF$558 -> RY43 | AG205: ='Output|Stranding risk and AD'!AG$558 -> RY44 | AH205: ='Output|Stranding risk and AD'!AH$558 -> RY45 | AI205: ='Output|Stranding risk and AD'!AI$558 -> RY46 | AJ205: ='Output|Stranding risk and AD'!AJ$558 -> RY47 | AK205: ='Output|Stranding risk and AD'!AK$558 -> RY48 | AL205: ='Output|Stranding risk and AD'!AL$558 -> RY49 | AM205: ='Output|Stranding risk and AD'!AM$558 -> RY50
C207: Fixed charges | D207: Stored Input | E207: $/customer | F207: Real 2025 | G207: =End_year -> End-year | N207: 61.09665855 | O207: 58.0316294 | P207: 53.82453711 | Q207: 52.99899728 | R207: 56.71024834 | S207: 58.58828274 | T207: 60.78825844 | U207: 62.0138394 | V207: 62.79040763 | W207: 63.16149205 | X207: 64.18847623 | Y207: 65.34148535 | Z207: 66.96572724 | AA207: 69.69423616 | AB207: 74.02638338 | AC207: 89.63083042 | AD207: 94.75032284 | AE207: 87.83978979 | AF207: 91.11482683 | AG207: 98.68881514 | AH207: 117.1937798 | AI207: 137.0771728 | AJ207: 175.5890708 | AK207: 229.2934432 | AL207: 290.3180101 | AM207: 325.1513597
C208: Variable charges - Block 1 | D208: Stored Input | E208: $/GJ | F208: Real 2025 | G208: End-year | N208: 24.80647402 | O208: 23.56201044 | P208: 21.85384623 | Q208: 21.51866043 | R208: 23.02550312 | S208: 23.78802291 | T208: 24.68125736 | U208: 25.17886792 | V208: 25.49417026 | W208: 25.64483801 | X208: 26.06181427 | Y208: 26.5299592 | Z208: 27.18943412 | AA208: 28.2972637 | AB208: 30.05620274 | AC208: 36.39192255 | AD208: 38.47053959 | AE208: 35.66472398 | AF208: 36.99445498 | AG208: 40.0696468 | AH208: 47.58303519 | AI208: 55.65609322 | AJ208: 71.29269956 | AK208: 93.0977565 | AL208: 117.8749599 | AM208: 132.0180014
C209: Variable charges - Block 2 | D209: Stored Input | E209: $/GJ | F209: Real 2025 | G209: End-year | N209: 7.636218102 | O209: 7.253132813 | P209: 6.727305787 | Q209: 6.624124985 | R209: 7.087978872 | S209: 7.322706607 | T209: 7.59767245 | U209: 7.750852735 | V209: 7.847912779 | W209: 7.894293082 | X209: 8.022651578 | Y209: 8.166761409 | Z209: 8.36976867 | AA209: 8.710793691 | AB209: 9.252250814 | AC209: 11.20258597 | AD209: 11.84245011 | AE209: 10.97873122 | AF209: 11.38806453 | AG209: 12.33470593 | AH209: 14.64756476 | AI209: 17.13270763 | AJ209: 21.94615013 | AK209: 28.65843703 | AL209: 36.28564469 | AM209: 40.63932067
C210: Variable charges - Block 3 | D210: Stored Input | E210: $/GJ | F210: Real 2025 | G210: End-year | N210: 7.139581615 | O210: 6.781411032 | P210: 6.289782203 | Q210: 6.193311967 | R210: 6.626998203 | S210: 6.846459958 | T210: 7.103542855 | U210: 7.246760758 | V210: 7.337508311 | W210: 7.38087218 | X210: 7.500882628 | Y210: 7.635619992 | Z210: 7.825424276 | AA210: 8.144270063 | AB210: 8.650512456 | AC210: 10.47400372 | AD210: 11.07225303 | AE210: 10.26470781 | AF210: 10.64741932 | AG210: 11.53249403 | AH210: 13.69493153 | AI210: 16.01844824 | AJ210: 20.51883902 | AK210: 26.79457912 | AL210: 33.92573631 | AM210: 37.99626239
C211: Variable charges - Block 4 | D211: Stored Input | E211: $/GJ | F211: Real 2025 | G211: End-year | N211: 5.229086728 | O211: 4.966759726 | P211: 4.606686836 | Q211: 4.536031263 | R211: 4.853666534 | S211: 5.01440208 | T211: 5.202691652 | U211: 5.307585591 | V211: 5.374049825 | W211: 5.40580987 | X211: 5.493706483 | Y211: 5.592389207 | Z211: 5.731403384 | AA211: 5.96492859 | AB211: 6.335704572 | AC211: 7.671244171 | AD211: 8.109406757 | AE211: 7.517954171 | AF211: 7.798255143 | AG211: 8.446490949 | AH211: 10.03027748 | AI211: 11.73203972 | AJ211: 15.02816196 | AK211: 19.62456424 | AL211: 24.84748085 | AM211: 27.82876674
C212: Variable charges - Block 5 | D212: Stored Input | E212: $/GJ | F212: Real 2025 | G212: End-year | N212: 4.777389505 | O212: 4.537722747 | P212: 4.208753553 | Q212: 4.144201326 | R212: 4.434398733 | S212: 4.581249675 | T212: 4.75327448 | U212: 4.849107505 | V212: 4.909830448 | W212: 4.938847007 | X212: 5.019150965 | Y212: 5.109309311 | Z212: 5.236315211 | AA212: 5.449668122 | AB212: 5.788415856 | AC212: 7.00858932 | AD212: 7.408902691 | AE212: 6.868540766 | AF212: 7.124628872 | AG212: 7.71686899 | AH212: 9.163845406 | AI212: 10.71860658 | AJ212: 13.73000429 | AK212: 17.92936169 | AL212: 22.70111406 | AM212: 25.42487151
C213: Variable charges - Block 6 | D213: Stored Input | E213: $/GJ | F213: Real 2025 | G213: End-year | N213: 3.486826011 | O213: 3.311902806 | P213: 3.071801315 | Q213: 3.02468722 | R213: 3.23649073 | S213: 3.343671374 | T213: 3.469225416 | U213: 3.539170119 | V213: 3.583489372 | W213: 3.604667401 | X213: 3.663278056 | Y213: 3.729081036 | Z213: 3.821777576 | AA213: 3.977495354 | AB213: 4.224733811 | AC213: 5.115289745 | AD213: 5.407462505 | AE213: 5.013073892 | AF213: 5.199982385 | AG213: 5.63223482 | AH213: 6.68832518 | AI213: 7.823083338 | AJ213: 10.02098239 | AK213: 13.08592583 | AL213: 16.56863752 | AM213: 18.55659942
N215: Tariffs | U215: Network Bill ($)
C216: Tariffs - Residential non-highrise | D216: Source | E216: Unit | F216: Basis | G216: Timing | N216: ="RY"&RIGHT(N$3,2) -> RY25 | O216: Average RY26-30 | P216: Average RY31-35 | Q216: Average RY36-40 | R216: Average RY41-45 | S216: Average RY46-50 | U216: =N216 -> RY25 | V216: Average RY26-30 | W216: Average RY31-35 | X216: Average RY36-40 | Y216: Average RY41-45 | Z216: Average RY46-50
C218: Fixed charges | D218: Calculated | E218: $/customer | F218: Real 2025 | G218: =End_year -> End-year | N218: =N207 -> 61.09665855 | O218: =AVERAGE(O207:S207) -> 56.03073897 | P218: =AVERAGE(T207:X207) -> 62.58849475 | Q218: =AVERAGE(Y207:AC207) -> 73.13173251 | R218: =AVERAGE(AD207:AH207) -> 97.91750688 | S218: =AVERAGE(AI207:AM207) -> 231.4858113 | U218: =N218 -> 61.09665855 | V218: 56.03073897 | W218: 62.58849475 | X218: 73.13173251 | Y218: 97.91750688 | Z218: 231.4858113
C219: Variable charges - Block 1 | D219: Calculated | E219: $/GJ | F219: Real 2025 | G219: End-year | N219: 24.80647402 | O219: 22.74960863 | P219: 25.41218956 | Q219: 29.69295646 | R219: 39.75648011 | S219: 93.98790211 | U219: =N219*$O$193 -> 187.5369436 | V219: 171.9870412 | W219: 192.1161531 | X219: 224.4787508 | Y219: 300.5589896 | Z219: 710.54854
C220: Variable charges - Block 2 | D220: Calculated | E220: $/GJ | F220: Real 2025 | G220: End-year | N220: 7.636218102 | O220: 7.003049813 | P220: 7.822676525 | Q220: 9.14043211 | R220: 12.23830331 | S220: 28.93245203 | U220: =N220*$O$194 -> 56.81346268 | V220: 52.10269061 | W220: 58.20071334 | X220: 68.0048149 | Y220: 91.05297663 | Z220: 215.2574431
C221: Variable charges - Block 3 | D221: Calculated | E221: $/GJ | F221: Real 2025 | G221: End-year | N221: 7.139581615 | O221: 6.547592673 | P221: 7.313913347 | Q221: 8.545966102 | R221: 11.44236115 | S221: 27.05077302 | U221: =N221*$O$195 -> 0 | V221: 0 | W221: 0 | X221: 0 | Y221: 0 | Z221: 0
C222: Variable charges - Block 4 | D222: Calculated | E222: $/GJ | F222: Real 2025 | G222: End-year | N222: 5.229086728 | O222: 4.795509288 | P222: 5.356768684 | Q222: 6.259133985 | R222: 8.380476901 | S222: 19.8122027 | U222: =N222*$O$196 -> 0 | V222: 0 | W222: 0 | X222: 0 | Y222: 0 | Z222: 0
C223: Variable charges - Block 5 | D223: Calculated | E223: $/GJ | F223: Real 2025 | G223: End-year | N223: 4.777389505 | O223: 4.381265207 | P223: 4.894042081 | Q223: 5.718459564 | R223: 7.656557345 | S223: 18.10079163 | U223: =N223*$O$197 -> 0 | V223: 0 | W223: 0 | X223: 0 | Y223: 0 | Z223: 0
C224: Variable charges - Block 6 | D224: Calculated | E224: $/GJ | F224: Real 2025 | G224: End-year | N224: 3.486826011 | O224: 3.197710689 | P224: 3.571966073 | Q224: 4.173675504 | R224: 5.588215756 | S224: 13.2110457 | U224: =N224*$O$198 -> 0 | V224: 0 | W224: 0 | X224: 0 | Y224: 0 | Z224: 0
C226: Total | D226: Calculated | E226: =dollars -> $dollars | F226: =F224 -> Real 2025 | G226: =G224 -> End-year | U226: =SUM(U218:U224) -> 305.4470648 | V226: 280.1204708 | W226: 312.9053612 | X226: 365.6152983 | Y226: 489.5294731 | Z226: 1157.291794
C228: 100 AD
C230: Accelerated depreciation (Active - Stored) | N230: 100
C231: Future Scenario | N231: Electric Tortoise
C233: Tariffs - Residential non-highrise | D233: Source | E233: Unit | F233: Basis | G233: Timing | N233: ="RY"&RIGHT(N$3,2) -> RY25 | O233: ='Output|Stranding risk and AD'!O$558 -> RY26 | P233: ='Output|Stranding risk and AD'!P$558 -> RY27 | Q233: ='Output|Stranding risk and AD'!Q$558 -> RY28 | R233: ='Output|Stranding risk and AD'!R$558 -> RY29 | S233: ='Output|Stranding risk and AD'!S$558 -> RY30 | T233: ='Output|Stranding risk and AD'!T$558 -> RY31 | U233: ='Output|Stranding risk and AD'!U$558 -> RY32 | V233: ='Output|Stranding risk and AD'!V$558 -> RY33 | W233: ='Output|Stranding risk and AD'!W$558 -> RY34 | X233: ='Output|Stranding risk and AD'!X$558 -> RY35 | Y233: ='Output|Stranding risk and AD'!Y$558 -> RY36 | Z233: ='Output|Stranding risk and AD'!Z$558 -> RY37 | AA233: ='Output|Stranding risk and AD'!AA$558 -> RY38 | AB233: ='Output|Stranding risk and AD'!AB$558 -> RY39 | AC233: ='Output|Stranding risk and AD'!AC$558 -> RY40 | AD233: ='Output|Stranding risk and AD'!AD$558 -> RY41 | AE233: ='Output|Stranding risk and AD'!AE$558 -> RY42 | AF233: ='Output|Stranding risk and AD'!AF$558 -> RY43 | AG233: ='Output|Stranding risk and AD'!AG$558 -> RY44 | AH233: ='Output|Stranding risk and AD'!AH$558 -> RY45 | AI233: ='Output|Stranding risk and AD'!AI$558 -> RY46 | AJ233: ='Output|Stranding risk and AD'!AJ$558 -> RY47 | AK233: ='Output|Stranding risk and AD'!AK$558 -> RY48 | AL233: ='Output|Stranding risk and AD'!AL$558 -> RY49 | AM233: ='Output|Stranding risk and AD'!AM$558 -> RY50
C235: Fixed charges | D235: Stored Input | E235: $/customer | F235: Real 2025 | G235: =End_year -> End-year | N235: 61.09665855 | O235: 60.4248255 | P235: 55.62205452 | Q235: 54.2822605 | R235: 57.29876461 | S235: 58.50987101 | T235: 60.13968195 | U235: 61.29145489 | V235: 62.0031605 | W235: 62.32331045 | X235: 63.27925183 | Y235: 64.35592882 | Z235: 65.89031682 | AA235: 68.50378271 | AB235: 72.68210273 | AC235: 86.91503355 | AD235: 91.62457453 | AE235: 84.59945313 | AF235: 87.41910636 | AG235: 94.29680867 | AH235: 112.8526214 | AI235: 130.9445088 | AJ235: 166.4045668 | AK235: 215.0553204 | AL235: 268.3622503 | AM235: 294.3517291
C236: Variable charges - Block 1 | D236: Stored Input | E236: $/GJ | F236: Real 2025 | G236: End-year | N236: 24.80647402 | O236: 24.53369626 | P236: 22.58367451 | Q236: 22.03969115 | R236: 23.26445258 | S236: 23.75618617 | T236: 24.41792224 | U236: 24.88556525 | V236: 25.17453207 | W236: 25.3045194 | X236: 25.69265085 | Y236: 26.12980339 | Z236: 26.75279583 | AA236: 27.81391562 | AB236: 29.51039771 | AC236: 35.28925431 | AD236: 37.20142281 | AE236: 34.34908202 | AF236: 35.49391803 | AG236: 38.2864037 | AH236: 45.82043742 | AI236: 53.16610813 | AJ236: 67.56360592 | AK236: 87.31679187 | AL236: 108.9604791 | AM236: 119.512731
C237: Variable charges - Block 2 | D237: Stored Input | E237: $/GJ | F237: Real 2025 | G237: End-year | N237: 7.636218102 | O237: 7.552248474 | P237: 6.951970037 | Q237: 6.784514735 | R237: 7.161535081 | S237: 7.31290625 | T237: 7.516609564 | U237: 7.660564889 | V237: 7.749518023 | W237: 7.789532239 | X237: 7.909011389 | Y237: 8.043580783 | Z237: 8.235357579 | AA237: 8.562003848 | AB237: 9.084234747 | AC237: 10.86314977 | AD237: 11.45177578 | AE237: 10.57373498 | AF237: 10.92615175 | AG237: 11.78576725 | AH237: 14.10498136 | AI237: 16.36621138 | AJ237: 20.79821704 | AK237: 26.87887308 | AL237: 33.54148528 | AM237: 36.78980251
C238: Variable charges - Block 3 | D238: Stored Input | E238: $/GJ | F238: Real 2025 | G238: End-year | N238: 7.139581615 | O238: 7.061073116 | P238: 6.499834971 | Q238: 6.343270454 | R238: 6.695770539 | S238: 6.837296986 | T238: 7.027752054 | U238: 7.162344961 | V238: 7.245512852 | W238: 7.282924665 | X238: 7.394633253 | Y238: 7.520450661 | Z238: 7.699754876 | AA238: 8.00515706 | AB238: 8.493423645 | AC238: 10.15664343 | AD238: 10.70698698 | AE238: 9.886051292 | AF238: 10.21554794 | AG238: 11.01925666 | AH238: 13.18763611 | AI238: 15.30180258 | AJ238: 19.44556402 | AK238: 25.13075262 | AL238: 31.36004871 | AM238: 34.39710523
C239: Variable charges - Block 4 | D239: Stored Input | E239: $/GJ | F239: Real 2025 | G239: End-year | N239: 5.229086728 | O239: 5.171586476 | P239: 4.760531165 | Q239: 4.64586206 | R239: 4.904035944 | S239: 5.007691046 | T239: 5.147181862 | U239: 5.245758785 | V239: 5.306671614 | W239: 5.334072325 | X239: 5.415888589 | Y239: 5.508038267 | Z239: 5.639362109 | AA239: 5.863041114 | AB239: 6.220651469 | AC239: 7.438806953 | AD239: 7.841882977 | AE239: 7.240623106 | AF239: 7.48194909 | AG239: 8.070591787 | AH239: 9.658730259 | AI239: 11.2071627 | AJ239: 14.24208676 | AK239: 18.4059644 | AL239: 22.96835072 | AM239: 25.19271522
C240: Variable charges - Block 5 | D240: Stored Input | E240: $/GJ | F240: Real 2025 | G240: End-year | N240: 4.777389505 | O240: 4.72485622 | P240: 4.349308552 | Q240: 4.244544755 | R240: 4.480417149 | S240: 4.575118351 | T240: 4.702559718 | U240: 4.792621402 | V240: 4.84827248 | W240: 4.873306272 | X240: 4.948055111 | Y240: 5.032244745 | Z240: 5.152224615 | AA240: 5.356581855 | AB240: 5.683301232 | AC240: 6.796230416 | AD240: 7.164488061 | AE240: 6.61516602 | AF240: 6.835645863 | AG240: 7.373440623 | AH240: 8.824393048 | AI240: 10.23906932 | AJ240: 13.01183157 | AK240: 16.81602653 | AL240: 20.98430632 | AM240: 23.01652651
C241: Variable charges - Block 6 | D241: Stored Input | E241: $/GJ | F241: Real 2025 | G241: End-year | N241: 3.486826011 | O241: 3.448484062 | P241: 3.174386801 | Q241: 3.097923886 | R241: 3.270077736 | S241: 3.339196365 | T241: 3.432210735 | U241: 3.497943165 | V241: 3.538560667 | W241: 3.556831833 | X241: 3.611388028 | Y241: 3.672834684 | Z241: 3.760403204 | AA241: 3.909555401 | AB241: 4.14801484 | AC241: 4.960297452 | AD241: 5.229074017 | AE241: 4.828145773 | AF241: 4.989065215 | AG241: 5.381580156 | AH241: 6.440572447 | AI241: 7.47308822 | AJ241: 9.496816774 | AK241: 12.27334691 | AL241: 15.31560804 | AM241: 16.79884448
N243: Tariffs | U243: Network Bill ($)
C244: Tariffs - Residential non-highrise | D244: Source | E244: Unit | F244: Basis | G244: Timing | N244: ="RY"&RIGHT(N$3,2) -> RY25 | O244: Average RY26-30 | P244: Average RY31-35 | Q244: Average RY36-40 | R244: Average RY41-45 | S244: Average RY46-50 | U244: =N244 -> RY25 | V244: Average RY26-30 | W244: Average RY31-35 | X244: Average RY36-40 | Y244: Average RY41-45 | Z244: Average RY46-50
C246: Fixed charges | D246: Calculated | E246: $/customer | F246: Real 2025 | G246: =End_year -> End-year | N246: =N235 -> 61.09665855 | O246: =AVERAGE(O235:S235) -> 57.22755523 | P246: =AVERAGE(T235:X235) -> 61.80737192 | Q246: =AVERAGE(Y235:AC235) -> 71.66943292 | R246: =AVERAGE(AD235:AH235) -> 94.15851281 | S246: =AVERAGE(AI235:AM235) -> 215.0236751 | U246: =N246 -> 61.09665855 | V246: 57.22755523 | W246: 61.80737192 | X246: 71.66943292 | Y246: 94.15851281 | Z246: 215.0236751
C247: Variable charges - Block 1 | D247: Calculated | E247: $/GJ | F247: Real 2025 | G247: End-year | N247: 24.80647402 | O247: 23.23554013 | P247: 25.09503796 | Q247: 29.09923337 | R247: 38.2302528 | S247: 87.30394321 | U247: =N247*$O$193 -> 187.5369436 | V247: 175.6606834 | W247: 189.718487 | X247: 219.9902043 | Y247: 289.0207111 | Z247: 660.0178107
C248: Variable charges - Block 2 | D248: Calculated | E248: $/GJ | F248: Real 2025 | G248: End-year | N248: 7.636218102 | O248: 7.152634916 | P248: 7.725047221 | Q248: 8.957665346 | R248: 11.76848222 | S248: 26.87491786 | U248: =N248*$O$194 -> 56.81346268 | V248: 53.21560377 | W248: 57.47435132 | X248: 66.64503018 | Y248: 87.55750774 | Z248: 199.9493889
C249: Variable charges - Block 3 | D249: Calculated | E249: $/GJ | F249: Real 2025 | G249: End-year | N249: 7.139581615 | O249: 6.687449213 | P249: 7.222633557 | Q249: 8.375085934 | R249: 11.0030958 | S249: 25.12705463 | U249: =N249*$O$195 -> 0 | V249: 0 | W249: 0 | X249: 0 | Y249: 0 | Z249: 0
C250: Variable charges - Block 4 | D250: Calculated | E250: $/GJ | F250: Real 2025 | G250: End-year | N250: 5.229086728 | O250: 4.897941338 | P250: 5.289914635 | Q250: 6.133979982 | R250: 8.058755444 | S250: 18.40325596 | U250: =N250*$O$196 -> 0 | V250: 0 | W250: 0 | X250: 0 | Y250: 0 | Z250: 0
C251: Variable charges - Block 5 | D251: Calculated | E251: $/GJ | F251: Real 2025 | G251: End-year | N251: 4.777389505 | O251: 4.474849006 | P251: 4.832962996 | Q251: 5.604116572 | R251: 7.362626723 | S251: 16.81355205 | U251: =N251*$O$197 -> 0 | V251: 0 | W251: 0 | X251: 0 | Y251: 0 | Z251: 0
C252: Variable charges - Block 6 | D252: Calculated | E252: $/GJ | F252: Real 2025 | G252: End-year | N252: 3.486826011 | O252: 3.26601377 | P252: 3.527386886 | Q252: 4.090221116 | R252: 5.373687522 | S252: 12.27154088 | U252: =N252*$O$198 -> 0 | V252: 0 | W252: 0 | X252: 0 | Y252: 0 | Z252: 0
C254: Total | D254: Calculated | E254: =dollars -> $dollars | F254: =F252 -> Real 2025 | G254: =G252 -> End-year | U254: =SUM(U246:U252) -> 305.4470648 | V254: 286.1038424 | W254: 309.0002102 | X254: 358.3046674 | Y254: 470.7367317 | Z254: 1074.990875
C256: 200 AD
C258: Accelerated depreciation (Active - Stored) | N258: 200
C259: Future Scenario | N259: Electric Tortoise
C261: Tariffs - Residential non-highrise | D261: Source | E261: Unit | F261: Basis | G261: Timing | N261: ="RY"&RIGHT(N$3,2) -> RY25 | O261: ='Output|Stranding risk and AD'!O$558 -> RY26 | P261: ='Output|Stranding risk and AD'!P$558 -> RY27 | Q261: ='Output|Stranding risk and AD'!Q$558 -> RY28 | R261: ='Output|Stranding risk and AD'!R$558 -> RY29 | S261: ='Output|Stranding risk and AD'!S$558 -> RY30 | T261: ='Output|Stranding risk and AD'!T$558 -> RY31 | U261: ='Output|Stranding risk and AD'!U$558 -> RY32 | V261: ='Output|Stranding risk and AD'!V$558 -> RY33 | W261: ='Output|Stranding risk and AD'!W$558 -> RY34 | X261: ='Output|Stranding risk and AD'!X$558 -> RY35 | Y261: ='Output|Stranding risk and AD'!Y$558 -> RY36 | Z261: ='Output|Stranding risk and AD'!Z$558 -> RY37 | AA261: ='Output|Stranding risk and AD'!AA$558 -> RY38 | AB261: ='Output|Stranding risk and AD'!AB$558 -> RY39 | AC261: ='Output|Stranding risk and AD'!AC$558 -> RY40 | AD261: ='Output|Stranding risk and AD'!AD$558 -> RY41 | AE261: ='Output|Stranding risk and AD'!AE$558 -> RY42 | AF261: ='Output|Stranding risk and AD'!AF$558 -> RY43 | AG261: ='Output|Stranding risk and AD'!AG$558 -> RY44 | AH261: ='Output|Stranding risk and AD'!AH$558 -> RY45 | AI261: ='Output|Stranding risk and AD'!AI$558 -> RY46 | AJ261: ='Output|Stranding risk and AD'!AJ$558 -> RY47 | AK261: ='Output|Stranding risk and AD'!AK$558 -> RY48 | AL261: ='Output|Stranding risk and AD'!AL$558 -> RY49 | AM261: ='Output|Stranding risk and AD'!AM$558 -> RY50
C263: Fixed charges | D263: Stored Input | E263: $/customer | F263: Real 2025 | G263: =End_year -> End-year | N263: 61.09665855 | O263: 62.87866071 | P263: 58.00483152 | Q263: 56.61598612 | R263: 59.60115786 | S263: 60.80730963 | T263: 59.58304077 | U263: 60.67719176 | V263: 61.34007507 | W263: 61.62490231 | X263: 62.5275023 | Y263: 63.54660994 | Z263: 65.01212216 | AA263: 67.53612797 | AB263: 71.59341897 | AC263: 84.77769961 | AD263: 89.14124038 | AE263: 81.98462128 | AF263: 84.39695962 | AG263: 90.65311955 | AH263: 109.326076 | AI263: 125.7777224 | AJ263: 158.3793269 | AK263: 201.9673857 | AL263: 247.456056 | AM263: 264.1013824
C264: Variable charges - Block 1 | D264: Stored Input | E264: $/GJ | F264: Real 2025 | G264: End-year | N264: 24.80647402 | O264: 25.53000279 | P264: 23.55112996 | Q264: 22.98723076 | R264: 24.19927061 | S264: 24.68899253 | T264: 24.19191471 | U264: 24.63616205 | V264: 24.90530603 | W264: 25.02095162 | X264: 25.3874254 | Y264: 25.80120363 | Z264: 26.39623111 | AA264: 27.42102831 | AB264: 29.06837018 | AC264: 34.42145368 | AD264: 36.19313913 | AE264: 33.28740762 | AF264: 34.26686558 | AG264: 36.80699253 | AH264: 44.38858897 | AI264: 51.06828878 | AJ264: 64.30519688 | AK264: 82.00282674 | AL264: 100.4721431 | AM264: 107.2304809
C265: Variable charges - Block 2 | D265: Stored Input | E265: $/GJ | F265: Real 2025 | G265: End-year | N265: 7.636218102 | O265: 7.858943165 | P265: 7.249783458 | Q265: 7.076197428 | R265: 7.44930167 | S265: 7.60005358 | T265: 7.44703729 | U265: 7.583790687 | V265: 7.666641724 | W265: 7.702241101 | X265: 7.815053331 | Y265: 7.942427371 | Z265: 8.125595669 | AA265: 8.441060693 | AB265: 8.948164678 | AC265: 10.59601326 | AD265: 11.14139414 | AE265: 10.24691798 | AF265: 10.54842615 | AG265: 11.33035765 | AH265: 13.66421308 | AI265: 15.72043616 | AJ265: 19.79517557 | AK265: 25.24306637 | AL265: 30.92850671 | AM265: 33.00893707
C266: Variable charges - Block 3 | D266: Stored Input | E266: $/GJ | F266: Real 2025 | G266: End-year | N266: 7.139581615 | O266: 7.347821315 | P266: 6.778279509 | Q266: 6.615982988 | R266: 6.964821661 | S266: 7.105769124 | T266: 6.962704549 | U266: 7.09056392 | V266: 7.168026577 | W266: 7.201310677 | X266: 7.306785943 | Y266: 7.425875961 | Z266: 7.597131548 | AA266: 7.892079683 | AB266: 8.36620316 | AC266: 9.906880668 | AD266: 10.41679162 | AE266: 9.580489484 | AF266: 9.862388476 | AG266: 10.59346552 | AH266: 12.77553406 | AI266: 14.69802663 | AJ266: 18.50775733 | AK266: 23.60133382 | AL266: 28.91701035 | AM266: 30.86213582
C267: Variable charges - Block 4 | D267: Stored Input | E267: $/GJ | F267: Real 2025 | G267: End-year | N267: 5.229086728 | O267: 5.381603151 | P267: 4.964466173 | Q267: 4.845598903 | R267: 5.101091139 | S267: 5.204322189 | T267: 5.09954055 | U267: 5.193185776 | V267: 5.249920046 | W267: 5.274297588 | X267: 5.351548516 | Y267: 5.438770999 | Z267: 5.564199962 | AA267: 5.780222337 | AB267: 6.127474167 | AC267: 7.255878707 | AD267: 7.629341572 | AE267: 7.016827191 | AF267: 7.22329227 | AG267: 7.758738949 | AH267: 9.356903417 | AI267: 10.76495236 | AJ267: 13.55522963 | AK267: 17.28580582 | AL267: 21.17904986 | AM267: 22.60367533
C268: Variable charges - Block 5 | D268: Stored Input | E268: $/GJ | F268: Real 2025 | G268: End-year | N268: 4.777389505 | O268: 4.916731306 | P268: 4.535627315 | Q268: 4.427027997 | R268: 4.660450389 | S268: 4.754764168 | T268: 4.659033741 | U268: 4.744589737 | V268: 4.796423206 | W268: 4.818694976 | X268: 4.88927284 | Y268: 4.9689609 | Z268: 5.0835551 | AA268: 5.280917102 | AB268: 5.598172741 | AC268: 6.629103817 | AD268: 6.970306337 | AE268: 6.410701969 | AF268: 6.59933225 | AG268: 7.088526153 | AH268: 8.548638512 | AI268: 9.835057844 | AJ268: 12.38430631 | AK268: 15.79262912 | AL268: 19.34956825 | AM268: 20.6511322
C269: Variable charges - Block 6 | D269: Stored Input | E269: $/GJ | F269: Real 2025 | G269: End-year | N269: 3.486826011 | O269: 3.588526033 | P269: 3.310373433 | Q269: 3.231111124 | R269: 3.401476815 | S269: 3.47031268 | T269: 3.400442861 | U269: 3.462886769 | V269: 3.50071795 | W269: 3.516973226 | X269: 3.568485194 | Y269: 3.62664633 | Z269: 3.710284064 | AA269: 3.854330717 | AB269: 4.085882951 | AC269: 4.838318415 | AD269: 5.087348523 | AE269: 4.67891562 | AF269: 4.816589337 | AG269: 5.17363245 | AH269: 6.239310211 | AI269: 7.178216362 | AJ269: 9.038811119 | AK269: 11.52640996 | AL269: 14.12247794 | AM269: 15.07243754
N271: Tariffs | U271: Network Bill ($)
C272: Tariffs - Residential non-highrise | D272: Source | E272: Unit | F272: Basis | G272: Timing | N272: ="RY"&RIGHT(N$3,2) -> RY25 | O272: Average RY26-30 | P272: Average RY31-35 | Q272: Average RY36-40 | R272: Average RY41-45 | S272: Average RY46-50 | U272: =N272 -> RY25 | V272: Average RY26-30 | W272: Average RY31-35 | X272: Average RY36-40 | Y272: Average RY41-45 | Z272: Average RY46-50
C274: Fixed charges | D274: Calculated | E274: $/customer | F274: Real 2025 | G274: =End_year -> End-year | N274: =N263 -> 61.09665855 | O274: =AVERAGE(O263:S263) -> 59.58158917 | P274: =AVERAGE(T263:X263) -> 61.15054244 | Q274: =AVERAGE(Y263:AC263) -> 70.49319573 | R274: =AVERAGE(AD263:AH263) -> 91.10040337 | S274: =AVERAGE(AI263:AM263) -> 199.5363747 | U274: =N274 -> 61.09665855 | V274: 59.58158917 | W274: 61.15054244 | X274: 70.49319573 | Y274: 91.10040337 | Z274: 199.5363747
C275: Variable charges - Block 1 | D275: Calculated | E275: $/GJ | F275: Real 2025 | G275: End-year | N275: 24.80647402 | O275: 24.19132533 | P275: 24.82835196 | Q275: 28.62165738 | R275: 36.98859877 | S275: 81.01578729 | U275: =N275*$O$193 -> 187.5369436 | V275: 182.8864195 | W275: 187.7023408 | X275: 216.3797298 | Y275: 279.6338067 | Z275: 612.4793519
C276: Variable charges - Block 2 | D276: Calculated | E276: $/GJ | F276: Real 2025 | G276: End-year | N276: 7.636218102 | O276: 7.44685586 | P276: 7.642952827 | Q276: 8.810652335 | R276: 11.3862618 | S276: 24.93922438 | U276: =N276*$O$194 -> 56.81346268 | V276: 55.4046076 | W276: 56.86356903 | X276: 65.55125337 | Y276: 84.71378779 | Z276: 185.5478294
C277: Variable charges - Block 3 | D277: Calculated | E277: $/GJ | F277: Real 2025 | G277: End-year | N277: 7.139581615 | O277: 6.962534919 | P277: 7.145878333 | Q277: 8.237634204 | R277: 10.64573383 | S277: 23.31725279 | U277: =N277*$O$195 -> 0 | V277: 0 | W277: 0 | X277: 0 | Y277: 0 | Z277: 0
C278: Variable charges - Block 4 | D278: Calculated | E278: $/GJ | F278: Real 2025 | G278: End-year | N278: 5.229086728 | O278: 5.099416311 | P278: 5.233698495 | Q278: 6.033309235 | R278: 7.79702068 | S278: 17.0777426 | U278: =N278*$O$196 -> 0 | V278: 0 | W278: 0 | X278: 0 | Y278: 0 | Z278: 0
C279: Variable charges - Block 5 | D279: Calculated | E279: $/GJ | F279: Real 2025 | G279: End-year | N279: 4.777389505 | O279: 4.658920235 | P279: 4.7816029 | Q279: 5.512141932 | R279: 7.123501044 | S279: 15.60253875 | U279: =N279*$O$197 -> 0 | V279: 0 | W279: 0 | X279: 0 | Y279: 0 | Z279: 0
C280: Variable charges - Block 6 | D280: Calculated | E280: $/GJ | F280: Real 2025 | G280: End-year | N280: 3.486826011 | O280: 3.400360017 | P280: 3.4899012 | Q280: 4.023092495 | R280: 5.199159228 | S280: 11.38767058 | U280: =N280*$O$198 -> 0 | V280: 0 | W280: 0 | X280: 0 | Y280: 0 | Z280: 0
C282: Total | D282: Calculated | E282: =dollars -> $dollars | F282: =F280 -> Real 2025 | G282: =G280 -> End-year | U282: =SUM(U274:U280) -> 305.4470648 | V282: 297.8726163 | W282: 305.7164523 | X282: 352.4241789 | Y282: 455.4479978 | Z282: 997.5635559
C284: 300 AD
C286: Accelerated depreciation (Active - Stored) | N286: 300
C287: Future Scenario | N287: Electric Tortoise
C289: Tariffs - Residential non-highrise | D289: Source | E289: Unit | F289: Basis | G289: Timing | N289: ="RY"&RIGHT(N$3,2) -> RY25 | O289: ='Output|Stranding risk and AD'!O$558 -> RY26 | P289: ='Output|Stranding risk and AD'!P$558 -> RY27 | Q289: ='Output|Stranding risk and AD'!Q$558 -> RY28 | R289: ='Output|Stranding risk and AD'!R$558 -> RY29 | S289: ='Output|Stranding risk and AD'!S$558 -> RY30 | T289: ='Output|Stranding risk and AD'!T$558 -> RY31 | U289: ='Output|Stranding risk and AD'!U$558 -> RY32 | V289: ='Output|Stranding risk and AD'!V$558 -> RY33 | W289: ='Output|Stranding risk and AD'!W$558 -> RY34 | X289: ='Output|Stranding risk and AD'!X$558 -> RY35 | Y289: ='Output|Stranding risk and AD'!Y$558 -> RY36 | Z289: ='Output|Stranding risk and AD'!Z$558 -> RY37 | AA289: ='Output|Stranding risk and AD'!AA$558 -> RY38 | AB289: ='Output|Stranding risk and AD'!AB$558 -> RY39 | AC289: ='Output|Stranding risk and AD'!AC$558 -> RY40 | AD289: ='Output|Stranding risk and AD'!AD$558 -> RY41 | AE289: ='Output|Stranding risk and AD'!AE$558 -> RY42 | AF289: ='Output|Stranding risk and AD'!AF$558 -> RY43 | AG289: ='Output|Stranding risk and AD'!AG$558 -> RY44 | AH289: ='Output|Stranding risk and AD'!AH$558 -> RY45 | AI289: ='Output|Stranding risk and AD'!AI$558 -> RY46 | AJ289: ='Output|Stranding risk and AD'!AJ$558 -> RY47 | AK289: ='Output|Stranding risk and AD'!AK$558 -> RY48 | AL289: ='Output|Stranding risk and AD'!AL$558 -> RY49 | AM289: ='Output|Stranding risk and AD'!AM$558 -> RY50
C291: Fixed charges | D291: Stored Input | E291: $/customer | F291: Real 2025 | G291: =End_year -> End-year | N291: 61.09665855 | O291: 65.40083535 | P291: 60.45077548 | Q291: 59.01137462 | R291: 61.96830378 | S291: 63.1707574 | T291: 58.96986907 | U291: 59.98422975 | V291: 60.5748781 | W291: 60.7999137 | X291: 61.62180317 | Y291: 62.5535532 | Z291: 63.91664475 | AA291: 66.31078529 | AB291: 70.19601304 | AC291: 81.64183092 | AD291: 85.52151213 | AE291: 78.24305968 | AF291: 80.11982114 | AG291: 85.52874752 | AH291: 104.2599909 | AI291: 118.8178108 | AJ291: 147.5850042 | AK291: 184.7412667 | AL291: 218.8469699 | AM291: 220.2781839
C292: Variable charges - Block 1 | D292: Stored Input | E292: $/GJ | F292: Real 2025 | G292: End-year | N292: 24.80647402 | O292: 26.55405649 | P292: 24.54423248 | Q292: 23.95980674 | R292: 25.16037954 | S292: 25.64859993 | T292: 23.94295465 | U292: 24.35480552 | V292: 24.59462064 | W292: 24.68598963 | X292: 25.01969331 | Y292: 25.39800259 | Z292: 25.95144521 | AA292: 26.9235145 | AB292: 28.50099523 | AC292: 33.14822783 | AD292: 34.72345655 | AE292: 31.76825825 | AF292: 32.5302612 | AG292: 34.72639426 | AH292: 42.33165639 | AI292: 48.24242449 | AJ292: 59.92248444 | AK292: 75.00867543 | AL292: 88.85627793 | AM292: 89.43737962
C293: Variable charges - Block 2 | D293: Stored Input | E293: $/GJ | F293: Real 2025 | G293: End-year | N293: 7.636218102 | O293: 8.174179319 | P293: 7.555491854 | Q293: 7.375587108 | R293: 7.745161427 | S293: 7.89545112 | T293: 7.370399501 | U293: 7.497180237 | V293: 7.571002927 | W293: 7.599129194 | X293: 7.701853751 | Y293: 7.818309325 | Z293: 7.988676488 | AA293: 8.28791019 | AB293: 8.773508703 | AC293: 10.20407404 | AD293: 10.68897931 | AE293: 9.779275706 | AF293: 10.01384434 | AG293: 10.68988363 | AH293: 13.0310241 | AI293: 14.85054567 | AJ293: 18.44603792 | AK293: 23.09004515 | AL293: 27.35277563 | AM293: 27.53165713
C294: Variable charges - Block 3 | D294: Stored Input | E294: $/GJ | F294: Real 2025 | G294: End-year | N294: 7.139581615 | O294: 7.642555464 | P294: 7.064105557 | Q294: 6.89590127 | R294: 7.241439596 | S294: 7.381954903 | T294: 6.89105105 | U294: 7.009586351 | V294: 7.078607837 | W294: 7.104904857 | X294: 7.20094852 | Y294: 7.309830177 | Z294: 7.469117175 | AA294: 7.748889624 | AB294: 8.202906281 | AC294: 9.540431979 | AD294: 9.993800482 | AE294: 9.143261246 | AF294: 9.362574249 | AG294: 9.994645989 | AH294: 12.18352578 | AI294: 13.88471117 | AJ294: 17.24636351 | AK294: 21.58833858 | AL294: 25.57383398 | AM294: 25.74108157
C295: Variable charges - Block 4 | D295: Stored Input | E295: $/GJ | F295: Real 2025 | G295: End-year | N295: 5.229086728 | O295: 5.597468802 | P295: 5.173807459 | Q295: 5.050613293 | R295: 5.303688329 | S295: 5.406602864 | T295: 5.047060953 | U295: 5.133877157 | V295: 5.184429045 | W295: 5.203689193 | X295: 5.274032341 | Y295: 5.353778138 | Z295: 5.470441211 | AA295: 5.675348792 | AB295: 6.007874226 | AC295: 6.987488754 | AD295: 7.319539475 | AE295: 6.69659773 | AF295: 6.857224329 | AG295: 7.320158731 | AH295: 8.923311811 | AI295: 10.16927361 | AJ295: 12.63137469 | AK295: 15.81147199 | AL295: 18.73048073 | AM295: 18.85297421
C296: Variable charges - Block 5 | D296: Stored Input | E296: $/GJ | F296: Real 2025 | G296: End-year | N296: 4.777389505 | O296: 5.113950122 | P296: 4.726885352 | Q296: 4.614332903 | R296: 4.845546895 | S296: 4.939571502 | T296: 4.61108742 | U296: 4.690404295 | V296: 4.736589427 | W296: 4.754185851 | X296: 4.818452641 | Y296: 4.891309863 | Z296: 4.997895385 | AA296: 5.185102708 | AB296: 5.488904041 | AC296: 6.383897835 | AD296: 6.687265461 | AE296: 6.118134462 | AF296: 6.264885867 | AG296: 6.687831225 | AH296: 8.152501272 | AI296: 9.290834816 | AJ296: 11.5402555 | AK296: 14.4456507 | AL296: 17.1125106 | AM296: 17.22442289
C297: Variable charges - Block 6 | D297: Stored Input | E297: $/GJ | F297: Real 2025 | G297: End-year | N297: 3.486826011 | O297: 3.732468178 | P297: 3.449965044 | Q297: 3.367817502 | R297: 3.536571371 | S297: 3.605196181 | T297: 3.365448753 | U297: 3.423338977 | V297: 3.457047662 | W297: 3.46989059 | X297: 3.516796356 | Y297: 3.569971936 | Z297: 3.647764456 | AA297: 3.784399613 | AB297: 4.006132086 | AC297: 4.659352351 | AD297: 4.880768279 | AE297: 4.465382268 | AF297: 4.572490264 | AG297: 4.881181208 | AH297: 5.950185443 | AI297: 6.781009685 | AJ297: 8.422772106 | AK297: 10.54330415 | AL297: 12.48973881 | AM297: 12.57141912
N299: Tariffs | U299: Network Bill ($)
C300: Tariffs - Residential non-highrise | D300: Source | E300: Unit | F300: Basis | G300: Timing | N300: ="RY"&RIGHT(N$3,2) -> RY25 | O300: Average RY26-30 | P300: Average RY31-35 | Q300: Average RY36-40 | R300: Average RY41-45 | S300: Average RY46-50 | U300: =N300 -> RY25 | V300: Average RY26-30 | W300: Average RY31-35 | X300: Average RY36-40 | Y300: Average RY41-45 | Z300: Average RY46-50
C302: Fixed charges | D302: Calculated | E302: $/customer | F302: Real 2025 | G302: =End_year -> End-year | N302: =N291 -> 61.09665855 | O302: =AVERAGE(O291:S291) -> 62.00040933 | P302: =AVERAGE(T291:X291) -> 60.39013876 | Q302: =AVERAGE(Y291:AC291) -> 68.92376544 | R302: =AVERAGE(AD291:AH291) -> 86.73462628 | S302: =AVERAGE(AI291:AM291) -> 178.0538471 | U302: =N302 -> 61.09665855 | V302: 62.00040933 | W302: 60.39013876 | X302: 68.92376544 | Y302: 86.73462628 | Z302: 178.0538471
C303: Variable charges - Block 1 | D303: Calculated | E303: $/GJ | F303: Real 2025 | G303: End-year | N303: 24.80647402 | O303: 25.17341503 | P303: 24.51961275 | Q303: 27.98443707 | R303: 35.21600533 | S303: 72.29344838 | U303: =N303*$O$193 -> 187.5369436 | V303: 190.3110177 | W303: 185.3682724 | X303: 211.5623443 | Y303: 266.2330003 | Z303: 546.5384697
C304: Variable charges - Block 2 | D304: Calculated | E304: $/GJ | F304: Real 2025 | G304: End-year | N304: 7.636218102 | O304: 7.749174165 | P304: 7.547913122 | Q304: 8.614495748 | R304: 10.84060142 | S304: 22.2542123 | U304: =N304*$O$194 -> 56.81346268 | V304: 57.65385579 | W304: 56.15647363 | X304: 64.09184837 | Y304: 80.65407455 | Z304: 165.5713395
C305: Variable charges - Block 3 | D305: Calculated | E305: $/GJ | F305: Real 2025 | G305: End-year | N305: 7.139581615 | O305: 7.245191358 | P305: 7.057019723 | Q305: 8.054235047 | R305: 10.13556155 | S305: 20.80686576 | U305: =N305*$O$195 -> 0 | V305: 0 | W305: 0 | X305: 0 | Y305: 0 | Z305: 0
C306: Variable charges - Block 4 | D306: Calculated | E306: $/GJ | F306: Real 2025 | G306: End-year | N306: 5.229086728 | O306: 5.30643615 | P306: 5.168617738 | Q306: 5.898986224 | R306: 7.423366415 | S306: 15.23911505 | U306: =N306*$O$196 -> 0 | V306: 0 | W306: 0 | X306: 0 | Y306: 0 | Z306: 0
C307: Variable charges - Block 5 | D307: Calculated | E307: $/GJ | F307: Real 2025 | G307: End-year | N307: 4.777389505 | O307: 4.848057355 | P307: 4.722143927 | Q307: 5.389421967 | R307: 6.782123657 | S307: 13.9227349 | U307: =N307*$O$197 -> 0 | V307: 0 | W307: 0 | X307: 0 | Y307: 0 | Z307: 0
C308: Variable charges - Block 6 | D308: Calculated | E308: $/GJ | F308: Real 2025 | G308: End-year | N308: 3.486826011 | O308: 3.538403655 | P308: 3.446504468 | Q308: 3.933524089 | R308: 4.950001492 | S308: 10.16164877 | U308: =N308*$O$198 -> 0 | V308: 0 | W308: 0 | X308: 0 | Y308: 0 | Z308: 0
C310: Total | D310: Calculated | E310: =dollars -> $dollars | F310: =F308 -> Real 2025 | G310: =G308 -> End-year | U310: =SUM(U302:U308) -> 305.4470648 | V310: 309.9652828 | W310: 301.9148848 | X310: 344.5779581 | Y310: 433.6217011 | Z310: 890.1636563
C312: 400 AD
C314: Accelerated depreciation (Active - Stored) | N314: 400
C315: Future Scenario | N315: Electric Tortoise
C317: Tariffs - Residential non-highrise | D317: Source | E317: Unit | F317: Basis | G317: Timing | N317: ="RY"&RIGHT(N$3,2) -> RY25 | O317: ='Output|Stranding risk and AD'!O$558 -> RY26 | P317: ='Output|Stranding risk and AD'!P$558 -> RY27 | Q317: ='Output|Stranding risk and AD'!Q$558 -> RY28 | R317: ='Output|Stranding risk and AD'!R$558 -> RY29 | S317: ='Output|Stranding risk and AD'!S$558 -> RY30 | T317: ='Output|Stranding risk and AD'!T$558 -> RY31 | U317: ='Output|Stranding risk and AD'!U$558 -> RY32 | V317: ='Output|Stranding risk and AD'!V$558 -> RY33 | W317: ='Output|Stranding risk and AD'!W$558 -> RY34 | X317: ='Output|Stranding risk and AD'!X$558 -> RY35 | Y317: ='Output|Stranding risk and AD'!Y$558 -> RY36 | Z317: ='Output|Stranding risk and AD'!Z$558 -> RY37 | AA317: ='Output|Stranding risk and AD'!AA$558 -> RY38 | AB317: ='Output|Stranding risk and AD'!AB$558 -> RY39 | AC317: ='Output|Stranding risk and AD'!AC$558 -> RY40 | AD317: ='Output|Stranding risk and AD'!AD$558 -> RY41 | AE317: ='Output|Stranding risk and AD'!AE$558 -> RY42 | AF317: ='Output|Stranding risk and AD'!AF$558 -> RY43 | AG317: ='Output|Stranding risk and AD'!AG$558 -> RY44 | AH317: ='Output|Stranding risk and AD'!AH$558 -> RY45 | AI317: ='Output|Stranding risk and AD'!AI$558 -> RY46 | AJ317: ='Output|Stranding risk and AD'!AJ$558 -> RY47 | AK317: ='Output|Stranding risk and AD'!AK$558 -> RY48 | AL317: ='Output|Stranding risk and AD'!AL$558 -> RY49 | AM317: ='Output|Stranding risk and AD'!AM$558 -> RY50
C319: Fixed charges | D319: Stored Input | E319: $/customer | F319: Real 2025 | G319: =End_year -> End-year | N319: 61.09665855 | O319: 67.85723733 | P319: 62.83604492 | Q319: 61.34754138 | R319: 64.2731054 | S319: 65.4705992 | T319: 58.50363066 | U319: 59.47660879 | V319: 60.03458645 | W319: 60.24004503 | X319: 61.02650969 | Y319: 61.91973247 | Z319: 63.23528705 | AA319: 65.56600522 | AB319: 69.3635965 | AC319: 80.09352219 | AD319: 83.73609963 | AE319: 75.82968156 | AF319: 76.55996462 | AG319: 81.3063256 | AH319: 99.7150024 | AI319: 112.8812064 | AJ319: 139.1319941 | AK319: 172.2821488 | AL319: 202.3557606 | AM319: 201.6059958
C320: Variable charges - Block 1 | D320: Stored Input | E320: $/GJ | F320: Real 2025 | G320: End-year | N320: 24.80647402 | O320: 27.55140518 | P320: 25.51269992 | Q320: 24.9083375 | R320: 26.09617542 | S320: 26.58238202 | T320: 23.75365246 | U320: 24.14870118 | V320: 24.37525135 | W320: 24.45867167 | X320: 24.77799216 | Y320: 25.1406586 | Z320: 25.67480027 | AA320: 26.62111879 | AB320: 28.16301734 | AC320: 32.5195833 | AD320: 33.99854311 | AE320: 30.78837812 | AF320: 31.08488775 | AG320: 33.01200591 | AH320: 40.48629949 | AI320: 45.83204353 | AJ320: 56.49039209 | AK320: 69.95002263 | AL320: 82.16051478 | AM320: 81.85609517
C321: Variable charges - Block 2 | D321: Stored Input | E321: $/GJ | F321: Real 2025 | G321: End-year | N321: 7.636218102 | O321: 8.481194821 | P321: 7.853616795 | Q321: 7.667574907 | R321: 8.033229027 | S321: 8.182898813 | T321: 7.312126295 | U321: 7.433734797 | V321: 7.503474112 | W321: 7.529153529 | X321: 7.627450486 | Y321: 7.739090699 | Z321: 7.903516414 | AA321: 8.194823216 | AB321: 8.669468409 | AC321: 10.01055734 | AD321: 10.465828 | AE321: 9.477637578 | AF321: 9.568912631 | AG321: 10.16214062 | AH321: 12.46296482 | AI321: 14.10855409 | AJ321: 17.38953123 | AK321: 21.53283166 | AL321: 25.29160774 | AM321: 25.19789775
C322: Variable charges - Block 3 | D322: Stored Input | E322: $/GJ | F322: Real 2025 | G322: End-year | N322: 7.139581615 | O322: 7.929603608 | P322: 7.342841355 | Q322: 7.168899068 | R322: 7.510772152 | S322: 7.650707869 | T322: 6.836567757 | U322: 6.950267211 | V322: 7.015470892 | W322: 7.039480197 | X322: 7.131384218 | Y322: 7.23576369 | Z322: 7.389495654 | AA322: 7.661856745 | AB322: 8.105632452 | AC322: 9.359501027 | AD322: 9.785162259 | AE322: 8.861240748 | AF322: 8.946579548 | AG322: 9.501225782 | AH322: 11.65241135 | AI322: 13.19097648 | AJ322: 16.25856881 | AK322: 20.13240153 | AL322: 23.64671821 | AM322: 23.55910283
C323: Variable charges - Block 4 | D323: Stored Input | E323: $/GJ | F323: Real 2025 | G323: End-year | N323: 5.229086728 | O323: 5.80770516 | P323: 5.377955789 | Q323: 5.250559066 | R323: 5.500949649 | S323: 5.603439688 | T323: 5.007156953 | U323: 5.090431343 | V323: 5.138187041 | W323: 5.155771648 | X323: 5.223082889 | Y323: 5.29953125 | Z323: 5.412125771 | AA323: 5.611605214 | AB323: 5.936630095 | AC323: 6.854973477 | AD323: 7.16673117 | AE323: 6.490043659 | AF323: 6.55254648 | AG323: 6.958773821 | AH323: 8.534319356 | AI323: 9.661176772 | AJ323: 11.90790595 | AK323: 14.74513205 | AL323: 17.31904571 | AM323: 17.2548755
C324: Variable charges - Block 5 | D324: Stored Input | E324: $/GJ | F324: Real 2025 | G324: End-year | N324: 4.777389505 | O324: 5.306025913 | P324: 4.913399009 | Q324: 4.797007027 | R324: 5.025768454 | S324: 5.119405233 | T324: 4.574630394 | U324: 4.650711403 | V324: 4.694341885 | W324: 4.710407504 | X324: 4.771904288 | Y324: 4.841748912 | Z324: 4.944617331 | AA324: 5.126865407 | AB324: 5.423814097 | AC324: 6.262829448 | AD324: 6.547656992 | AE324: 5.929422876 | AF324: 5.986526599 | AG324: 6.357663346 | AH324: 7.797110632 | AI324: 8.826628228 | AJ324: 10.8792812 | AK324: 13.47142298 | AL324: 15.82299769 | AM324: 15.76437061
C325: Variable charges - Block 6 | D325: Stored Input | E325: $/GJ | F325: Real 2025 | G325: End-year | N325: 3.486826011 | O325: 3.872656636 | P325: 3.586093922 | Q325: 3.501144058 | R325: 3.668107897 | S325: 3.736449647 | T325: 3.338840225 | U325: 3.394368718 | V325: 3.426212866 | W325: 3.437938521 | X325: 3.48282257 | Y325: 3.533799375 | Z325: 3.60887893 | AA325: 3.74189453 | AB325: 3.958625533 | AC325: 4.570989365 | AD325: 4.778873627 | AE325: 4.327649209 | AF325: 4.369326939 | AG325: 4.640204844 | AH325: 5.690799994 | AI325: 6.442203815 | AJ325: 7.940353328 | AK325: 9.832254203 | AL325: 11.54857477 | AM325: 11.50578521
N327: Tariffs | U327: Network Bill ($)
C328: Tariffs - Residential non-highrise | D328: Source | E328: Unit | F328: Basis | G328: Timing | N328: ="RY"&RIGHT(N$3,2) -> RY25 | O328: Average RY26-30 | P328: Average RY31-35 | Q328: Average RY36-40 | R328: Average RY41-45 | S328: Average RY46-50 | U328: =N328 -> RY25 | V328: Average RY26-30 | W328: Average RY31-35 | X328: Average RY36-40 | Y328: Average RY41-45 | Z328: Average RY46-50
C330: Fixed charges | D330: Calculated | E330: $/customer | F330: Real 2025 | G330: =End_year -> End-year | N330: =N319 -> 61.09665855 | O330: =AVERAGE(O319:S319) -> 64.35690565 | P330: =AVERAGE(T319:X319) -> 59.85627612 | Q330: =AVERAGE(Y319:AC319) -> 68.03562868 | R330: =AVERAGE(AD319:AH319) -> 83.42941476 | S330: =AVERAGE(AI319:AM319) -> 165.6514212 | U330: =N330 -> 61.09665855 | V330: 64.35690565 | W330: 59.85627612 | X330: 68.03562868 | Y330: 83.42941476 | Z330: 165.6514212
C331: Variable charges - Block 1 | D331: Calculated | E331: $/GJ | F331: Real 2025 | G331: End-year | N331: 24.80647402 | O331: 26.13020001 | P331: 24.30285377 | Q331: 27.62383566 | R331: 33.87402288 | S331: 67.25781364 | U331: =N331*$O$193 -> 187.5369436 | V331: 197.544312 | W331: 183.7295745 | X331: 208.8361976 | Y331: 256.0876129 | Z331: 508.4690711
C332: Variable charges - Block 2 | D332: Calculated | E332: $/GJ | F332: Real 2025 | G332: End-year | N332: 7.636218102 | O332: 8.043702873 | P332: 7.481187844 | Q332: 8.503491217 | R332: 10.42749673 | S332: 20.70408449 | U332: =N332*$O$194 -> 56.81346268 | V332: 59.84514937 | W332: 55.66003756 | X332: 63.26597465 | Y332: 77.58057567 | Z332: 154.0383886
C333: Variable charges - Block 3 | D333: Calculated | E333: $/GJ | F333: Real 2025 | G333: End-year | N333: 7.139581615 | O333: 7.52056481 | P333: 6.994634055 | Q333: 7.950449914 | R333: 9.749323938 | S333: 19.35755357 | U333: =N333*$O$195 -> 0 | V333: 0 | W333: 0 | X333: 0 | Y333: 0 | Z333: 0
C334: Variable charges - Block 4 | D334: Calculated | E334: $/GJ | F334: Real 2025 | G334: End-year | N334: 5.229086728 | O334: 5.508121871 | P334: 5.122925975 | Q334: 5.822973161 | R334: 7.140482897 | S334: 14.1776272 | U334: =N334*$O$196 -> 0 | V334: 0 | W334: 0 | X334: 0 | Y334: 0 | Z334: 0
C335: Variable charges - Block 5 | D335: Calculated | E335: $/GJ | F335: Real 2025 | G335: End-year | N335: 4.777389505 | O335: 5.032321127 | P335: 4.680399095 | Q335: 5.319975039 | R335: 6.523676089 | S335: 12.95294014 | U335: =N335*$O$197 -> 0 | V335: 0 | W335: 0 | X335: 0 | Y335: 0 | Z335: 0
C336: Variable charges - Block 6 | D336: Calculated | E336: $/GJ | F336: Real 2025 | G336: End-year | N336: 3.486826011 | O336: 3.672890432 | P336: 3.41603658 | Q336: 3.882837547 | R336: 4.761370923 | S336: 9.453834266 | U336: =N336*$O$198 -> 0 | V336: 0 | W336: 0 | X336: 0 | Y336: 0 | Z336: 0
C338: Total | D338: Calculated | E338: =dollars -> $dollars | F338: =F336 -> Real 2025 | G338: =G336 -> End-year | U338: =SUM(U330:U336) -> 305.4470648 | V338: 321.7463671 | W338: 299.2458881 | X338: 340.1378009 | Y338: 417.0976034 | Z338: 828.1588809
C340: 500 AD
C342: Accelerated depreciation (Active - Stored) | N342: 500
C343: Future Scenario | N343: Electric Tortoise
C345: Tariffs - Residential non-highrise | D345: Source | E345: Unit | F345: Basis | G345: Timing | N345: ="RY"&RIGHT(N$3,2) -> RY25 | O345: ='Output|Stranding risk and AD'!O$558 -> RY26 | P345: ='Output|Stranding risk and AD'!P$558 -> RY27 | Q345: ='Output|Stranding risk and AD'!Q$558 -> RY28 | R345: ='Output|Stranding risk and AD'!R$558 -> RY29 | S345: ='Output|Stranding risk and AD'!S$558 -> RY30 | T345: ='Output|Stranding risk and AD'!T$558 -> RY31 | U345: ='Output|Stranding risk and AD'!U$558 -> RY32 | V345: ='Output|Stranding risk and AD'!V$558 -> RY33 | W345: ='Output|Stranding risk and AD'!W$558 -> RY34 | X345: ='Output|Stranding risk and AD'!X$558 -> RY35 | Y345: ='Output|Stranding risk and AD'!Y$558 -> RY36 | Z345: ='Output|Stranding risk and AD'!Z$558 -> RY37 | AA345: ='Output|Stranding risk and AD'!AA$558 -> RY38 | AB345: ='Output|Stranding risk and AD'!AB$558 -> RY39 | AC345: ='Output|Stranding risk and AD'!AC$558 -> RY40 | AD345: ='Output|Stranding risk and AD'!AD$558 -> RY41 | AE345: ='Output|Stranding risk and AD'!AE$558 -> RY42 | AF345: ='Output|Stranding risk and AD'!AF$558 -> RY43 | AG345: ='Output|Stranding risk and AD'!AG$558 -> RY44 | AH345: ='Output|Stranding risk and AD'!AH$558 -> RY45 | AI345: ='Output|Stranding risk and AD'!AI$558 -> RY46 | AJ345: ='Output|Stranding risk and AD'!AJ$558 -> RY47 | AK345: ='Output|Stranding risk and AD'!AK$558 -> RY48 | AL345: ='Output|Stranding risk and AD'!AL$558 -> RY49 | AM345: ='Output|Stranding risk and AD'!AM$558 -> RY50
C347: Fixed charges | D347: Stored Input | E347: $/customer | F347: Real 2025 | G347: =End_year -> End-year | N347: 61.09665855 | O347: 70.31363931 | P347: 65.22131436 | Q347: 63.68370814 | R347: 66.57790701 | S347: 67.77044099 | T347: 58.04220345 | U347: 58.97457768 | V347: 59.50059673 | W347: 59.68706855 | X347: 60.43879983 | Y347: 61.2941864 | Z347: 62.56295818 | AA347: 64.83116567 | AB347: 68.54229526 | AC347: 78.55740635 | AD347: 76.72946162 | AE347: 71.06300655 | AF347: 74.65913996 | AG347: 79.11949944 | AH347: 97.68313112 | AI347: 109.8861229 | AJ347: 134.3228656 | AK347: 164.3815688 | AL347: 189.63988 | AM347: 182.6276447
C348: Variable charges - Block 1 | D348: Stored Input | E348: $/GJ | F348: Real 2025 | G348: End-year | N348: 24.80647402 | O348: 28.54875386 | P348: 26.48116736 | Q348: 25.85686826 | R348: 27.0319713 | S348: 27.51616411 | T348: 23.56630372 | U348: 23.94486644 | V348: 24.15844077 | W348: 24.23415208 | X348: 24.53937013 | Y348: 24.8866743 | Z348: 25.4018212 | AA348: 26.32275913 | AB348: 27.8295525 | AC348: 31.89588933 | AD348: 31.15370695 | AE348: 28.85301205 | AF348: 30.31311465 | AG348: 32.12411044 | AH348: 39.66131883 | AI348: 44.61597927 | AJ348: 54.53778904 | AK348: 66.74222799 | AL348: 76.99761112 | AM348: 74.15050234
C349: Variable charges - Block 2 | D349: Stored Input | E349: $/GJ | F349: Real 2025 | G349: End-year | N349: 7.636218102 | O349: 8.788210323 | P349: 8.151741735 | Q349: 7.959562707 | R349: 8.321296627 | S349: 8.470346506 | T349: 7.25445442 | U349: 7.370988011 | V349: 7.436732951 | W349: 7.46003929 | X349: 7.553995068 | Y349: 7.660906289 | Z349: 7.819484815 | AA349: 8.102978668 | AB349: 8.566817372 | AC349: 9.818564593 | AD349: 9.590097359 | AE349: 8.881870627 | AF349: 9.331336437 | AG349: 9.888818279 | AH349: 12.20900966 | AI349: 13.73421101 | AJ349: 16.78845819 | AK349: 20.54537091 | AL349: 23.70230253 | AM349: 22.82587231
C350: Variable charges - Block 3 | D350: Stored Input | E350: $/GJ | F350: Real 2025 | G350: End-year | N350: 7.139581615 | O350: 8.216651752 | P350: 7.621577153 | Q350: 7.441896866 | R350: 7.780104708 | S350: 7.919460835 | T350: 6.782646686 | U350: 6.891601285 | V350: 6.953070373 | W350: 6.974860939 | X350: 7.062706117 | Y350: 7.162664157 | Z350: 7.310929216 | AA350: 7.575985487 | AB350: 8.009657528 | AC350: 9.179994902 | AD350: 8.966386485 | AE350: 8.304220674 | AF350: 8.724454589 | AG350: 9.245679501 | AH350: 11.41497266 | AI350: 12.84097954 | AJ350: 15.69658774 | AK350: 19.20916224 | AL350: 22.16077659 | AM350: 21.34134673
C351: Variable charges - Block 4 | D351: Stored Input | E351: $/GJ | F351: Real 2025 | G351: End-year | N351: 5.229086728 | O351: 6.017941519 | P351: 5.582104119 | Q351: 5.450504839 | R351: 5.698210969 | S351: 5.800276512 | T351: 4.967664729 | U351: 5.047463949 | V351: 5.092484402 | W351: 5.108443987 | X351: 5.172782499 | Y351: 5.245992567 | Z351: 5.354583083 | AA351: 5.548712418 | AB351: 5.866337292 | AC351: 6.723501754 | AD351: 6.567053239 | AE351: 6.082077698 | AF351: 6.389860382 | AG351: 6.77160968 | AH351: 8.360417356 | AI351: 9.40483621 | AJ351: 11.49630652 | AK351: 14.06894419 | AL351: 16.23073018 | AM351: 15.63057319
C352: Variable charges - Block 5 | D352: Stored Input | E352: $/GJ | F352: Real 2025 | G352: End-year | N352: 4.777389505 | O352: 5.498101705 | P352: 5.099912666 | Q352: 4.979681151 | R352: 5.205990013 | S352: 5.299238964 | T352: 4.538549574 | U352: 4.611455605 | V352: 4.652587116 | W352: 4.667168085 | X352: 4.725948929 | Y352: 4.792834989 | Z352: 4.892045276 | AA352: 5.069405396 | AB352: 5.359593304 | AC352: 6.142714471 | AD352: 5.99978024 | AE352: 5.556697694 | AF352: 5.837893597 | AG352: 6.186666755 | AH352: 7.638230577 | AI352: 8.592430791 | AJ352: 10.50323641 | AK352: 12.85364536 | AL352: 14.82869267 | AM352: 14.28037824
C353: Variable charges - Block 6 | D353: Stored Input | E353: $/GJ | F353: Real 2025 | G353: End-year | N353: 3.486826011 | O353: 4.012845094 | P353: 3.722222799 | Q353: 3.634470613 | R353: 3.799644423 | S353: 3.867703113 | T353: 3.312506274 | U353: 3.365717477 | V353: 3.395737726 | W353: 3.406379794 | X353: 3.449281587 | Y353: 3.498099054 | Z353: 3.570508684 | AA353: 3.69995676 | AB353: 3.911753338 | AC353: 4.483322236 | AD353: 4.379000242 | AE353: 4.055611969 | AF353: 4.26084564 | AG353: 4.515401254 | AH353: 5.574839779 | AI353: 6.271272449 | AJ353: 7.665893239 | AK353: 9.381362964 | AL353: 10.8228712 | AM353: 10.42267838
N355: Tariffs | U355: Network Bill ($)
C356: Tariffs - Residential non-highrise | D356: Source | E356: Unit | F356: Basis | G356: Timing | N356: ="RY"&RIGHT(N$3,2) -> RY25 | O356: Average RY26-30 | P356: Average RY31-35 | Q356: Average RY36-40 | R356: Average RY41-45 | S356: Average RY46-50 | U356: =N356 -> RY25 | V356: Average RY26-30 | W356: Average RY31-35 | X356: Average RY36-40 | Y356: Average RY41-45 | Z356: Average RY46-50
C358: Fixed charges | D358: Calculated | E358: $/customer | F358: Real 2025 | G358: =End_year -> End-year | N358: =N347 -> 61.09665855 | O358: =AVERAGE(O347:S347) -> 66.71340196 | P358: =AVERAGE(T347:X347) -> 59.32864925 | Q358: =AVERAGE(Y347:AC347) -> 67.15760237 | R358: =AVERAGE(AD347:AH347) -> 79.85084774 | S358: =AVERAGE(AI347:AM347) -> 156.1716164 | U358: =N358 -> 61.09665855 | V358: 66.71340196 | W358: 59.32864925 | X358: 67.15760237 | Y358: 79.85084774 | Z358: 156.1716164
C359: Variable charges - Block 1 | D359: Calculated | E359: $/GJ | F359: Real 2025 | G359: End-year | N359: 24.80647402 | O359: 27.08698498 | P359: 24.08862663 | Q359: 27.26733929 | R359: 32.42105258 | S359: 63.40882195 | U359: =N359*$O$193 -> 187.5369436 | V359: 204.7776064 | W359: 182.1100173 | X359: 206.141085 | Y359: 245.1031575 | Z359: 479.370694
C360: Variable charges - Block 2 | D360: Calculated | E360: $/GJ | F360: Real 2025 | G360: End-year | N360: 7.636218102 | O360: 8.33823158 | P360: 7.415241948 | Q360: 8.393750347 | R360: 9.980226471 | S360: 19.51924299 | U360: =N360*$O$194 -> 56.81346268 | V360: 62.03644295 | W360: 55.16940009 | X360: 62.44950258 | Y360: 74.25288495 | Z360: 145.2231678
C361: Variable charges - Block 3 | D361: Calculated | E361: $/GJ | F361: Real 2025 | G361: End-year | N361: 7.139581615 | O361: 7.795938263 | P361: 6.93297708 | Q361: 7.847846258 | R361: 9.331142782 | S361: 18.24977057 | U361: =N361*$O$195 -> 0 | V361: 0 | W361: 0 | X361: 0 | Y361: 0 | Z361: 0
C362: Variable charges - Block 4 | D362: Calculated | E362: $/GJ | F362: Real 2025 | G362: End-year | N362: 5.229086728 | O362: 5.709807591 | P362: 5.077767913 | Q362: 5.747825423 | R362: 6.834203671 | S362: 13.36627806 | U362: =N362*$O$196 -> 0 | V362: 0 | W362: 0 | X362: 0 | Y362: 0 | Z362: 0
C363: Variable charges - Block 5 | D363: Calculated | E363: $/GJ | F363: Real 2025 | G363: End-year | N363: 4.777389505 | O363: 5.2165849 | P363: 4.639141862 | Q363: 5.251318687 | R363: 6.243853772 | S363: 12.21167669 | U363: =N363*$O$197 -> 0 | V363: 0 | W363: 0 | X363: 0 | Y363: 0 | Z363: 0
C364: Variable charges - Block 6 | D364: Calculated | E364: $/GJ | F364: Real 2025 | G364: End-year | N364: 3.486826011 | O364: 3.807377208 | P364: 3.385924571 | Q364: 3.832728014 | R364: 4.557139777 | S364: 8.912815646 | U364: =N364*$O$198 -> 0 | V364: 0 | W364: 0 | X364: 0 | Y364: 0 | Z364: 0
C366: Total | D366: Calculated | E366: =dollars -> $dollars | F366: =F364 -> Real 2025 | G366: =G364 -> End-year | U366: =SUM(U358:U364) -> 305.4470648 | V366: 333.5274514 | W366: 296.6080666 | X366: 335.74819 | Y366: 399.2068902 | Z366: 780.7654782
C368: 700 AD
C370: Accelerated depreciation (Active - Stored) | N370: 700
C371: Future Scenario | N371: Electric Tortoise
C373: Tariffs - Residential non-highrise | D373: Source | E373: Unit | F373: Basis | G373: Timing | N373: ="RY"&RIGHT(N$3,2) -> RY25 | O373: ='Output|Stranding risk and AD'!O$558 -> RY26 | P373: ='Output|Stranding risk and AD'!P$558 -> RY27 | Q373: ='Output|Stranding risk and AD'!Q$558 -> RY28 | R373: ='Output|Stranding risk and AD'!R$558 -> RY29 | S373: ='Output|Stranding risk and AD'!S$558 -> RY30 | T373: ='Output|Stranding risk and AD'!T$558 -> RY31 | U373: ='Output|Stranding risk and AD'!U$558 -> RY32 | V373: ='Output|Stranding risk and AD'!V$558 -> RY33 | W373: ='Output|Stranding risk and AD'!W$558 -> RY34 | X373: ='Output|Stranding risk and AD'!X$558 -> RY35 | Y373: ='Output|Stranding risk and AD'!Y$558 -> RY36 | Z373: ='Output|Stranding risk and AD'!Z$558 -> RY37 | AA373: ='Output|Stranding risk and AD'!AA$558 -> RY38 | AB373: ='Output|Stranding risk and AD'!AB$558 -> RY39 | AC373: ='Output|Stranding risk and AD'!AC$558 -> RY40 | AD373: ='Output|Stranding risk and AD'!AD$558 -> RY41 | AE373: ='Output|Stranding risk and AD'!AE$558 -> RY42 | AF373: ='Output|Stranding risk and AD'!AF$558 -> RY43 | AG373: ='Output|Stranding risk and AD'!AG$558 -> RY44 | AH373: ='Output|Stranding risk and AD'!AH$558 -> RY45 | AI373: ='Output|Stranding risk and AD'!AI$558 -> RY46 | AJ373: ='Output|Stranding risk and AD'!AJ$558 -> RY47 | AK373: ='Output|Stranding risk and AD'!AK$558 -> RY48 | AL373: ='Output|Stranding risk and AD'!AL$558 -> RY49 | AM373: ='Output|Stranding risk and AD'!AM$558 -> RY50
C375: Fixed charges | D375: Stored Input | E375: $/customer | F375: Real 2025 | G375: =End_year -> End-year | N375: 61.09665855 | O375: 75.22644328 | P375: 69.99185325 | Q375: 68.35604166 | R375: 71.18751024 | S375: 72.37012458 | T375: 57.13275899 | U375: 57.98613782 | V375: 58.45027598 | W375: 58.60047557 | X375: 59.28473971 | Y375: 60.06646472 | Z375: 61.24387494 | AA375: 63.38972908 | AB375: 65.86380693 | AC375: 66.66560217 | AD375: 69.04716599 | AE375: 67.92862507 | AF375: 71.05191911 | AG375: 74.81797216 | AH375: 93.66284923 | AI375: 103.9671823 | AJ375: 124.8270664 | AK375: 148.7868753 | AL375: 163.509065 | AM375: 145.7441457
C376: Variable charges - Block 1 | D376: Stored Input | E376: $/GJ | F376: Real 2025 | G376: End-year | N376: 24.80647402 | O376: 30.54345123 | P376: 28.41810224 | Q376: 27.75392978 | R376: 28.90356306 | S376: 29.3837283 | T376: 23.19705095 | U376: 23.54353994 | V376: 23.73198939 | W376: 23.79297345 | X376: 24.07079847 | Y376: 24.38819457 | Z376: 24.86624683 | AA376: 25.73750684 | AB376: 26.74203228 | AC376: 27.0675773 | AD376: 28.03454018 | AE376: 27.58039004 | AF376: 28.84851033 | AG376: 30.37760373 | AH376: 38.0290034 | AI376: 42.21277018 | AJ376: 50.68230331 | AK376: 60.41046833 | AL376: 66.3879739 | AM376: 59.1750588
C377: Variable charges - Block 2 | D377: Stored Input | E377: $/GJ | F377: Real 2025 | G377: End-year | N377: 7.636218102 | O377: 9.402241326 | P377: 8.747991617 | Q377: 8.543538307 | R377: 8.897431827 | S377: 9.045241892 | T377: 7.140786726 | U377: 7.247447009 | V377: 7.305457714 | W377: 7.324230538 | X377: 7.409753877 | Y377: 7.507458445 | Z377: 7.654618068 | AA377: 7.922819482 | AB377: 8.232044218 | AC377: 8.332257281 | AD377: 8.629919072 | AE377: 8.490117279 | AF377: 8.880484854 | AG377: 9.351188215 | AH377: 11.70653129 | AI377: 12.99442716 | AJ377: 15.60161762 | AK377: 18.59625481 | AL377: 20.43632028 | AM377: 18.21595665
C378: Variable charges - Block 3 | D378: Stored Input | E378: $/GJ | F378: Real 2025 | G378: End-year | N378: 7.139581615 | O378: 8.79074804 | P378: 8.179048749 | Q378: 7.987892463 | R378: 8.318769821 | S378: 8.456966767 | T378: 6.676371595 | U378: 6.776095016 | V378: 6.83033288 | W378: 6.847884776 | X378: 6.927845936 | Y378: 7.019196095 | Z378: 7.156784903 | AA378: 7.407543309 | AB378: 7.696657005 | AC378: 7.790352515 | AD378: 8.068655284 | AE378: 7.937945776 | AF378: 8.302925027 | AG378: 8.743015268 | AH378: 10.94517396 | AI378: 12.14930899 | AJ378: 14.58693568 | AK378: 17.38681075 | AL378: 19.10720393 | AM378: 17.03124602
C379: Variable charges - Block 4 | D379: Stored Input | E379: $/GJ | F379: Real 2025 | G379: End-year | N379: 5.229086728 | O379: 6.438414236 | P379: 5.990400778 | Q379: 5.850396384 | R379: 6.09273361 | S379: 6.19395016 | T379: 4.889828001 | U379: 4.962866233 | V379: 5.002590479 | W379: 5.015445629 | X379: 5.074009822 | Y379: 5.14091541 | Z379: 5.241686554 | AA379: 5.425344018 | AB379: 5.637093204 | AC379: 5.705716545 | AD379: 5.909547721 | AE379: 5.813815031 | AF379: 6.081128756 | AG379: 6.403454371 | AH379: 8.016333028 | AI379: 8.898251165 | AJ379: 10.68358846 | AK379: 12.73423938 | AL379: 13.99426912 | AM379: 12.47382092
C380: Variable charges - Block 5 | D380: Stored Input | E380: $/GJ | F380: Real 2025 | G380: End-year | N380: 4.777389505 | O380: 5.882253288 | P380: 5.47293998 | Q380: 5.345029398 | R380: 5.566433131 | S380: 5.658906426 | T380: 4.467436512 | U380: 4.53416558 | V380: 4.57045838 | W380: 4.58220308 | X380: 4.635708401 | Y380: 4.696834573 | Z380: 4.788900937 | AA380: 4.956693764 | AB380: 5.150151702 | AC380: 5.212847244 | AD380: 5.399071144 | AE380: 5.311608003 | AF380: 5.555830724 | AG380: 5.850313315 | AH380: 7.323868826 | AI380: 8.129605405 | AJ380: 9.760722294 | AK380: 11.63423456 | AL380: 12.78542084 | AM380: 11.39631149
C381: Variable charges - Block 6 | D381: Stored Input | E381: $/GJ | F381: Real 2025 | G381: End-year | N381: 3.486826011 | O381: 4.293222009 | P381: 3.994480554 | Q381: 3.901123724 | R381: 4.062717475 | S381: 4.130210045 | T381: 3.260603687 | U381: 3.309306572 | V381: 3.335795238 | W381: 3.344367226 | X381: 3.383418625 | Y381: 3.42803218 | Z381: 3.495227746 | AA381: 3.617693037 | AB381: 3.758890268 | AC381: 3.804649243 | AD381: 3.940566638 | AE381: 3.876730781 | AF381: 4.054979202 | AG381: 4.269910297 | AH381: 5.345399679 | AI381: 5.933474664 | AJ381: 7.123961809 | AK381: 8.491363674 | AL381: 9.33156861 | AM381: 8.317713115
N383: Tariffs | U383: Network Bill ($)
C384: Tariffs - Residential non-highrise | D384: Source | E384: Unit | F384: Basis | G384: Timing | N384: ="RY"&RIGHT(N$3,2) -> RY25 | O384: Average RY26-30 | P384: Average RY31-35 | Q384: Average RY36-40 | R384: Average RY41-45 | S384: Average RY46-50 | U384: =N384 -> RY25 | V384: Average RY26-30 | W384: Average RY31-35 | X384: Average RY36-40 | Y384: Average RY41-45 | Z384: Average RY46-50
C386: Fixed charges | D386: Calculated | E386: $/customer | F386: Real 2025 | G386: =End_year -> End-year | N386: =N375 -> 61.09665855 | O386: =AVERAGE(O375:S375) -> 71.4263946 | P386: =AVERAGE(T375:X375) -> 58.29087761 | Q386: =AVERAGE(Y375:AC375) -> 63.44589557 | R386: =AVERAGE(AD375:AH375) -> 75.30170631 | S386: =AVERAGE(AI375:AM375) -> 137.366867 | U386: =N386 -> 61.09665855 | V386: 71.4263946 | W386: 58.29087761 | X386: 63.44589557 | Y386: 75.30170631 | Z386: 137.366867
C387: Variable charges - Block 1 | D387: Calculated | E387: $/GJ | F387: Real 2025 | G387: End-year | N387: 24.80647402 | O387: 29.00055492 | P387: 23.66727044 | Q387: 25.76031156 | R387: 30.57400953 | S387: 55.77371491 | U387: =N387*$O$193 -> 187.5369436 | V387: 219.2441952 | W387: 178.9245645 | X387: 194.7479554 | Y387: 231.1395121 | Z387: 421.6492847
C388: Variable charges - Block 2 | D388: Calculated | E388: $/GJ | F388: Real 2025 | G388: End-year | N388: 7.636218102 | O388: 8.927288994 | P388: 7.285535173 | Q388: 7.929839499 | R388: 9.411648141 | S388: 17.1689153 | U388: =N388*$O$194 -> 56.81346268 | V388: 66.41903012 | W388: 54.20438169 | X388: 58.99800587 | Y388: 70.02266217 | Z388: 127.7367299
C389: Variable charges - Block 3 | D389: Calculated | E389: $/GJ | F389: Real 2025 | G389: End-year | N389: 7.139581615 | O389: 8.346685168 | P389: 6.811706041 | Q389: 7.414106766 | R389: 8.799543064 | S389: 16.05230108 | U389: =N389*$O$195 -> 0 | V389: 0 | W389: 0 | X389: 0 | Y389: 0 | Z389: 0
C390: Variable charges - Block 4 | D390: Calculated | E390: $/GJ | F390: Real 2025 | G390: End-year | N390: 5.229086728 | O390: 6.113179033 | P390: 4.988948033 | Q390: 5.430151146 | R390: 6.444855782 | S390: 11.75683381 | U390: =N390*$O$196 -> 0 | V390: 0 | W390: 0 | X390: 0 | Y390: 0 | Z390: 0
C391: Variable charges - Block 5 | D391: Calculated | E391: $/GJ | F391: Real 2025 | G391: End-year | N391: 4.777389505 | O391: 5.585112444 | P391: 4.557994391 | Q391: 4.961085644 | R391: 5.888138402 | S391: 10.74125892 | U391: =N391*$O$197 -> 0 | V391: 0 | W391: 0 | X391: 0 | Y391: 0 | Z391: 0
C392: Variable charges - Block 6 | D392: Calculated | E392: $/GJ | F392: Real 2025 | G392: End-year | N392: 3.486826011 | O392: 4.076350761 | P392: 3.32669827 | Q392: 3.620898495 | R392: 4.297517319 | S392: 7.839616374 | U392: =N392*$O$198 -> 0 | V392: 0 | W392: 0 | X392: 0 | Y392: 0 | Z392: 0
C394: Total | D394: Calculated | E394: =dollars -> $dollars | F394: =F392 -> Real 2025 | G394: =G392 -> End-year | U394: =SUM(U386:U392) -> 305.4470648 | V394: 357.0896199 | W394: 291.4198238 | X394: 317.1918569 | Y394: 376.4638806 | Z394: 686.7528815
C396: Delay - 300 AD
N397: 2025-30 | O397: 2021-35
C398: Accelerated depreciation (Active - Stored) | N398: 0 | O398: 300
C399: Future Scenario | N399: Electric Tortoise
C401: Tariffs - Residential non-highrise | D401: Source | E401: Unit | F401: Basis | G401: Timing | N401: RY25 | O401: RY26 | P401: RY27 | Q401: RY28 | R401: RY29 | S401: RY30 | T401: RY31 | U401: RY32 | V401: RY33 | W401: RY34 | X401: RY35 | Y401: RY36 | Z401: RY37 | AA401: RY38 | AB401: RY39 | AC401: RY40 | AD401: RY41 | AE401: RY42 | AF401: RY43 | AG401: RY44 | AH401: RY45 | AI401: RY46 | AJ401: RY47 | AK401: RY48 | AL401: RY49 | AM401: RY50
C403: Fixed charges | D403: Stored Input | E403: $/customer | F403: Real 2025 | G403: =End_year -> End-year | N403: 61.09665855 | O403: 58.0316294 | P403: 53.82453711 | Q403: 52.99899728 | R403: 56.71024834 | S403: 58.58828274 | T403: 67.34268772 | U403: 68.32771114 | V403: 68.86284618 | W403: 69.02632709 | X403: 69.84254031 | Y403: 63.09735896 | Z403: 64.53369836 | AA403: 67.01757911 | AB403: 71.01799271 | AC403: 83.84836689 | AD403: 87.98169432 | AE403: 80.63437951 | AF403: 82.71578823 | AG403: 88.47798857 | AH403: 107.5363288 | AI403: 122.6217646 | AJ403: 152.4618161 | AK403: 191.1090497 | AL403: 228.486467 | AM403: 234.6422009
C404: Variable charges - Block 1 | D404: Stored Input | E404: $/GJ | F404: Real 2025 | G404: End-year | N404: 24.80647402 | O404: 23.56201044 | P404: 21.85384623 | Q404: 21.51866043 | R404: 23.02550312 | S404: 23.78802291 | T404: 27.34248767 | U404: 27.74242702 | V404: 27.95970262 | W404: 28.02607917 | X404: 28.35747817 | Y404: 25.61879868 | Z404: 26.20198141 | AA404: 27.21048703 | AB404: 28.83473553 | AC404: 34.04412588 | AD404: 35.72234007 | AE404: 32.73918227 | AF404: 33.58427613 | AG404: 35.92384554 | AH404: 43.66191555 | AI404: 49.78690636 | AJ404: 61.90256832 | AK404: 77.59412362 | AL404: 92.77010789 | AM404: 95.26945985
C405: Variable charges - Block 2 | D405: Stored Input | E405: $/GJ | F405: Real 2025 | G405: End-year | N405: 7.636218102 | O405: 7.253132813 | P405: 6.727305787 | Q405: 6.624124985 | R405: 7.087978872 | S405: 7.322706607 | T405: 8.416883398 | U405: 8.539997392 | V405: 8.606881702 | W405: 8.627314504 | X405: 8.729329611 | Y405: 7.886277353 | Z405: 8.065799462 | AA405: 8.37624942 | AB405: 8.876244534 | AC405: 10.47985982 | AD405: 10.99646728 | AE405: 10.07815686 | AF405: 10.33830351 | AG405: 11.05849704 | AH405: 13.44051999 | AI405: 15.32598608 | AJ405: 19.05557043 | AK405: 23.88592796 | AL405: 28.55757641 | AM405: 29.32695608
C406: Variable charges - Block 3 | D406: Stored Input | E406: $/GJ | F406: Real 2025 | G406: End-year | N406: 7.139581615 | O406: 6.781411032 | P406: 6.289782203 | Q406: 6.193311967 | R406: 6.626998203 | S406: 6.846459958 | T406: 7.869474805 | U406: 7.984581838 | V406: 8.047116195 | W406: 8.066220109 | X406: 8.161600463 | Y406: 7.37337777 | Z406: 7.541224304 | AA406: 7.831483538 | AB406: 8.298960485 | AC406: 9.798281492 | AD406: 10.28129037 | AE406: 9.422704075 | AF406: 9.665931573 | AG406: 10.3392859 | AH406: 12.5663893 | AI406: 14.32923039 | AJ406: 17.81625387 | AK406: 22.33245958 | AL406: 26.70027817 | AM406: 27.41961972
C407: Variable charges - Block 4 | D407: Stored Input | E407: $/GJ | F407: Real 2025 | G407: End-year | N407: 5.229086728 | O407: 4.966759726 | P407: 4.606686836 | Q407: 4.536031263 | R407: 4.853666534 | S407: 5.01440208 | T407: 5.763666343 | U407: 5.847971656 | V407: 5.89377232 | W407: 5.90776418 | X407: 5.977621514 | Y407: 5.400320904 | Z407: 5.523253049 | AA407: 5.735841236 | AB407: 6.078225094 | AC407: 7.176339802 | AD407: 7.530099371 | AE407: 6.901263895 | AF407: 7.079405661 | AG407: 7.572575764 | AH407: 9.203724116 | AI407: 10.49484304 | AJ407: 13.04876696 | AK407: 16.35647217 | AL407: 19.55549747 | AM407: 20.08234898
C408: Variable charges - Block 5 | D408: Stored Input | E408: $/GJ | F408: Real 2025 | G408: End-year | N408: 4.777389505 | O408: 4.537722747 | P408: 4.208753553 | Q408: 4.144201326 | R408: 4.434398733 | S408: 4.581249675 | T408: 5.265791243 | U408: 5.342814122 | V408: 5.384658448 | W408: 5.397441668 | X408: 5.461264609 | Y408: 4.933832187 | Z408: 5.046145249 | AA408: 5.240369714 | AB408: 5.553177884 | AC408: 6.556435614 | AD408: 6.879636842 | AE408: 6.305121222 | AF408: 6.467874807 | AG408: 6.918444054 | AH408: 8.408691094 | AI408: 9.588281018 | AJ408: 11.92159273 | AK408: 14.94357286 | AL408: 17.86626102 | AM408: 18.34760222
... 522 more rows

Sheet Dashboard_EH300
B1: 3 | C1: =Model_Name -> JGN GasNetworks 2050 - Long-term Future of Gas model | S1: Model check: | T1: =Overall_Check -> Ok
C2: =RIGHT(CELL("filename",C1),LEN(CELL("filename",C1))-FIND("]",CELL("filename",C1))) -> Dashboard_EH300
B5: Copyright Jemena Limited. All rights reserved. The results presented here are based on the Expert Panel scenarios indicative of outcomes of these scenarios. It is not a prediction of future and may not be suitable for any other purposes.
B7: Output | Customer charts
C11: Version of future | K11: Investment in our network (2026-30) | R11: Addressing capital recovery risk | AB11: Accelerated dep. profile to maintain long-term competitiveness
C13: ='Input|Assumptions'!C31 -> Electric Hare | K13: Asset replacement | R13: Pace of capital recovery | AD13: 2026-30 | AE13: 2031-35 | AF13: 2036-40 | AG13: 2041-50
C14: ='Input|Assumptions'!C32 -> Big Hydrogen | L14: Replace assets at current pace | T14: No accelerate recovery | AC14: ='Input|Assumptions'!C31 -> Electric Hare | AD14: 3.5 | AE14: 3 | AF14: 5 | AG14: 5
C15: ='Input|Assumptions'!C33 -> Electric Tortoise | L15: Replace assets at slower pace, more inspections | T15: Adjust capital recovery | AC15: ='Input|Assumptions'!C32 -> Big Hydrogen | AD15: 1 | AE15: 1 | AF15: 1 | AG15: 1
C16: ='Input|Assumptions'!C34 -> Market Hydrogen | T16: Shorten asset lives (applied to new investments) | AC16: ='Input|Assumptions'!C33 -> Electric Tortoise | AD16: 5.8 | AE16: 9 | AF16: 5.5 | AG16: 7
K17: Transition to renewable gas | V17: Capped at | W17: 2050 | AC17: ='Input|Assumptions'!C34 -> Market Hydrogen | AD17: 5.5 | AE17: 6 | AF17: 3.5 | AG17: 1
L18: Replace end-of-life assets to hydrogen compatible ones | T18: Profiled (Customised) depreciation on long life assets:
L19: Bring forward investments in facilitating 10% hydrogen | V19: 2026-30 | W19: 2031-35 | X19: 2036-40 | Y19: 2041-50 | AB19: Accelerated dep. setting for customer engagement
C20: Chart presentation | U20: Accelerate factor | V20: 1.487021687 | W20: 1 | X20: 1 | Y20: 1 | AD20: 2026-30 | AE20: 2031-35 | AF20: 2036-40 | AG20: 2041-50
E21: Start | F21: 2026 | G21: End | H21: 2049 | K21: Connection Approach | AC21: $300M AD | AD21: 1.487021687 | AE21: 1 | AF21: 1 | AG21: 1
L22: Maintain current capital contributions | AC22: $500M AD | AD22: 1.811702811 | AE22: 1 | AF22: 1 | AG22: 1
C23: Dollar basis | L23: Increase capital contributions | AC23: $700M AD | AD23: 2.136383936 | AE23: 1 | AF23: 1 | AG23: 1
E24: =Real_presentation -> Real 2025 | G24: Nominal
C30: Scenario: Electric Hare | N30: Scenario: Electric Hare
C31: Investments: Current replacement pace; Current pace of hydrogen readiness | N31: Investments: Current replacement pace; Current pace of hydrogen readiness
C32: Capital Recovery: , Profiled depn: 1.5x, 1.0x, 1.0x, 1.0x | N32: Capital Recovery: No accelerate recovery
C33: Capital contributions: Maintain current capital contributions | N33: Capital contributions: Maintain current capital contributions
B280: End

Sheet Dashboard_EH500
B1: 3 | C1: =Model_Name -> JGN GasNetworks 2050 - Long-term Future of Gas model | S1: Model check: | T1: =Overall_Check -> Ok
C2: =RIGHT(CELL("filename",C1),LEN(CELL("filename",C1))-FIND("]",CELL("filename",C1))) -> Dashboard_EH500
B5: Copyright Jemena Limited. All rights reserved. The results presented here are based on the Expert Panel scenarios indicative of outcomes of these scenarios. It is not a prediction of future and may not be suitable for any other purposes.
B7: Output | Customer charts
C11: Version of future | K11: Investment in our network (2026-30) | R11: Addressing capital recovery risk | AB11: Accelerated dep. profile to maintain long-term competitiveness
C13: ='Input|Assumptions'!C31 -> Electric Hare | K13: Asset replacement | R13: Pace of capital recovery | AD13: 2026-30 | AE13: 2031-35 | AF13: 2036-40 | AG13: 2041-50
C14: ='Input|Assumptions'!C32 -> Big Hydrogen | L14: Replace assets at current pace | T14: No accelerate recovery | AC14: ='Input|Assumptions'!C31 -> Electric Hare | AD14: 3.5 | AE14: 3 | AF14: 5 | AG14: 5
C15: ='Input|Assumptions'!C33 -> Electric Tortoise | L15: Replace assets at slower pace, more inspections | T15: Adjust capital recovery | AC15: ='Input|Assumptions'!C32 -> Big Hydrogen | AD15: 1 | AE15: 1 | AF15: 1 | AG15: 1
C16: ='Input|Assumptions'!C34 -> Market Hydrogen | T16: Shorten asset lives (applied to new investments) | AC16: ='Input|Assumptions'!C33 -> Electric Tortoise | AD16: 5.8 | AE16: 9 | AF16: 5.5 | AG16: 7
K17: Transition to renewable gas | V17: Capped at | W17: 2050 | AC17: ='Input|Assumptions'!C34 -> Market Hydrogen | AD17: 5.5 | AE17: 6 | AF17: 3.5 | AG17: 1
L18: Replace end-of-life assets to hydrogen compatible ones | T18: Profiled (Customised) depreciation on long life assets:
L19: Bring forward investments in facilitating 10% hydrogen | V19: 2026-30 | W19: 2031-35 | X19: 2036-40 | Y19: 2041-50 | AB19: Accelerated dep. setting for customer engagement
C20: Chart presentation | U20: Accelerate factor | V20: 1.811702811 | W20: 1 | X20: 1 | Y20: 1 | AD20: 2026-30 | AE20: 2031-35 | AF20: 2036-40 | AG20: 2041-50
E21: Start | F21: 2026 | G21: End | H21: 2050 | K21: Connection Approach | AC21: $300M AD | AD21: 1.487021687 | AE21: 1 | AF21: 1 | AG21: 1
L22: Maintain current capital contributions | AC22: $500M AD | AD22: 1.811702811 | AE22: 1 | AF22: 1 | AG22: 1
C23: Dollar basis | L23: Increase capital contributions | AC23: $700M AD | AD23: 2.136383936 | AE23: 1 | AF23: 1 | AG23: 1
E24: =Real_presentation -> Real 2025 | G24: Nominal
C30: Scenario: Electric Hare | N30: Scenario: Electric Hare
C31: Investments: Current replacement pace; Current pace of hydrogen readiness | N31: Investments: Current replacement pace; Current pace of hydrogen readiness
C32: Capital Recovery: , Profiled depn: 1.8x, 1.0x, 1.0x, 1.0x | N32: Capital Recovery: No accelerate recovery
C33: Capital contributions: Maintain current capital contributions | N33: Capital contributions: Maintain current capital contributions
B280: End

Sheet Dashboard_EH700
B1: 3 | C1: =Model_Name -> JGN GasNetworks 2050 - Long-term Future of Gas model | S1: Model check: | T1: =Overall_Check -> Ok
C2: =RIGHT(CELL("filename",C1),LEN(CELL("filename",C1))-FIND("]",CELL("filename",C1))) -> Dashboard_EH700
B5: Copyright Jemena Limited. All rights reserved. The results presented here are based on the Expert Panel scenarios indicative of outcomes of these scenarios. It is not a prediction of future and may not be suitable for any other purposes.
B7: Output | Customer charts
C11: Version of future | K11: Investment in our network (2026-30) | R11: Addressing capital recovery risk | AB11: Accelerated dep. profile to maintain long-term competitiveness
C13: ='Input|Assumptions'!C31 -> Electric Hare | K13: Asset replacement | R13: Pace of capital recovery | AD13: 2026-30 | AE13: 2031-35 | AF13: 2036-40 | AG13: 2041-50
C14: ='Input|Assumptions'!C32 -> Big Hydrogen | L14: Replace assets at current pace | T14: No accelerate recovery | AC14: ='Input|Assumptions'!C31 -> Electric Hare | AD14: 3.5 | AE14: 3 | AF14: 5 | AG14: 5
C15: ='Input|Assumptions'!C33 -> Electric Tortoise | L15: Replace assets at slower pace, more inspections | T15: Adjust capital recovery | AC15: ='Input|Assumptions'!C32 -> Big Hydrogen | AD15: 1 | AE15: 1 | AF15: 1 | AG15: 1
C16: ='Input|Assumptions'!C34 -> Market Hydrogen | T16: Shorten asset lives (applied to new investments) | AC16: ='Input|Assumptions'!C33 -> Electric Tortoise | AD16: 5.8 | AE16: 9 | AF16: 5.5 | AG16: 7
K17: Transition to renewable gas | V17: Capped at | W17: 2050 | AC17: ='Input|Assumptions'!C34 -> Market Hydrogen | AD17: 5.5 | AE17: 6 | AF17: 3.5 | AG17: 1
L18: Replace end-of-life assets to hydrogen compatible ones | T18: Profiled (Customised) depreciation on long life assets:
L19: Bring forward investments in facilitating 10% hydrogen | V19: 2026-30 | W19: 2031-35 | X19: 2036-40 | Y19: 2041-50 | AB19: Accelerated dep. setting for customer engagement
C20: Chart presentation | U20: Accelerate factor | V20: 2.136383936 | W20: 1 | X20: 1 | Y20: 1 | AD20: 2026-30 | AE20: 2031-35 | AF20: 2036-40 | AG20: 2041-50
E21: Start | F21: 2026 | G21: End | H21: 2050 | K21: Connection Approach | AC21: $300M AD | AD21: 1.487021687 | AE21: 1 | AF21: 1 | AG21: 1
L22: Maintain current capital contributions | AC22: $500M AD | AD22: 1.811702811 | AE22: 1 | AF22: 1 | AG22: 1
C23: Dollar basis | L23: Increase capital contributions | AC23: $700M AD | AD23: 2.136383936 | AE23: 1 | AF23: 1 | AG23: 1
E24: =Real_presentation -> Real 2025 | G24: Nominal
C30: Scenario: Electric Hare | N30: Scenario: Electric Hare
C31: Investments: Current replacement pace; Current pace of hydrogen readiness | N31: Investments: Current replacement pace; Current pace of hydrogen readiness
C32: Capital Recovery: , Profiled depn: 2.1x, 1.0x, 1.0x, 1.0x | N32: Capital Recovery: No accelerate recovery
C33: Capital contributions: Maintain current capital contributions | N33: Capital contributions: Maintain current capital contributions
B280: End

Sheet Dashboard_EHLT
B1: 3 | C1: =Model_Name -> JGN GasNetworks 2050 - Long-term Future of Gas model | S1: Model check: | T1: =Overall_Check -> Ok
C2: =RIGHT(CELL("filename",C1),LEN(CELL("filename",C1))-FIND("]",CELL("filename",C1))) -> Dashboard_EHLT
B5: Copyright Jemena Limited. All rights reserved. The results presented here are based on the Expert Panel scenarios indicative of outcomes of these scenarios. It is not a prediction of future and may not be suitable for any other purposes.
B7: Output | Customer charts
C11: Version of future | K11: Investment in our network (2026-30) | R11: Addressing capital recovery risk | AB11: Accelerated dep. profile to maintain long-term competitiveness
C13: ='Input|Assumptions'!C31 -> Electric Hare | K13: Asset replacement | R13: Pace of capital recovery | AD13: 2026-30 | AE13: 2031-35 | AF13: 2036-40 | AG13: 2041-50
C14: ='Input|Assumptions'!C32 -> Big Hydrogen | L14: Replace assets at current pace | T14: No accelerate recovery | AC14: ='Input|Assumptions'!C31 -> Electric Hare | AD14: 3.5 | AE14: 3 | AF14: 5 | AG14: 5
C15: ='Input|Assumptions'!C33 -> Electric Tortoise | L15: Replace assets at slower pace, more inspections | T15: Adjust capital recovery | AC15: ='Input|Assumptions'!C32 -> Big Hydrogen | AD15: 1 | AE15: 1 | AF15: 1 | AG15: 1
C16: ='Input|Assumptions'!C34 -> Market Hydrogen | T16: Shorten asset lives (applied to new investments) | AC16: ='Input|Assumptions'!C33 -> Electric Tortoise | AD16: 5.8 | AE16: 9 | AF16: 5.5 | AG16: 7
K17: Transition to renewable gas | V17: Capped at | W17: 2050 | AC17: ='Input|Assumptions'!C34 -> Market Hydrogen | AD17: 5.5 | AE17: 6 | AF17: 3.5 | AG17: 1
L18: Replace end-of-life assets to hydrogen compatible ones | T18: Profiled (Customised) depreciation on long life assets:
L19: Bring forward investments in facilitating 10% hydrogen | V19: 2026-30 | W19: 2031-35 | X19: 2036-40 | Y19: 2041-50 | AB19: Accelerated dep. setting for customer engagement
C20: Chart presentation | U20: Accelerate factor | V20: 3.5 | W20: 3 | X20: 5 | Y20: 5 | AD20: 2026-30 | AE20: 2031-35 | AF20: 2036-40 | AG20: 2041-50
E21: Start | F21: 2026 | G21: End | H21: 2050 | K21: Connection Approach | AC21: $300M AD | AD21: 1.487021687 | AE21: 1 | AF21: 1 | AG21: 1
L22: Maintain current capital contributions | AC22: $500M AD | AD22: 1.811702811 | AE22: 1 | AF22: 1 | AG22: 1
C23: Dollar basis | L23: Increase capital contributions | AC23: $700M AD | AD23: 2.136383936 | AE23: 1 | AF23: 1 | AG23: 1
E24: =Real_presentation -> Real 2025 | G24: Nominal
C30: Scenario: Electric Hare | N30: Scenario: Electric Hare
C31: Investments: Current replacement pace; Current pace of hydrogen readiness | N31: Investments: Current replacement pace; Current pace of hydrogen readiness
C32: Capital Recovery: , Profiled depn: 3.5x, 3.0x, 5.0x, 5.0x | N32: Capital Recovery: No accelerate recovery
C33: Capital contributions: Maintain current capital contributions | N33: Capital contributions: Maintain current capital contributions
B280: End

Sheet Dashboard_BH300
B1: 3 | C1: =Model_Name -> JGN GasNetworks 2050 - Long-term Future of Gas model | S1: Model check: | T1: =Overall_Check -> Ok
C2: =RIGHT(CELL("filename",C1),LEN(CELL("filename",C1))-FIND("]",CELL("filename",C1))) -> Dashboard_BH300
B5: Copyright Jemena Limited. All rights reserved. The results presented here are based on the Expert Panel scenarios indicative of outcomes of these scenarios. It is not a prediction of future and may not be suitable for any other purposes.
B7: Output | Customer charts
C11: Version of future | K11: Investment in our network (2026-30) | R11: Addressing capital recovery risk | AB11: Accelerated dep. profile to maintain long-term competitiveness
C13: ='Input|Assumptions'!C31 -> Electric Hare | K13: Asset replacement | R13: Pace of capital recovery | AD13: 2026-30 | AE13: 2031-35 | AF13: 2036-40 | AG13: 2041-50
C14: ='Input|Assumptions'!C32 -> Big Hydrogen | L14: Replace assets at current pace | T14: No accelerate recovery | AC14: ='Input|Assumptions'!C31 -> Electric Hare | AD14: 3.5 | AE14: 3 | AF14: 5 | AG14: 5
C15: ='Input|Assumptions'!C33 -> Electric Tortoise | L15: Replace assets at slower pace, more inspections | T15: Adjust capital recovery | AC15: ='Input|Assumptions'!C32 -> Big Hydrogen | AD15: 1 | AE15: 1 | AF15: 1 | AG15: 1
C16: ='Input|Assumptions'!C34 -> Market Hydrogen | T16: Shorten asset lives (applied to new investments) | AC16: ='Input|Assumptions'!C33 -> Electric Tortoise | AD16: 5.8 | AE16: 9 | AF16: 5.5 | AG16: 7
K17: Transition to renewable gas | V17: Capped at | W17: 2050 | AC17: ='Input|Assumptions'!C34 -> Market Hydrogen | AD17: 5.5 | AE17: 6 | AF17: 3.5 | AG17: 1
L18: Replace end-of-life assets to hydrogen compatible ones | T18: Profiled (Customised) depreciation on long life assets:
L19: Bring forward investments in facilitating 10% hydrogen | V19: 2026-30 | W19: 2031-35 | X19: 2036-40 | Y19: 2041-50 | AB19: Accelerated dep. setting for customer engagement
C20: Chart presentation | U20: Accelerate factor | V20: 1.487021687 | W20: 1 | X20: 1 | Y20: 1 | AD20: 2026-30 | AE20: 2031-35 | AF20: 2036-40 | AG20: 2041-50
E21: Start | F21: 2026 | G21: End | H21: 2050 | K21: Connection Approach | AC21: $300M AD | AD21: 1.487021687 | AE21: 1 | AF21: 1 | AG21: 1
L22: Maintain current capital contributions | AC22: $500M AD | AD22: 1.811702811 | AE22: 1 | AF22: 1 | AG22: 1
C23: Dollar basis | L23: Increase capital contributions | AC23: $700M AD | AD23: 2.136383936 | AE23: 1 | AF23: 1 | AG23: 1
E24: =Real_presentation -> Real 2025 | G24: Nominal
C30: ="Scenario: "&'Input|Assumptions'!$M$39 -> Scenario: Market Hydrogen | N30: Scenario: Big Hydrogen
C31: ="Investments: "&CHOOSE('Input|Assumptions'!$F$45,'Input|Assumptions'!$P$45,'Input|Assumptions'!$Q$45) &"; "&CHOOSE('Input|Assumptions'!$F$46,'Input|Assumptions'!$P$46,'Input|Assumptions'!$Q$46) -> Investments: Current replacement pace; Current pace of hydrogen readiness | N31: Investments: Current replacement pace; Current pace of hydrogen readiness
C32: ="Capital Recovery: "&CHOOSE(Depn_Selection,$T$14, IF(Capped_life,"New capex capped at "&'Input|Assumptions'!$M$69,"")&", " &IF(Depn_factor_switch, "Profiled depn: "& TEXT($V$20,"0.0x")&", " &TEXT($W$20,"0.0x")&", " &TEXT($X$20,"0.0x")&", " &TEXT($Y$20,"0.0x"),"No profiled depn")) -> Capital Recovery: , Profiled depn: 1.5x, 1.0x, 1.0x, 1.0x | N32: Capital Recovery: No accelerate recovery
C33: ="Capital contributions: "&CHOOSE('Input|Assumptions'!$F$47,'Input|Assumptions'!$P$47,'Input|Assumptions'!$Q$47) ->  | N33: Capital contributions: Maintain current capital contributions
B280: End

Sheet Dashboard_BH500
B1: 3 | C1: =Model_Name -> JGN GasNetworks 2050 - Long-term Future of Gas model | S1: Model check: | T1: =Overall_Check -> Ok
C2: =RIGHT(CELL("filename",C1),LEN(CELL("filename",C1))-FIND("]",CELL("filename",C1))) -> Dashboard_BH500
B5: Copyright Jemena Limited. All rights reserved. The results presented here are based on the Expert Panel scenarios indicative of outcomes of these scenarios. It is not a prediction of future and may not be suitable for any other purposes.
B7: Output | Customer charts
C11: Version of future | K11: Investment in our network (2026-30) | R11: Addressing capital recovery risk | AB11: Accelerated dep. profile to maintain long-term competitiveness
C13: ='Input|Assumptions'!C31 -> Electric Hare | K13: Asset replacement | R13: Pace of capital recovery | AD13: 2026-30 | AE13: 2031-35 | AF13: 2036-40 | AG13: 2041-50
C14: ='Input|Assumptions'!C32 -> Big Hydrogen | L14: Replace assets at current pace | T14: No accelerate recovery | AC14: ='Input|Assumptions'!C31 -> Electric Hare | AD14: 3.5 | AE14: 3 | AF14: 5 | AG14: 5
C15: ='Input|Assumptions'!C33 -> Electric Tortoise | L15: Replace assets at slower pace, more inspections | T15: Adjust capital recovery | AC15: ='Input|Assumptions'!C32 -> Big Hydrogen | AD15: 1 | AE15: 1 | AF15: 1 | AG15: 1
C16: ='Input|Assumptions'!C34 -> Market Hydrogen | T16: Shorten asset lives (applied to new investments) | AC16: ='Input|Assumptions'!C33 -> Electric Tortoise | AD16: 5.8 | AE16: 9 | AF16: 5.5 | AG16: 7
K17: Transition to renewable gas | V17: Capped at | W17: 2050 | AC17: ='Input|Assumptions'!C34 -> Market Hydrogen | AD17: 5.5 | AE17: 6 | AF17: 3.5 | AG17: 1
L18: Replace end-of-life assets to hydrogen compatible ones | T18: Profiled (Customised) depreciation on long life assets:
L19: Bring forward investments in facilitating 10% hydrogen | V19: 2026-30 | W19: 2031-35 | X19: 2036-40 | Y19: 2041-50 | AB19: Accelerated dep. setting for customer engagement
C20: Chart presentation | U20: Accelerate factor | V20: 1.811702811 | W20: 1 | X20: 1 | Y20: 1 | AD20: 2026-30 | AE20: 2031-35 | AF20: 2036-40 | AG20: 2041-50
E21: Start | F21: 2026 | G21: End | H21: 2050 | K21: Connection Approach | AC21: $300M AD | AD21: 1.487021687 | AE21: 1 | AF21: 1 | AG21: 1
L22: Maintain current capital contributions | AC22: $500M AD | AD22: 1.811702811 | AE22: 1 | AF22: 1 | AG22: 1
C23: Dollar basis | L23: Increase capital contributions | AC23: $700M AD | AD23: 2.136383936 | AE23: 1 | AF23: 1 | AG23: 1
E24: =Real_presentation -> Real 2025 | G24: Nominal
C30: Scenario: Big Hydrogen | N30: Scenario: Big Hydrogen
C31: Investments: Current replacement pace; Current pace of hydrogen readiness | N31: Investments: Current replacement pace; Current pace of hydrogen readiness
C32: Capital Recovery: , Profiled depn: 1.8x, 1.0x, 1.0x, 1.0x | N32: Capital Recovery: No accelerate recovery
C33: Capital contributions: Maintain current capital contributions | N33: Capital contributions: Maintain current capital contributions
B280: End

Sheet Dashboard_BH700
B1: 3 | C1: =Model_Name -> JGN GasNetworks 2050 - Long-term Future of Gas model | S1: Model check: | T1: =Overall_Check -> Ok
C2: =RIGHT(CELL("filename",C1),LEN(CELL("filename",C1))-FIND("]",CELL("filename",C1))) -> Dashboard_BH700
B5: Copyright Jemena Limited. All rights reserved. The results presented here are based on the Expert Panel scenarios indicative of outcomes of these scenarios. It is not a prediction of future and may not be suitable for any other purposes.
B7: Output | Customer charts
C11: Version of future | K11: Investment in our network (2026-30) | R11: Addressing capital recovery risk | AB11: Accelerated dep. profile to maintain long-term competitiveness
C13: ='Input|Assumptions'!C31 -> Electric Hare | K13: Asset replacement | R13: Pace of capital recovery | AD13: 2026-30 | AE13: 2031-35 | AF13: 2036-40 | AG13: 2041-50
C14: ='Input|Assumptions'!C32 -> Big Hydrogen | L14: Replace assets at current pace | T14: No accelerate recovery | AC14: ='Input|Assumptions'!C31 -> Electric Hare | AD14: 3.5 | AE14: 3 | AF14: 5 | AG14: 5
C15: ='Input|Assumptions'!C33 -> Electric Tortoise | L15: Replace assets at slower pace, more inspections | T15: Adjust capital recovery | AC15: ='Input|Assumptions'!C32 -> Big Hydrogen | AD15: 1 | AE15: 1 | AF15: 1 | AG15: 1
C16: ='Input|Assumptions'!C34 -> Market Hydrogen | T16: Shorten asset lives (applied to new investments) | AC16: ='Input|Assumptions'!C33 -> Electric Tortoise | AD16: 5.8 | AE16: 9 | AF16: 5.5 | AG16: 7
K17: Transition to renewable gas | V17: Capped at | W17: 2050 | AC17: ='Input|Assumptions'!C34 -> Market Hydrogen | AD17: 5.5 | AE17: 6 | AF17: 3.5 | AG17: 1
L18: Replace end-of-life assets to hydrogen compatible ones | T18: Profiled (Customised) depreciation on long life assets:
L19: Bring forward investments in facilitating 10% hydrogen | V19: 2026-30 | W19: 2031-35 | X19: 2036-40 | Y19: 2041-50 | AB19: Accelerated dep. setting for customer engagement
C20: Chart presentation | U20: Accelerate factor | V20: 2.136383936 | W20: 1 | X20: 1 | Y20: 1 | AD20: 2026-30 | AE20: 2031-35 | AF20: 2036-40 | AG20: 2041-50
E21: Start | F21: 2026 | G21: End | H21: 2050 | K21: Connection Approach | AC21: $300M AD | AD21: 1.487021687 | AE21: 1 | AF21: 1 | AG21: 1
L22: Maintain current capital contributions | AC22: $500M AD | AD22: 1.811702811 | AE22: 1 | AF22: 1 | AG22: 1
C23: Dollar basis | L23: Increase capital contributions | AC23: $700M AD | AD23: 2.136383936 | AE23: 1 | AF23: 1 | AG23: 1
E24: =Real_presentation -> Real 2025 | G24: Nominal
C30: Scenario: Big Hydrogen | N30: Scenario: Big Hydrogen
C31: Investments: Current replacement pace; Current pace of hydrogen readiness | N31: Investments: Current replacement pace; Current pace of hydrogen readiness
C32: Capital Recovery: , Profiled depn: 2.1x, 1.0x, 1.0x, 1.0x | N32: Capital Recovery: No accelerate recovery
C33: Capital contributions: Maintain current capital contributions | N33: Capital contributions: Maintain current capital contributions
B280: End

Sheet Dashboard_ET300
B1: 3 | C1: =Model_Name -> JGN GasNetworks 2050 - Long-term Future of Gas model | S1: Model check: | T1: =Overall_Check -> Ok
C2: =RIGHT(CELL("filename",C1),LEN(CELL("filename",C1))-FIND("]",CELL("filename",C1))) -> Dashboard_ET300
B5: Copyright Jemena Limited. All rights reserved. The results presented here are based on the Expert Panel scenarios indicative of outcomes of these scenarios. It is not a prediction of future and may not be suitable for any other purposes.
B7: Output | Customer charts
C11: Version of future | K11: Investment in our network (2026-30) | R11: Addressing capital recovery risk | AB11: Accelerated dep. profile to maintain long-term competitiveness
C13: ='Input|Assumptions'!C31 -> Electric Hare | K13: Asset replacement | R13: Pace of capital recovery | AD13: 2026-30 | AE13: 2031-35 | AF13: 2036-40 | AG13: 2041-50
C14: ='Input|Assumptions'!C32 -> Big Hydrogen | L14: Replace assets at current pace | T14: No accelerate recovery | AC14: ='Input|Assumptions'!C31 -> Electric Hare | AD14: 3.5 | AE14: 3 | AF14: 5 | AG14: 5
C15: ='Input|Assumptions'!C33 -> Electric Tortoise | L15: Replace assets at slower pace, more inspections | T15: Adjust capital recovery | AC15: ='Input|Assumptions'!C32 -> Big Hydrogen | AD15: 1 | AE15: 1 | AF15: 1 | AG15: 1
C16: ='Input|Assumptions'!C34 -> Market Hydrogen | T16: Shorten asset lives (applied to new investments) | AC16: ='Input|Assumptions'!C33 -> Electric Tortoise | AD16: 5.8 | AE16: 9 | AF16: 5.5 | AG16: 7
K17: Transition to renewable gas | V17: Capped at | W17: 2050 | AC17: ='Input|Assumptions'!C34 -> Market Hydrogen | AD17: 5.5 | AE17: 6 | AF17: 3.5 | AG17: 1
L18: Replace end-of-life assets to hydrogen compatible ones | T18: Profiled (Customised) depreciation on long life assets:
L19: Bring forward investments in facilitating 10% hydrogen | V19: 2026-30 | W19: 2031-35 | X19: 2036-40 | Y19: 2041-50 | AB19: Accelerated dep. setting for customer engagement
C20: Chart presentation | U20: Accelerate factor | V20: 1.487021687 | W20: 1 | X20: 1 | Y20: 1 | AD20: 2026-30 | AE20: 2031-35 | AF20: 2036-40 | AG20: 2041-50
E21: Start | F21: 2026 | G21: End | H21: 2050 | K21: Connection Approach | AC21: $300M AD | AD21: 1.487021687 | AE21: 1 | AF21: 1 | AG21: 1
L22: Maintain current capital contributions | AC22: $500M AD | AD22: 1.811702811 | AE22: 1 | AF22: 1 | AG22: 1
C23: Dollar basis | L23: Increase capital contributions | AC23: $700M AD | AD23: 2.136383936 | AE23: 1 | AF23: 1 | AG23: 1
E24: =Real_presentation -> Real 2025 | G24: Nominal
C30: Scenario: Electric Tortoise | N30: Scenario: Electric Tortoise
C31: Investments: Current replacement pace; Current pace of hydrogen readiness | N31: Investments: Current replacement pace; Current pace of hydrogen readiness
C32: Capital Recovery: , Profiled depn: 1.5x, 1.0x, 1.0x, 1.0x | N32: Capital Recovery: No accelerate recovery
C33: Capital contributions: Maintain current capital contributions | N33: Capital contributions: Maintain current capital contributions
B280: End

Sheet Dashboard_ET500
B1: 3 | C1: =Model_Name -> JGN GasNetworks 2050 - Long-term Future of Gas model | S1: Model check: | T1: =Overall_Check -> Ok
C2: =RIGHT(CELL("filename",C1),LEN(CELL("filename",C1))-FIND("]",CELL("filename",C1))) -> Dashboard_ET500
B5: Copyright Jemena Limited. All rights reserved. The results presented here are based on the Expert Panel scenarios indicative of outcomes of these scenarios. It is not a prediction of future and may not be suitable for any other purposes.
B7: Output | Customer charts
C11: Version of future | K11: Investment in our network (2026-30) | R11: Addressing capital recovery risk | AB11: Accelerated dep. profile to maintain long-term competitiveness
C13: ='Input|Assumptions'!C31 -> Electric Hare | K13: Asset replacement | R13: Pace of capital recovery | AD13: 2026-30 | AE13: 2031-35 | AF13: 2036-40 | AG13: 2041-50
C14: ='Input|Assumptions'!C32 -> Big Hydrogen | L14: Replace assets at current pace | T14: No accelerate recovery | AC14: ='Input|Assumptions'!C31 -> Electric Hare | AD14: 3.5 | AE14: 3 | AF14: 5 | AG14: 5
C15: ='Input|Assumptions'!C33 -> Electric Tortoise | L15: Replace assets at slower pace, more inspections | T15: Adjust capital recovery | AC15: ='Input|Assumptions'!C32 -> Big Hydrogen | AD15: 1 | AE15: 1 | AF15: 1 | AG15: 1
C16: ='Input|Assumptions'!C34 -> Market Hydrogen | T16: Shorten asset lives (applied to new investments) | AC16: ='Input|Assumptions'!C33 -> Electric Tortoise | AD16: 5.8 | AE16: 9 | AF16: 5.5 | AG16: 7
K17: Transition to renewable gas | V17: Capped at | W17: 2050 | AC17: ='Input|Assumptions'!C34 -> Market Hydrogen | AD17: 5.5 | AE17: 6 | AF17: 3.5 | AG17: 1
L18: Replace end-of-life assets to hydrogen compatible ones | T18: Profiled (Customised) depreciation on long life assets:
L19: Bring forward investments in facilitating 10% hydrogen | V19: 2026-30 | W19: 2031-35 | X19: 2036-40 | Y19: 2041-50 | AB19: Accelerated dep. setting for customer engagement
C20: Chart presentation | U20: Accelerate factor | V20: 1.811702811 | W20: 1 | X20: 1 | Y20: 1 | AD20: 2026-30 | AE20: 2031-35 | AF20: 2036-40 | AG20: 2041-50
E21: Start | F21: 2026 | G21: End | H21: 2050 | K21: Connection Approach | AC21: $300M AD | AD21: 1.487021687 | AE21: 1 | AF21: 1 | AG21: 1
L22: Maintain current capital contributions | AC22: $500M AD | AD22: 1.811702811 | AE22: 1 | AF22: 1 | AG22: 1
C23: Dollar basis | L23: Increase capital contributions | AC23: $700M AD | AD23: 2.136383936 | AE23: 1 | AF23: 1 | AG23: 1
E24: =Real_presentation -> Real 2025 | G24: Nominal
C30: Scenario: Electric Tortoise | N30: Scenario: Electric Tortoise
C31: Investments: Current replacement pace; Current pace of hydrogen readiness | N31: Investments: Current replacement pace; Current pace of hydrogen readiness
C32: Capital Recovery: , Profiled depn: 1.8x, 1.0x, 1.0x, 1.0x | N32: Capital Recovery: No accelerate recovery
C33: Capital contributions: Maintain current capital contributions | N33: Capital contributions: Maintain current capital contributions
B280: End

Sheet Dashboard_ET700
B1: 3 | C1: =Model_Name -> JGN GasNetworks 2050 - Long-term Future of Gas model | S1: Model check: | T1: =Overall_Check -> Ok
C2: =RIGHT(CELL("filename",C1),LEN(CELL("filename",C1))-FIND("]",CELL("filename",C1))) -> Dashboard_ET700
B5: Copyright Jemena Limited. All rights reserved. The results presented here are based on the Expert Panel scenarios indicative of outcomes of these scenarios. It is not a prediction of future and may not be suitable for any other purposes.
B7: Output | Customer charts
C11: Version of future | K11: Investment in our network (2026-30) | R11: Addressing capital recovery risk | AB11: Accelerated dep. profile to maintain long-term competitiveness
C13: ='Input|Assumptions'!C31 -> Electric Hare | K13: Asset replacement | R13: Pace of capital recovery | AD13: 2026-30 | AE13: 2031-35 | AF13: 2036-40 | AG13: 2041-50
C14: ='Input|Assumptions'!C32 -> Big Hydrogen | L14: Replace assets at current pace | T14: No accelerate recovery | AC14: ='Input|Assumptions'!C31 -> Electric Hare | AD14: 3.5 | AE14: 3 | AF14: 5 | AG14: 5
C15: ='Input|Assumptions'!C33 -> Electric Tortoise | L15: Replace assets at slower pace, more inspections | T15: Adjust capital recovery | AC15: ='Input|Assumptions'!C32 -> Big Hydrogen | AD15: 1 | AE15: 1 | AF15: 1 | AG15: 1
C16: ='Input|Assumptions'!C34 -> Market Hydrogen | T16: Shorten asset lives (applied to new investments) | AC16: ='Input|Assumptions'!C33 -> Electric Tortoise | AD16: 5.8 | AE16: 9 | AF16: 5.5 | AG16: 7
K17: Transition to renewable gas | V17: Capped at | W17: 2050 | AC17: ='Input|Assumptions'!C34 -> Market Hydrogen | AD17: 5.5 | AE17: 6 | AF17: 3.5 | AG17: 1
L18: Replace end-of-life assets to hydrogen compatible ones | T18: Profiled (Customised) depreciation on long life assets:
L19: Bring forward investments in facilitating 10% hydrogen | V19: 2026-30 | W19: 2031-35 | X19: 2036-40 | Y19: 2041-50 | AB19: Accelerated dep. setting for customer engagement
C20: Chart presentation | U20: Accelerate factor | V20: 2.136383936 | W20: 1 | X20: 1 | Y20: 1 | AD20: 2026-30 | AE20: 2031-35 | AF20: 2036-40 | AG20: 2041-50
E21: Start | F21: 2026 | G21: End | H21: 2050 | K21: Connection Approach | AC21: $300M AD | AD21: 1.487021687 | AE21: 1 | AF21: 1 | AG21: 1
L22: Maintain current capital contributions | AC22: $500M AD | AD22: 1.811702811 | AE22: 1 | AF22: 1 | AG22: 1
C23: Dollar basis | L23: Increase capital contributions | AC23: $700M AD | AD23: 2.136383936 | AE23: 1 | AF23: 1 | AG23: 1
E24: =Real_presentation -> Real 2025 | G24: Nominal
C30: Scenario: Electric Tortoise | N30: Scenario: Electric Tortoise
C31: Investments: Current replacement pace; Current pace of hydrogen readiness | N31: Investments: Current replacement pace; Current pace of hydrogen readiness
C32: Capital Recovery: , Profiled depn: 2.1x, 1.0x, 1.0x, 1.0x | N32: Capital Recovery: No accelerate recovery
C33: Capital contributions: Maintain current capital contributions | N33: Capital contributions: Maintain current capital contributions
B280: End

Sheet Dashboard_ETLT
B1: 3 | C1: =Model_Name -> JGN GasNetworks 2050 - Long-term Future of Gas model | S1: Model check: | T1: =Overall_Check -> Ok
C2: =RIGHT(CELL("filename",C1),LEN(CELL("filename",C1))-FIND("]",CELL("filename",C1))) -> Dashboard_ETLT
B5: Copyright Jemena Limited. All rights reserved. The results presented here are based on the Expert Panel scenarios indicative of outcomes of these scenarios. It is not a prediction of future and may not be suitable for any other purposes.
B7: Output | Customer charts
C11: Version of future | K11: Investment in our network (2026-30) | R11: Addressing capital recovery risk | AB11: Accelerated dep. profile to maintain long-term competitiveness
C13: ='Input|Assumptions'!C31 -> Electric Hare | K13: Asset replacement | R13: Pace of capital recovery | AD13: 2026-30 | AE13: 2031-35 | AF13: 2036-40 | AG13: 2041-50
C14: ='Input|Assumptions'!C32 -> Big Hydrogen | L14: Replace assets at current pace | T14: No accelerate recovery | AC14: ='Input|Assumptions'!C31 -> Electric Hare | AD14: 3.5 | AE14: 3 | AF14: 5 | AG14: 5
C15: ='Input|Assumptions'!C33 -> Electric Tortoise | L15: Replace assets at slower pace, more inspections | T15: Adjust capital recovery | AC15: ='Input|Assumptions'!C32 -> Big Hydrogen | AD15: 1 | AE15: 1 | AF15: 1 | AG15: 1
C16: ='Input|Assumptions'!C34 -> Market Hydrogen | T16: Shorten asset lives (applied to new investments) | AC16: ='Input|Assumptions'!C33 -> Electric Tortoise | AD16: 5.8 | AE16: 9 | AF16: 5.5 | AG16: 7
K17: Transition to renewable gas | V17: Capped at | W17: 2050 | AC17: ='Input|Assumptions'!C34 -> Market Hydrogen | AD17: 5.5 | AE17: 6 | AF17: 3.5 | AG17: 1
L18: Replace end-of-life assets to hydrogen compatible ones | T18: Profiled (Customised) depreciation on long life assets:
L19: Bring forward investments in facilitating 10% hydrogen | V19: 2026-30 | W19: 2031-35 | X19: 2036-40 | Y19: 2041-50 | AB19: Accelerated dep. setting for customer engagement
C20: Chart presentation | U20: Accelerate factor | V20: 5.8 | W20: 9 | X20: 5.5 | Y20: 7 | AD20: 2026-30 | AE20: 2031-35 | AF20: 2036-40 | AG20: 2041-50
E21: Start | F21: 2026 | G21: End | H21: 2050 | K21: Connection Approach | AC21: $300M AD | AD21: 1.487021687 | AE21: 1 | AF21: 1 | AG21: 1
L22: Maintain current capital contributions | AC22: $500M AD | AD22: 1.811702811 | AE22: 1 | AF22: 1 | AG22: 1
C23: Dollar basis | L23: Increase capital contributions | AC23: $700M AD | AD23: 2.136383936 | AE23: 1 | AF23: 1 | AG23: 1
E24: =Real_presentation -> Real 2025 | G24: Nominal
C30: Scenario: Electric Tortoise | N30: Scenario: Electric Tortoise
C31: Investments: Current replacement pace; Current pace of hydrogen readiness | N31: Investments: Current replacement pace; Current pace of hydrogen readiness
C32: Capital Recovery: , Profiled depn: 5.8x, 9.0x, 5.5x, 7.0x | N32: Capital Recovery: No accelerate recovery
C33: Capital contributions: Maintain current capital contributions | N33: Capital contributions: Maintain current capital contributions
B280: End

Sheet Dashboard_MH300
B1: 3 | C1: =Model_Name -> JGN GasNetworks 2050 - Long-term Future of Gas model | S1: Model check: | T1: =Overall_Check -> Ok
C2: =RIGHT(CELL("filename",C1),LEN(CELL("filename",C1))-FIND("]",CELL("filename",C1))) -> Dashboard_MH300
B5: Copyright Jemena Limited. All rights reserved. The results presented here are based on the Expert Panel scenarios indicative of outcomes of these scenarios. It is not a prediction of future and may not be suitable for any other purposes.
B7: Output | Customer charts
C11: Version of future | K11: Investment in our network (2026-30) | R11: Addressing capital recovery risk | AB11: Accelerated dep. profile to maintain long-term competitiveness
C13: ='Input|Assumptions'!C31 -> Electric Hare | K13: Asset replacement | R13: Pace of capital recovery | AD13: 2026-30 | AE13: 2031-35 | AF13: 2036-40 | AG13: 2041-50
C14: ='Input|Assumptions'!C32 -> Big Hydrogen | L14: Replace assets at current pace | T14: No accelerate recovery | AC14: ='Input|Assumptions'!C31 -> Electric Hare | AD14: 3.5 | AE14: 3 | AF14: 5 | AG14: 5
C15: ='Input|Assumptions'!C33 -> Electric Tortoise | L15: Replace assets at slower pace, more inspections | T15: Adjust capital recovery | AC15: ='Input|Assumptions'!C32 -> Big Hydrogen | AD15: 1 | AE15: 1 | AF15: 1 | AG15: 1
C16: ='Input|Assumptions'!C34 -> Market Hydrogen | T16: Shorten asset lives (applied to new investments) | AC16: ='Input|Assumptions'!C33 -> Electric Tortoise | AD16: 5.8 | AE16: 9 | AF16: 5.5 | AG16: 7
K17: Transition to renewable gas | V17: Capped at | W17: 2050 | AC17: ='Input|Assumptions'!C34 -> Market Hydrogen | AD17: 5.5 | AE17: 6 | AF17: 3.5 | AG17: 1
L18: Replace end-of-life assets to hydrogen compatible ones | T18: Profiled (Customised) depreciation on long life assets:
L19: Bring forward investments in facilitating 10% hydrogen | V19: 2026-30 | W19: 2031-35 | X19: 2036-40 | Y19: 2041-50 | AB19: Accelerated dep. setting for customer engagement
C20: Chart presentation | U20: Accelerate factor | V20: 1.487021687 | W20: 1 | X20: 1 | Y20: 1 | AD20: 2026-30 | AE20: 2031-35 | AF20: 2036-40 | AG20: 2041-50
E21: Start | F21: 2026 | G21: End | H21: 2050 | K21: Connection Approach | AC21: $300M AD | AD21: 1.487021687 | AE21: 1 | AF21: 1 | AG21: 1
L22: Maintain current capital contributions | AC22: $500M AD | AD22: 1.811702811 | AE22: 1 | AF22: 1 | AG22: 1
C23: Dollar basis | L23: Increase capital contributions | AC23: $700M AD | AD23: 2.136383936 | AE23: 1 | AF23: 1 | AG23: 1
E24: =Real_presentation -> Real 2025 | G24: Nominal
C30: Scenario: Market Hydrogen | N30: Scenario: Market Hydrogen
C31: Investments: Current replacement pace; Current pace of hydrogen readiness | N31: Investments: Current replacement pace; Current pace of hydrogen readiness
C32: Capital Recovery: , Profiled depn: 1.5x, 1.0x, 1.0x, 1.0x | N32: Capital Recovery: No accelerate recovery
C33: Capital contributions: Maintain current capital contributions | N33: Capital contributions: Maintain current capital contributions
B280: End

Sheet Dashboard_MH500
B1: 3 | C1: =Model_Name -> JGN GasNetworks 2050 - Long-term Future of Gas model | S1: Model check: | T1: =Overall_Check -> Ok
C2: =RIGHT(CELL("filename",C1),LEN(CELL("filename",C1))-FIND("]",CELL("filename",C1))) -> Dashboard_MH500
B5: Copyright Jemena Limited. All rights reserved. The results presented here are based on the Expert Panel scenarios indicative of outcomes of these scenarios. It is not a prediction of future and may not be suitable for any other purposes.
B7: Output | Customer charts
C11: Version of future | K11: Investment in our network (2026-30) | R11: Addressing capital recovery risk | AB11: Accelerated dep. profile to maintain long-term competitiveness
C13: ='Input|Assumptions'!C31 -> Electric Hare | K13: Asset replacement | R13: Pace of capital recovery | AD13: 2026-30 | AE13: 2031-35 | AF13: 2036-40 | AG13: 2041-50
C14: ='Input|Assumptions'!C32 -> Big Hydrogen | L14: Replace assets at current pace | T14: No accelerate recovery | AC14: ='Input|Assumptions'!C31 -> Electric Hare | AD14: 3.5 | AE14: 3 | AF14: 5 | AG14: 5
C15: ='Input|Assumptions'!C33 -> Electric Tortoise | L15: Replace assets at slower pace, more inspections | T15: Adjust capital recovery | AC15: ='Input|Assumptions'!C32 -> Big Hydrogen | AD15: 1 | AE15: 1 | AF15: 1 | AG15: 1
C16: ='Input|Assumptions'!C34 -> Market Hydrogen | T16: Shorten asset lives (applied to new investments) | AC16: ='Input|Assumptions'!C33 -> Electric Tortoise | AD16: 5.8 | AE16: 9 | AF16: 5.5 | AG16: 7
K17: Transition to renewable gas | V17: Capped at | W17: 2050 | AC17: ='Input|Assumptions'!C34 -> Market Hydrogen | AD17: 5.5 | AE17: 6 | AF17: 3.5 | AG17: 1
L18: Replace end-of-life assets to hydrogen compatible ones | T18: Profiled (Customised) depreciation on long life assets:
L19: Bring forward investments in facilitating 10% hydrogen | V19: 2026-30 | W19: 2031-35 | X19: 2036-40 | Y19: 2041-50 | AB19: Accelerated dep. setting for customer engagement
C20: Chart presentation | U20: Accelerate factor | V20: 1.811702811 | W20: 1 | X20: 1 | Y20: 1 | AD20: 2026-30 | AE20: 2031-35 | AF20: 2036-40 | AG20: 2041-50
E21: Start | F21: 2026 | G21: End | H21: 2050 | K21: Connection Approach | AC21: $300M AD | AD21: 1.487021687 | AE21: 1 | AF21: 1 | AG21: 1
L22: Maintain current capital contributions | AC22: $500M AD | AD22: 1.811702811 | AE22: 1 | AF22: 1 | AG22: 1
C23: Dollar basis | L23: Increase capital contributions | AC23: $700M AD | AD23: 2.136383936 | AE23: 1 | AF23: 1 | AG23: 1
E24: =Real_presentation -> Real 2025 | G24: Nominal
C30: Scenario: Market Hydrogen | N30: Scenario: Market Hydrogen
C31: Investments: Current replacement pace; Current pace of hydrogen readiness | N31: Investments: Current replacement pace; Current pace of hydrogen readiness
C32: Capital Recovery: , Profiled depn: 1.8x, 1.0x, 1.0x, 1.0x | N32: Capital Recovery: No accelerate recovery
C33: Capital contributions: Maintain current capital contributions | N33: Capital contributions: Maintain current capital contributions
B280: End

Sheet Dashboard_MH700
B1: 3 | C1: =Model_Name -> JGN GasNetworks 2050 - Long-term Future of Gas model | S1: Model check: | T1: =Overall_Check -> Ok
C2: =RIGHT(CELL("filename",C1),LEN(CELL("filename",C1))-FIND("]",CELL("filename",C1))) -> Dashboard_MH700
B5: Copyright Jemena Limited. All rights reserved. The results presented here are based on the Expert Panel scenarios indicative of outcomes of these scenarios. It is not a prediction of future and may not be suitable for any other purposes.
B7: Output | Customer charts
C11: Version of future | K11: Investment in our network (2026-30) | R11: Addressing capital recovery risk | AB11: Accelerated dep. profile to maintain long-term competitiveness
C13: ='Input|Assumptions'!C31 -> Electric Hare | K13: Asset replacement | R13: Pace of capital recovery | AD13: 2026-30 | AE13: 2031-35 | AF13: 2036-40 | AG13: 2041-50
C14: ='Input|Assumptions'!C32 -> Big Hydrogen | L14: Replace assets at current pace | T14: No accelerate recovery | AC14: ='Input|Assumptions'!C31 -> Electric Hare | AD14: 3.5 | AE14: 3 | AF14: 5 | AG14: 5
C15: ='Input|Assumptions'!C33 -> Electric Tortoise | L15: Replace assets at slower pace, more inspections | T15: Adjust capital recovery | AC15: ='Input|Assumptions'!C32 -> Big Hydrogen | AD15: 1 | AE15: 1 | AF15: 1 | AG15: 1
C16: ='Input|Assumptions'!C34 -> Market Hydrogen | T16: Shorten asset lives (applied to new investments) | AC16: ='Input|Assumptions'!C33 -> Electric Tortoise | AD16: 5.8 | AE16: 9 | AF16: 5.5 | AG16: 7
K17: Transition to renewable gas | V17: Capped at | W17: 2050 | AC17: ='Input|Assumptions'!C34 -> Market Hydrogen | AD17: 5.5 | AE17: 6 | AF17: 3.5 | AG17: 1
L18: Replace end-of-life assets to hydrogen compatible ones | T18: Profiled (Customised) depreciation on long life assets:
L19: Bring forward investments in facilitating 10% hydrogen | V19: 2026-30 | W19: 2031-35 | X19: 2036-40 | Y19: 2041-50 | AB19: Accelerated dep. setting for customer engagement
C20: Chart presentation | U20: Accelerate factor | V20: 2.136383936 | W20: 1 | X20: 1 | Y20: 1 | AD20: 2026-30 | AE20: 2031-35 | AF20: 2036-40 | AG20: 2041-50
E21: Start | F21: 2026 | G21: End | H21: 2050 | K21: Connection Approach | AC21: $300M AD | AD21: 1.487021687 | AE21: 1 | AF21: 1 | AG21: 1
L22: Maintain current capital contributions | AC22: $500M AD | AD22: 1.811702811 | AE22: 1 | AF22: 1 | AG22: 1
C23: Dollar basis | L23: Increase capital contributions | AC23: $700M AD | AD23: 2.136383936 | AE23: 1 | AF23: 1 | AG23: 1
E24: =Real_presentation -> Real 2025 | G24: Nominal
C30: Scenario: Market Hydrogen | N30: Scenario: Market Hydrogen
C31: Investments: Current replacement pace; Current pace of hydrogen readiness | N31: Investments: Current replacement pace; Current pace of hydrogen readiness
C32: Capital Recovery: , Profiled depn: 2.1x, 1.0x, 1.0x, 1.0x | N32: Capital Recovery: No accelerate recovery
C33: Capital contributions: Maintain current capital contributions | N33: Capital contributions: Maintain current capital contributions
B280: End

Sheet Dashboard_MHLT
B1: 3 | C1: =Model_Name -> JGN GasNetworks 2050 - Long-term Future of Gas model | S1: Model check: | T1: =Overall_Check -> Ok
C2: =RIGHT(CELL("filename",C1),LEN(CELL("filename",C1))-FIND("]",CELL("filename",C1))) -> Dashboard_MHLT
B5: Copyright Jemena Limited. All rights reserved. The results presented here are based on the Expert Panel scenarios indicative of outcomes of these scenarios. It is not a prediction of future and may not be suitable for any other purposes.
B7: Output | Customer charts
C11: Version of future | K11: Investment in our network (2026-30) | R11: Addressing capital recovery risk | AB11: Accelerated dep. profile to maintain long-term competitiveness
C13: ='Input|Assumptions'!C31 -> Electric Hare | K13: Asset replacement | R13: Pace of capital recovery | AD13: 2026-30 | AE13: 2031-35 | AF13: 2036-40 | AG13: 2041-50
C14: ='Input|Assumptions'!C32 -> Big Hydrogen | L14: Replace assets at current pace | T14: No accelerate recovery | AC14: ='Input|Assumptions'!C31 -> Electric Hare | AD14: 3.5 | AE14: 3 | AF14: 5 | AG14: 5
C15: ='Input|Assumptions'!C33 -> Electric Tortoise | L15: Replace assets at slower pace, more inspections | T15: Adjust capital recovery | AC15: ='Input|Assumptions'!C32 -> Big Hydrogen | AD15: 1 | AE15: 1 | AF15: 1 | AG15: 1
C16: ='Input|Assumptions'!C34 -> Market Hydrogen | T16: Shorten asset lives (applied to new investments) | AC16: ='Input|Assumptions'!C33 -> Electric Tortoise | AD16: 5.8 | AE16: 9 | AF16: 5.5 | AG16: 7
K17: Transition to renewable gas | V17: Capped at | W17: 2050 | AC17: ='Input|Assumptions'!C34 -> Market Hydrogen | AD17: 5.5 | AE17: 6 | AF17: 3.5 | AG17: 1
L18: Replace end-of-life assets to hydrogen compatible ones | T18: Profiled (Customised) depreciation on long life assets:
L19: Bring forward investments in facilitating 10% hydrogen | V19: 2026-30 | W19: 2031-35 | X19: 2036-40 | Y19: 2041-50 | AB19: Accelerated dep. setting for customer engagement
C20: Chart presentation | U20: Accelerate factor | V20: 5.5 | W20: 6 | X20: 3.5 | Y20: 1 | AD20: 2026-30 | AE20: 2031-35 | AF20: 2036-40 | AG20: 2041-50
E21: Start | F21: 2026 | G21: End | H21: 2050 | K21: Connection Approach | AC21: $300M AD | AD21: 1.487021687 | AE21: 1 | AF21: 1 | AG21: 1
L22: Maintain current capital contributions | AC22: $500M AD | AD22: 1.811702811 | AE22: 1 | AF22: 1 | AG22: 1
C23: Dollar basis | L23: Increase capital contributions | AC23: $700M AD | AD23: 2.136383936 | AE23: 1 | AF23: 1 | AG23: 1
E24: =Real_presentation -> Real 2025 | G24: Nominal
C30: Scenario: Market Hydrogen | N30: Scenario: Market Hydrogen
C31: Investments: Current replacement pace; Current pace of hydrogen readiness | N31: Investments: Current replacement pace; Current pace of hydrogen readiness
C32: Capital Recovery: , Profiled depn: 5.5x, 6.0x, 3.5x, 1.0x | N32: Capital Recovery: No accelerate recovery
C33: Capital contributions: Maintain current capital contributions | N33: Capital contributions: Maintain current capital contributions
B280: End

Sheet Calc|Charts_EH300 (hidden)
C1: JGN GasNetworks 2050 - Long-term Future of Gas model | E1: Section Check: | F1: Ok | O1: Legend: | P1: Input (hard code) | Q1: External Link | R1: Internal Link | S1: Drop down Selection | T1: Calculation | U1: Unique calculation | V1: Empty cell
C2: Calc|Charts (2) | E2: Overall Check: | F2: Ok
A3: RU | I3: Year | N3: 2020 | O3: 2021 | P3: 2022 | Q3: 2023 | R3: 2024 | S3: 2025 | T3: 2026 | U3: 2027 | V3: 2028 | W3: 2029 | X3: 2030 | Y3: 2031 | Z3: 2032 | AA3: 2033 | AB3: 2034 | AC3: 2035 | AD3: 2036 | AE3: 2037 | AF3: 2038 | AG3: 2039 | AH3: 2040 | AI3: 2041 | AJ3: 2042 | AK3: 2043 | AL3: 2044 | AM3: 2045 | AN3: 2046 | AO3: 2047 | AP3: 2048 | AQ3: 2049 | AR3: 2050 | AS3: 2051 | AT3: 2052 | AU3: 2053 | AV3: 2054 | AW3: 2055 | AX3: 2056 | AY3: 2057 | AZ3: 2058 | BA3: 2059 | BB3: 2060 | BC3: 2061 | BD3: 2062 | BE3: 2063 | BF3: 2064 | BG3: 2065 | BH3: 2066 | BI3: 2067 | BJ3: 2068 | BK3: 2069 | BL3: 2070 | BM3: 2071 | BN3: 2072 | BO3: 2073 | BP3: 2074 | BQ3: 2075 | BR3: 2076 | BS3: 2077 | BT3: 2078 | BU3: 2079 | BV3: 2080 | BW3: 2081 | BX3: 2082 | BY3: 2083 | BZ3: 2084 | CA3: 2085 | CB3: 2086 | CC3: 2087 | CD3: 2088 | CE3: 2089 | CF3: 2090 | CG3: 2091 | CH3: 2092 | CI3: 2093 | CJ3: 2094 | CK3: 2095 | CL3: 2096 | CM3: 2097 | CN3: 2098 | CO3: 2099 | CP3: 2100
F4: Start | G4: End | I4: Count | N4: 0 | O4: 1 | P4: 2 | Q4: 3 | R4: 4 | S4: 5 | T4: 6 | U4: 7 | V4: 8 | W4: 9 | X4: 10 | Y4: 11 | Z4: 12 | AA4: 13 | AB4: 14 | AC4: 15 | AD4: 16 | AE4: 17 | AF4: 18 | AG4: 19 | AH4: 20 | AI4: 21 | AJ4: 22 | AK4: 23 | AL4: 24 | AM4: 25 | AN4: 26 | AO4: 27 | AP4: 28 | AQ4: 29 | AR4: 30 | AS4: 31 | AT4: 32 | AU4: 33 | AV4: 34 | AW4: 35 | AX4: 36 | AY4: 37 | AZ4: 38 | BA4: 39 | BB4: 40 | BC4: 41 | BD4: 42 | BE4: 43 | BF4: 44 | BG4: 45 | BH4: 46 | BI4: 47 | BJ4: 48 | BK4: 49 | BL4: 50 | BM4: 51 | BN4: 52 | BO4: 53 | BP4: 54 | BQ4: 55 | BR4: 56 | BS4: 57 | BT4: 58 | BU4: 59 | BV4: 60 | BW4: 61 | BX4: 62 | BY4: 63 | BZ4: 64 | CA4: 65 | CB4: 66 | CC4: 67 | CD4: 68 | CE4: 69 | CF4: 70 | CG4: 71 | CH4: 72 | CI4: 73 | CJ4: 74 | CK4: 75 | CL4: 76 | CM4: 77 | CN4: 78 | CO4: 79 | CP4: 80
F5: 2026 | G5: 2050 | I5: Hide/Show | O5: H | P5: H | Q5: H | R5: H | S5: H | T5: S | U5: S | V5: S | W5: S | X5: S | Y5: S | Z5: S | AA5: S | AB5: S | AC5: S | AD5: S | AE5: S | AF5: S | AG5: S | AH5: S | AI5: S | AJ5: S | AK5: S | AL5: S | AM5: S | AN5: S | AO5: S | AP5: S | AQ5: S | AR5: S | AS5: H | AT5: H | AU5: H | AV5: H | AW5: H | AX5: H | AY5: H | AZ5: H | BA5: H | BB5: H | BC5: H | BD5: H | BE5: H | BF5: H | BG5: H | BH5: H | BI5: H | BJ5: H | BK5: H | BL5: H | BM5: H | BN5: H | BO5: H | BP5: H | BQ5: H | BR5: H | BS5: H | BT5: H | BU5: H | BV5: H | BW5: H | BX5: H | BY5: H | BZ5: H | CA5: H | CB5: H | CC5: H | CD5: H | CE5: H | CF5: H | CG5: H | CH5: H | CI5: H | CJ5: H | CK5: H | CL5: H | CM5: H | CN5: H | CO5: H | CP5: H
B7: Copyright Jemena Limited. All rights reserved. Jemena is not liable for any loss caused by reliance on this document.
B9: Dashboard Charts - Customer | S9: 0.01268255414
C11: Customer numbers by segment | D11: Source | E11: Unit | F11: Basis | G11: Timing | O11: RY21 | P11: RY22 | Q11: RY23 | R11: RY24 | S11: RY25 | T11: RY26 | U11: RY27 | V11: RY28 | W11: RY29 | X11: RY30 | Y11: RY31 | Z11: RY32 | AA11: RY33 | AB11: RY34 | AC11: RY35 | AD11: RY36 | AE11: RY37 | AF11: RY38 | AG11: RY39 | AH11: RY40 | AI11: RY41 | AJ11: RY42 | AK11: RY43 | AL11: RY44 | AM11: RY45 | AN11: RY46 | AO11: RY47 | AP11: RY48 | AQ11: RY49 | AR11: RY50 | AS11: RY51 | AT11: RY52 | AU11: RY53 | AV11: RY54 | AW11: RY55 | AX11: RY56 | AY11: RY57 | AZ11: RY58 | BA11: RY59 | BB11: RY60 | BC11: RY61 | BD11: RY62 | BE11: RY63 | BF11: RY64 | BG11: RY65 | BH11: RY66 | BI11: RY67 | BJ11: RY68 | BK11: RY69 | BL11: RY70 | BM11: RY71 | BN11: RY72 | BO11: RY73 | BP11: RY74 | BQ11: RY75 | BR11: RY76 | BS11: RY77 | BT11: RY78 | BU11: RY79 | BV11: RY80 | BW11: RY81 | BX11: RY82 | BY11: RY83 | BZ11: RY84 | CA11: RY85 | CB11: RY86 | CC11: RY87 | CD11: RY88 | CE11: RY89 | CF11: RY90 | CG11: RY91 | CH11: RY92 | CI11: RY93 | CJ11: RY94 | CK11: RY95 | CL11: RY96 | CM11: RY97 | CN11: RY98 | CO11: RY99 | CP11: RY00
C13: Residential - highrise | D13: Calc|Demand | E13: number | F13: n/a | G13: Mid-year | O13: 345044.3058 | P13: 350218.1898 | Q13: 354770.6344 | R13: 360908.7264 | S13: 365507.2002 | T13: 367175.1179 | U13: 369685.576 | V13: 370562.8502 | W13: 369424.8573 | X13: 365487.1639 | Y13: 351981.882 | Z13: 330502.6358 | AA13: 309026.1504 | AB13: 287552.4112 | AC13: 266081.4038 | AD13: 240959.9556 | AE13: 212186.7106 | AF13: 183413.4786 | AG13: 154640.2595 | AH13: 125867.0532 | AI13: 104929.1309 | AJ13: 91826.48596 | AK13: 78723.84108 | AL13: 65621.19619 | AM13: 52518.5513 | AN13: 41370.50597 | AO13: 32177.0602 | AP13: 22983.61443 | AQ13: 13790.16866 | AR13: 4596.722886 | AS13: 0 | AT13: 0 | AU13: 0 | AV13: 0 | AW13: 0 | AX13: 0 | AY13: 0 | AZ13: 0 | BA13: 0 | BB13: 0 | BC13: 0 | BD13: 0 | BE13: 0 | BF13: 0 | BG13: 0 | BH13: 0 | BI13: 0 | BJ13: 0 | BK13: 0 | BL13: 0 | BM13: 0 | BN13: 0 | BO13: 0 | BP13: 0 | BQ13: 0 | BR13: 0 | BS13: 0 | BT13: 0 | BU13: 0 | BV13: 0 | BW13: 0 | BX13: 0 | BY13: 0 | BZ13: 0 | CA13: 0 | CB13: 0 | CC13: 0 | CD13: 0 | CE13: 0 | CF13: 0 | CG13: 0 | CH13: 0 | CI13: 0 | CJ13: 0 | CK13: 0 | CL13: 0 | CM13: 0 | CN13: 0 | CO13: 0 | CP13: 0
C14: Residential - non-highrise | D14: Calc|Demand | E14: number | F14: n/a | G14: Mid-year | O14: 1083947.694 | P14: 1099959.81 | Q14: 1114024.866 | R14: 1132586.316 | S14: 1146304.331 | T14: 1151103.019 | U14: 1157982.345 | V14: 1159386.575 | W14: 1153872.973 | X14: 1138669.397 | Y14: 1094893.618 | Z14: 1028079.129 | AA14: 961273.2279 | AB14: 894475.8693 | AC14: 827687.0085 | AD14: 749542.8915 | AE14: 660039.3008 | AF14: 570535.7504 | AG14: 481032.2402 | AH14: 391528.77 | AI14: 326398.1517 | AJ14: 285640.3656 | AK14: 244882.5795 | AL14: 204124.7933 | AM14: 163367.0072 | AN14: 128689.3027 | AO14: 100091.6799 | AP14: 71494.05707 | AQ14: 42896.43424 | AR14: 14298.81141 | AS14: 0 | AT14: 0 | AU14: 0 | AV14: 0 | AW14: 0 | AX14: 0 | AY14: 0 | AZ14: 0 | BA14: 0 | BB14: 0 | BC14: 0 | BD14: 0 | BE14: 0 | BF14: 0 | BG14: 0 | BH14: 0 | BI14: 0 | BJ14: 0 | BK14: 0 | BL14: 0 | BM14: 0 | BN14: 0 | BO14: 0 | BP14: 0 | BQ14: 0 | BR14: 0 | BS14: 0 | BT14: 0 | BU14: 0 | BV14: 0 | BW14: 0 | BX14: 0 | BY14: 0 | BZ14: 0 | CA14: 0 | CB14: 0 | CC14: 0 | CD14: 0 | CE14: 0 | CF14: 0 | CG14: 0 | CH14: 0 | CI14: 0 | CJ14: 0 | CK14: 0 | CL14: 0 | CM14: 0 | CN14: 0 | CO14: 0 | CP14: 0
C15: Commercial | D15: Calc|Demand | E15: number | F15: n/a | G15: Mid-year | O15: 34811.5 | P15: 34951.5 | Q15: 34573.5 | R15: 34865.6899 | S15: 35114.58105 | T15: 35190.23071 | U15: 35290.08376 | V15: 35286.70052 | W15: 35184.44288 | X15: 34988.48936 | Y15: 33619.71946 | Z15: 31124.94302 | AA15: 28630.53969 | AB15: 26136.449 | AC15: 23642.57529 | AD15: 21059.86557 | AE15: 18387.85527 | AF15: 15714.82644 | AG15: 13040.12768 | AH15: 10362.70093 | AI15: 8602.911163 | AJ15: 7758.065372 | AK15: 6901.951433 | AL15: 6028.484272 | AM15: 5129.456743 | AN15: 4248.378992 | AO15: 3378.154658 | AP15: 2468.095478 | AQ15: 1537.668243 | AR15: 623.1945176 | AS15: 0 | AT15: 0 | AU15: 0 | AV15: 0 | AW15: 0 | AX15: 0 | AY15: 0 | AZ15: 0 | BA15: 0 | BB15: 0 | BC15: 0 | BD15: 0 | BE15: 0 | BF15: 0 | BG15: 0 | BH15: 0 | BI15: 0 | BJ15: 0 | BK15: 0 | BL15: 0 | BM15: 0 | BN15: 0 | BO15: 0 | BP15: 0 | BQ15: 0 | BR15: 0 | BS15: 0 | BT15: 0 | BU15: 0 | BV15: 0 | BW15: 0 | BX15: 0 | BY15: 0 | BZ15: 0 | CA15: 0 | CB15: 0 | CC15: 0 | CD15: 0 | CE15: 0 | CF15: 0 | CG15: 0 | CH15: 0 | CI15: 0 | CJ15: 0 | CK15: 0 | CL15: 0 | CM15: 0 | CN15: 0 | CO15: 0 | CP15: 0
C16: Industrial | D16: Calc|Demand | E16: number | F16: n/a | G16: Mid-year | O16: 374 | P16: 377.5 | Q16: 380 | R16: 377 | S16: 377 | T16: 377 | U16: 377 | V16: 377 | W16: 377 | X16: 377 | Y16: 366.0111791 | Z16: 344.0335372 | AA16: 322.0558953 | AB16: 300.0782534 | AC16: 278.1006115 | AD16: 256.1229697 | AE16: 234.1453278 | AF16: 212.1676859 | AG16: 190.190044 | AH16: 168.2124021 | AI16: 154.476376 | AJ16: 148.9819655 | AK16: 143.487555 | AL16: 137.9931446 | AM16: 132.4987341 | AN16: 127.0043236 | AO16: 121.5099132 | AP16: 116.0155027 | AQ16: 110.5210922 | AR16: 105.0266817 | AS16: 0 | AT16: 0 | AU16: 0 | AV16: 0 | AW16: 0 | AX16: 0 | AY16: 0 | AZ16: 0 | BA16: 0 | BB16: 0 | BC16: 0 | BD16: 0 | BE16: 0 | BF16: 0 | BG16: 0 | BH16: 0 | BI16: 0 | BJ16: 0 | BK16: 0 | BL16: 0 | BM16: 0 | BN16: 0 | BO16: 0 | BP16: 0 | BQ16: 0 | BR16: 0 | BS16: 0 | BT16: 0 | BU16: 0 | BV16: 0 | BW16: 0 | BX16: 0 | BY16: 0 | BZ16: 0 | CA16: 0 | CB16: 0 | CC16: 0 | CD16: 0 | CE16: 0 | CF16: 0 | CG16: 0 | CH16: 0 | CI16: 0 | CJ16: 0 | CK16: 0 | CL16: 0 | CM16: 0 | CN16: 0 | CO16: 0 | CP16: 0
C17: [spare] | D17: Calc|Demand | E17: number | F17: n/a | G17: Mid-year | O17: 0 | P17: 0 | Q17: 0 | R17: 0 | S17: 0 | T17: 0 | U17: 0 | V17: 0 | W17: 0 | X17: 0 | Y17: 0 | Z17: 0 | AA17: 0 | AB17: 0 | AC17: 0 | AD17: 0 | AE17: 0 | AF17: 0 | AG17: 0 | AH17: 0 | AI17: 0 | AJ17: 0 | AK17: 0 | AL17: 0 | AM17: 0 | AN17: 0 | AO17: 0 | AP17: 0 | AQ17: 0 | AR17: 0 | AS17: 0 | AT17: 0 | AU17: 0 | AV17: 0 | AW17: 0 | AX17: 0 | AY17: 0 | AZ17: 0 | BA17: 0 | BB17: 0 | BC17: 0 | BD17: 0 | BE17: 0 | BF17: 0 | BG17: 0 | BH17: 0 | BI17: 0 | BJ17: 0 | BK17: 0 | BL17: 0 | BM17: 0 | BN17: 0 | BO17: 0 | BP17: 0 | BQ17: 0 | BR17: 0 | BS17: 0 | BT17: 0 | BU17: 0 | BV17: 0 | BW17: 0 | BX17: 0 | BY17: 0 | BZ17: 0 | CA17: 0 | CB17: 0 | CC17: 0 | CD17: 0 | CE17: 0 | CF17: 0 | CG17: 0 | CH17: 0 | CI17: 0 | CJ17: 0 | CK17: 0 | CL17: 0 | CM17: 0 | CN17: 0 | CO17: 0 | CP17: 0
C18: [spare] | D18: Calc|Demand | E18: number | F18: n/a | G18: Mid-year | O18: 0 | P18: 0 | Q18: 0 | R18: 0 | S18: 0 | T18: 0 | U18: 0 | V18: 0 | W18: 0 | X18: 0 | Y18: 0 | Z18: 0 | AA18: 0 | AB18: 0 | AC18: 0 | AD18: 0 | AE18: 0 | AF18: 0 | AG18: 0 | AH18: 0 | AI18: 0 | AJ18: 0 | AK18: 0 | AL18: 0 | AM18: 0 | AN18: 0 | AO18: 0 | AP18: 0 | AQ18: 0 | AR18: 0 | AS18: 0 | AT18: 0 | AU18: 0 | AV18: 0 | AW18: 0 | AX18: 0 | AY18: 0 | AZ18: 0 | BA18: 0 | BB18: 0 | BC18: 0 | BD18: 0 | BE18: 0 | BF18: 0 | BG18: 0 | BH18: 0 | BI18: 0 | BJ18: 0 | BK18: 0 | BL18: 0 | BM18: 0 | BN18: 0 | BO18: 0 | BP18: 0 | BQ18: 0 | BR18: 0 | BS18: 0 | BT18: 0 | BU18: 0 | BV18: 0 | BW18: 0 | BX18: 0 | BY18: 0 | BZ18: 0 | CA18: 0 | CB18: 0 | CC18: 0 | CD18: 0 | CE18: 0 | CF18: 0 | CG18: 0 | CH18: 0 | CI18: 0 | CJ18: 0 | CK18: 0 | CL18: 0 | CM18: 0 | CN18: 0 | CO18: 0 | CP18: 0
C19: [spare] | D19: Calc|Demand | E19: number | F19: n/a | G19: Mid-year | O19: 0 | P19: 0 | Q19: 0 | R19: 0 | S19: 0 | T19: 0 | U19: 0 | V19: 0 | W19: 0 | X19: 0 | Y19: 0 | Z19: 0 | AA19: 0 | AB19: 0 | AC19: 0 | AD19: 0 | AE19: 0 | AF19: 0 | AG19: 0 | AH19: 0 | AI19: 0 | AJ19: 0 | AK19: 0 | AL19: 0 | AM19: 0 | AN19: 0 | AO19: 0 | AP19: 0 | AQ19: 0 | AR19: 0 | AS19: 0 | AT19: 0 | AU19: 0 | AV19: 0 | AW19: 0 | AX19: 0 | AY19: 0 | AZ19: 0 | BA19: 0 | BB19: 0 | BC19: 0 | BD19: 0 | BE19: 0 | BF19: 0 | BG19: 0 | BH19: 0 | BI19: 0 | BJ19: 0 | BK19: 0 | BL19: 0 | BM19: 0 | BN19: 0 | BO19: 0 | BP19: 0 | BQ19: 0 | BR19: 0 | BS19: 0 | BT19: 0 | BU19: 0 | BV19: 0 | BW19: 0 | BX19: 0 | BY19: 0 | BZ19: 0 | CA19: 0 | CB19: 0 | CC19: 0 | CD19: 0 | CE19: 0 | CF19: 0 | CG19: 0 | CH19: 0 | CI19: 0 | CJ19: 0 | CK19: 0 | CL19: 0 | CM19: 0 | CN19: 0 | CO19: 0 | CP19: 0
C21: Total | D21: Calculated | E21: number | F21: n/a | G21: Mid-year | O21: 1464177.5 | P21: 1485507 | Q21: 1503749 | R21: 1528737.732 | S21: 1547303.112 | T21: 1553845.367 | U21: 1563335.005 | V21: 1565613.126 | W21: 1558859.274 | X21: 1539522.051 | Y21: 1480861.231 | Z21: 1390050.742 | AA21: 1299251.974 | AB21: 1208464.808 | AC21: 1117689.088 | AD21: 1011818.836 | AE21: 890848.012 | AF21: 769876.2231 | AG21: 648902.8174 | AH21: 527926.7365 | AI21: 440084.6701 | AJ21: 385373.8989 | AK21: 330651.8595 | AL21: 275912.4669 | AM21: 221147.514 | AN21: 174435.192 | AO21: 135768.4047 | AP21: 97061.78248 | AQ21: 58334.79223 | AR21: 19623.7555
A23: Ok | C23: Check - consistency with demand outputs | O23: Ok | P23: Ok | Q23: Ok | R23: Ok | S23: Ok | T23: Ok | U23: Ok | V23: Ok | W23: Ok | X23: Ok | Y23: Ok | Z23: Ok | AA23: Ok | AB23: Ok | AC23: Ok | AD23: Ok | AE23: Ok | AF23: Ok | AG23: Ok | AH23: Ok | AI23: Ok | AJ23: Ok | AK23: Ok | AL23: Ok | AM23: Ok | AN23: Ok | AO23: Ok | AP23: Ok | AQ23: Ok | AR23: Ok | AS23: Ok | AT23: Ok | AU23: Ok | AV23: Ok | AW23: Ok | AX23: Ok | AY23: Ok | AZ23: Ok | BA23: Ok | BB23: Ok | BC23: Ok | BD23: Ok | BE23: Ok | BF23: Ok | BG23: Ok | BH23: Ok | BI23: Ok | BJ23: Ok | BK23: Ok | BL23: Ok | BM23: Ok | BN23: Ok | BO23: Ok | BP23: Ok | BQ23: Ok | BR23: Ok | BS23: Ok | BT23: Ok | BU23: Ok | BV23: Ok | BW23: Ok | BX23: Ok | BY23: Ok | BZ23: Ok | CA23: Ok | CB23: Ok | CC23: Ok | CD23: Ok | CE23: Ok | CF23: Ok | CG23: Ok | CH23: Ok | CI23: Ok | CJ23: Ok | CK23: Ok | CL23: Ok | CM23: Ok | CN23: Ok | CO23: Ok | CP23: Ok
C25: Throughput by segment | D25: Source | E25: Unit | F25: Basis | G25: Timing | O25: RY21 | P25: RY22 | Q25: RY23 | R25: RY24 | S25: RY25 | T25: RY26 | U25: RY27 | V25: RY28 | W25: RY29 | X25: RY30 | Y25: RY31 | Z25: RY32 | AA25: RY33 | AB25: RY34 | AC25: RY35 | AD25: RY36 | AE25: RY37 | AF25: RY38 | AG25: RY39 | AH25: RY40 | AI25: RY41 | AJ25: RY42 | AK25: RY43 | AL25: RY44 | AM25: RY45 | AN25: RY46 | AO25: RY47 | AP25: RY48 | AQ25: RY49 | AR25: RY50 | AS25: RY51 | AT25: RY52 | AU25: RY53 | AV25: RY54 | AW25: RY55 | AX25: RY56 | AY25: RY57 | AZ25: RY58 | BA25: RY59 | BB25: RY60 | BC25: RY61 | BD25: RY62 | BE25: RY63 | BF25: RY64 | BG25: RY65 | BH25: RY66 | BI25: RY67 | BJ25: RY68 | BK25: RY69 | BL25: RY70 | BM25: RY71 | BN25: RY72 | BO25: RY73 | BP25: RY74 | BQ25: RY75 | BR25: RY76 | BS25: RY77 | BT25: RY78 | BU25: RY79 | BV25: RY80 | BW25: RY81 | BX25: RY82 | BY25: RY83 | BZ25: RY84 | CA25: RY85 | CB25: RY86 | CC25: RY87 | CD25: RY88 | CE25: RY89 | CF25: RY90 | CG25: RY91 | CH25: RY92 | CI25: RY93 | CJ25: RY94 | CK25: RY95 | CL25: RY96 | CM25: RY97 | CN25: RY98 | CO25: RY99 | CP25: RY00
C27: Residential - highrise | D27: Calc|Demand | E27: PJ | F27: n/a | G27: End-year | O27: 4.890740694 | P27: 5.136467425 | Q27: 5.768547911 | R27: 5.655036626 | S27: 5.654516394 | T27: 5.637618055 | U27: 5.578365048 | V27: 5.466176071 | W27: 5.308848509 | X27: 5.095571715 | Y27: 5.664598032 | Z27: 5.318021237 | AA27: 4.971493494 | AB27: 4.625014546 | AC27: 4.278584137 | AD27: 3.801902473 | AE27: 3.325220988 | AF27: 2.848539684 | AG27: 2.371858557 | AH27: 1.895177609 | AI27: 1.670801871 | AJ27: 1.446426133 | AK27: 1.222050396 | AL27: 0.9976746579 | AM27: 0.7732989202 | AN27: 0.6186391361 | AO27: 0.4639793521 | AP27: 0.3093195681 | AQ27: 0.154659784 | AR27: 0 | AS27: 0 | AT27: 0 | AU27: 0 | AV27: 0 | AW27: 0 | AX27: 0 | AY27: 0 | AZ27: 0 | BA27: 0 | BB27: 0 | BC27: 0 | BD27: 0 | BE27: 0 | BF27: 0 | BG27: 0 | BH27: 0 | BI27: 0 | BJ27: 0 | BK27: 0 | BL27: 0 | BM27: 0 | BN27: 0 | BO27: 0 | BP27: 0 | BQ27: 0 | BR27: 0 | BS27: 0 | BT27: 0 | BU27: 0 | BV27: 0 | BW27: 0 | BX27: 0 | BY27: 0 | BZ27: 0 | CA27: 0 | CB27: 0 | CC27: 0 | CD27: 0 | CE27: 0 | CF27: 0 | CG27: 0 | CH27: 0 | CI27: 0 | CJ27: 0 | CK27: 0 | CL27: 0 | CM27: 0 | CN27: 0 | CO27: 0 | CP27: 0
C28: Residential - non-highrise | D28: Calc|Demand | E28: PJ | F28: n/a | G28: End-year | O28: 23.43904269 | P28: 24.53131275 | Q28: 22.65647436 | R28: 22.38496765 | S28: 22.34062822 | T28: 22.20934117 | U28: 21.88578315 | V28: 21.33247547 | W28: 20.59502745 | X28: 19.61448688 | Y28: 17.62060081 | Z28: 16.54252054 | AA28: 15.46459286 | AB28: 14.38681696 | AC28: 13.30919205 | AD28: 11.82640064 | AE28: 10.34360979 | AF28: 8.860819491 | AG28: 7.378029752 | AH28: 5.895240566 | AI28: 5.197285427 | AJ28: 4.499330288 | AK28: 3.801375149 | AL28: 3.10342001 | AM28: 2.405464872 | AN28: 1.924371897 | AO28: 1.443278923 | AP28: 0.9621859486 | AQ28: 0.4810929743 | AR28: 0 | AS28: 0 | AT28: 0 | AU28: 0 | AV28: 0 | AW28: 0 | AX28: 0 | AY28: 0 | AZ28: 0 | BA28: 0 | BB28: 0 | BC28: 0 | BD28: 0 | BE28: 0 | BF28: 0 | BG28: 0 | BH28: 0 | BI28: 0 | BJ28: 0 | BK28: 0 | BL28: 0 | BM28: 0 | BN28: 0 | BO28: 0 | BP28: 0 | BQ28: 0 | BR28: 0 | BS28: 0 | BT28: 0 | BU28: 0 | BV28: 0 | BW28: 0 | BX28: 0 | BY28: 0 | BZ28: 0 | CA28: 0 | CB28: 0 | CC28: 0 | CD28: 0 | CE28: 0 | CF28: 0 | CG28: 0 | CH28: 0 | CI28: 0 | CJ28: 0 | CK28: 0 | CL28: 0 | CM28: 0 | CN28: 0 | CO28: 0 | CP28: 0
C29: Commercial | D29: Calc|Demand | E29: PJ | F29: n/a | G29: End-year | O29: 12.96138348 | P29: 11.4071291 | Q29: 13.31171349 | R29: 13.04111079 | S29: 12.98644585 | T29: 12.84676495 | U29: 12.57494975 | V29: 12.17864419 | W29: 11.67229605 | X29: 10.98309306 | Y29: 10.18618847 | Z29: 9.389251034 | AA29: 8.592250594 | AB29: 7.795137561 | AC29: 6.997830412 | AD29: 6.195002841 | AE29: 5.391614629 | AF29: 4.587305751 | AG29: 3.781488891 | AH29: 2.973212587 | AI29: 2.757788938 | AJ29: 2.535989302 | AK29: 2.304177901 | AL29: 2.057140728 | AM29: 1.788155784 | AN29: 1.493383293 | AO29: 1.166342488 | AP29: 0.8136364657 | AQ29: 0.456973524 | AR29: 0.1274693758 | AS29: 0 | AT29: 0 | AU29: 0 | AV29: 0 | AW29: 0 | AX29: 0 | AY29: 0 | AZ29: 0 | BA29: 0 | BB29: 0 | BC29: 0 | BD29: 0 | BE29: 0 | BF29: 0 | BG29: 0 | BH29: 0 | BI29: 0 | BJ29: 0 | BK29: 0 | BL29: 0 | BM29: 0 | BN29: 0 | BO29: 0 | BP29: 0 | BQ29: 0 | BR29: 0 | BS29: 0 | BT29: 0 | BU29: 0 | BV29: 0 | BW29: 0 | BX29: 0 | BY29: 0 | BZ29: 0 | CA29: 0 | CB29: 0 | CC29: 0 | CD29: 0 | CE29: 0 | CF29: 0 | CG29: 0 | CH29: 0 | CI29: 0 | CJ29: 0 | CK29: 0 | CL29: 0 | CM29: 0 | CN29: 0 | CO29: 0 | CP29: 0
C30: Industrial | D30: Calc|Demand | E30: PJ | F30: n/a | G30: End-year | O30: 48.268225 | P30: 49.594776 | Q30: 49.388773 | R30: 46.99254838 | S30: 46.37002643 | T30: 46.45101651 | U30: 45.51372082 | V30: 43.72168104 | W30: 42.10678863 | X30: 40.67365687 | Y30: 39.41612623 | Z30: 38.16549516 | AA30: 36.92166018 | AB30: 35.68451933 | AC30: 34.45397222 | AD30: 33.22991992 | AE30: 32.01226503 | AF30: 30.80091158 | AG30: 29.59576504 | AH30: 28.39673232 | AI30: 27.80189092 | AJ30: 27.21298129 | AK30: 26.62991446 | AL30: 26.05260279 | AM30: 25.48095994 | AN30: 24.91490089 | AO30: 24.35434189 | AP30: 23.79920042 | AQ30: 23.24939522 | AR30: 22.70484626 | AS30: 0 | AT30: 0 | AU30: 0 | AV30: 0 | AW30: 0 | AX30: 0 | AY30: 0 | AZ30: 0 | BA30: 0 | BB30: 0 | BC30: 0 | BD30: 0 | BE30: 0 | BF30: 0 | BG30: 0 | BH30: 0 | BI30: 0 | BJ30: 0 | BK30: 0 | BL30: 0 | BM30: 0 | BN30: 0 | BO30: 0 | BP30: 0 | BQ30: 0 | BR30: 0 | BS30: 0 | BT30: 0 | BU30: 0 | BV30: 0 | BW30: 0 | BX30: 0 | BY30: 0 | BZ30: 0 | CA30: 0 | CB30: 0 | CC30: 0 | CD30: 0 | CE30: 0 | CF30: 0 | CG30: 0 | CH30: 0 | CI30: 0 | CJ30: 0 | CK30: 0 | CL30: 0 | CM30: 0 | CN30: 0 | CO30: 0 | CP30: 0
C31: [spare] | D31: Calc|Demand | E31: PJ | F31: n/a | G31: End-year | O31: 0 | P31: 0 | Q31: 0 | R31: 0 | S31: 0 | T31: 0 | U31: 0 | V31: 0 | W31: 0 | X31: 0 | Y31: 0 | Z31: 0 | AA31: 0 | AB31: 0 | AC31: 0 | AD31: 0 | AE31: 0 | AF31: 0 | AG31: 0 | AH31: 0 | AI31: 0 | AJ31: 0 | AK31: 0 | AL31: 0 | AM31: 0 | AN31: 0 | AO31: 0 | AP31: 0 | AQ31: 0 | AR31: 0 | AS31: 0 | AT31: 0 | AU31: 0 | AV31: 0 | AW31: 0 | AX31: 0 | AY31: 0 | AZ31: 0 | BA31: 0 | BB31: 0 | BC31: 0 | BD31: 0 | BE31: 0 | BF31: 0 | BG31: 0 | BH31: 0 | BI31: 0 | BJ31: 0 | BK31: 0 | BL31: 0 | BM31: 0 | BN31: 0 | BO31: 0 | BP31: 0 | BQ31: 0 | BR31: 0 | BS31: 0 | BT31: 0 | BU31: 0 | BV31: 0 | BW31: 0 | BX31: 0 | BY31: 0 | BZ31: 0 | CA31: 0 | CB31: 0 | CC31: 0 | CD31: 0 | CE31: 0 | CF31: 0 | CG31: 0 | CH31: 0 | CI31: 0 | CJ31: 0 | CK31: 0 | CL31: 0 | CM31: 0 | CN31: 0 | CO31: 0 | CP31: 0
C32: [spare] | D32: Calc|Demand | E32: PJ | F32: n/a | G32: End-year | O32: 0 | P32: 0 | Q32: 0 | R32: 0 | S32: 0 | T32: 0 | U32: 0 | V32: 0 | W32: 0 | X32: 0 | Y32: 0 | Z32: 0 | AA32: 0 | AB32: 0 | AC32: 0 | AD32: 0 | AE32: 0 | AF32: 0 | AG32: 0 | AH32: 0 | AI32: 0 | AJ32: 0 | AK32: 0 | AL32: 0 | AM32: 0 | AN32: 0 | AO32: 0 | AP32: 0 | AQ32: 0 | AR32: 0 | AS32: 0 | AT32: 0 | AU32: 0 | AV32: 0 | AW32: 0 | AX32: 0 | AY32: 0 | AZ32: 0 | BA32: 0 | BB32: 0 | BC32: 0 | BD32: 0 | BE32: 0 | BF32: 0 | BG32: 0 | BH32: 0 | BI32: 0 | BJ32: 0 | BK32: 0 | BL32: 0 | BM32: 0 | BN32: 0 | BO32: 0 | BP32: 0 | BQ32: 0 | BR32: 0 | BS32: 0 | BT32: 0 | BU32: 0 | BV32: 0 | BW32: 0 | BX32: 0 | BY32: 0 | BZ32: 0 | CA32: 0 | CB32: 0 | CC32: 0 | CD32: 0 | CE32: 0 | CF32: 0 | CG32: 0 | CH32: 0 | CI32: 0 | CJ32: 0 | CK32: 0 | CL32: 0 | CM32: 0 | CN32: 0 | CO32: 0 | CP32: 0
C33: [spare] | D33: Calc|Demand | E33: PJ | F33: n/a | G33: End-year | O33: 0 | P33: 0 | Q33: 0 | R33: 0 | S33: 0 | T33: 0 | U33: 0 | V33: 0 | W33: 0 | X33: 0 | Y33: 0 | Z33: 0 | AA33: 0 | AB33: 0 | AC33: 0 | AD33: 0 | AE33: 0 | AF33: 0 | AG33: 0 | AH33: 0 | AI33: 0 | AJ33: 0 | AK33: 0 | AL33: 0 | AM33: 0 | AN33: 0 | AO33: 0 | AP33: 0 | AQ33: 0 | AR33: 0 | AS33: 0 | AT33: 0 | AU33: 0 | AV33: 0 | AW33: 0 | AX33: 0 | AY33: 0 | AZ33: 0 | BA33: 0 | BB33: 0 | BC33: 0 | BD33: 0 | BE33: 0 | BF33: 0 | BG33: 0 | BH33: 0 | BI33: 0 | BJ33: 0 | BK33: 0 | BL33: 0 | BM33: 0 | BN33: 0 | BO33: 0 | BP33: 0 | BQ33: 0 | BR33: 0 | BS33: 0 | BT33: 0 | BU33: 0 | BV33: 0 | BW33: 0 | BX33: 0 | BY33: 0 | BZ33: 0 | CA33: 0 | CB33: 0 | CC33: 0 | CD33: 0 | CE33: 0 | CF33: 0 | CG33: 0 | CH33: 0 | CI33: 0 | CJ33: 0 | CK33: 0 | CL33: 0 | CM33: 0 | CN33: 0 | CO33: 0 | CP33: 0
C35: Total | D35: Calculated | E35: PJ | F35: n/a | G35: End-year | O35: 89.55939186 | P35: 90.66968528 | Q35: 91.12550877 | R35: 88.07366345 | S35: 87.35161688 | T35: 87.14474069 | U35: 85.55281877 | V35: 82.69897677 | W35: 79.68296064 | X35: 76.36680853 | Y35: 72.88751353 | Z35: 69.41528797 | AA35: 65.94999712 | AB35: 62.4914884 | AC35: 59.03957882 | AD35: 55.05322588 | AE35: 51.07271043 | AF35: 47.0975765 | AG35: 43.12714224 | AH35: 39.16036308 | AI35: 37.42776715 | AJ35: 35.69472701 | AK35: 33.9575179 | AL35: 32.21083818 | AM35: 30.44787952 | AN35: 28.95129522 | AO35: 27.42794265 | AP35: 25.8843424 | AQ35: 24.34212151 | AR35: 22.83231564
A37: Ok | C37: Check - consistency with demand outputs | O37: Ok | P37: Ok | Q37: Ok | R37: Ok | S37: Ok | T37: Ok | U37: Ok | V37: Ok | W37: Ok | X37: Ok | Y37: Ok | Z37: Ok | AA37: Ok | AB37: Ok | AC37: Ok | AD37: Ok | AE37: Ok | AF37: Ok | AG37: Ok | AH37: Ok | AI37: Ok | AJ37: Ok | AK37: Ok | AL37: Ok | AM37: Ok | AN37: Ok | AO37: Ok | AP37: Ok | AQ37: Ok | AR37: Ok | AS37: Ok | AT37: Ok | AU37: Ok | AV37: Ok | AW37: Ok | AX37: Ok | AY37: Ok | AZ37: Ok | BA37: Ok | BB37: Ok | BC37: Ok | BD37: Ok | BE37: Ok | BF37: Ok | BG37: Ok | BH37: Ok | BI37: Ok | BJ37: Ok | BK37: Ok | BL37: Ok | BM37: Ok | BN37: Ok | BO37: Ok | BP37: Ok | BQ37: Ok | BR37: Ok | BS37: Ok | BT37: Ok | BU37: Ok | BV37: Ok | BW37: Ok | BX37: Ok | BY37: Ok | BZ37: Ok | CA37: Ok | CB37: Ok | CC37: Ok | CD37: Ok | CE37: Ok | CF37: Ok | CG37: Ok | CH37: Ok | CI37: Ok | CJ37: Ok | CK37: Ok | CL37: Ok | CM37: Ok | CN37: Ok | CO37: Ok | CP37: Ok
B39: Expenditure by purpose
C41: Expenditure by purpose | D41: Source | E41: Unit | F41: Basis | G41: Timing | O41: RY21 | P41: RY22 | Q41: RY23 | R41: RY24 | S41: RY25 | T41: RY26 | U41: RY27 | V41: RY28 | W41: RY29 | X41: RY30 | Y41: RY31 | Z41: RY32 | AA41: RY33 | AB41: RY34 | AC41: RY35 | AD41: RY36 | AE41: RY37 | AF41: RY38 | AG41: RY39 | AH41: RY40 | AI41: RY41 | AJ41: RY42 | AK41: RY43 | AL41: RY44 | AM41: RY45 | AN41: RY46 | AO41: RY47 | AP41: RY48 | AQ41: RY49 | AR41: RY50 | AS41: RY51 | AT41: RY52 | AU41: RY53 | AV41: RY54 | AW41: RY55 | AX41: RY56 | AY41: RY57 | AZ41: RY58 | BA41: RY59 | BB41: RY60 | BC41: RY61 | BD41: RY62 | BE41: RY63 | BF41: RY64 | BG41: RY65 | BH41: RY66 | BI41: RY67 | BJ41: RY68 | BK41: RY69 | BL41: RY70 | BM41: RY71 | BN41: RY72 | BO41: RY73 | BP41: RY74 | BQ41: RY75 | BR41: RY76 | BS41: RY77 | BT41: RY78 | BU41: RY79 | BV41: RY80 | BW41: RY81 | BX41: RY82 | BY41: RY83 | BZ41: RY84 | CA41: RY85 | CB41: RY86 | CC41: RY87 | CD41: RY88 | CE41: RY89 | CF41: RY90 | CG41: RY91 | CH41: RY92 | CI41: RY93 | CJ41: RY94 | CK41: RY95 | CL41: RY96 | CM41: RY97 | CN41: RY98 | CO41: RY99 | CP41: RY00
C43: Capex - Stay in business | D43: Calc|AM | E43: $millions | F43: Real 2025 | G43: End-year | O43: 75.96333569 | P43: 71.26473485 | Q43: 90.08047261 | R43: 80.69660763 | S43: 71.07477636 | T43: 111.9779652 | U43: 103.1749546 | V43: 90.08047261 | W43: 80.69660763 | X43: 71.07477636 | Y43: 91.40095527 | Z43: 91.40095527 | AA43: 91.40095527 | AB43: 88.45823623 | AC43: 84.70748922 | AD43: 80.95674221 | AE43: 77.2059952 | AF43: 71.35330602 | AG43: 66.3086448 | AH43: 61.26398359 | AI43: 56.65191317 | AJ43: 51.88192537 | AK43: 46.98634766 | AL43: 41.99212021 | AM43: 35.39362039 | AN43: 28.65757981 | AO43: 21.92153923 | AP43: 17.87991488 | AQ43: 13.83829053 | AR43: 9.796666179
C44: Capex - Connecting new customers | D44: Calc|AM | E44: $millions | F44: Real 2025 | G44: End-year | O44: 117.3530385 | P44: 93.46858648 | Q44: 100.1475706 | R44: 90.86055834 | S44: 83.66065096 | T44: 71.09801315 | U44: 66.172276 | V44: 59.46109112 | W44: 51.57618505 | X44: 43.72430207 | Y44: 0 | Z44: 0 | AA44: 0 | AB44: 0 | AC44: 0 | AD44: 0 | AE44: 0 | AF44: 0 | AG44: 0 | AH44: 0 | AI44: 0 | AJ44: 0 | AK44: 0 | AL44: 0 | AM44: 0 | AN44: 0 | AO44: 0 | AP44: 0 | AQ44: 0 | AR44: 0
C45: Capex - Renewable gas | D45: Calc|AM | E45: $millions | F45: Real 2025 | G45: End-year | O45: 0 | P45: 0 | Q45: 0 | R45: 0 | S45: 0 | T45: 8.020492032 | U45: 40.09693068 | V45: 31.45616929 | W45: 3.845119828 | X45: 0 | Y45: 0 | Z45: 0 | AA45: 0 | AB45: 0 | AC45: 0 | AD45: 0 | AE45: 0 | AF45: 0 | AG45: 0 | AH45: 0 | AI45: 0 | AJ45: 0 | AK45: 0 | AL45: 0 | AM45: 0 | AN45: 0 | AO45: 0 | AP45: 0 | AQ45: 0 | AR45: 0
C46: Opex - Decommission | D46: Calc|AM | E46: $millions | F46: Real 2025 | G46: End-year | O46: 0 | P46: 0 | Q46: 0 | R46: 0 | S46: 0 | T46: 0 | U46: 0 | V46: 0 | W46: 0 | X46: 0 | Y46: 0 | Z46: 0 | AA46: 0 | AB46: 27.88413598 | AC46: 30.00327654 | AD46: 30.00327654 | AE46: 30.00327654 | AF46: 49.92051653 | AG46: 47.80137597 | AH46: 47.80137597 | AI46: 47.80137597 | AJ46: 47.80137597 | AK46: 47.80137597 | AL46: 47.80137597 | AM46: 61.96474662 | AN46: 61.96474662 | AO46: 61.96474662 | AP46: 37.17884797 | AQ46: 37.17884797 | AR46: 37.17884797
C47: Opex - BAU | D47: Calc|AM | E47: $millions | F47: Real 2025 | G47: End-year | O47: 199.6987718 | P47: 198.5393141 | Q47: 248.9487655 | R47: 269.5663503 | S47: 260.1361087 | T47: 264.9518595 | U47: 257.7687131 | V47: 255.805684 | W47: 254.0059536 | X47: 257.4679061 | Y47: 239.6752498 | Z47: 233.0702897 | AA47: 226.2853991 | AB47: 213.9063974 | AC47: 200.9207392 | AD47: 187.3364438 | AE47: 172.5553956 | AF47: 154.0887741 | AG47: 136.1998951 | AH47: 118.1643747 | AI47: 102.5956982 | AJ47: 90.16935351 | AK47: 77.90817691 | AL47: 68.94555192 | AM47: 65.86846472 | AN47: 63.05236801 | AO47: 60.32442165 | AP47: 59.01745471 | AQ47: 57.75569524 | AR47: 56.53894395
C49: Total | D49: Calculated | E49: $millions | F49: Real 2025 | G49: End-year | O49: 393.0151459 | P49: 363.2726355 | Q49: 439.1768087 | R49: 441.1235163 | S49: 414.871536 | T49: 456.0483299 | U49: 467.2128743 | V49: 436.803417 | W49: 390.1238661 | X49: 372.2669845 | Y49: 331.076205 | Z49: 324.471245 | AA49: 317.6863544 | AB49: 330.2487696 | AC49: 315.6315049 | AD49: 298.2964625 | AE49: 279.7646674 | AF49: 275.3625966 | AG49: 250.3099159 | AH49: 227.2297342 | AI49: 207.0489874 | AJ49: 189.8526548 | AK49: 172.6959005 | AL49: 158.7390481 | AM49: 163.2268317 | AN49: 153.6746944 | AO49: 144.2107075 | AP49: 114.0762176 | AQ49: 108.7728337 | AR49: 103.5144581
C51: Net capex by type | D51: Source | E51: Unit | F51: Basis | G51: Timing | O51: RY21 | P51: RY22 | Q51: RY23 | R51: RY24 | S51: RY25 | T51: RY26 | U51: RY27 | V51: RY28 | W51: RY29 | X51: RY30 | Y51: RY31 | Z51: RY32 | AA51: RY33 | AB51: RY34 | AC51: RY35 | AD51: RY36 | AE51: RY37 | AF51: RY38 | AG51: RY39 | AH51: RY40 | AI51: RY41 | AJ51: RY42 | AK51: RY43 | AL51: RY44 | AM51: RY45 | AN51: RY46 | AO51: RY47 | AP51: RY48 | AQ51: RY49 | AR51: RY50 | AS51: RY51 | AT51: RY52 | AU51: RY53 | AV51: RY54 | AW51: RY55 | AX51: RY56 | AY51: RY57 | AZ51: RY58 | BA51: RY59 | BB51: RY60 | BC51: RY61 | BD51: RY62 | BE51: RY63 | BF51: RY64 | BG51: RY65 | BH51: RY66 | BI51: RY67 | BJ51: RY68 | BK51: RY69 | BL51: RY70 | BM51: RY71 | BN51: RY72 | BO51: RY73 | BP51: RY74 | BQ51: RY75 | BR51: RY76 | BS51: RY77 | BT51: RY78 | BU51: RY79 | BV51: RY80 | BW51: RY81 | BX51: RY82 | BY51: RY83 | BZ51: RY84 | CA51: RY85 | CB51: RY86 | CC51: RY87 | CD51: RY88 | CE51: RY89 | CF51: RY90 | CG51: RY91 | CH51: RY92 | CI51: RY93 | CJ51: RY94 | CK51: RY95 | CL51: RY96 | CM51: RY97 | CN51: RY98 | CO51: RY99 | CP51: RY00
C53: Trunks and high pressure | D53: Calc|RAB | E53: $millions | F53: Real 2025 | G53: End-year | O53: 11.26437314 | P53: 17.8080555 | Q53: 10.47828356 | R53: 18.60183391 | S53: 30.64307019 | T53: 35.37447209 | U53: 57.83955309 | V53: 43.54601803 | W53: 14.0116657 | X53: 8.944767399 | Y53: 10.74477414 | Z53: 10.74867299 | AA53: 10.7475668 | AB53: 10.7391511 | AC53: 10.06123838 | AD53: 9.390489157 | AE53: 8.719739932 | AF53: 8.048990706 | AG53: 8.048990706 | AH53: 8.048990706 | AI53: 8.048990706 | AJ53: 8.048990706 | AK53: 8.048990706 | AL53: 8.048990706 | AM53: 8.048990706 | AN53: 8.048990706 | AO53: 8.048990706 | AP53: 8.048990706 | AQ53: 8.048990706 | AR53: 8.048990706
C54: Medium pressure | D54: Calc|RAB | E54: $millions | F54: Real 2025 | G54: End-year | O54: 102.4283985 | P54: 95.20129604 | Q54: 91.43939083 | R54: 75.57864549 | S54: 76.94202038 | T54: 67.74911814 | U54: 73.35148577 | V54: 62.41444187 | W54: 51.73216602 | X54: 41.69901681 | Y54: 15.35971136 | Z54: 15.3652848 | AA54: 15.36370348 | AB54: 14.77598546 | AC54: 14.19082548 | AD54: 13.61552174 | AE54: 13.04021801 | AF54: 12.05398303 | AG54: 11.06774806 | AH54: 10.08151308 | AI54: 9.095278105 | AJ54: 8.10904313 | AK54: 7.122808154 | AL54: 6.136573179 | AM54: 4.858120433 | AN54: 3.579667688 | AO54: 2.301214942 | AP54: 1.534143295 | AQ54: 0.7670716474 | AR54: 0
C55: Facilities | D55: Calc|RAB | E55: $millions | F55: Real 2025 | G55: End-year | O55: 9.564293275 | P55: 6.984378152 | Q55: 2.826554797 | R55: 8.315231656 | S55: 25.73291784 | T55: 36.056353 | U55: 18.94874531 | V55: 15.46450334 | W55: 7.691221065 | X55: 6.659647389 | Y55: 16.61663677 | Z55: 16.62266629 | AA55: 16.62095558 | AB55: 15.98514304 | AC55: 15.35209789 | AD55: 14.72971554 | AE55: 14.1073332 | AF55: 13.04039203 | AG55: 11.97345086 | AH55: 10.9065097 | AI55: 9.839568532 | AJ55: 8.772627366 | AK55: 7.7056862 | AL55: 6.638745033 | AM55: 5.255673152 | AN55: 3.87260127 | AO55: 2.489529388 | AP55: 1.659686258 | AQ55: 0.8298431292 | AR55: 0
C56: Fixed plants | D56: Calc|RAB | E56: $millions | F56: Real 2025 | G56: End-year | O56: 0 | P56: 0 | Q56: 0 | R56: 0 | S56: 0 | T56: 0 | U56: 0 | V56: 0 | W56: 0 | X56: 0 | Y56: 0 | Z56: 0 | AA56: 0 | AB56: 0 | AC56: 0 | AD56: 0 | AE56: 0 | AF56: 0 | AG56: 0 | AH56: 0 | AI56: 0 | AJ56: 0 | AK56: 0 | AL56: 0 | AM56: 0 | AN56: 0 | AO56: 0 | AP56: 0 | AQ56: 0 | AR56: 0
C57: Meters | D57: Calc|RAB | E57: $millions | F57: Real 2025 | G57: End-year | O57: 37.05232075 | P57: 27.59750732 | Q57: 31.58562042 | R57: 31.75091466 | S57: 34.96318239 | T57: 34.21536595 | U57: 39.22231074 | V57: 39.37709048 | W57: 46.33922679 | X57: 42.28404406 | Y57: 33.18168706 | Z57: 33.19372739 | AA57: 33.19031127 | AB57: 32.00863556 | AC57: 30.68584067 | AD57: 29.38439697 | AE57: 28.08295328 | AF57: 25.95656979 | AG57: 23.97671428 | AH57: 21.99685877 | AI57: 20.45454579 | AJ57: 18.75250779 | AK57: 16.92344229 | AL57: 14.99459785 | AM57: 12.36831754 | AN57: 9.602922077 | AO57: 6.837526619 | AP57: 5.178289344 | AQ57: 3.519052069 | AR57: 1.859814794
C58: IT | D58: Calc|RAB | E58: $millions | F58: Real 2025 | G58: End-year | O58: 20.10542656 | P58: 13.17454119 | Q58: 19.04767577 | R58: 17.85590897 | S58: 19.19677508 | T58: 11.93526086 | U58: 13.11835643 | V58: 8.663515283 | W58: 6.615286836 | X58: 6.153593065 | Y58: 9.30485915 | Z58: 9.308235516 | AA58: 9.307277563 | AB58: 8.951240048 | AC58: 8.596752189 | AD58: 8.248235208 | AE58: 7.899718228 | AF58: 7.302260547 | AG58: 6.704802866 | AH58: 6.107345184 | AI58: 5.509887503 | AJ58: 4.912429822 | AK58: 4.314972141 | AL58: 3.71751446 | AM58: 2.943032281 | AN58: 2.168550102 | AO58: 1.394067923 | AP58: 0.929378615 | AQ58: 0.4646893075 | AR58: 0
C59: Other | D59: Calc|RAB | E59: $millions | F59: Real 2025 | G59: End-year | O59: 6.665322399 | P59: 3.734184742 | Q59: 12.27843237 | R59: 7.81970118 | S59: 8.719490242 | T59: 4.100132042 | U59: 5.556914704 | V59: 9.633002461 | W59: 7.601403114 | X59: 7.182582238 | Y59: 6.822196513 | Z59: 6.824672018 | AA59: 6.82396966 | AB59: 6.562927783 | AC59: 6.303022094 | AD59: 6.047494171 | AE59: 5.791966248 | AF59: 5.353918381 | AG59: 4.915870513 | AH59: 4.477822646 | AI59: 4.039774778 | AJ59: 3.601726911 | AK59: 3.163679043 | AL59: 2.725631176 | AM59: 2.157791347 | AN59: 1.589951519 | AO59: 1.022111691 | AP59: 0.6814077939 | AQ59: 0.340703897 | AR59: 0
C61: Total | D61: Calculated | E61: $millions | F61: Nominal | G61: End-year | O61: 187.0801347 | P61: 164.4999629 | Q61: 167.6559577 | R61: 159.9222359 | S61: 196.1974561 | T61: 189.4307021 | U61: 208.037366 | V61: 179.0985715 | W61: 133.9909695 | X61: 112.923651 | Y61: 92.029865 | Z61: 92.063259 | AA61: 92.05378436 | AB61: 89.023083 | AC61: 85.1897767 | AD61: 81.4158528 | AE61: 77.64192889 | AF61: 71.75611448 | AG61: 66.68757728 | AH61: 61.61904008 | AI61: 56.98804541 | AJ61: 52.19732572 | AK61: 47.27957854 | AL61: 42.2620524 | AM61: 35.63192545 | AN61: 28.86268336 | AO61: 22.09344127 | AP61: 18.03189601 | AQ61: 13.97035076 | AR61: 9.9088055
A63: Ok | C63: Check - consistency with RAB outputs | O63: Ok | P63: Ok | Q63: Ok | R63: Ok | S63: Ok | T63: Ok | U63: Ok | V63: Ok | W63: Ok | X63: Ok | Y63: Ok | Z63: Ok | AA63: Ok | AB63: Ok | AC63: Ok | AD63: Ok | AE63: Ok | AF63: Ok | AG63: Ok | AH63: Ok | AI63: Ok | AJ63: Ok | AK63: Ok | AL63: Ok | AM63: Ok | AN63: Ok | AO63: Ok | AP63: Ok | AQ63: Ok | AR63: Ok | AS63: Ok | AT63: Ok | AU63: Ok | AV63: Ok | AW63: Ok | AX63: Ok | AY63: Ok | AZ63: Ok | BA63: Ok | BB63: Ok | BC63: Ok | BD63: Ok | BE63: Ok | BF63: Ok | BG63: Ok | BH63: Ok | BI63: Ok | BJ63: Ok | BK63: Ok | BL63: Ok | BM63: Ok | BN63: Ok | BO63: Ok | BP63: Ok | BQ63: Ok | BR63: Ok | BS63: Ok | BT63: Ok | BU63: Ok | BV63: Ok | BW63: Ok | BX63: Ok | BY63: Ok | BZ63: Ok | CA63: Ok | CB63: Ok | CC63: Ok | CD63: Ok | CE63: Ok | CF63: Ok | CG63: Ok | CH63: Ok | CI63: Ok | CJ63: Ok | CK63: Ok | CL63: Ok | CM63: Ok | CN63: Ok | CO63: Ok | CP63: Ok
B65: RAB by investment period
C67: RAB by investment period | D67: Source | E67: Unit | F67: Basis | G67: Timing | O67: RY21 | P67: RY22 | Q67: RY23 | R67: RY24 | S67: RY25 | T67: RY26 | U67: RY27 | V67: RY28 | W67: RY29 | X67: RY30 | Y67: RY31 | Z67: RY32 | AA67: RY33 | AB67: RY34 | AC67: RY35 | AD67: RY36 | AE67: RY37 | AF67: RY38 | AG67: RY39 | AH67: RY40 | AI67: RY41 | AJ67: RY42 | AK67: RY43 | AL67: RY44 | AM67: RY45 | AN67: RY46 | AO67: RY47 | AP67: RY48 | AQ67: RY49 | AR67: RY50 | AS67: RY51 | AT67: RY52 | AU67: RY53 | AV67: RY54 | AW67: RY55 | AX67: RY56 | AY67: RY57 | AZ67: RY58 | BA67: RY59 | BB67: RY60 | BC67: RY61 | BD67: RY62 | BE67: RY63 | BF67: RY64 | BG67: RY65 | BH67: RY66 | BI67: RY67 | BJ67: RY68 | BK67: RY69 | BL67: RY70 | BM67: RY71 | BN67: RY72 | BO67: RY73 | BP67: RY74 | BQ67: RY75 | BR67: RY76 | BS67: RY77 | BT67: RY78 | BU67: RY79 | BV67: RY80 | BW67: RY81 | BX67: RY82 | BY67: RY83 | BZ67: RY84 | CA67: RY85 | CB67: RY86 | CC67: RY87 | CD67: RY88 | CE67: RY89 | CF67: RY90 | CG67: RY91 | CH67: RY92 | CI67: RY93 | CJ67: RY94 | CK67: RY95 | CL67: RY96 | CM67: RY97 | CN67: RY98 | CO67: RY99 | CP67: RY00
C69: Pre-2025 | D69: Calc|RAB | E69: $millions | F69: Real 2025 | G69: End-year | O69: 4020.366097 | P69: 3997.186542 | Q69: 3969.289763 | R69: 3923.865997 | S69: 3865.521931 | T69: 3631.516844 | U69: 3411.50075 | V69: 3194.20944 | W69: 2979.871338 | X69: 2769.40258 | Y69: 2618.673425 | Z69: 2468.465304 | AA69: 2318.520796 | AB69: 2169.54452 | AC69: 2020.695518 | AD69: 1875.127151 | AE69: 1734.42918 | AF69: 1598.289987 | AG69: 1467.054835 | AH69: 1340.404221 | AI69: 1217.148398 | AJ69: 1135.574626 | AK69: 1067.091072 | AL69: 998.7083211 | AM69: 930.8437855 | AN69: 862.97925 | AO69: 795.1147144 | AP69: 730.2531533 | AQ69: 669.0967379 | AR69: 607.9403225 | AS69: 546.783907 | AT69: 489.2430523 | AU69: 456.7714123 | AV69: 424.5617736 | AW69: 392.3521348 | AX69: 360.1424961 | AY69: 327.9328574 | AZ69: 295.7321827 | BA69: 263.5392942 | BB69: 232.1623633 | BC69: 202.2136108 | BD69: 172.2648583 | BE69: 150.8589148 | BF69: 134.7257998 | BG69: 119.5433122 | BH69: 108.6576561 | BI69: 97.93078029 | BJ69: 87.20390449 | BK69: 76.4770287 | BL69: 65.75015291 | BM69: 55.02327711 | BN69: 44.29640132 | BO69: 33.56952553 | BP69: 27.53902107 | BQ69: 25.80091994 | BR69: 24.06281881 | BS69: 22.32471767 | BT69: 20.58661654 | BU69: 18.84851541 | BV69: 17.11041428 | BW69: 15.37231315 | BX69: 13.63421202 | BY69: 11.89611089 | BZ69: 10.15800976 | CA69: 8.419908627 | CB69: 7.833817137 | CC69: 7.833817137 | CD69: 7.833817137 | CE69: 7.833817137 | CF69: 7.833817137 | CG69: 7.833817137 | CH69: 7.833817137 | CI69: 7.833817137 | CJ69: 7.833817137 | CK69: 7.833817137 | CL69: 7.833817137 | CM69: 7.833817137 | CN69: 7.833817137 | CO69: 7.833817137 | CP69: 7.833817137
C70: 2026-30 | D70: Calc|RAB | E70: $millions | F70: Real 2025 | G70: End-year | O70: 0 | P70: 0 | Q70: 0 | R70: 0 | S70: 0 | T70: 189.4307021 | U70: 389.8857004 | V70: 553.0714054 | W70: 663.5912679 | X70: 746.2246492 | Y70: 709.8324253 | Z70: 675.8272535 | AA70: 644.6892821 | AB70: 615.5818974 | AC70: 588.5153278 | AD70: 563.5538969 | AE70: 539.5062748 | AF70: 515.629934 | AG70: 492.0804566 | AH70: 468.6683032 | AI70: 445.3934337 | AJ70: 424.3995885 | AK70: 406.0205642 | AL70: 390.2666791 | AM70: 377.6020759 | AN70: 367.7564089 | AO70: 357.910742 | AP70: 348.065075 | AQ70: 338.219408 | AR70: 328.3737411 | AS70: 318.5280741 | AT70: 308.6824071 | AU70: 298.8367402 | AV70: 288.9910732 | AW70: 279.1454062 | AX70: 269.2997393 | AY70: 259.4540723 | AZ70: 249.6084053 | BA70: 239.7627384 | BB70: 229.9170714 | BC70: 220.0714044 | BD70: 210.2257375 | BE70: 200.3800705 | BF70: 190.5344035 | BG70: 180.6887366 | BH70: 170.8430696 | BI70: 160.9974026 | BJ70: 151.1517357 | BK70: 141.3060687 | BL70: 131.4604017 | BM70: 121.6147348 | BN70: 111.7690678 | BO70: 101.9234008 | BP70: 92.07773388 | BQ70: 82.26427944 | BR70: 72.49367497 | BS70: 64.87134088 | BT70: 59.1447758 | BU70: 55.02559722 | BV70: 52.1242596 | BW70: 50.21950809 | BX70: 48.31475659 | BY70: 46.41000509 | BZ70: 44.50525358 | CA70: 42.60050208 | CB70: 40.69575057 | CC70: 38.79099907 | CD70: 36.88624757 | CE70: 34.98149606 | CF70: 33.07674456 | CG70: 31.17199305 | CH70: 29.26724155 | CI70: 27.36249005 | CJ70: 25.45773854 | CK70: 23.55298704 | CL70: 21.64823553 | CM70: 19.74348403 | CN70: 17.83873253 | CO70: 15.93398102 | CP70: 14.02922952
C71: 2031-35 | D71: Calc|RAB | E71: $millions | F71: Real 2025 | G71: End-year | O71: 0 | P71: 0 | Q71: 0 | R71: 0 | S71: 0 | T71: 0 | U71: 0 | V71: 0 | W71: 0 | X71: 0 | Y71: 92.029865 | Z71: 177.9909065 | AA71: 257.8380416 | AB71: 328.5506718 | AC71: 389.5423138 | AD71: 359.7005585 | AE71: 331.719775 | AF71: 306.1889743 | AG71: 283.1081782 | AH71: 262.4061187 | AI71: 243.9893863 | AJ71: 226.2928011 | AK71: 208.7728644 | AL71: 191.429558 | AM71: 174.2561251 | AN71: 157.2458384 | AO71: 142.4476642 | AP71: 129.8624052 | AQ71: 119.4898336 | AR71: 111.251171 | AS71: 105.0582311 | AT71: 98.86529124 | AU71: 92.67235136 | AV71: 86.47941148 | AW71: 80.28647161 | AX71: 74.09353173 | AY71: 67.90059186 | AZ71: 61.70765198 | BA71: 55.51471211 | BB71: 49.32177223 | BC71: 43.12883236 | BD71: 36.93589248 | BE71: 30.74295261 | BF71: 24.55001273 | BG71: 18.35707285 | BH71: 12.16413298 | BI71: 7.235406275 | BJ71: 3.571351475 | BK71: 1.171838426 | BL71: 1.96732402e-13 | BM71: 1.96732402e-13 | BN71: 1.96732402e-13 | BO71: 1.96732402e-13 | BP71: 1.96732402e-13 | BQ71: 1.96732402e-13 | BR71: 1.96732402e-13 | BS71: 1.96732402e-13 | BT71: 1.96732402e-13 | BU71: 1.96732402e-13 | BV71: 1.96732402e-13 | BW71: 1.96732402e-13 | BX71: 1.96732402e-13 | BY71: 1.96732402e-13 | BZ71: 1.96732402e-13 | CA71: 1.96732402e-13 | CB71: 1.96732402e-13 | CC71: 1.96732402e-13 | CD71: 1.96732402e-13 | CE71: 1.96732402e-13 | CF71: 1.96732402e-13 | CG71: 1.96732402e-13 | CH71: 1.96732402e-13 | CI71: 1.96732402e-13 | CJ71: 1.96732402e-13 | CK71: 1.96732402e-13 | CL71: 1.96732402e-13 | CM71: 1.96732402e-13 | CN71: 1.96732402e-13 | CO71: 1.96732402e-13 | CP71: 1.96732402e-13
C72: 2036-40 | D72: Calc|RAB | E72: $millions | F72: Real 2025 | G72: End-year | O72: 0 | P72: 0 | Q72: 0 | R72: 0 | S72: 0 | T72: 0 | U72: 0 | V72: 0 | W72: 0 | X72: 0 | Y72: 0 | Z72: 0 | AA72: 0 | AB72: 0 | AC72: 0 | AD72: 81.4158528 | AE72: 153.4681582 | AF72: 214.2943292 | AG72: 265.1160726 | AH72: 306.3056915 | AI72: 281.6849856 | AJ72: 258.7139268 | AK72: 237.8443382 | AL72: 218.9346918 | AM72: 201.8277196 | AN72: 186.3661535 | AO72: 171.44728 | AP72: 156.6783247 | AQ72: 142.0479491 | AR72: 127.5448149 | AS72: 113.1575839 | AT72: 100.7293126 | AU72: 90.1732382 | AV72: 81.3476018 | AW72: 74.12041302 | AX72: 68.35968149 | AY72: 62.59894995 | AZ72: 56.83821842 | BA72: 51.07748689 | BB72: 45.31675536 | BC72: 39.55602383 | BD72: 33.7952923 | BE72: 28.03456077 | BF72: 22.27382924 | BG72: 16.5130977 | BH72: 10.75236617 | BI72: 6.294592643 | BJ72: 3.075590283 | BK72: 1.001294748 | BL72: 8.024964285e-14 | BM72: 8.024964285e-14 | BN72: 8.024964285e-14 | BO72: 8.024964285e-14 | BP72: 8.024964285e-14 | BQ72: 8.024964285e-14 | BR72: 8.024964285e-14 | BS72: 8.024964285e-14 | BT72: 8.024964285e-14 | BU72: 8.024964285e-14 | BV72: 8.024964285e-14 | BW72: 8.024964285e-14 | BX72: 8.024964285e-14 | BY72: 8.024964285e-14 | BZ72: 8.024964285e-14 | CA72: 8.024964285e-14 | CB72: 8.024964285e-14 | CC72: 8.024964285e-14 | CD72: 8.024964285e-14 | CE72: 8.024964285e-14 | CF72: 8.024964285e-14 | CG72: 8.024964285e-14 | CH72: 8.024964285e-14 | CI72: 8.024964285e-14 | CJ72: 8.024964285e-14 | CK72: 8.024964285e-14 | CL72: 8.024964285e-14 | CM72: 8.024964285e-14 | CN72: 8.024964285e-14 | CO72: 8.024964285e-14 | CP72: 8.024964285e-14
C73: 2041-50 | D73: Calc|RAB | E73: $millions | F73: Real 2025 | G73: End-year | O73: 0 | P73: 0 | Q73: 0 | R73: 0 | S73: 0 | T73: 0 | U73: 0 | V73: 0 | W73: 0 | X73: 0 | Y73: 0 | Z73: 0 | AA73: 0 | AB73: 0 | AC73: 0 | AD73: 0 | AE73: 0 | AF73: 0 | AG73: 0 | AH73: 0 | AI73: 56.98804541 | AJ73: 105.1513022 | AK73: 144.7308656 | AL73: 176.0035483 | AM73: 197.7399926 | AN73: 210.3062755 | AO73: 215.1602709 | AP73: 215.7809201 | AQ73: 212.3363662 | AR73: 204.9947523 | AS73: 188.0415564 | AT73: 171.8127198 | AU73: 156.0930381 | AV73: 140.7292656 | AW73: 125.5877441 | AX73: 110.5314563 | AY73: 96.87995886 | AZ73: 84.50508474 | BA73: 73.27607754 | BB73: 63.0555289 | BC73: 53.65953477 | BD73: 44.90373544 | BE73: 36.60377122 | BF73: 28.64902629 | BG73: 20.92888483 | BH73: 13.33273102 | BI73: 7.644932743 | BJ73: 3.640014341 | BK73: 1.148271523 | BL73: 1.017882176e-13 | BM73: 1.017882176e-13 | BN73: 1.017882176e-13 | BO73: 1.017882176e-13 | BP73: 1.017882176e-13 | BQ73: 1.017882176e-13 | BR73: 1.017882176e-13 | BS73: 1.017882176e-13 | BT73: 1.017882176e-13 | BU73: 1.017882176e-13 | BV73: 1.017882176e-13 | BW73: 1.017882176e-13 | BX73: 1.017882176e-13 | BY73: 1.017882176e-13 | BZ73: 1.017882176e-13 | CA73: 1.017882176e-13 | CB73: 1.017882176e-13 | CC73: 1.017882176e-13 | CD73: 1.017882176e-13 | CE73: 1.017882176e-13 | CF73: 1.017882176e-13 | CG73: 1.017882176e-13 | CH73: 1.017882176e-13 | CI73: 1.017882176e-13 | CJ73: 1.017882176e-13 | CK73: 1.017882176e-13 | CL73: 1.017882176e-13 | CM73: 1.017882176e-13 | CN73: 1.017882176e-13 | CO73: 1.017882176e-13 | CP73: 1.017882176e-13
C74: [spare] | D74: Calc|RAB | E74: $millions | F74: Real 2025 | G74: End-year | O74: 0 | P74: 0 | Q74: 0 | R74: 0 | S74: 0 | T74: 0 | U74: 0 | V74: 0 | W74: 0 | X74: 0 | Y74: 0 | Z74: 0 | AA74: 0 | AB74: 0 | AC74: 0 | AD74: 0 | AE74: 0 | AF74: 0 | AG74: 0 | AH74: 0 | AI74: 0 | AJ74: 0 | AK74: 0 | AL74: 0 | AM74: 0 | AN74: 0 | AO74: 0 | AP74: 0 | AQ74: 0 | AR74: 0 | AS74: 0 | AT74: 0 | AU74: 0 | AV74: 0 | AW74: 0 | AX74: 0 | AY74: 0 | AZ74: 0 | BA74: 0 | BB74: 0 | BC74: 0 | BD74: 0 | BE74: 0 | BF74: 0 | BG74: 0 | BH74: 0 | BI74: 0 | BJ74: 0 | BK74: 0 | BL74: 0 | BM74: 0 | BN74: 0 | BO74: 0 | BP74: 0 | BQ74: 0 | BR74: 0 | BS74: 0 | BT74: 0 | BU74: 0 | BV74: 0 | BW74: 0 | BX74: 0 | BY74: 0 | BZ74: 0 | CA74: 0 | CB74: 0 | CC74: 0 | CD74: 0 | CE74: 0 | CF74: 0 | CG74: 0 | CH74: 0 | CI74: 0 | CJ74: 0 | CK74: 0 | CL74: 0 | CM74: 0 | CN74: 0 | CO74: 0 | CP74: 0
C75: [spare] | D75: Calc|RAB | E75: $millions | F75: Real 2025 | G75: End-year
C76: [spare] | D76: Calc|RAB | E76: $millions | F76: Real 2025 | G76: End-year
C77: [spare] | D77: Calc|RAB | E77: $millions | F77: Real 2025 | G77: End-year
C78: [spare] | D78: Calc|RAB | E78: $millions | F78: Real 2025 | G78: End-year
C80: Total RAB | D80: Calculated | E80: $millions | F80: Real 2025 | G80: End-year | O80: 4020.366097 | P80: 3997.186542 | Q80: 3969.289763 | R80: 3923.865997 | S80: 3865.521931 | T80: 3820.947546 | U80: 3801.386451 | V80: 3747.280845 | W80: 3643.462606 | X80: 3515.627229 | Y80: 3420.535715 | Z80: 3322.283464 | AA80: 3221.048119 | AB80: 3113.67709 | AC80: 2998.75316 | AD80: 2879.797459 | AE80: 2759.123388 | AF80: 2634.403224 | AG80: 2507.359542 | AH80: 2377.784335 | AI80: 2245.204249 | AJ80: 2150.132244 | AK80: 2064.459705 | AL80: 1975.342798 | AM80: 1882.269699 | AN80: 1784.653926 | AO80: 1682.080672 | AP80: 1580.639878 | AQ80: 1481.190295 | AR80: 1380.104802
A82: Ok | C82: Check - RAB total | O82: Ok | P82: Ok | Q82: Ok | R82: Ok | S82: Ok | T82: Ok | U82: Ok | V82: Ok | W82: Ok | X82: Ok | Y82: Ok | Z82: Ok | AA82: Ok | AB82: Ok | AC82: Ok | AD82: Ok | AE82: Ok | AF82: Ok | AG82: Ok | AH82: Ok | AI82: Ok | AJ82: Ok | AK82: Ok | AL82: Ok | AM82: Ok | AN82: Ok | AO82: Ok | AP82: Ok | AQ82: Ok | AR82: Ok
B84: Net movement in RAB
C86: Net movement in RAB | D86: Source | E86: Unit | F86: Basis | G86: Timing | O86: RY21 | P86: RY22 | Q86: RY23 | R86: RY24 | S86: RY25 | T86: RY26 | U86: RY27 | V86: RY28 | W86: RY29 | X86: RY30 | Y86: RY31 | Z86: RY32 | AA86: RY33 | AB86: RY34 | AC86: RY35 | AD86: RY36 | AE86: RY37 | AF86: RY38 | AG86: RY39 | AH86: RY40 | AI86: RY41 | AJ86: RY42 | AK86: RY43 | AL86: RY44 | AM86: RY45 | AN86: RY46 | AO86: RY47 | AP86: RY48 | AQ86: RY49 | AR86: RY50 | AS86: RY51 | AT86: RY52 | AU86: RY53 | AV86: RY54 | AW86: RY55 | AX86: RY56 | AY86: RY57 | AZ86: RY58 | BA86: RY59 | BB86: RY60 | BC86: RY61 | BD86: RY62 | BE86: RY63 | BF86: RY64 | BG86: RY65 | BH86: RY66 | BI86: RY67 | BJ86: RY68 | BK86: RY69 | BL86: RY70 | BM86: RY71 | BN86: RY72 | BO86: RY73 | BP86: RY74 | BQ86: RY75 | BR86: RY76 | BS86: RY77 | BT86: RY78 | BU86: RY79 | BV86: RY80 | BW86: RY81 | BX86: RY82 | BY86: RY83 | BZ86: RY84 | CA86: RY85 | CB86: RY86 | CC86: RY87 | CD86: RY88 | CE86: RY89 | CF86: RY90 | CG86: RY91 | CH86: RY92 | CI86: RY93 | CJ86: RY94 | CK86: RY95 | CL86: RY96 | CM86: RY97 | CN86: RY98 | CO86: RY99 | CP86: RY00
C88: RAB indexation | D88: Calc|RAB | E88: $millions | F88: Real 2025 | G88: End-year | O88: 0 | P88: 0 | Q88: 0 | R88: 0 | S88: 0 | T88: 0 | U88: 0 | V88: 0 | W88: 0 | X88: 0 | Y88: 0 | Z88: 0 | AA88: 0 | AB88: 0 | AC88: 0 | AD88: 0 | AE88: 0 | AF88: 0 | AG88: 0 | AH88: 0 | AI88: 0 | AJ88: 0 | AK88: 0 | AL88: 0 | AM88: 0 | AN88: 0 | AO88: 0 | AP88: 0 | AQ88: 0 | AR88: 0
C89: Net capex | D89: Calc|RAB | E89: $millions | F89: Real 2025 | G89: End-year | O89: 187.0801347 | P89: 164.4999629 | Q89: 167.6559577 | R89: 159.9222359 | S89: 196.1974561 | T89: 189.4307021 | U89: 208.037366 | V89: 179.0985715 | W89: 133.9909695 | X89: 112.923651 | Y89: 92.029865 | Z89: 92.063259 | AA89: 92.05378436 | AB89: 89.023083 | AC89: 85.1897767 | AD89: 81.4158528 | AE89: 77.64192889 | AF89: 71.75611448 | AG89: 66.68757728 | AH89: 61.61904008 | AI89: 56.98804541 | AJ89: 52.19732572 | AK89: 47.27957854 | AL89: 42.2620524 | AM89: 35.63192545 | AN89: 28.86268336 | AO89: 22.09344127 | AP89: 18.03189601 | AQ89: 13.97035076 | AR89: 9.9088055
C90: Depreciation | D90: Calc|RAB | E90: $millions | F90: Real 2025 | G90: End-year | O90: -177.3625769 | P90: -187.6795183 | Q90: -195.5527364 | R90: -205.3460019 | S90: -188.2725783 | T90: -234.0050878 | U90: -227.598461 | V90: -233.2041769 | W90: -237.8092087 | X90: -240.7590278 | Y90: -187.1213793 | Z90: -190.3155104 | AA90: -193.2891285 | AB90: -196.3941129 | AC90: -200.1137062 | AD90: -200.3715535 | AE90: -198.3159998 | AF90: -196.4762788 | AG90: -193.7312594 | AH90: -191.1942474 | AI90: -189.5681309 | AJ90: -147.2693307 | AK90: -132.9521182 | AL90: -131.3789587 | AM90: -128.705025 | AN90: -126.4784558 | AO90: -124.6666961 | AP90: -119.4726892 | AQ90: -113.4199343 | AR90: -110.9942985
C91: Adjustments | D91: Calc|RAB | E91: $millions | F91: Real 2025 | G91: End-year | O91: 0 | P91: 0 | Q91: 0 | R91: 0 | S91: -66.26894354
C93: Net movement in RAB | D93: Calculated | E93: $millions | F93: Real 2025 | G93: End-year | O93: 9.71755774 | P93: -23.17955538 | Q93: -27.89677869 | R93: -45.42376602 | S93: -58.34406566 | T93: -44.57438569 | U93: -19.56109498 | V93: -54.10560546 | W93: -103.8182392 | X93: -127.8353768 | Y93: -95.09151428 | Z93: -98.25225138 | AA93: -101.2353442 | AB93: -107.3710299 | AC93: -114.9239295 | AD93: -118.9557007 | AE93: -120.6740709 | AF93: -124.7201643 | AG93: -127.0436821 | AH93: -129.5752073 | AI93: -132.5800855 | AJ93: -95.07200499 | AK93: -85.67253964 | AL93: -89.1169063 | AM93: -93.07309953 | AN93: -97.61577245 | AO93: -102.5732548 | AP93: -101.4407932 | AQ93: -99.4495835 | AR93: -101.085493
A95: Ok | C95: Check - RAB reconciliation | P95: Ok | Q95: Ok | R95: Ok | S95: Ok | T95: Ok | U95: Ok | V95: Ok | W95: Ok | X95: Ok | Y95: Ok | Z95: Ok | AA95: Ok | AB95: Ok | AC95: Ok | AD95: Ok | AE95: Ok | AF95: Ok | AG95: Ok | AH95: Ok | AI95: Ok | AJ95: Ok | AK95: Ok | AL95: Ok | AM95: Ok | AN95: Ok | AO95: Ok | AP95: Ok | AQ95: Ok | AR95: Ok
B97: RAB per customer
C99: RAB per customer | D99: Source | E99: Unit | F99: Basis | G99: Timing | O99: RY21 | P99: RY22 | Q99: RY23 | R99: RY24 | S99: RY25 | T99: RY26 | U99: RY27 | V99: RY28 | W99: RY29 | X99: RY30 | Y99: RY31 | Z99: RY32 | AA99: RY33 | AB99: RY34 | AC99: RY35 | AD99: RY36 | AE99: RY37 | AF99: RY38 | AG99: RY39 | AH99: RY40 | AI99: RY41 | AJ99: RY42 | AK99: RY43 | AL99: RY44 | AM99: RY45 | AN99: RY46 | AO99: RY47 | AP99: RY48 | AQ99: RY49 | AR99: RY50 | AS99: RY51 | AT99: RY52 | AU99: RY53 | AV99: RY54 | AW99: RY55 | AX99: RY56 | AY99: RY57 | AZ99: RY58 | BA99: RY59 | BB99: RY60 | BC99: RY61 | BD99: RY62 | BE99: RY63 | BF99: RY64 | BG99: RY65 | BH99: RY66 | BI99: RY67 | BJ99: RY68 | BK99: RY69 | BL99: RY70 | BM99: RY71 | BN99: RY72 | BO99: RY73 | BP99: RY74 | BQ99: RY75 | BR99: RY76 | BS99: RY77 | BT99: RY78 | BU99: RY79 | BV99: RY80 | BW99: RY81 | BX99: RY82 | BY99: RY83 | BZ99: RY84 | CA99: RY85 | CB99: RY86 | CC99: RY87 | CD99: RY88 | CE99: RY89 | CF99: RY90 | CG99: RY91 | CH99: RY92 | CI99: RY93 | CJ99: RY94 | CK99: RY95 | CL99: RY96 | CM99: RY97 | CN99: RY98 | CO99: RY99 | CP99: RY00
C101: RAB per customer | D101: Calculated | E101: $/Customer | F101: Real 2025 | G101: End-year | S101: 2498.231859 | T101: 2459.026893 | U101: 2431.587881 | V101: 2393.490948 | W101: 2337.26204 | X101: 2283.58355 | Y101: 2309.828662 | Z101: 2390.04474 | AA101: 2479.155841 | AB101: 2576.555866 | AC101: 2682.994038 | AD101: 2846.159172 | AE101: 3097.187569 | AF101: 3421.852949 | AG101: 3863.998544 | AH101: 4504.004382 | AI101: 5101.755189 | AJ101: 5579.34061 | AK101: 6243.605306 | AL101: 7159.309691 | AM101: 8511.376252 | AN101: 10231.04286 | AO101: 12389.33812 | AP101: 16284.8841 | AQ101: 25391.1986 | AR101: 70328.27136
C102: RAB per customer - Label | D102: Calculated | E102: $/Customer | F102: Real 2025 | G102: End-year | S102: 2,498 | T102: 2,459 | X102: 2,284 | AC102: 2,683 | AH102: 4,504 | AM102: 8,511 | AR102: 70,328
B104: Building block revenue
C106: Building block revenue | D106: Source | E106: Unit | F106: Basis | G106: Timing | O106: RY21 | P106: RY22 | Q106: RY23 | R106: RY24 | S106: RY25 | T106: RY26 | U106: RY27 | V106: RY28 | W106: RY29 | X106: RY30 | Y106: RY31 | Z106: RY32 | AA106: RY33 | AB106: RY34 | AC106: RY35 | AD106: RY36 | AE106: RY37 | AF106: RY38 | AG106: RY39 | AH106: RY40 | AI106: RY41 | AJ106: RY42 | AK106: RY43 | AL106: RY44 | AM106: RY45 | AN106: RY46 | AO106: RY47 | AP106: RY48 | AQ106: RY49 | AR106: RY50 | AS106: RY51 | AT106: RY52 | AU106: RY53 | AV106: RY54 | AW106: RY55 | AX106: RY56 | AY106: RY57 | AZ106: RY58 | BA106: RY59 | BB106: RY60 | BC106: RY61 | BD106: RY62 | BE106: RY63 | BF106: RY64 | BG106: RY65 | BH106: RY66 | BI106: RY67 | BJ106: RY68 | BK106: RY69 | BL106: RY70 | BM106: RY71 | BN106: RY72 | BO106: RY73 | BP106: RY74 | BQ106: RY75 | BR106: RY76 | BS106: RY77 | BT106: RY78 | BU106: RY79 | BV106: RY80 | BW106: RY81 | BX106: RY82 | BY106: RY83 | BZ106: RY84 | CA106: RY85 | CB106: RY86 | CC106: RY87 | CD106: RY88 | CE106: RY89 | CF106: RY90 | CG106: RY91 | CH106: RY92 | CI106: RY93 | CJ106: RY94 | CK106: RY95 | CL106: RY96 | CM106: RY97 | CN106: RY98 | CO106: RY99 | CP106: RY00
C108: Return on capital | D108: Calc|BB Summary | E108: $millions | F108: Real 2025 | G108: End-year | O108: 175.897643 | P108: 173.4067319 | Q108: 174.0653502 | R108: 167.8967159 | S108: 163.3147428 | T108: 202.6508437 | U108: 196.0258615 | V108: 191.5414719 | W108: 186.4673484 | X108: 179.1317883 | Y108: 175.2674938 | Z108: 173.0728432 | AA108: 167.3997512 | AB108: 157.1253273 | AC108: 147.6338601 | AD108: 142.184784 | AE108: 136.544543 | AF108: 130.822826 | AG108: 124.9092651 | AH108: 118.8855354 | AI108: 112.7417743 | AJ108: 106.4555381 | AK108: 101.9477337 | AL108: 97.8856016 | AM108: 93.66015609 | AN108: 89.24712913 | AO108: 84.61871299 | AP108: 79.75523964 | AQ108: 74.94546155 | AR108: 70.23009593
C109: Depreciation | D109: Calc|BB Summary | E109: $millions | F109: Real 2025 | G109: End-year | O109: 88.18863324 | P109: 97.29578423 | Q109: 104.3077819 | R109: 113.9474148 | S109: 97.12640783 | T109: 129.0932406 | U109: 123.8963809 | V109: 130.032993 | W109: 136.106473 | X109: 141.8739616 | Y109: 101.3743737 | Z109: 106.88781 | AA109: 112.2578245 | AB109: 117.8319637 | AC109: 124.1703626 | AD109: 127.2312325 | AE109: 128.0770374 | AF109: 129.1805864 | AG109: 129.4775222 | AH109: 130.0391366 | AI109: 131.573391 | AJ109: 92.50825146 | AK109: 80.50986832 | AL109: 81.02628298 | AM109: 80.52593234 | AN109: 80.56943877 | AO109: 81.13855152 | AP109: 78.4463314 | AQ109: 74.86774211 | AR109: 74.86770598
C110: Opex | D110: Calc|BB Summary | E110: $millions | F110: Real 2025 | G110: End-year | O110: 249.0047697 | P110: 259.7717025 | Q110: 268.3571588 | R110: 269.0641913 | S110: 273.4400685 | T110: 264.9518595 | U110: 257.7687131 | V110: 255.805684 | W110: 254.0059536 | X110: 257.4679061 | Y110: 239.6752498 | Z110: 233.0702897 | AA110: 226.2853991 | AB110: 241.7905334 | AC110: 230.9240157 | AD110: 217.3397203 | AE110: 202.5586722 | AF110: 204.0092906 | AG110: 184.0012711 | AH110: 165.9657506 | AI110: 150.3970742 | AJ110: 137.9707295 | AK110: 125.7095529 | AL110: 116.7469279 | AM110: 127.8332113 | AN110: 125.0171146 | AO110: 122.2891683 | AP110: 96.19630268 | AQ110: 94.93454321 | AR110: 93.71779192
C111: Tax | D111: Calc|BB Summary | E111: $millions | F111: Real 2025 | G111: End-year | O111: 1.490913772 | P111: 2.16420774 | Q111: 2.714990727 | R111: 3.394778934 | S111: 0.7648122244 | T111: 13.984326 | U111: 12.87734171 | V111: 13.18596838 | W111: 13.7756053 | X111: 14.95273998 | Y111: 9.150430951 | Z111: 10.72318359 | AA111: 12.13103494 | AB111: 13.33287716 | AC111: 14.54472859 | AD111: 14.8365074 | AE111: 15.39970764 | AF111: 15.76074462 | AG111: 16.0559335 | AH111: 16.3474499 | AI111: 16.8148192 | AJ111: 11.17785405 | AK111: 9.75063489 | AL111: 10.12236884 | AM111: 10.4555636 | AN111: 10.92900367 | AO111: 11.3570936 | AP111: 11.30041731 | AQ111: 11.09366281 | AR111: 11.39347239
C112: Incentives | D112: Calc|BB Summary | E112: $millions | F112: Real 2025 | G112: End-year | O112: -210.1933644 | P112: -10.41331724 | Q112: 6.055179549 | R112: 0 | S112: -3.207750086 | T112: 34.17184342 | U112: 3.681313112 | V112: -15.60706031 | W112: 4.569575096 | X112: 5.779656753 | Y112: 0 | Z112: 0 | AA112: 0 | AB112: 0 | AC112: 0 | AD112: 0 | AE112: 0 | AF112: 0 | AG112: 0 | AH112: 0 | AI112: 0 | AJ112: 0 | AK112: 0 | AL112: 0 | AM112: 0 | AN112: 0 | AO112: 0 | AP112: 0 | AQ112: 0 | AR112: 0
C113: Stranding risk compensation | D113: Calc|RAB | E113: $millions | F113: Real 2025 | G113: End-year
C115: Building block revenue | D115: Calculated | E115: $millions | F115: Real 2025 | G115: End-year | O115: 304.3885953 | P115: 522.2251092 | Q115: 555.5004611 | R115: 554.3031009 | S115: 531.4382813 | T115: 644.8521132 | U115: 594.2496104 | V115: 574.9590569 | W115: 594.9249554 | X115: 599.2060528 | Y115: 525.4675482 | Z115: 523.7541265 | AA115: 518.0740098 | AB115: 530.0807016 | AC115: 517.2729669 | AD115: 501.5922442 | AE115: 482.5799601 | AF115: 479.7734476 | AG115: 454.4439919 | AH115: 431.2378725 | AI115: 411.5270587 | AJ115: 348.112373 | AK115: 317.9177898 | AL115: 305.7811813 | AM115: 312.4748634 | AN115: 305.7626862 | AO115: 299.4035264 | AP115: 265.698291 | AQ115: 255.8414097 | AR115: 250.2090662
A117: Ok | C117: Check - Revenue reconciliation | O117: Ok | P117: Ok | Q117: Ok | R117: Ok | S117: Ok | T117: Ok | U117: Ok | V117: Ok | W117: Ok | X117: Ok | Y117: Ok | Z117: Ok | AA117: Ok | AB117: Ok | AC117: Ok | AD117: Ok | AE117: Ok | AF117: Ok | AG117: Ok | AH117: Ok | AI117: Ok | AJ117: Ok | AK117: Ok | AL117: Ok | AM117: Ok | AN117: Ok | AO117: Ok | AP117: Ok | AQ117: Ok | AR117: Ok
B119: Annual network (Jemena) bill - Residential | S119: 0
C121: Annual network (Jemena) bill - Residential | D121: Source | E121: Unit | F121: Basis | G121: Timing | O121: RY21 | P121: RY22 | Q121: RY23 | R121: RY24 | S121: RY25 | T121: RY26 | U121: RY27 | V121: RY28 | W121: RY29 | X121: RY30 | Y121: RY31 | Z121: RY32 | AA121: RY33 | AB121: RY34 | AC121: RY35 | AD121: RY36 | AE121: RY37 | AF121: RY38 | AG121: RY39 | AH121: RY40 | AI121: RY41 | AJ121: RY42 | AK121: RY43 | AL121: RY44 | AM121: RY45 | AN121: RY46 | AO121: RY47 | AP121: RY48 | AQ121: RY49 | AR121: RY50 | AS121: RY51 | AT121: RY52 | AU121: RY53 | AV121: RY54 | AW121: RY55 | AX121: RY56 | AY121: RY57 | AZ121: RY58 | BA121: RY59 | BB121: RY60 | BC121: RY61 | BD121: RY62 | BE121: RY63 | BF121: RY64 | BG121: RY65 | BH121: RY66 | BI121: RY67 | BJ121: RY68 | BK121: RY69 | BL121: RY70 | BM121: RY71 | BN121: RY72 | BO121: RY73 | BP121: RY74 | BQ121: RY75 | BR121: RY76 | BS121: RY77 | BT121: RY78 | BU121: RY79 | BV121: RY80 | BW121: RY81 | BX121: RY82 | BY121: RY83 | BZ121: RY84 | CA121: RY85 | CB121: RY86 | CC121: RY87 | CD121: RY88 | CE121: RY89 | CF121: RY90 | CG121: RY91 | CH121: RY92 | CI121: RY93 | CJ121: RY94 | CK121: RY95 | CL121: RY96 | CM121: RY97 | CN121: RY98 | CO121: RY99 | CP121: RY00
C123: Annual network (Jemena) bill - Residential | D123: Calc|Pricing | E123: $/Customer | F123: Real 2025 | G123: End-year | R123: 0 | S123: 338.7919528 | T123: 381.0241452 | U123: 346.464642 | V123: 333.6548503 | W123: 346.4815853 | X123: 354.5431137 | Y123: 314.3466007 | Z123: 317.4770844 | AA123: 318.7589417 | AB123: 331.7589384 | AC123: 330.1754705 | AD123: 337.2634984 | AE123: 345.7097965 | AF123: 371.9738194 | AG123: 390.0616623 | AH123: 424.3136678 | AI123: 435.1692827 | AJ123: 401.2856422 | AK123: 407.375782 | AL123: 447.9419215 | AM123: 546.3672023 | AN123: 623.6129922 | AO123: 756.8644109 | AP123: 931.2040408 | AQ123: 1624.868494 | AR123: 25273.31135
C124: Annual network (Jemena) bill - Residential - Label | D124: Calculated | E124: $/Customer | F124: Real 2025 | G124: End-year | S124: 339 | T124: 381 | X124: 355 | AC124: 330 | AH124: 424 | AM124: 546 | AR124: 25,273
B126: Annual total bill - Residential
C128: Annual total bill - Residential | D128: Source | E128: Unit | F128: Basis | G128: Timing | O128: RY21 | P128: RY22 | Q128: RY23 | R128: RY24 | S128: RY25 | T128: RY26 | U128: RY27 | V128: RY28 | W128: RY29 | X128: RY30 | Y128: RY31 | Z128: RY32 | AA128: RY33 | AB128: RY34 | AC128: RY35 | AD128: RY36 | AE128: RY37 | AF128: RY38 | AG128: RY39 | AH128: RY40 | AI128: RY41 | AJ128: RY42 | AK128: RY43 | AL128: RY44 | AM128: RY45 | AN128: RY46 | AO128: RY47 | AP128: RY48 | AQ128: RY49 | AR128: RY50 | AS128: RY51 | AT128: RY52 | AU128: RY53 | AV128: RY54 | AW128: RY55 | AX128: RY56 | AY128: RY57 | AZ128: RY58 | BA128: RY59 | BB128: RY60 | BC128: RY61 | BD128: RY62 | BE128: RY63 | BF128: RY64 | BG128: RY65 | BH128: RY66 | BI128: RY67 | BJ128: RY68 | BK128: RY69 | BL128: RY70 | BM128: RY71 | BN128: RY72 | BO128: RY73 | BP128: RY74 | BQ128: RY75 | BR128: RY76 | BS128: RY77 | BT128: RY78 | BU128: RY79 | BV128: RY80 | BW128: RY81 | BX128: RY82 | BY128: RY83 | BZ128: RY84 | CA128: RY85 | CB128: RY86 | CC128: RY87 | CD128: RY88 | CE128: RY89 | CF128: RY90 | CG128: RY91 | CH128: RY92 | CI128: RY93 | CJ128: RY94 | CK128: RY95 | CL128: RY96 | CM128: RY97 | CN128: RY98 | CO128: RY99 | CP128: RY00
C130: Other components | D130: Calc|Pricing | E130: $/Customer | F130: Real 2025 | G130: End-year | R130: 633.6026121 | S130: 617.9794993 | T130: 613.3268181 | U130: 606.6472677 | V130: 596.6977114 | W130: 585.7536774 | X130: 573.1196555 | Y130: 576.64065 | Z130: 581.0723968 | AA130: 586.5449674 | AB130: 593.2213857 | AC130: 601.3088847 | AD130: 611.6015188 | AE130: 624.3591942 | AF130: 640.2777226 | AG130: 660.397906 | AH130: 686.4006268 | AI130: 692.628346 | AJ130: 687.6864586 | AK130: 682.5368533 | AL130: 676.9723939 | AM130: 670.552611 | AN130: 666.9057376 | AO130: 663.3478123 | AP130: 659.8766657 | AQ130: 656.4901812
C131: Network (Jemena) component | D131: Calc|Pricing | E131: $/Customer | F131: Real 2025 | G131: End-year | R131: 0 | S131: 338.7919528 | T131: 381.0241452 | U131: 346.464642 | V131: 333.6548503 | W131: 346.4815853 | X131: 354.5431137 | Y131: 314.3466007 | Z131: 317.4770844 | AA131: 318.7589417 | AB131: 331.7589384 | AC131: 330.1754705 | AD131: 337.2634984 | AE131: 345.7097965 | AF131: 371.9738194 | AG131: 390.0616623 | AH131: 424.3136678 | AI131: 435.1692827 | AJ131: 401.2856422 | AK131: 407.375782 | AL131: 447.9419215 | AM131: 546.3672023 | AN131: 623.6129922 | AO131: 756.8644109 | AP131: 931.2040408 | AQ131: 1624.868494 | AR131: 25273.31135
C132: Annual total bill - Residential | D132: Calc|Pricing | E132: $/Customer | F132: Real 2025 | G132: End-year | R132: 633.6026121 | S132: 956.771452 | T132: 994.3509633 | U132: 953.1119097 | V132: 930.3525616 | W132: 932.2352627 | X132: 927.6627691 | Y132: 890.9872507 | Z132: 898.5494812 | AA132: 905.3039092 | AB132: 924.9803241 | AC132: 931.4843552 | AD132: 948.8650173 | AE132: 970.0689907 | AF132: 1012.251542 | AG132: 1050.459568 | AH132: 1110.714295 | AI132: 1127.797629 | AJ132: 1088.972101 | AK132: 1089.912635 | AL132: 1124.914315 | AM132: 1216.919813 | AN132: 1290.51873 | AO132: 1420.212223 | AP132: 1591.080706 | AQ132: 2281.358675
C133: Annual total bill - Residential - Label | D133: Calculated | E133: $/Customer | F133: Real 2025 | G133: End-year | S133: 957 | T133: 994 | X133: 928 | AC133: 931 | AH133: 1,111 | AM133: 1,217
C135: Check - Price reconciliation | S135: Ok | T135: Ok | U135: Ok | V135: Ok | W135: Ok | X135: Ok | Y135: Ok | Z135: Ok | AA135: Ok | AB135: Ok | AC135: Ok | AD135: Ok | AE135: Ok | AF135: Ok | AG135: Ok | AH135: Ok | AI135: Ok | AJ135: Ok | AK135: Ok | AL135: Ok | AM135: Ok | AN135: Ok | AO135: Ok | AP135: Ok | AQ135: Ok
B137: Annual network (Jemena) bill - Commercial
C139: Annual network (Jemena) bill - Commercial | D139: Source | E139: Unit | F139: Basis | G139: Timing | O139: RY21 | P139: RY22 | Q139: RY23 | R139: RY24 | S139: RY25 | T139: RY26 | U139: RY27 | V139: RY28 | W139: RY29 | X139: RY30 | Y139: RY31 | Z139: RY32 | AA139: RY33 | AB139: RY34 | AC139: RY35 | AD139: RY36 | AE139: RY37 | AF139: RY38 | AG139: RY39 | AH139: RY40 | AI139: RY41 | AJ139: RY42 | AK139: RY43 | AL139: RY44 | AM139: RY45 | AN139: RY46 | AO139: RY47 | AP139: RY48 | AQ139: RY49 | AR139: RY50 | AS139: RY51 | AT139: RY52 | AU139: RY53 | AV139: RY54 | AW139: RY55 | AX139: RY56 | AY139: RY57 | AZ139: RY58 | BA139: RY59 | BB139: RY60 | BC139: RY61 | BD139: RY62 | BE139: RY63 | BF139: RY64 | BG139: RY65 | BH139: RY66 | BI139: RY67 | BJ139: RY68 | BK139: RY69 | BL139: RY70 | BM139: RY71 | BN139: RY72 | BO139: RY73 | BP139: RY74 | BQ139: RY75 | BR139: RY76 | BS139: RY77 | BT139: RY78 | BU139: RY79 | BV139: RY80 | BW139: RY81 | BX139: RY82 | BY139: RY83 | BZ139: RY84 | CA139: RY85 | CB139: RY86 | CC139: RY87 | CD139: RY88 | CE139: RY89 | CF139: RY90 | CG139: RY91 | CH139: RY92 | CI139: RY93 | CJ139: RY94 | CK139: RY95 | CL139: RY96 | CM139: RY97 | CN139: RY98 | CO139: RY99 | CP139: RY00
C141: Annual network (Jemena) bill - Commercial | D141: Calc|Pricing | E141: $/Customer | F141: Real 2025 | G141: End-year | S141: 2230.861579 | T141: 2475.194144 | U141: 2239.571931 | V141: 2125.470781 | W141: 2167.773137 | X141: 2163.873398 | Y141: 1902.454696 | Z141: 1920.300732 | AA141: 1926.731269 | AB141: 2003.633715 | AC141: 1992.000317 | AD141: 2039.478063 | AE141: 2096.845451 | AF141: 2265.315868 | AG141: 2389.23931 | AH141: 2622.354656 | AI141: 2717.67091 | AJ141: 2536.475019 | AK141: 2611.159318 | AL141: 2918.038016 | AM141: 3627.4366 | AN141: 4182.177693 | AO141: 5123.559707 | AP141: 6369.243457 | AQ141: 11403.74053 | AR141: 242905.3119
C142: Annual network (Jemena) bill - Commercial - Label | D142: Calculated | E142: $/Customer | F142: Real 2025 | G142: End-year | S142: 2,231 | T142: 2,475 | X142: 2,164 | AC142: 1,992 | AH142: 2,622 | AM142: 3,627 | AR142: 242,905
B144: Annual total bill - Commercial
C146: Annual total bill - Commercial | D146: Source | E146: Unit | F146: Basis | G146: Timing | O146: RY21 | P146: RY22 | Q146: RY23 | R146: RY24 | S146: RY25 | T146: RY26 | U146: RY27 | V146: RY28 | W146: RY29 | X146: RY30 | Y146: RY31 | Z146: RY32 | AA146: RY33 | AB146: RY34 | AC146: RY35 | AD146: RY36 | AE146: RY37 | AF146: RY38 | AG146: RY39 | AH146: RY40 | AI146: RY41 | AJ146: RY42 | AK146: RY43 | AL146: RY44 | AM146: RY45 | AN146: RY46 | AO146: RY47 | AP146: RY48 | AQ146: RY49 | AR146: RY50 | AS146: RY51 | AT146: RY52 | AU146: RY53 | AV146: RY54 | AW146: RY55 | AX146: RY56 | AY146: RY57 | AZ146: RY58 | BA146: RY59 | BB146: RY60 | BC146: RY61 | BD146: RY62 | BE146: RY63 | BF146: RY64 | BG146: RY65 | BH146: RY66 | BI146: RY67 | BJ146: RY68 | BK146: RY69 | BL146: RY70 | BM146: RY71 | BN146: RY72 | BO146: RY73 | BP146: RY74 | BQ146: RY75 | BR146: RY76 | BS146: RY77 | BT146: RY78 | BU146: RY79 | BV146: RY80 | BW146: RY81 | BX146: RY82 | BY146: RY83 | BZ146: RY84 | CA146: RY85 | CB146: RY86 | CC146: RY87 | CD146: RY88 | CE146: RY89 | CF146: RY90 | CG146: RY91 | CH146: RY92 | CI146: RY93 | CJ146: RY94 | CK146: RY95 | CL146: RY96 | CM146: RY97 | CN146: RY98 | CO146: RY99 | CP146: RY00
C148: Other components | D148: Calc|Pricing | E148: $/Customer | F148: Real 2025 | G148: End-year | S148: 9116.749723 | T148: 9142.668908 | U148: 9099.574129 | V148: 8987.810869 | W148: 8809.09739 | X148: 8499.310503 | Y148: 8597.234487 | Z148: 8706.403322 | AA148: 8828.034777 | AB148: 8963.469466 | AC148: 9114.114282 | AD148: 9389.354442 | AE148: 9721.651294 | AF148: 10131.40209 | AG148: 10652.38799 | AH148: 11347.9473 | AI148: 11792.51986 | AJ148: 12065.96627 | AK148: 12391.18071 | AL148: 12778.75283 | AM148: 13246.18152 | AN148: 13480.99962 | AO148: 13698.98311 | AP148: 13945.42388 | AQ148: 14620.80532 | AR148: 24861.32323
C149: Network (Jemena) component | D149: Calc|Pricing | E149: $/Customer | F149: Real 2025 | G149: End-year | S149: 2230.861579 | T149: 2475.194144 | U149: 2239.571931 | V149: 2125.470781 | W149: 2167.773137 | X149: 2163.873398 | Y149: 1902.454696 | Z149: 1920.300732 | AA149: 1926.731269 | AB149: 2003.633715 | AC149: 1992.000317 | AD149: 2039.478063 | AE149: 2096.845451 | AF149: 2265.315868 | AG149: 2389.23931 | AH149: 2622.354656 | AI149: 2717.67091 | AJ149: 2536.475019 | AK149: 2611.159318 | AL149: 2918.038016 | AM149: 3627.4366 | AN149: 4182.177693 | AO149: 5123.559707 | AP149: 6369.243457 | AQ149: 11403.74053 | AR149: 242905.3119
C150: Annual total bill - Commercial | D150: Calc|Pricing | E150: $/Customer | F150: Real 2025 | G150: End-year | S150: 11347.6113 | T150: 11617.86305 | U150: 11339.14606 | V150: 11113.28165 | W150: 10976.87053 | X150: 10663.1839 | Y150: 10499.68918 | Z150: 10626.70405 | AA150: 10754.76605 | AB150: 10967.10318 | AC150: 11106.1146 | AD150: 11428.83251 | AE150: 11818.49675 | AF150: 12396.71796 | AG150: 13041.6273 | AH150: 13970.30196 | AI150: 14510.19077 | AJ150: 14602.44129 | AK150: 15002.34003 | AL150: 15696.79085 | AM150: 16873.61812 | AN150: 17663.17731 | AO150: 18822.54282 | AP150: 20314.66733 | AQ150: 26024.54584 | AR150: 267766.6351
C151: Annual total bill - Commercial - Label | D151: Calculated | E151: $/Customer | F151: Real 2025 | G151: End-year | S151: 11,348 | T151: 11,618 | X151: 10,663 | AC151: 11,106 | AH151: 13,970 | AM151: 16,874 | AR151: 267,767
A153: Ok | C153: Check - Price reconciliation | S153: Ok | T153: Ok | U153: Ok | V153: Ok | W153: Ok | X153: Ok | Y153: Ok | Z153: Ok | AA153: Ok | AB153: Ok | AC153: Ok | AD153: Ok | AE153: Ok | AF153: Ok | AG153: Ok | AH153: Ok | AI153: Ok | AJ153: Ok | AK153: Ok | AL153: Ok | AM153: Ok | AN153: Ok | AO153: Ok | AP153: Ok | AQ153: Ok | AR153: Ok
B155: End-customer Energy Prices
C157: End-customer Energy Prices - Residential | D157: Source | E157: Unit | F157: Basis | G157: Basis | O157: RY21 | P157: RY22 | Q157: RY23 | R157: RY24 | S157: RY25 | T157: RY26 | U157: RY27 | V157: RY28 | W157: RY29 | X157: RY30 | Y157: RY31 | Z157: RY32 | AA157: RY33 | AB157: RY34 | AC157: RY35 | AD157: RY36 | AE157: RY37 | AF157: RY38 | AG157: RY39 | AH157: RY40 | AI157: RY41 | AJ157: RY42 | AK157: RY43 | AL157: RY44 | AM157: RY45 | AN157: RY46 | AO157: RY47 | AP157: RY48 | AQ157: RY49 | AR157: RY50 | AS157: RY51 | AT157: RY52 | AU157: RY53 | AV157: RY54 | AW157: RY55 | AX157: RY56 | AY157: RY57 | AZ157: RY58 | BA157: RY59 | BB157: RY60 | BC157: RY61 | BD157: RY62 | BE157: RY63 | BF157: RY64 | BG157: RY65 | BH157: RY66 | BI157: RY67 | BJ157: RY68 | BK157: RY69 | BL157: RY70 | BM157: RY71 | BN157: RY72 | BO157: RY73 | BP157: RY74 | BQ157: RY75 | BR157: RY76 | BS157: RY77 | BT157: RY78 | BU157: RY79 | BV157: RY80 | BW157: RY81 | BX157: RY82 | BY157: RY83 | BZ157: RY84 | CA157: RY85 | CB157: RY86 | CC157: RY87 | CD157: RY88 | CE157: RY89 | CF157: RY90 | CG157: RY91 | CH157: RY92 | CI157: RY93 | CJ157: RY94 | CK157: RY95 | CL157: RY96 | CM157: RY97 | CN157: RY98 | CO157: RY99 | CP157: RY00
C159: Gas price - distribution (Jemena) | D159: Calc|WTP | E159: $/GJ | F159: Real 2025 | G159: End-year | S159: 15.83090561 | T159: 17.87068198 | U159: 16.32638029 | V159: 15.82162395 | W159: 16.54523538 | X159: 17.06790218 | Y159: 15.14732694 | Z159: 15.29755466 | AA159: 15.35762369 | AB159: 15.98082057 | AC159: 15.89973082 | AD159: 16.24220584 | AE159: 16.64834582 | AF159: 17.90956134 | AG159: 18.77179702 | AH159: 20.40144039 | AI159: 20.93781077 | AJ159: 19.32235632 | AK159: 19.63306719 | AL159: 21.6117519 | AM159: 26.39941273 | AN159: 30.14502115 | AO159: 36.60237218 | AP159: 45.05330201 | AQ159: 78.64851646 | AR159: 0
C160: Gas price - wholesale | D160: Calc|WTP | E160: $/GJ | F160: Real 2025 | G160: End-year | S160: 17.24382776 | T160: 17.85456921 | U160: 18.47097814 | V160: 19.09314764 | W160: 19.72057867 | X160: 20.35239419 | Y160: 20.82130972 | Z160: 21.32906328 | AA160: 21.88156759 | AB160: 22.48600361 | AC160: 23.15118126 | AD160: 23.99069363 | AE160: 24.95307886 | AF160: 26.07017507 | AG160: 27.38591443 | AH160: 28.96270747 | AI160: 29.61404819 | AJ160: 29.61404819 | AK160: 29.61404819 | AL160: 29.61404819 | AM160: 29.61404819 | AN160: 29.61404819 | AO160: 29.61404819 | AP160: 29.61404819 | AQ160: 29.61404819 | AR160: 29.61404819
C161: Gas price - other | D161: Calc|WTP | E161: $/GJ | F161: Real 2025 | G161: End-year | S161: 19.21196113 | T161: 19.21196113 | U161: 19.21196113 | V161: 19.21196113 | W161: 19.21196113 | X161: 19.21196113 | Y161: 19.21196113 | Z161: 19.21196113 | AA161: 19.21196113 | AB161: 19.21196113 | AC161: 19.21196113 | AD161: 19.21196113 | AE161: 19.21196113 | AF161: 19.21196113 | AG161: 19.21196113 | AH161: 19.21196113 | AI161: 19.21196113 | AJ161: 19.21196113 | AK161: 19.21196113 | AL161: 19.21196113 | AM161: 19.21196113 | AN161: 19.21196113 | AO161: 19.21196113 | AP161: 19.21196113 | AQ161: 19.21196113 | AR161: 19.21196113
C162: End-customer gas price | D162: Calc|WTP | E162: $/GJ | F162: Real 2025 | G162: End-year | S162: 52.2866945 | T162: 54.93721232 | U162: 54.00931956 | V162: 54.12673272 | W162: 55.47777518 | X162: 56.63225751 | Y162: 55.18059779 | Z162: 55.83857908 | AA162: 56.45115241 | AB162: 57.67878532 | AC162: 58.26287321 | AD162: 59.4448606 | AE162: 60.81338582 | AF162: 63.19169754 | AG162: 65.36967259 | AH162: 68.576109 | AI162: 69.76382009 | AJ162: 68.14836565 | AK162: 68.45907652 | AL162: 70.43776123 | AM162: 75.22542205 | AN162: 78.97103047 | AO162: 85.42838151 | AP162: 93.87931133 | AQ162: 127.4745258 | AR162: 48.82600932
C163: End-customer electrification price - before end of appliance life | D163: Calc|WTP | E163: $/GJ | F163: Real 2025 | G163: End-year | S163: 125.9623628 | T163: 124.813943 | U163: 123.550226 | V163: 122.2374578 | W163: 120.8658386 | X163: 119.4264839 | Y163: 100.5388451 | Z163: 98.28995894 | AA163: 96.28078654 | AB163: 94.48807226 | AC163: 92.89156883 | AD163: 91.47096253 | AE163: 90.06691277 | AF163: 88.67998802 | AG163: 87.69191052 | AH163: 86.70632056 | AI163: 85.71960475 | AJ163: 84.74798386 | AK163: 83.79142004 | AL163: 82.84949483 | AM163: 81.92108603 | AN163: 81.00739399 | AO163: 80.10763691 | AP163: 79.22006432 | AQ163: 78.34711858 | AR163: 77.48875832 | AS163: 77.48875832 | AT163: 77.48875832 | AU163: 77.48875832 | AV163: 77.48875832 | AW163: 77.48875832 | AX163: 77.48875832 | AY163: 77.48875832 | AZ163: 77.48875832 | BA163: 77.48875832 | BB163: 77.48875832 | BC163: 77.48875832 | BD163: 77.48875832 | BE163: 77.48875832 | BF163: 77.48875832 | BG163: 77.48875832 | BH163: 77.48875832 | BI163: 77.48875832 | BJ163: 77.48875832 | BK163: 77.48875832 | BL163: 77.48875832 | BM163: 77.48875832 | BN163: 77.48875832 | BO163: 77.48875832 | BP163: 77.48875832 | BQ163: 77.48875832 | BR163: 77.48875832 | BS163: 77.48875832 | BT163: 77.48875832 | BU163: 77.48875832 | BV163: 77.48875832 | BW163: 77.48875832 | BX163: 77.48875832 | BY163: 77.48875832 | BZ163: 77.48875832 | CA163: 77.48875832 | CB163: 77.48875832 | CC163: 77.48875832 | CD163: 77.48875832 | CE163: 77.48875832 | CF163: 77.48875832 | CG163: 77.48875832 | CH163: 77.48875832 | CI163: 77.48875832 | CJ163: 77.48875832 | CK163: 77.48875832 | CL163: 77.48875832 | CM163: 77.48875832 | CN163: 77.48875832 | CO163: 77.48875832 | CP163: 77.48875832
